Workbook

Sheet Plan1 (4)
B2: DOCUMENTADOR | I2: PROCESSO
I3: 1
B4: DEPENS-PR | I4: 2
B5: SALDO | I5: 3
B6: ATUALIZAÇÃO | I6: 4
B7: OFICIO | I7: 5
B8: COMUNICADO | I8: 6
B9: CD DOC CONFERIDO | I9: 7
B10: CD LEIS | I10: 8
I11: 9
I12: 10
I13: 11
I14: 12
E16: TRAMITAÇÃO GERAL

Sheet MENU
B2: SISAT
B3: Sistema de Atualização de Pensão
B10: CADASTRO
B16: PROCESSOS | C16: CÓDIGOS
B17: CARGOS P | C17: TABELAS
B18: VANT/DESC P | C18: BENEFICIÁRIOS
B19: CARGOS INICIAIS | C19: CONTATO
C36: DEPARTAMENTO DE PENSÃO
C37: PREPARO DE PAGAMENTO DE PENSIONISTAS

Sheet CABEÇALHO
A1: 1 | B1: 2 | C1: 3 | D1: 4 | E1: 5 | F1: 6 | G1: 7 | H1: 8 | I1: 9 | J1: 10 | K1: 11 | L1: 12 | M1: 13 | N1: 14 | O1: 15 | P1: 16 | Q1: 17 | R1: 18
A2: PROCESSO | B2: TIPO | D2: ÓRGÃO | E2: CATEGORIA | F2: CARGO | G2: S-N-G | H2: H | I2: INSTITUIDOR: | J2: MASP: | K2: CONCESSÃO: | L2: FATO GERADOR: | M2: MF: | N2: AP: | O2: DATA INICIAL: | P2: DOCUMENTO: | Q2: DESCRIÇÃO: | R2: VR INICIAL EVOLUÇÃO:
A3: 00.120-1 | B3: Prefeitura | C3: - | D3: RIO NOVO | E3: GERAL | F3: SECRETARIO | G3: - | H3: - | I3: JOSÉ MATEUS FILHO | J3: - | K3: -, - | L3: 1949-10-10 | M3: X | N3: - | O3: - | P3: Contracheque | Q3: Vr. Inicial | R3: -
A4: 00.323-9 | B4: Prefeitura | C4: - | D4: LAGOA DA PRATA | E4: COMISSIONADO | F4: ENCARREGADO DO MATADOURO | G4: - | H4: - | I4: CRISTOVAM FELIPE DE ALMEIDA | J4: - | K4: 8, 14, 307, 319, 389 A 395 | L4: 1951-11-30 | M4: X | N4: - | O4: 1997-05-01 | P4: 762/97 | Q4: Vr. Inicial | R4: 191.09
A5: 00.935-0 | B5: Prefeitura | C5: - | D5: CURVELO | E5: GERAL | F5: MOTORISTA | G5: AAG5 III A | H5: - | I5: EDUARDO PINTO DOS SANTOS | J5: - | K5: 5 DA MICROFICHA, 100 A 103 | L5: 1955-08-18 | M5: - | N5: X | O5: 2007-04-01 | P5: LC 61/07 | Q5: VR INIC EV | R5: 380
A6: 01.393-5 | B6: Prefeitura | C6: - | D6: SÃO JOÃO DEL REI | E6: V=SM | F6: OPERÁRIO | G6: - | H6: - | I6: FRANCISCO DE PAULO RODRIGUES | J6: - | K6: 2, 5-7, 26 | L6: 1960-05-25 | M6: - | N6: - | O6: 1960-05-01 | P6: Contracheque | Q6: Vr. Inicial | R6: -
A7: 01.635-7 | B7: Prefeitura | C7: - | D7: SABINÓPOLIS | E7: COMISSIONADO | F7: CHEFE DO DEPTO. DE CONTABILIDADE | G7: - | H7: - | I7: JOSÉ COELHO DE PINHO | J7: - | K7: 81 A 84, 79, 90, 135 A 160 | L7: 1962-05-30 | M7: X | N7: - | O7: - | P7: Contracheque | Q7: Vr. Inicial | R7: -
A8: 01.773-6 | B8: Prefeitura | C8: - | D8: CAETÉ | E8: GERAL | F8: AUX. DE SECRE. ENCAR. DO SER. MILITAR | G8: - | H8: - | I8: ELIAS MANOEL SYRIO | J8: - | K8: 178 A 182, 192 A 198 | L8: 1962-09-03 | M8: - | N8: - | O8: - | P8: Contracheque | Q8: Vr. Inicial | R8: -
A9: 01.842-2 | B9: Prefeitura | C9: - | D9: PARAGUAÇU | E9: GERAL | F9: SECRETÁRIO | G9: - | H9: - | I9: DONATO LEITE DE ANDRADE | J9: - | K9: 151 A 155, 168 A 188 | L9: 1961-10-23 | M9: X | N9: X | O9: - | P9: Contracheque | Q9: Vr. Inicial | R9: -
A10: 02.164-4 | B10: Prefeitura | C10: - | D10: ITAJUBÁ | E10: GERAL | F10: OPERÁRIO | G10: C-II I | H10: - | I10: AMADO SERGIO | J10: - | K10: 2, 12-15 | L10: 1963-09-20 | M10: - | N10: X | O10: 2004-04-01 | P10: 2507/04 | Q10: VR INIC EV | R10: 369.07
A11: 03.434-7 | B11: Prefeitura | C11: - | D11: ALFENAS | E11: GERAL | F11: VARREDOR | G11: - | H11: - | I11: NELSON LOPES DA SILVA | J11: - | K11: 4, 68, 70, 73, 75 A 77, 88 A 92 | L11: 1966-08-08 | M11: - | N11: - | O11: - | P11: Contracheque | Q11: Vr. Inicial | R11: -
A12: 03.441-0 | B12: Prefeitura | C12: - | D12: ITAPECERICA | E12: GERAL | F12: ENCARREGADO DE JARDIM | G12: - | H12: - | I12: ANÍSIO PINTO DA SILVA | J12: - | K12: 2, 10-15, 55, 66-68 | L12: 1967-02-25 | M12: - | N12: - | O12: 2000-09-01 | P12: 1759/00 | Q12: VR INIC EV | R12: 310
A13: 04.392-3 | B13: Prefeitura | C13: - | D13: OURO FINO | E13: COMISSIONADO | F13: CHEFE DE SERVIÇO DE PATRIMÔNIO | G13: - | H13: - | I13: GERALDO DE ALMEIDA | J13: - | K13: 43 | L13: 1968-07-15 | M13: X | N13: - | O13: 1998-05-01 | P13: 1803/98 | Q13: VR INIC EV | R13: 933.91
A14: 04.517-9 | B14: Prefeitura | C14: - | D14: LAVRAS | E14: AG. POLÍTICO | F14: SECRETÁRIO | G14: C-1 | H14: - | I14: WOLMY VILELA DE ANDRADE | J14: - | K14: 2, 23, 40 | L14: 1969-05-20 | M14: - | N14: - | O14: 2003-11-01 | P14: 2617/00 | Q14: VR INIC EV | R14: 2400
A15: 04.666-3 | B15: Prefeitura | C15: - | D15: NOVA LIMA | E15: GERAL | F15: FISCAL MUNICIPAL | G15: - | H15: - | I15: ANTÔNIO GONÇALVES | J15: - | K15: 38 | L15: 1969-11-03 | M15: X | N15: - | O15: 2007-10-01 | P15: AÇÃO JUD | Q15: VR INIC EV | R15: 734.98
A16: 04.790-2 | B16: Prefeitura | C16: - | D16: MARTINHO CAMPOS | E16: COMISSIONADO | F16: CHEFE DE SERVIÇO DE FAZENDA | H16: - | I16: RUI BARBOSA DE ASSIS | J16: - | K16: 14 | L16: 1969-12-01 | M16: - | N16: - | O16: 1996-11-01 | P16: DC 73/96 | Q16: VR INIC EV | R16: 579.31
A17: 05.085-7 | B17: Prefeitura | C17: - | D17: TRÊS CORAÇÕES | E17: COMISSIONADO | F17: FISCAL GERAL DE RENDAS | G17: - | H17: - | I17: FRANCISCO ALVES DE SOUZA | J17: - | K17: 13, 15, 116 A 146 , 152, 173 A 187 | L17: 1970-06-29 | M17: X | N17: X | O17: - | P17: Contracheque | Q17: Vr. Inicial | R17: -
A18: 05.276-0 | B18: Prefeitura | C18: - | D18: PALMA | E18: GERAL | F18: AGENTE FISCAL | G18: - | H18: - | I18: THEÓFILO DE MATTOS THURLER | J18: - | K18: 2, 12, 30, 42, 64 A 67 | L18: 1970-06-21 | M18: - | N18: - | O18: - | P18: Contracheque | Q18: Vr. Inicial | R18: -
A19: 05.293-0 | B19: Prefeitura | C19: - | D19: SABARÁ | E19: GERAL | F19: FISCAL DO DISTRITO | G19: - | H19: - | I19: JOSÉ ANICETO FERREIRA | J19: - | K19: 58, 105, 145 a 148 | L19: 1979-09-30 | M19: X | N19: X | O19: - | P19: Contracheque | Q19: Vr. Inicial | R19: -
A20: 05.621-9 | B20: Prefeitura | C20: - | D20: DIVINÓPOLIS | E20: CÂMARA | F20: SECRETÁRIO GERAL | G20: - | H20: - | I20: LOURIVAL ARAUJO | J20: - | K20: 147, - | L20: 1970-12-25 | M20: - | N20: - | O20: 2000-05-01 | P20: CM 09/00 | Q20: Vr. Inicial | R20: 2161.74
A21: 05.928-5 | B21: Prefeitura | C21: - | D21: BARBACENA | E21: GERAL | F21: OPERÁRIO | G21: - | H21: - | I21: WALDEMAR FERNANDES DA COSTA | J21: - | K21: 2, 44, 79 A 100 | L21: 2010-03-16 | M21: X | N21: - | O21: - | P21: Contracheque | Q21: Vr. Inicial | R21: -
A22: 05.971-4 | B22: Prefeitura | C22: - | D22: BAMBUÍ | E22: - | F22: - | G22: - | H22: - | I22: - | J22: - | K22: -, - | L22: - | M22: - | N22: - | O22: - | P22: - | Q22: - | R22: -
A23: 06.008-9 | B23: Prefeitura | C23: PR | D23: DESCOBERTO | E23: GERAL | F23: MOTORISTA | G23: 002-D | H23: - | I23: FERNANDO SAAR | J23: - | K23: 2, 65 | L23: 1972-01-06 | M23: - | N23: - | O23: 2002-01-01 | P23: Fl. 62 | Q23: VR INIC EV | R23: 281.87
A24: 06.233-2 | B24: Prefeitura | C24: - | D24: RIO PARDO DE MINAS | E24: AGENTE POLÍTICO | F24: TESOUREIRO MUNICIPAL / APOSENTADO | G24: - | H24: - | I24: ULISSES SENA | J24: - | K24: 2, 3 A 13, 79 A 114 | L24: 1971-11-19 | M24: - | N24: X | O24: - | P24: Contracheque | Q24: Vr. Inicial | R24: -
A25: 06.336-3 | B25: Prefeitura | C25: - | D25: PEÇANHA | E25: COMISSIONADO | F25: FISCAL DO DIST. CANTAGALO | G25: - | H25: - | I25: ANTONIO LISBOA SILVA ALVES | J25: - | K25: -, - | L25: 1971-10-06 | M25: - | N25: - | O25: 1998-05-01 | P25: Dec. 372/98 | Q25: Vr. Inicial | R25: 419.67
A26: 06.391-6 | B26: Prefeitura | C26: - | D26: GUANHÃES | E26: AGENTE POLÍTICO | F26: SECRETÁRIO DO GABINETE | G26: - | H26: - | I26: GERALDO DE SOUZA FERREIRA | J26: - | K26: 3, 35, 43, 47, 49, 51, 151 E 152 | L26: 1972-10-23 | M26: X | N26: X | O26: - | P26: Contracheque | Q26: Vr. Inicial | R26: -
A27: 06.464-5 | B27: Prefeitura | C27: - | D27: LAGOA DA PRATA | E27: GERAL | F27: AUX. SERV. PÚBLICOS | G27: - | H27: - | I27: FRANCISCO ANTONIO FERREIRA | J27: - | K27: 24, 25, 102, 115, - | L27: 1972-12-26 | M27: - | N27: - | O27: 2001-06-01 | P27: Planilha Fl. 31 | Q27: Vr. Inicial | R27: 417.79
A28: 06.531-5 | B28: Prefeitura | C28: - | D28: DIVINÓPOLIS | E28: GERAL | F28: FISCAL DE RENDAS | G28: 21 14 | H28: - | I28: JOSÉ LIMA DO AMARAL | J28: - | K28: 2, 3, 105, 111 A 175 | L28: 1973-01-02 | M28: - | N28: - | O28: - | P28: Contracheque | Q28: Vr. Inicial | R28: -
A29: 06.652-4 | B29: Prefeitura | C29: - | D29: PAIVA | E29: GERAL | F29: AUXILIAR DE ESCRITÓRIO | G29: III-C | H29: - | I29: JOSÉ TEODORO LINO | J29: - | K29: 114, 116 | L29: 1985-06-16 | M29: - | N29: - | O29: 2005-05-01 | P29: 945/05 | Q29: VR INIC EV | R29: 325.32
A30: 06.797-0 | B30: Prefeitura | C30: - | D30: DIVINÓPOLIS | E30: GERAL | F30: AGENTE FUNERÁRIO | G30: 9, 13 | H30: - | I30: GERALDO CARLOS DE FREITAS | J30: - | K30: 04, 15, 18, 25 MF, 49, 95, 99, 100, 102, 103 | L30: 1998-01-12 | M30: - | N30: - | O30: - | P30: Contracheque | Q30: Vr. Inicial | R30: -
A31: 06.897-7 | B31: Prefeitura | C31: - | D31: TRÊS CORAÇÕES | E31: COMISSIONADO | F31: CHEFE DO SERVIÇO DE OBRAS | G31: - | H31: - | I31: ROBESPIERRE ROBERTO GALO E BORGES | J31: - | K31: 2, 44, 62 A 96 | L31: 1973-04-30 | M31: - | N31: - | O31: - | P31: Contracheque | Q31: Vr. Inicial | R31: -
A32: 07.022-0 | B32: Prefeitura | C32: - | D32: ALPINÓPOLIS | E32: COMISSIONADO | F32: CHEFE SERV. FISCAL RENDAS | G32: - | H32: - | I32: ANTÔNIO DIVINO DE MORAIS | J32: - | K32: 12, 21 | L32: 1973-10-27 | M32: - | N32: - | O32: 2002-03-01 | P32: Fl. 72 | Q32: VR INIC EV | R32: 1081.99
A33: 07.120-0 | B33: Prefeitura | C33: - | D33: RESENDE COSTA | E33: GERAL | F33: CONTÍNUO-SERVENTE | G33: - | H33: - | I33: ALTAMIRO AUGUSTO MELO | J33: - | K33: 9, 15, 42, 49, 60, - | L33: 1969-08-18 | M33: X | N33: X | O33: 1996-05-01 | P33: Folha 243 | Q33: Vr. Inicial | R33: 205.17
A34: 07.217-6 | B34: Prefeitura | C34: - | D34: LAVRAS | E34: MAGISTÉRIO | F34: PROFESSOR RURAL | G34: - | H34: - | I34: HEITOR SILVA | J34: - | K34: 44, 69 | L34: 1973-10-10 | M34: - | N34: - | O34: 2005-05-01 | P34: Fl. 61 | Q34: VR INIC EV | R34: 330.25
A35: 07.675-9 | B35: Prefeitura | C35: - | D35: CRUZILIA | E35: GERAL | F35: TRATORISTA | G35: - | H35: - | I35: ISRAEL SIMÃO TEIXEIRA | J35: - | K35: - | L35: 1974-06-14 | M35: - | N35: - | O35: 2005-05-01 | P35: 1652/05 | Q35: VR INIC EV | R35: 366.94
A36: 07.719-4 | B36: Prefeitura | C36: - | D36: CAETÉ | E36: COMISSIONADO | F36: CHEFE DE DIVISÃO | G36: CH 02 | H36: - | I36: FERNANDO OSÓRIO GUERRA | J36: - | K36: 2, 16, 68-81 | L36: 1974-11-23 | M36: - | N36: - | O36: 2002-03-01 | P36: Fl. 31 | Q36: VR INIC EV | R36: 677.92
A37: 07.736-4 | B37: Prefeitura | C37: - | D37: DIVINÓPOLIS | E37: GERAL | F37: AGENTE ADMINISTRATIVO | G37: A -21-11 | H37: - | I37: JOSÉ MARIA FRIAÇA | J37: - | K37: 2, 15 | L37: 1974-01-07 | M37: - | N37: - | O37: 1995-04-01 | P37: Contracheque | Q37: Vr. Inicial | R37: 122.64
A38: 07.746-1 | B38: Prefeitura | C38: - | D38: CONTAGEM | E38: GERAL | F38: APONTADOR | G38: V C | H38: - | I38: ADILSON BRUNO | J38: - | K38: 38, 48-56, 73, 110, 73 | L38: 1974-07-26 | M38: X | N38: X | O38: 2008-09-01 | P38: Ordem Judicial | Q38: Vr. Inicial | R38: 394.05
A39: 07.818-2 | B39: Prefeitura | C39: - | D39: SÃO JOÃO DEL REI | E39: GERAL | F39: FISCAL SANITÁRIO | G39: 5G | H39: - | I39: VICENTE CANTELMO | J39: - | K39: 2, 18, 25, 59 | L39: 1974-12-05 | M39: - | N39: - | O39: 1994-12-01 | P39: Fl. 41 | Q39: VR INIC EV | R39: 87.18
A40: 07.952-9 | B40: Prefeitura | C40: - | D40: MONTES CLAROS | E40: COMISSIONADO | F40: CHEFE DA DIVISÃO DE IMPOSTOS E TAXAS | G40: - | H40: - | I40: ELIHUD LOPES | J40: - | K40: 2, 20, 72 A 83 | L40: 1974-06-22 | M40: X | N40: X | O40: - | P40: Contracheque | Q40: Vr. Inicial | R40: -
A41: 08.374-7 | B41: Prefeitura | C41: PR | D41: DIVINÓPOLIS | E41: GERAL | F41: AUXILIAR DE SERVIÇOS | G41: A GH9 N24 | H41: - | I41: FRANCISCO PEREIRA FILHO | J41: - | K41: 36, 74, 80, 81 | L41: 1975-09-27 | M41: X | N41: - | O41: 2007-11-01 | P41: 6655/07 | Q41: VR INIC EV | R41: 798
A42: 08.556-1 | B42: Prefeitura | C42: - | D42: LAVRAS | E42: MAGISTÉRIO | F42: MONITORA ESCOLA RURAL | G42: CO2 NII E07 | H42: - | I42: MARIA APARECIDA SALES | J42: - | K42: 8 MF, - | L42: 1975-02-12 | M42: X | N42: - | Q42: Vr. Inicial
A43: 08.560-0 | B43: Prefeitura | C43: - | D43: SABARÁ | E43: GERAL | F43: FISCAL MUNICIPAL | G43: P-19 | H43: - | I43: MOACYR GODDARD | J43: - | K43: 13 | L43: 1975-11-07 | M43: X | N43: - | O43: 2003-05-01 | P43: 1087/03 | Q43: VR INIC EV | R43: 352.6
A44: 09.146-4 | B44: Prefeitura | C44: - | D44: SÃO GONÇALO DO PARÁ | E44: GERAL | F44: MOTORISTA | G44: XVI D | H44: - | I44: VITOR MENDES | J44: - | K44: 2, 14, 61, 62, 87 DA MICROFICHA, 105, 106, 107, 108 | L44: 1976-11-22 | M44: - | N44: - | O44: 2005-05-01 | P44: 1315/05 | Q44: VR INIC EV | R44: 435.14
A45: 09.146-4 | B45: Prefeitura | C45: - | D45: SÃO GONÇALO DO PARÁ | E45: GERAL | F45: MOTORISTA | G45: XVI D | H45: - | I45: VITOR MENDES | J45: - | K45: 2, 14, 61, 62, 87 DA MICROFICHA, 105, 106, 107, 108 | L45: 1976-11-22 | M45: - | N45: - | O45: 2005-05-01 | P45: 1315/05 | Q45: VR INIC EV | R45: 435.14
A46: 09.381-5 | B46: Prefeitura | C46: - | D46: SETE LAGOAS | E46: COMISSIONADO | F46: DIR. DEP. CONTABILIDADE | G46: S2 | H46: - | I46: HEITOR LANZA NETO | J46: - | K46: 2, 11, 17, 116, 117 | L46: 1997-05-02 | M46: X | N46: X | O46: 1996-05-01 | P46: 7230/06 | Q46: VR INIC EV | R46: 1110.83
A47: 09.388-2 | B47: Prefeitura | C47: - | D47: ALMENARA | E47: GERAL | F47: ELETRICISTA | G47: - | H47: - | I47: BERNARDINO FIGUEIREDO DE SOUZA | J47: - | K47: 55, 57 | L47: 1977-01-09 | M47: - | N47: - | O47: 2007-06-19 | P47: AÇÃO JUD | Q47: VR INIC EV | R47: 464.4
A48: 09.410-2 | B48: Prefeitura | C48: - | D48: CAMPO BELO | E48: GERAL | F48: OPERÁRIO | G48: - | H48: - | I48: JOSÉ LEÃO | J48: - | K48: 10, 20 | L48: 1977-05-08 | M48: X | N48: X | O48: 2007-04-01 | P48: 2743/07 | Q48: VR INIC EV | R48: 383
A49: 09.518-4 | B49: Prefeitura | C49: - | D49: SANTA BÁRBARA | E49: GERAL | F49: FISCAL GERAL | G49: - | H49: - | I49: ARCHIMEDES ALVES | J49: - | K49: 30, 53, 59 | L49: 1975-04-25 | M49: - | N49: - | O49: 2005-05-01 | P49: 1331/05 | Q49: VR INIC EV | R49: 567
A50: 09.683-3 | B50: Prefeitura | C50: - | D50: SANTO ANTÔNIO DO GRAMA | E50: GERAL | F50: TESOUREIRO | G50: 6 | H50: - | I50: FRANCISCO DE ASSIS GOMES | J50: - | K50: 2, 71, 82 | L50: 2012-08-17 | M50: X | N50: - | O50: 2005-09-16 | P50: AÇÃO JUD | Q50: VR INIC EV | R50: 974.63
A51: 09.809-4 | B51: Prefeitura | C51: - | D51: BIAS FORTES | E51: MAGISTÉRIO | F51: PROFESSOR MUNICIPAL | G51: I | H51: - | I51: JOSÉ MARTINO DA SILVA | J51: - | K51: 47, 67 | L51: 1977-05-28 | M51: X | N51: - | O51: 2010-04-07 | P51: AÇÃO JUD | Q51: VR INIC EV | R51: 734
A52: 09.819-1 | B52: Prefeitura | C52: - | D52: CAXAMBÚ | E52: GERAL | F52: TESOUREIRO | G52: A3 | H52: - | I52: JOÃO ALCÂNTARA | J52: - | K52: 69 | L52: 1976-06-03 | M52: - | N52: - | O52: 2002-05-01 | P52: FL. 122 | Q52: VR INIC EV | R52: 549.41
A53: 10.106-0 | B53: Prefeitura | C53: - | D53: NOVA LIMA | E53: GERAL | F53: AUX. DE SECRETARIA (APOSENTADO) | G53: 08 A | H53: - | I53: ANTONIO ALVES FERREIRA MELO | J53: - | K53: 2, 11 A 15, 17, 20, 75 A 89 | L53: 1978-06-23 | M53: X | N53: X | O53: - | P53: Contracheque | Q53: Vr. Inicial | R53: -
A54: 10.231-8 | B54: Prefeitura | C54: - | D54: FORMIGA | E54: GERAL | F54: ENCARREGADO DE TURMA | G54: CC5 | H54: - | I54: ANTÔNIO MALAQUIAS | J54: - | K54: 2, 15, 33, 197 | L54: 1978-04-02 | M54: - | N54: - | O54: 2006-10-09 | P54: AÇÃO JUD | Q54: VR INIC EV | R54: 586.03
A55: 10.445-0 | B55: Prefeitura | C55: - | D55: ALFENAS | E55: GERAL | F55: TRATORISTA | G55: III G | H55: - | I55: WALTER VICTORI SINGI | J55: - | K55: 50, 51, 128, 130, 132, | L55: 1978-06-23 | M55: x | N55: - | O55: - | P55: Contracheque | Q55: Vr. Inicial | R55: -
A56: 10.452-3 | B56: Prefeitura | C56: - | D56: SANTA BÁRBARA DO TUGÚRIO | E56: COMISSIONADO | F56: OPERÁRIO DO CEMITÉRIO | G56: - | H56: - | I56: JOSÉ ASSUMPÇÃO DIAS | J56: - | K56: 2, 16, 27, 20 | L56: 1977-11-14 | M56: X | N56: - | O56: - | P56: Contracheque | Q56: Vr. Inicial | R56: -
A57: 10.496-5 | B57: Prefeitura | C57: - | D57: CURVELO | F57: AGENTE FISCAL | G57: AD 0404 CA-4 | H57: - | I57: ANTONIO WASLER SILVEIRA | J57: - | K57: 11, 20, 31 | L57: 1978-10-10 | M57: X | N57: - | O57: 1995-05-01 | P57: Contracheque | Q57: Vr. Inicial | R57: 332.8
A58: 10.516-3 | B58: Prefeitura | C58: - | D58: PITANGUI | E58: GERAL | F58: OPERÁRIO | G58: - | H58: - | I58: CELSO MOREIRA DE FARIA | J58: - | K58: 2, 11, 12, 15 | L58: 1978-06-20 | M58: - | N58: - | O58: 2008-01-24 | P58: AÇÃO JUD | Q58: VR INIC EV | R58: 683.42
A59: 10.519-8 | B59: Prefeitura | C59: PR | D59: ITUMIRIM | E59: COMISSIONADO | F59: CHEFE DE DEPARTAMENTO DE OBREAS PÚBLICAS | G59: VSC-CCII | H59: - | I59: JOÃO ANTÔNIO DE MATOS FILHO | J59: - | K59: - | L59: 1983-04-08 | M59: - | N59: - | O59: 1996-11-01 | P59: DC 73/96 | Q59: VR INIC EV | R59: 213.75
A60: 10.714-0 | B60: Prefeitura | C60: - | D60: NOVA SERRANA | E60: GERAL | F60: AUXILIAR DE SERVIÇOS | G60: - | H60: - | I60: HELI CORREA DE LACERDA | J60: - | K60: 2, 17 A 21, 68, 284, 285, 300 A 304 | L60: 17/03/1679 | M60: X | N60: - | O60: - | P60: Contracheque | Q60: Vr. Inicial | R60: -
A61: 10.936-3 | B61: Prefeitura | C61: - | D61: AREADO | E61: COMISSIONADO | F61: ENCARREGADO DE SERVIÇO | G61: - | H61: - | I61: JAIRO DE OLIVEIRA RUELA | J61: - | K61: 202 A 208, 212 A 216 | L61: 1979-01-23 | M61: X | N61: - | O61: 2001-04-01 | P61: 207/01 | Q61: VR INIC EV | R61: 602.91
A62: 10.997-5 | B62: Prefeitura | C62: JUD | D62: CRISTIANO OTONI | E62: MAGISTÉRIO | F62: PROFESSOR | G62: III-A-3 | H62: - | I62: WALTÉRIO ROCHA | J62: - | K62: 2, 15 | L62: 1979-02-11 | M62: - | N62: - | O62: 2004-03-01 | P62: AÇÃO JUD | Q62: VR INIC EV | R62: 616.4
A63: 10.998-3 | B63: Prefeitura | C63: - | D63: ALTEROSA | E63: GERAL | F63: OPERÁRIO | G63: I P11 / P26 | H63: - | I63: BENEDITO PEDRO BARBOSA | J63: - | K63: 2, - | L63: 1979-05-01 | M63: X | N63: - | O63: - | P63: Contracheque | Q63: Vr. Inicial | R63: -
A64: 11.247-0 | B64: Prefeitura | C64: - | D64: MANTENA | E64: GERAL | F64: ESCRITURÁRIO PADRÃO "D" | G64: - | H64: - | I64: MANOEL FEEREIRA DOS SANTOS | J64: - | K64: 2, 16, 33, 42, 45 a 59 | L64: 1979-01-03 | M64: - | N64: - | O64: - | P64: Contracheque | Q64: Vr. Inicial | R64: -
A65: 11.345-0 | B65: Prefeitura | C65: - | D65: NOVA ERA | E65: GERAL | F65: MOTORISTA | G65: VI | H65: - | I65: LUIZ LAGE GUERRA | J65: - | K65: 2, 09, 15, 16, 67 A 76 | L65: 1979-10-15 | M65: X | N65: - | O65: - | P65: Contracheque | Q65: Vr. Inicial | R65: -
A66: 11.444-8 | B66: Prefeitura | C66: - | D66: BOM DESPACHO | E66: GERAL | F66: MOTORISTA | G66: X B | H66: - | I66: WALDIR CARDOSO | J66: - | K66: 2, 14, 15, 17, 21, 35, 37, 77, 137, 159 A 161 | L66: 1997-10-16 | M66: X | N66: - | O66: 1997-10-01 | P66: Contracheque | Q66: Vr. Inicial | R66: 500
A67: 11.505-3 | B67: Prefeitura | C67: - | D67: NOVA LIMA | E67: GERAL | F67: AGENTE DE SERVIÇOS ADMINISTRATIVOS | G67: 4-II-E | H67: - | I67: GERALDO FONSECA | J67: - | K67: 40, 140, 159 | L67: 1979-09-02 | M67: - | N67: - | O67: 2011-05-01 | P67: 2207/11 | Q67: VR INIC EV | R67: 948.97
A68: 11.822-2 | B68: Prefeitura | C68: - | D68: CORDISBURGO | E68: COMISSIONADO | F68: CHEFE DOS SERVIÇOS DE OBRAS | G68: III | H68: - | I68: ANTÔNIO SILVÉRIO DA MATA | J68: - | K68: 10, 16, 37, 43, 93 | L68: 1997-08-31 | M68: - | N68: - | O68: 1996-05-01 | P68: DC 174/64 | Q68: VR INIC EV | R68: 752.64
A69: 11.998-9 | B69: Prefeitura | C69: - | D69: PARAOPEBA | E69: GERAL | F69: FISCAL | G69: CE-21 | H69: - | I69: JOAQUIM MARQUES DE OLIVEIRA | J69: - | K69: , 131 A 147 | L69: 1980-03-31 | M69: X | N69: - | O69: 1995-05-01 | P69: LC 10/95 | Q69: VR INIC EV | R69: 224.44
A70: 12.104-5 | B70: Prefeitura | C70: - | D70: ITAJUBÁ | E70: GERAL | F70: OPERÁRIO | G70: I IV-E | H70: - | I70: ANTONIO MENDONÇA | J70: - | K70: 210, 218 A 223 | L70: 1980-02-13 | M70: X | N70: - | O70: - | P70: Contracheque | Q70: Vr. Inicial | R70: -
A71: 12.279-3 | B71: Prefeitura | C71: - | D71: ITAGUARA | E71: GERAL | F71: MOTORISTA | G71: - | H71: - | I71: EDSON VILIÇA DA SILVA | J71: - | K71: 2, 9, 11 A 19, 91 A 104 | L71: 1981-02-05 | M71: X | N71: - | O71: - | P71: Contracheque | Q71: Vr. Inicial | R71: -
A72: 12.397-8 | B72: Prefeitura | C72: - | D72: OLIVEIRA FORTES | E72: GERAL | F72: FISCAL GERAL | G72: CE-5 NB E | H72: - | I72: JOSÉ DELFINO DE PAULA | J72: - | K72: 37, 39, 234, 235 | L72: 1981-01-31 | M72: - | N72: - | O72: 1999-05-01 | P72: 538/99 | Q72: VR INIC EV | R72: 338.43
A73: 12.484-2 | B73: Prefeitura | C73: JUD | D73: NEPOMUCENO | E73: COMISSIONADO | F73: ENCARREGADO DE SERVIÇO DE FISCALIZAÇÃO | G73: - | H73: - | I73: JOSÉ MIGUEL FILHO | J73: - | K73: 28, 89 | L73: 1981-04-11 | M73: X | N73: - | O73: 2005-05-01 | P73: Fl. 129 | Q73: VR INIC EV | R73: 1800.52
A74: 12.651-9 | B74: Prefeitura | C74: PR | D74: DESTERRO DO MELO | E74: GERAL | F74: AUX. CONTABILIDADE | G74: CE-3 NM A | H74: - | I74: JÚLIO PRESTES | J74: - | K74: 2, 7 | L74: 1981-04-19 | M74: - | N74: - | O74: 2001-09-01 | P74: Fl. 22 | Q74: VR INIC EV | R74: 302
A75: 12.720-5 | B75: Prefeitura | C75: PR | D75: MATEUS LEME | E75: COMISSIONADO | F75: CHEFE/SUPERVISOR DE SEÇÃO | G75: VIII-01 | H75: - | I75: JOSÉ LINO DAS MERCÊS | J75: - | K75: 2, 20, 89-95, 99 | L75: 1981-08-10 | M75: - | N75: - | O75: 2006-08-02 | P75: AÇÃO JUD | Q75: VR INIC EV | R75: 935.32
A76: 12.806-6 | B76: Prefeitura | C76: - | D76: PASSA QUATRO | E76: COMISSIONADO | F76: ENCARREGADO DO DISTRITO PÉ-DO-MORRO | G76: - | H76: - | I76: JOSÉ ANÁLIO DA COSTA | J76: - | K76: 2, 20 A 39 | L76: 1981-08-06 | M76: - | N76: - | O76: - | P76: Contracheque | Q76: Vr. Inicial | R76: -
A77: 12.835-0 | B77: Prefeitura | C77: - | D77: GUARACIABA | E77: COMISSIONADO | F77: CONTADOR | G77: - | H77: - | I77: JOSE AMANDO DE MORAIS CAMELO | J77: - | K77: 2, 19, 75, - | L77: 1981-07-30 | M77: - | N77: - | O77: 2007-04-01 | P77: Ordem Judicial | Q77: Vr. Inicial | R77: 963.28
A78: 12.840-6 | B78: Prefeitura | C78: - | D78: SANTA RITA DO SAPUCAÍ | E78: COMISSIONADO | F78: ENCARREGADO DO CEMITÉRIO | G78: - | H78: - | I78: ANTONIO BARBOSA DE MATTOS | J78: - | K78: 2, 11, 38 A 45 | L78: 1981-09-17 | M78: X | N78: - | O78: - | P78: Contracheque | Q78: Vr. Inicial | R78: -
A79: 12.973-9 | B79: Prefeitura | C79: - | D79: SANTA LUZIA | E79: - | F79: - | G79: - | H79: - | I79: - | J79: - | K79: - | L79: - | M79: - | N79: - | O79: - | P79: - | Q79: - | R79: -
A80: 13.099-0 | B80: Prefeitura | C80: - | D80: CAMPO BELO | E80: GERAL | F80: PEDREIRO | G80: V | H80: - | I80: BALTAZAR CARDOSO FREIRE | J80: - | K80: 2, 40 | L80: 1981-12-12 | M80: - | N80: - | O80: 2004-05-01 | P80: 2509/04 | Q80: VR INIC EV | R80: 380
A81: 13.154-7 | B81: Prefeitura | C81: - | D81: SERRA DO SALITRE | E81: COMISSIONADO | F81: CHEFE DE SERVIÇO DE FAZENDA | G81: - | H81: - | I81: ORLANDO CASTRO FERREIRA | J81: - | K81: 2-4 | L81: 1980-12-29 | M81: - | N81: - | O81: 2009-01-01 | P81: AÇÃO JUD | Q81: VR INIC EV | R81: 1820.92
A82: 13.389-2 | B82: Prefeitura | C82: - | D82: LAVRAS | E82: GERAL | F82: ASSISTENTE DE ADMINISTRAÇÃO | G82: II 05 | H82: - | I82: MARILENE APARECIDA DOS SANTOS | J82: - | K82: 2, 10, 14, 34, 35 | L82: 1982-03-13 | M82: X | N82: - | P82: Contracheque | Q82: Vr. Inicial
A83: 13.404-0 | B83: Prefeitura | C83: - | D83: MONTES CLAROS | E83: GERAL | F83: FISCAL SANITARIO | G83: - | H83: - | I83: CRISOGONO PEREIRA DE ARAUJO | J83: - | K83: 2, 11, 20, 76 A 149 | L83: 1982-02-15 | M83: X | N83: - | O83: - | P83: Contracheque | Q83: Vr. Inicial | R83: -
A84: 13.563-1 | B84: Prefeitura | C84: - | D84: RESENDE COSTA | E84: GERAL | F84: TESOUREIRO | G84: - | H84: - | I84: IVAN BARBOSA | J84: - | K84: 68 | L84: 1980-06-30 | M84: - | N84: - | O84: 2007-04-01 | P84: AÇÃO JUD | Q84: VR INIC EV | R84: 1826.94
A85: 13.603-4 | B85: Prefeitura | C85: - | D85: LAGOA DA PRATA | E85: GERAL | F85: OF. SERV. PÚBLICOS | G85: III-E | H85: - | I85: ANTÔNIO ALCINO DE ALMEIDA | J85: - | K85: 2, 3, 8-10 | L85: 1982-05-14 | M85: - | N85: - | O85: 2001-06-01 | P85: 970/01 | Q85: VR INIC EV | R85: 489.44
A86: 13.673-5 | B86: Prefeitura | C86: - | D86: MONTALVÂNIA | E86: GERAL | F86: MOTORISTA | G86: - | H86: - | I86: MANOEL PEREIRA BELEM | J86: - | K86: 2 A 4, 7, 17, 27, 54, 55 | L86: 1982-01-15 | M86: X | N86: - | O86: - | P86: Contracheque | Q86: Vr. Inicial | R86: -
A87: 13.693-0 | B87: Prefeitura | C87: - | D87: PATROCINIO | E87: GERAL | F87: MOTORISTA | G87: F | H87: - | I87: JOSÉ BATISTA CORREA | J87: - | K87: 2, 15, 71 A 79 | L87: 1982-08-12 | M87: - | N87: - | O87: - | P87: Contracheque | Q87: Vr. Inicial | R87: -
A88: 13.717-0 | B88: Prefeitura | C88: - | D88: COMENDADOR GOMES | E88: GERAL | F88: TÉCNICO EM CONTABILIDADE | G88: I-E | H88: - | I88: JOÃO FARIA DE SOUZA | J88: - | K88: 2, 17, 120 | L88: 1981-09-13 | M88: - | N88: - | O88: 2006-10-01 | P88: LC 06/06 | Q88: VR INIC EV | R88: 950
A89: 13.733-2 | B89: Prefeitura | C89: - | D89: CAETÉ | E89: GERAL | F89: ASSESSOR DE CONTABILIDADE | G89: - | H89: - | I89: JOÃO RODRIGUES FRANCO | J89: - | K89: 2, 11, 32, 35, 130 A 143 | L89: 1982-06-27 | M89: X | N89: X | O89: - | P89: Contracheque | Q89: Vr. Inicial | R89: -
A90: 13.811-8 | B90: Prefeitura | C90: - | D90: PEÇANHA | E90: COMISSIONADO | F90: CHEFE DO DEPTO. CONTABIL | G90: IX M | H90: - | I90: IVAN POLIDORO MONTEIRO | J90: - | K90: 2, 11, 12, 28, 152 A 158 | L90: 1982-10-21 | M90: X | N90: - | O90: - | P90: Contracheque | Q90: Vr. Inicial | R90: -
A91: 13.815-0 | B91: Prefeitura | C91: - | D91: CAONCEIÇÃO DA APARECIDA | E91: GERAL | F91: FISCAL GERAL DE OBRAS | G91: - | H91: - | I91: AMARILO LOPES DE OLIVEIRA | J91: - | K91: 25, | L91: 1982-01-08 | M91: X | N91: X | O91: - | P91: Contracheque | Q91: Vr. Inicial | R91: -
A92: 14.198-4 | B92: Prefeitura | C92: - | D92: GURINHATÃ | E92: GERAL | F92: OPERÁRIO AJUDANTE | G92: 01 A | H92: - | I92: MANOEL LUIZ DA SILVA | J92: - | K92: 2, 12, 137 A 141 | L92: 1982-04-11 | M92: - | N92: - | O92: - | P92: Contracheque | Q92: Vr. Inicial | R92: -
A93: 14.281-6 | B93: Prefeitura | C93: - | D93: CARATINGA | E93: GERAL | F93: FEITOR | G93: VIII V | H93: - | I93: NELSON DE SENNA | J93: - | K93: 2, 18, 20, 58 A 60 | L93: 1983-02-15 | M93: X | N93: X | O93: - | P93: Contracheque | Q93: Vr. Inicial | R93: -
A94: 14.291-3 | B94: Prefeitura | C94: - | D94: CAMPOS GERAIS | E94: GERAL | F94: TESOUREIRO DO SERVIÇO DE FAZENDA | G94: - | H94: - | I94: LUCIANO ANDRADE | J94: - | K94: 2, 13, 16, 32 A 53 | L94: 1983-04-30 | M94: X | N94: X | O94: - | P94: Contracheque | Q94: Vr. Inicial | R94: -
A95: 14.391-0 | B95: Prefeitura | C95: - | D95: ITANHOMI | E95: GERAL | F95: ALMOXARIFE | G95: - | H95: - | I95: AVELINO GRANATO ALVES | J95: - | K95: 24, 25, 133, 134, 135 | L95: 1983-05-16 | M95: X | N95: - | O95: - | P95: Contracheque | Q95: Vr. Inicial | R95: -
A96: 14.413-4 | B96: Prefeitura | C96: - | D96: BETIM | E96: GERAL | F96: SERVENTE | G96: 1-A1 | H96: - | I96: CARINO SARAIVA MOREIRA | J96: - | K96: 5, 23 | L96: 1983-06-09 | M96: - | N96: - | O96: 2007-04-01 | P96: Fl. 68 | Q96: VR INIC EV | R96: 440.68
A97: 14.704-4 | B97: Prefeitura | C97: - | D97: DIVINÓPOLIS | E97: GERAL | F97: AUXILIAR DE SERVIÇOS | G97: GH-11-33 | H97: - | I97: ANTONIO RAIMUNDO FELIX | J97: - | K97: 15, 31, 152, 193 | L97: 1983-08-30 | M97: - | N97: - | O97: 2000-05-01 | P97: Fl. 152 | Q97: VR INIC EV | R97: 409.05
A98: 14.761-3 | B98: Prefeitura | C98: - | D98: JABOTICATUBAS | E98: GERAL | F98: SECR. DA JUNTA DO SERV. MILITAR | G98: CFI-06 INICIAL | H98: - | I98: EFIGÊNIO WLISSES DOS SANTOS | J98: - | K98: 2, 91 A 100 | L98: 1983-12-25 | M98: X | N98: - | O98: - | P98: Contracheque | Q98: Vr. Inicial | R98: -
A99: 14.816-4 | B99: Prefeitura | C99: - | D99: RESENDE COSTA | E99: MAGISTÉRIO | F99: PROFESSOR | G99: - | H99: - | I99: ADALGISA BARROS | J99: - | K99: 3, 13 | L99: 1983-04-08 | M99: - | N99: - | O99: 1996-11-01 | P99: DC 73/96 | Q99: VR INIC EV | R99: 213.75
A100: 14.824-5 | B100: Prefeitura | C100: - | D100: RIBEIRÃO VERMELHO | E100: GERAL | F100: AUX. CONTABILIDADE | G100: VI F | H100: - | I100: JOSE CARLOS ZEGRINI | J100: - | K100: 14, 45, - | L100: 1983-11-16 | M100: X | N100: - | O100: 2005-01-01 | P100: 1311/05 | Q100: Vr. Inicial | R100: 642.08
A101: 14.863-6 | B101: Prefeitura | C101: - | D101: JANUÁRIA | E101: GERAL | F101: OFICIAL DE ADMINISTRAÇÃO | G101: TEAD-91 | H101: - | I101: JOSÉ NEVES MOREIRA | J101: - | K101: 2, 15 | L101: 1983-07-17 | M101: - | N101: - | O101: 2005-12-01 | P101: Fl. 102 | Q101: VR INIC EV | R101: 1109.13
A102: 15.033-9 | B102: Prefeitura | C102: - | D102: BARBACENA | E102: GERAL | F102: AUXILIAR DE ADMINISTRAÇÃO | G102: C 32 | H102: - | I102: JAIR DE OLIVEIRA PRENASSI | J102: - | K102: 2, 8, 15, 33 A 37, 146-161 | L102: 1984-02-03 | M102: X | N102: X | O102: 2000-08-01 | P102: Planilha Fl. 32 | Q102: Vr. Inicial | R102: 685.25
A103: 15.046-0 | B103: Prefeitura | C103: - | D103: PITANGUI | E103: GERAL | F103: ALMOXARIFE | G103: - | H103: - | I103: JOSÉ MIRANDA | J103: - | K103: 2, 8, 21 | L103: 1983-12-23 | M103: X | N103: X | O103: 2003-04-01 | P103: 627/00 | Q103: VR INIC EV | R103: 325.92
A104: 15.116-5 | B104: Prefeitura | C104: PR | D104: ALÉM PARAIBA | E104: GERAL | F104: FISCAL GERAL DE OBRAS | G104: 6 A | H104: - | I104: SYLVIO XAVIER | J104: - | K104: 8 A 16, 215 A 225 | L104: 1984-03-08 | M104: X | N104: X | O104: - | P104: Contracheque | Q104: Vr. Inicial | R104: -
A105: 15.168-8 | B105: Prefeitura | C105: - | D105: GOUVEIA | E105: COMISSIONADO | F105: CHEFE DO SERVIÇO DE OBRAS | G105: XV | H105: - | I105: LUIZ GONZAGA DE OLIVEIRA | J105: - | K105: 2, 13, 43, 56 E 57, 75 A 77 | L105: 1983-04-17 | M105: - | N105: - | O105: - | P105: Contracheque | Q105: Vr. Inicial | R105: -
A106: 15.225-0 | B106: Prefeitura | C106: - | D106: SETE LAGOAS | E106: GERAL | F106: CADASTRISTA I | G106: - | H106: - | I106: WILSOM FRANCISCO PEREIRA | J106: - | K106: 2, 10, 32, 47, 53, 70, 103, 104 | L106: 1983-12-21 | M106: x | N106: - | O106: - | P106: Contracheque | Q106: Vr. Inicial | R106: -
A107: 15.457-1 | B107: Prefeitura | C107: - | D107: PERDIZES | E107: GERAL | F107: PROFESSOR | G107: 5-10 | H107: - | I107: TERTULIANO RODRIGUES NETO | J107: - | K107: 13, 79, 99 | L107: 1984-05-18 | M107: X | N107: - | O107: 2002-01-01 | P107: Fl. 37 | Q107: VR INIC EV | R107: 512.52
A108: 15.577-2 | B108: Prefeitura | C108: - | D108: MINAS NOVAS | E108: COMISSIONADO | F108: ENCARREGADO DE CAMPO DE POUSO | G108: - | H108: - | I108: GERALDO RAMALHO DE OLIVEIRA | J108: - | K108: 2, 8, 11 A 13, 24, 44, 64 A 66 | L108: 1984-01-17 | M108: X | N108: - | O108: - | P108: Contracheque | Q108: Vr. Inicial | R108: -
A109: 15.652-3 | B109: Prefeitura | C109: - | D109: CARATINGA | E109: GERAL | F109: FISCAL (APOSENTADO) | G109: - | H109: - | I109: JOSÉ TOMÉ SOBRINHO | J109: - | K109: 2, 188, 198 A 211 | L109: 1984-08-09 | M109: X | N109: X | O109: - | P109: Contracheque | Q109: Vr. Inicial | R109: -
A110: 15.886-0 | B110: Prefeitura | C110: PR | D110: BARBACENA | E110: GERAL | F110: CHEFE DE FOMENTO TURÍSTICO | G110: CC2 | H110: - | I110: ALDAIR ANTUNES DE BARROS | J110: - | K110: - | L110: 1972-03-05 | M110: - | N110: - | O110: 2006-06-01 | P110: Fl. 261 | Q110: VR INIC EV | R110: 2861.76
A111: 16.421-6 | B111: Prefeitura | C111: - | D111: LEOPOLDINA | E111: MAGISTÉRIO | F111: PROFESSOR | G111: - | H111: - | I111: MARIA ROSIMAR DOS SANTOS | J111: - | K111: 7, 13-24 | L111: 1985-02-28 | M111: - | N111: - | O111: 2002-05-01 | P111: Fl. 61 | Q111: VR INIC EV | R111: 287.5
A112: 16.425-9 | B112: Prefeitura | C112: - | D112: CURVELO | E112: GERAL | F112: PEDREIRO | G112: - | H112: - | I112: ANTÃO LOPES DE MELO | J112: - | K112: 24 | L112: 1985-02-12 | M112: - | N112: - | O112: 2000-01-01 | P112: 2053/00 | Q112: VR INIC EV | R112: 407.9
A113: 16.802-5 | B113: Prefeitura | C113: - | D113: OLIVEIRA | E113: GERAL | F113: AGENTE ESPECIALIZADO | G113: I-VII-A | H113: - | I113: VICENTE DE PAULA | J113: - | K113: 50 | L113: 1985-07-29 | M113: - | N113: - | O113: 2004-05-01 | P113: LC 85/04 | Q113: VR INIC EV | R113: 293.45
A114: 16.953-6 | B114: Prefeitura | C114: - | D114: IGUATAMA | E114: GERAL | F114: MOTORISTA | G114: I-E-V-D | H114: - | I114: JOÃO BATISTA SABINO | J114: - | K114: - | L114: 1986-01-17 | M114: - | N114: - | O114: 2002-03-01 | P114: Fl. 34 | Q114: VR INIC EV | R114: 462.81
A115: 17.832-2 | B115: Prefeitura | C115: - | D115: TABULEIRO | E115: MAGISTÉRIO | F115: PROFESSOR | G115: IV | H115: - | I115: IPHIGÊNIA GERTRUDES FERNANDES | J115: - | K115: 2, 5 | L115: 1996-06-17 | M115: - | N115: - | O115: 2005-08-01 | P115: Fl. 138 | Q115: VR INIC EV | R115: 442.9
A116: 18.112-9 | B116: Prefeitura | C116: - | D116: NOVO CRUZEIRO | E116: GERAL | F116: TESOUREIRO | G116: - | H116: - | I116: OSVALDO ROSA DOS SANTOS | J116: - | K116: 180,189, , 88, 238, 239 | L116: 1986-07-03 | M116: x | N116: X | O116: - | P116: Contracheque | Q116: Vr. Inicial | R116: -
A117: 18.234-6 | B117: Prefeitura | C117: - | D117: VARGINHA | E117: GERAL | F117: FISCAL GERAL DE RENDAS | G117: E-10 | H117: - | I117: ABINEL ALVES PEREIRA | J117: - | K117: 2, 8, 16 | L117: 1987-04-01 | M117: - | N117: - | O117: 1995-04-01 | P117: Fl. 49 | Q117: VR INIC EV | R117: 576.93
A118: 18.247-8 | B118: Prefeitura | C118: - | D118: SANTA RITA DO SAPUCAI | E118: COMISSIONADO | F118: CHEFE DE DIVISÃO | G118: - | H118: - | I118: IOLANDA OLIVEIRA CAPUTO | J118: - | K118: 2, 9, 15, 20, 21, , 79 A 109 | L118: 1986-11-11 | M118: X | N118: - | O118: - | P118: Contracheque | Q118: Vr. Inicial | R118: -
A119: 18.434-9 | B119: Prefeitura | C119: - | D119: LAJINHA | E119: GERAL | F119: CARPINTEIRO | G119: VI 1 | H119: - | I119: ORLANDO FRANCISCO MIZAEL | J119: - | K119: 2, 13, 22, 81 A 83 | L119: 1987-03-29 | M119: - | N119: - | O119: - | P119: Contracheque | Q119: Vr. Inicial | R119: -
A120: 18.440-3 | B120: Prefeitura | C120: - | D120: SANTA BÁRBARA | E120: GERAL | F120: CARPINTEIRO | G120: - | H120: - | I120: JOSÉ DIOGO ALVES | J120: - | K120: 12, 13 | L120: 1985-03-11 | M120: X | N120: - | O120: 2003-04-01 | P120: Fl. 262 | Q120: VR INIC EV | R120: 240
A121: 18.614-7 | B121: Prefeitura | C121: - | D121: RIO DO PRADO | E121: COMISSIONADO | F121: ENCA. DO SERV. ESTRADAS DE RODAGEM | G121: - | H121: - | I121: JOSÉ RAMOS RUAS | J121: - | K121: 2, 11, 15, 32 a 36 | L121: 1987-08-11 | M121: X | N121: - | O121: - | P121: Contracheque | Q121: Vr. Inicial | R121: -
A122: 18.655-4 | B122: Prefeitura | C122: - | D122: BELO VALE | E122: COMISSIONADO | F122: CHEFE DE SERVIÇOS DE OBRAS | G122: - | H122: - | I122: VENULTE DIAS DE SOUZA | J122: - | K122: 2, 10, 15, 45 A 49 | L122: 1987-09-18 | N122: X | O122: 1997-09-01 | P122: 990/97 | Q122: VR INIC EV | R122: 600
A123: 19.225-2 | B123: Prefeitura | C123: - | D123: STA. BARBARA DO TUGURIO | E123: GERAL | F123: COLETOR MUNICIPAL | G123: - | H123: - | I123: FRANCISCO AMARAL DE MIRANDA | J123: - | K123: 2, 120 E 121, 134 E 135 | L123: 1988-01-23 | M123: X | N123: X | O123: - | P123: Contracheque | Q123: Vr. Inicial | R123: -
A124: 19.269-4 | B124: Prefeitura | C124: - | D124: CAMPO BELO | E124: GERAL | F124: AUXILIAR DE SERVIÇOS | G124: I | H124: - | I124: ATAÍDES ALVES BARBOSA | J124: - | K124: 2, 47 | L124: 1988-04-21 | M124: X | N124: - | O124: 2006-04-01 | P124: 2641/06 | Q124: VR INIC EV | R124: 355
A125: 19.505-7 | B125: Prefeitura | C125: - | D125: CONCEIÇÃO DA APARECIDA | E125: GERAL | F125: AUX. OPERACIONAL DE VEIC. TERRESTRE | G125: - | H125: - | I125: DJALMA VILELA | J125: - | K125: 2, 15 A 17, 57 A 62 | L125: 1988-06-07 | M125: X | N125: - | O125: - | P125: Contracheque | Q125: Vr. Inicial | R125: -
A126: 19.529-4 | B126: Prefeitura | C126: - | D126: MUZAMBINHO | E126: COMISSIONADO | F126: ENCARREGADO DE CEMITÉRIO | G126: I | H126: - | I126: AGRIPINO PEREIRA | J126: - | K126: 21, 24, 29, 41, 44 | L126: 1988-06-17 | M126: X | N126: X | O126: - | P126: Contracheque | Q126: Vr. Inicial | R126: -
A127: 19.757-2 | B127: Prefeitura | C127: - | D127: PEÇANHA | E127: COMISSIONADO | F127: CHEFE DO SERVIÇO DE OBRAS | G127: V B | H127: - | I127: CARLOS DA CUNHA PEREIRA SOBRINHO | J127: - | K127: 2, 7, 131 A 137 | L127: 1988-08-02 | M127: X | N127: - | O127: - | P127: Contracheque | Q127: Vr. Inicial | R127: -
A128: 19.793-9 | B128: Prefeitura | C128: - | D128: LAVRAS | E128: COMISSIONADO | F128: CHEFE DO DEP. DE OBRAS PUBLICAS | G128: - | H128: - | I128: JAIR FERREIRA | J128: - | K128: 2, 9 A 21, 225 A 237 | L128: 1988-10-28 | M128: X | N128: X | O128: - | P128: Contracheque | Q128: Vr. Inicial | R128: -
A129: 19.910-9 | B129: Prefeitura | C129: - | D129: ALTEROSAS | E129: GERAL | F129: OPERÁRIO | G129: - | H129: - | I129: GERALDO ALVES TERRA | J129: - | K129: 2, 9, 55, 67, 88, 91, 110 A 117 | L129: 1983-03-01 | M129: X | N129: - | O129: - | P129: Contracheque | Q129: Vr. Inicial | R129: -
A130: 20.040-9 | B130: Prefeitura | C130: - | D130: PERDÕES | E130: GERAL | F130: MOTORISTA | G130: VIII-A | H130: - | I130: AGENOR DE PÁDUA PEREIRA FILHO | J130: - | K130: 32 | L130: 1998-08-30 | M130: X | N130: - | O130: 2005-06-01 | P130: 2412/05 | Q130: VR INIC EV | R130: 543.08
A131: 20.106-5 | B131: Prefeitura | C131: PR | D131: LAGOA FORMOSA | E131: GERAL | F131: TRATORISTA | G131: GH-V-4 | H131: - | I131: PAULO TERÊNCIO DA SILVA | J131: - | K131: 2 | L131: 1988-07-21 | M131: X | N131: - | O131: 2005-05-01 | P131: 768/05 | Q131: VR INIC EV | R131: 589.31
A132: 20.119-7 | B132: Prefeitura | C132: - | D132: JESUÂNIA | E132: GERAL | F132: GUARDA SANITARIO | G132: - | H132: - | I132: AGOSTINHO ABREU | J132: - | K132: 2, 11, 44 a 66 | L132: 1988-08-21 | M132: X | N132: - | O132: - | P132: Contracheque | Q132: Vr. Inicial | R132: -
A133: 20.258-4 | B133: Prefeitura | C133: - | D133: CAPELA NOVA | E133: GERAL | F133: AGENTE FISCAL MUNICIPAL | G133: - | H133: - | I133: ANTÔNIO MACHADO NETO | J133: - | K133: 7, 25 | L133: 1989-03-04 | M133: - | N133: - | O133: 2002-07-01 | P133: Fl. 38 | Q133: VR INIC EV | R133: 554
A134: 20.284-3 | B134: Prefeitura | C134: - | D134: SÃO JOÃO DA PONTE | E134: COMISSIONADO | F134: ENCARREGADO DO SIAT | G134: - | H134: - | I134: GETULIO VANDERLEY MADUREIRA | J134: - | K134: 2, 5, 11, 18, 95 A 101 | L134: 1988-07-09 | M134: X | N134: - | O134: - | P134: Contracheque | Q134: Vr. Inicial | R134: -
A135: 20.317-3 | B135: Prefeitura | C135: - | D135: GOVERNADOR VALADARES | E135: COMISSIONADO | F135: CHEFE DE DIVISÃO | G135: A | H135: - | I135: JOÃO HASTENZEITER DORNELAS | J135: - | K135: 104 | L135: 1989-03-18 | M135: - | N135: X | O135: 2002-06-01 | P135: 42/98 | Q135: VR INIC EV | R135: 890.27
A136: 20.393-9 | B136: Prefeitura | C136: - | D136: SABINÓPOLIS | E136: COMISSIONADO | F136: ENC. DO SERV. DE ESTRADA - QUILOMBO | G136: - | H136: - | I136: PEDRO DOS SANTOS | J136: - | K136: 2, 11, 71 A 77 | L136: 1989-04-07 | M136: X | N136: - | O136: - | P136: Contracheque | Q136: Vr. Inicial | R136: -
A137: 20.430-7 | B137: Prefeitura | C137: JUD | D137: PITANGUI | E137: COMISSIONADO | F137: CHEFE DE DEPARTAMENTO DE PESSOAL | G137: - | H137: - | I137: BENEDITO JOSÉ FERNANDES | J137: - | K137: 2, 9, 19, 27, 28 | L137: 1989-02-22 | M137: X | N137: X | O137: 2003-04-24 | P137: AÇÃO JUD | Q137: VR INIC EV | R137: 240
A138: 20.450-1 | B138: Prefeitura | C138: - | D138: TRÊS CORAÇÕES | E138: GERAL | F138: ADMINISTRADOR DO CEMITÉRIO | G138: - | H138: - | I138: AGOSTINHO URBANO | J138: - | K138: 2, 89 A 93 | L138: 1988-12-23 | M138: X | N138: X | O138: - | P138: Contracheque | Q138: Vr. Inicial | R138: -
A139: 20.514-1 | B139: Prefeitura | C139: - | D139: RIO NOVO | E139: GERAL | F139: PEDREIRO | G139: - | H139: - | I139: IDERVAL JOSE DA CRUZ | J139: - | K139: 2, 8, 78, 92 A 98 | L139: 1989-04-12 | M139: X | N139: X | O139: 2000-04-01 | P139: 749/00 | Q139: VR INIC EV | R139: 267.77
A140: 20.560-5 | B140: Prefeitura | C140: - | D140: CAMBUQUIRA | E140: GERAL | F140: FISCAL DE RENDAS E POSTURAS | G140: - | H140: - | I140: DERMEVAL FONSECA | J140: - | K140: 2, 20,25, 33 | L140: 1989-06-05 | M140: - | N140: - | O140: 1995-05-01 | P140: 1768/95 | Q140: VR INIC EV | R140: 328.07
A141: 20.836-1 | B141: Prefeitura | C141: - | D141: LAVRAS | E141: COMISSIONADO | F141: CHEFE DE SERV., MAT. E PATRIMONIO | G141: - | H141: - | I141: JACY DE PAULA | J141: - | K141: 2, 12, 18, 50, 62 | L141: 1989-07-29 | M141: x | N141: X | O141: - | P141: Contracheque | Q141: Vr. Inicial | R141: -
A142: 20.879-5 | B142: Prefeitura | C142: - | D142: CONCEIÇÃO DAS ALAGOAS | E142: GERAL | F142: SECRETÁRIO | G142: - | H142: - | I142: BRAZ JOSÉ NUNES | J142: - | K142: 2, 14, 15, 17, 27, | L142: 1989-07-27 | M142: X | N142: - | O142: - | P142: Contracheque | Q142: Vr. Inicial | R142: -
A143: 20.962-7 | B143: Prefeitura | C143: - | D143: OURO FINO | E143: GERAL | F143: ASS. TEC. ADMINISTRATIVO | G143: - | H143: - | I143: LEONIDAS GUIMARÃES | J143: - | K143: 2, 64 | L143: 1989-12-17 | M143: - | N143: - | O143: 2002-05-01 | P143: 2030/02 | Q143: VR INIC EV | R143: 617.88
A144: 21.055-2 | B144: Prefeitura | C144: - | D144: MONTE ALEGRE DE MINAS | E144: GERAL | F144: MOTORISTA | G144: - | H144: - | I144: ELIO FERREIRA DA SILVA | J144: - | K144: 2, 7, 11, 19, 126, 177, 178 | L144: 1988-11-30 | M144: X | N144: - | O144: - | P144: Contracheque | Q144: Vr. Inicial | R144: -
A145: 21.061-7 | B145: Prefeitura | C145: - | D145: SERRO | E145: GERAL | F145: ADMINISTRADOR DE ESCOLA RURAL | G145: IX | H145: - | I145: EPAMINONDAS GERALDO RABELO NUNES | J145: - | K145: 12, 31, 81, 85, 86 | L145: 1989-08-22 | M145: - | N145: - | O145: 1998-05-01 | P145: 1288/98 | Q145: VR INIC EV | R145: 417.38
A146: 21.299-7 | B146: Prefeitura | C146: - | D146: BARBACENA | E146: GERAL | F146: MAGAREFE | G146: - | H146: - | I146: JOAO DE SOUZA LIMA | J146: - | K146: 2, - | L146: 1989-09-26 | M146: - | N146: - | O146: 2002-03-01 | P146: 3706/02 | Q146: Vr. Inicial | R146: 503.57
A147: 21.650-0 | B147: Prefeitura | C147: - | D147: RAUL SOARES | E147: GERAL | F147: OPERÁRIO | G147: I | H147: - | I147: ANTÔNIO PIEROTI | J147: - | K147: 2, 9, 11, 18 | L147: 1990-06-30 | M147: - | N147: - | O147: 2005-05-01 | P147: 1981/05 | Q147: VR INIC EV | R147: 300
A148: 21.763-8 | B148: Prefeitura | C148: - | D148: DIVINÓPOLIS | E148: GERAL | F148: AUXILIAR DE SERVIÇOS | G148: II 33 11 | H148: - | I148: EWIRGES TEIXEIRA DO NASCIMENTO | J148: - | K148: 14, 39, - | L148: 1983-08-30 | M148: X | N148: - | O148: - | P148: Contracheque | Q148: Vr. Inicial | R148: -
A149: 22.321-2 | B149: Prefeitura | C149: - | D149: ITAGUARA | E149: COMISSIONADO | F149: ENC. ABATE RESES. | G149: - | H149: - | I149: ORONDINO APOLINÁRIO MOREIRA | J149: - | K149: 2, 5, 6, 130 A 144 | M149: - | N149: X | O149: - | P149: Contracheque | Q149: Vr. Inicial | R149: -
A150: 22.327-1 | B150: Prefeitura | C150: - | D150: BARBACENA | E150: GERAL | F150: SECRETÁRIO | G150: B-23 | H150: - | I150: HELIO GARCIA PEREIRA | J150: - | K150: 2, 12, 18, 77 a 81 | L150: 1990-06-19 | M150: - | N150: - | O150: - | P150: Contracheque | Q150: Vr. Inicial | R150: -
A151: 22.333-6 | B151: Prefeitura | C151: - | D151: MONTES CLAROS | E151: GERAL | F151: AUX. ADMINISTRATIVO | G151: III | H151: - | I151: JOSÉ MALVEIRA OLIVA | J151: - | K151: 35,61, 122, 125, 142,143, 178 | L151: 1990-07-12 | M151: - | N151: X | O151: 2004-01-01 | P151: 3174/03 | Q151: Vr. Inicial | R151: 470.4
A152: 22.409-0 | B152: Prefeitura | C152: - | D152: SETE LAGOAS | E152: AGENTE POLÍTICO | F152: SECRETÁRIO MUNICIPAL | G152: - | H152: - | I152: SEBASTIÃO PAULA DA SILVA | J152: - | K152: 2, 11, 18 A 25, 52, 150-56 | L152: 1990-11-28 | M152: - | N152: - | O152: 2009-01-01 | P152: AÇÃO JUD | Q152: VR INIC EV | R152: 6190
A153: 22.414-6 | B153: Prefeitura | C153: - | D153: CAMBUI | E153: COMISSIONADO | F153: ENCARREGADO DE SERVIÇO I | G153: - | H153: - | I153: FRANCISCO MARQUES DA SILVA | J153: - | K153: 2, 10, 30, 86 A 134 | L153: 1990-07-12 | M153: - | N153: X | O153: - | P153: Contracheque | Q153: Vr. Inicial | R153: -
A154: 22.486-3 | B154: Prefeitura | C154: PR | D154: DIVINÓPOLIS | E154: GERAL | F154: TECNICO DE NIVEL SUPERIOR - II | G154: II-15-13 | H154: - | I154: ALCEU ALMEIDA SILVA | J154: - | K154: 2, 9, 10, 52 A 58 | L154: 1991-02-26 | M154: - | N154: - | O154: 1995-05-01 | P154: 3843/95 | Q154: VR INIC EV | R154: 676.25
A155: 22.497-9 | B155: Prefeitura | C155: - | D155: ITAJUBA | E155: GERAL | F155: MOTORISTA | G155: VI C-III | H155: - | I155: HELIO TEIXEIRA MARQUES | J155: - | K155: 2, 12, 23, 24, 107, 108, 125 A 131 | L155: 1990-10-20 | M155: - | N155: - | O155: - | P155: Contracheque | Q155: Vr. Inicial | R155: -
A156: 22.539-8 | B156: Prefeitura | C156: - | D156: ASTOLFO DUTRA | E156: GERAL | F156: AUXILIAR DE TESOURARIA | G156: - | H156: - | I156: JOÃO BATISTA ALVES DE AZEVEDO | J156: - | K156: 2, 8, 13, 19, 117, 137 A 142 | L156: 1990-10-09 | M156: - | N156: X | O156: - | P156: Contracheque | Q156: Vr. Inicial | R156: -
A157: 22.574-6 | B157: Prefeitura | C157: - | D157: RAUL SOARES | E157: GERAL | F157: OPERÁRIO | G157: I-I | H157: - | I157: JOSÉ DUARTE LACERDA | J157: - | K157: 2, 31, 55 | L157: 1990-10-14 | M157: - | N157: - | O157: 2006-06-21 | P157: AÇÃO JUD | Q157: VR INIC EV | R157: 300
A158: 22.613-0 | B158: Prefeitura | C158: - | D158: CANDEIAS | E158: MAGISTÉRIO | F158: PROFESSOR "B" | G158: - | H158: - | I158: MARLENE LOPES FERREIRA DE RESENDE | J158: - | K158: 2, 11, 20, 24, 80, 83 A 102 | L158: 1990-11-26 | M158: - | N158: - | O158: - | P158: Contracheque | Q158: Vr. Inicial | R158: -
A159: 22.735-8 | B159: Prefeitura | C159: - | D159: CAMARA MUNICIPAL DE CARATINGA | E159: GERAL | F159: ASSISTENTE DE GABINETE DA CAMARA | G159: - | H159: - | I159: FERNANDO HOFFAY FRANÇA CAMPOS | J159: - | K159: 2, 12, 15, 22D, 81, 109 A 118 | L159: 1990-03-30 | M159: - | N159: - | O159: - | P159: Contracheque | Q159: Vr. Inicial | R159: -
A160: 22.754-4 | B160: Prefeitura | C160: - | D160: ARAÇUAÍ | E160: COMISSIONADO | F160: CONS. PROC. JURÍDICO | G160: - | H160: - | I160: NYLSON BARBOSA DE ANDRADE | J160: - | K160: 2, 8, 9, 31 | L160: 1991-01-28 | M160: - | N160: - | O160: 1999-03-01 | P160: LC 03/00 | Q160: VR INIC EV | R160: 600
A161: 22.888-5 | B161: Prefeitura | C161: - | D161: CAMPO BELO | E161: AGENTE POLÍTICO | F161: SECRETÁRIO MUNICIPAL DE FAZENDA | G161: XI | H161: - | I161: NILO REIS GARCIA | J161: - | K161: 10-14 | L161: 1991-04-21 | M161: - | N161: - | O161: 2006-10-01 | P161: Fl. 136 | Q161: VR INIC EV | R161: 2950.1
A162: 22.948-2 | B162: Prefeitura | C162: - | D162: MUZAMBINHO | E162: GERAL | F162: ZELADOR DE CEMITÉRIO | G162: - | H162: - | I162: ARLINDO MONTEIRO DA SILVA | J162: - | K162: 2, 12-15 | L162: 1990-06-18 | M162: - | N162: - | O162: 2007-05-01 | P162: 3003/07 | Q162: VR INIC EV | R162: 380
A163: 23.079-0 | B163: Prefeitura | C163: - | D163: DORES DE CAMPOS | E163: GERAL | F163: OPERÁRIO | G163: - | H163: - | I163: OSWALDO RIBEIRO COIMBRA | J163: - | K163: -, - | L163: 1991-06-19 | M163: - | N163: - | O163: 1998-05-01 | P163: 918/08 | Q163: Vr. Inicial | R163: 155
A164: 23.248-3 | B164: Prefeitura | C164: - | D164: RITÁPOLIS | E164: - | F164: - | G164: - | H164: - | I164: - | J164: - | K164: - | L164: - | M164: - | N164: - | O164: - | P164: Contracheque | Q164: Vr. Inicial | R164: -
A165: 23.292-0 | B165: Prefeitura | C165: - | D165: LAGOA DA PRATA | E165: GERAL | F165: ESCRITURÁRIO | G165: III-E | H165: - | I165: OSMARI CLARINDA DE OLIVEIRA | J165: - | K165: 9-11 | L165: 1991-05-08 | M165: - | N165: - | O165: 2005-09-01 | P165: LC 52/05 | Q165: VR INIC EV | R165: 1178.65
A166: 23.373-0 | B166: PREF/PREF | C166: PR | D166: UBÁ | E166: GERAL | F166: AUX. ADMINISTRATIVO | G166: II-4 | H166: - | I166: GESUALDO MUZITANO | J166: - | K166: 8, 14, 18, 19 | L166: 1991-08-07 | M166: - | N166: - | O166: 2007-01-01 | P166: 3570/07 | Q166: VR INIC EV | R166: 450.75
A167: 23.754-0 | B167: Prefeitura | C167: - | D167: POUSO ALTO | E167: GERAL | F167: FISCAL DISTRITAL | G167: VII | H167: - | I167: JOAQUIM ANTUNES VIEIRA | J167: - | K167: 2, 64, 65, 69, 151, 201 A 20 | L167: 1991-05-28 | M167: - | N167: X | O167: - | P167: Contracheque | Q167: Vr. Inicial | R167: -
A168: 23.776-0 | B168: Prefeitura | C168: - | D168: POMPÉU | E168: COMISSIONADO | F168: ENCARREGADO DO SERVIÇO DE ESTRADAS | G168: - | H168: - | I168: JOSÉ BARNABE ALVES DE SOUZA | J168: - | K168: 2, 11, 19, 160 A 166 | L168: 1992-01-30 | M168: - | N168: X | O168: - | P168: Contracheque | Q168: Vr. Inicial | R168: -
A169: 23.857-0 | B169: Prefeitura | C169: - | D169: LEOPOLDINA | E169: GERAL | F169: AUXILIAR ADMINISTRATIVO | G169: III 9 G | H169: - | I169: JOSÉ SCHETTINI | J169: - | K169: 2, 9, 11, 12, 49, - | L169: 1991-08-09 | M169: - | N169: - | O169: 1998-05-01 | P169: 3046/98 | Q169: Vr. Inicial | R169: 479.97
A170: 23.929-1 | B170: Prefeitura | C170: - | D170: ESTRELA DO INDAIA | E170: GERAL | F170: FISCAL DE OBRAS - APOSENTADO | G170: - | H170: - | I170: JAIR JOSE DE OLIVEIRA | J170: - | K170: 2, 8, 9, 22, 50, 217 A 230 | L170: 1989-09-19 | M170: - | N170: X | O170: - | P170: Contracheque | Q170: Vr. Inicial | R170: -
A171: 23.942-9 | B171: Prefeitura | C171: - | D171: VARGINHA | E171: GERAL | F171: MESTRE DE OBRAS | G171: E-6 | H171: - | I171: FRANCISCO BARBOSA REIS | J171: - | K171: 2, 9, 17 ,51 | L171: 1990-12-31 | M171: - | N171: - | O171: 2004-05-01 | P171: 4105/04 | Q171: VR INIC EV | R171: 382
A172: 23.958-5 | B172: Prefeitura | C172: - | D172: MONTE CARMELO | E172: GERAL | F172: FISCAL | G172: VII - I | H172: - | I172: CARLOS ANTÔNIO VARGAS | J172: - | K172: 5, 11, 24 | L172: 1992-11-04 | M172: - | N172: - | O172: 2003-05-01 | P172: 466/03 | Q172: VR INIC EV | R172: 369.31
A173: 24.031-1 | B173: Prefeitura | C173: - | D173: UBÁ | E173: GERAL | F173: AUXILIAR DE SERVIÇOS | G173: III-10 | H173: - | I173: INOCÊNCIO RODRIGUES LEITE | J173: - | K173: 2, 8, 13 | L173: 1992-04-19 | M173: - | N173: X | O173: 2002-04-01 | P173: DC 4077/02 | Q173: VR INIC EV | R173: 389.06
A174: 24.065-6 | B174: Prefeitura | C174: - | D174: FRANCISCO DUMONT | E174: GERAL | F174: AUX. DATILOGRAFIA | G174: - | H174: - | I174: ROBERVAL DA SILVA MENEZES | J174: - | K174: 2, 10, 16, 60 A 74 | L174: 1992-03-13 | M174: - | N174: - | O174: - | P174: Contracheque | Q174: Vr. Inicial | R174: -
A175: 24.189-0 | B175: Prefeitura | C175: - | D175: VARGINHA | E175: GERAL | F175: AUX. SERV. GERAIS | G175: I I | H175: - | I175: JOSE DOMINGUITO SOBRINHO | J175: - | K175: 2, 13, 31, - | L175: 1991-06-02 | M175: - | N175: X | O175: 2003-07-01 | P175: 3888/03 | Q175: Vr. Inicial | R175: 254.4
A176: 24.207-1 | B176: Prefeitura | C176: - | D176: SANTO ANTÔNIO DO JACINTO | E176: GERAL | F176: CONDUTOR DE MAQUINAS PESADAS | G176: - | H176: - | I176: MOISÉS COELHO FERREIRA | J176: - | K176: 9, 70 | L176: 1992-04-15 | M176: - | N176: - | O176: 2005-07-01 | P176: Fl. 97 | Q176: VR INIC EV | R176: 800
A177: 24.308-6 | B177: Prefeitura | C177: - | D177: URUCÂNIA | E177: GERAL | F177: MANOBREIRO DO SERVIÇO DE ÁGUA | G177: 6 A | H177: - | I177: SÍLVIO MARCELINO DIAS | J177: - | K177: 2, 11, 30 | L177: 1991-08-13 | M177: - | N177: - | O177: 2008-03-01 | P177: 70/08 | Q177: VR INIC EV | R177: 452.05
A178: 24.370-1 | B178: Prefeitura | C178: - | D178: VARGINHA | E178: GERAL | F178: MECÂNICO DE AUTOMÓVEIS | G178: A-I | H178: - | I178: DOMICIANO RODRIGUES DE OLIVEIRA | J178: - | K178: 2, 8, 30 | L178: 1991-12-29 | M178: - | N178: - | O178: 2006-06-27 | P178: AÇÃO JUD | Q178: VR INIC EV | R178: 491.8
A179: 24.370-1 | B179: Prefeitura | C179: - | D179: VARGINHA | E179: GERAL | F179: MECÂNICO DE AUTOMÓVEIS | G179: 12-E | H179: - | I179: DOMICIANO RODRIGUES DE OLIVEIRA | J179: - | K179: 2, 8, 30 | L179: 1991-12-29 | M179: - | N179: - | O179: 2006-06-27 | P179: AÇÃO JUD | Q179: VR INIC EV | R179: 491.8
A180: 24.374-4 | B180: Prefeitura | C180: - | D180: PERDÕES | E180: GERAL | F180: MARCENEIRO | G180: VI | H180: - | I180: FRANCISCO JOSÉ CARDOSO | J180: - | K180: 12 | L180: 1992-06-03 | M180: - | N180: - | O180: 2005-06-01 | P180: 2412/05 | Q180: VR INIC EV | R180: 543.08
A181: 24.384-1 | B181: Prefeitura | C181: - | D181: BARBACENA | E181: GERAL | F181: CONTADORA | G181: - | H181: - | I181: MARIA JOSÉ GARCIA MELO | J181: - | K181: 2, 10, 11, 16 E 17, 267 A 321 | L181: 1992-04-28 | M181: - | N181: X | O181: - | P181: Contracheque | Q181: Vr. Inicial | R181: -
A182: 24.418-0 | B182: Prefeitura | C182: - | D182: CAMPO BELO | E182: GERAL | F182: AUX. SERVIÇOS | G182: III | H182: - | I182: JOAQUIM ADÃO | J182: - | K182: 2, 55 | L182: 1991-08-27 | M182: - | N182: - | O182: 2005-05-01 | P182: 2580/05 | Q182: VR INIC EV | R182: 340
A183: 24.458-9 | B183: Prefeitura | C183: - | D183: CONTAGEM | E183: GERAL | F183: AUXILIAR DE SERVIÇOS III | G183: III E | H183: - | I183: LEVI DOS SANTOS BARROS | J183: - | K183: 2, 12, 17, 33, 119 | L183: 1992-06-13 | M183: - | N183: - | O183: - | P183: Contracheque | Q183: Vr. Inicial | R183: -
A184: 24.862-2 | B184: Prefeitura | C184: - | D184: RAUL SOARES | E184: GERAL | F184: OPERÁRIO | G184: 6-1 | H184: - | I184: ANGELO ZULATO | J184: - | K184: 2 | L184: 1992-07-15 | M184: - | N184: X | O184: 2005-05-01 | P184: 1981/05 | Q184: VR INIC EV | R184: 300
A185: 24.971-8 | B185: Prefeitura | C185: - | D185: MONTES CLAROS | E185: GERAL | F185: FISCAL MUNICIPAL | G185: 2-NM5-8 | H185: - | I185: CLAUDINO SERAFIM DE FREITAS | J185: - | K185: 2, 14, 15 | L185: 1992-02-28 | M185: - | N185: - | O185: 2007-04-01 | P185: Fl. 193 | Q185: VR INIC EV | R185: 757.37
A186: 25.011-2 | B186: Prefeitura | C186: - | D186: CARATINGA | E186: V=SM | F186: JARDINEIRO | G186: 30 A | H186: - | I186: OSVALDO BENTO | J186: - | K186: 19, 185, 197, 202, - | L186: 1992-07-04 | M186: - | N186: X | O186: 2007-04-01 | P186: Certidâo Fl. 167 | Q186: Vr. Inicial | R186: 350
A187: 25.044-9 | B187: Prefeitura | C187: - | D187: TIMÓTEO | E187: MAGISTÉRIO | F187: PROFESSOR III | G187: 4 VIII | H187: - | I187: ANTONIO AZEVEDO | J187: - | K187: 2, 11, 15, 34 E 35, 58 | L187: 1992-10-17 | M187: - | N187: - | O187: - | P187: Contracheque | Q187: Vr. Inicial | R187: -
A188: 25.159-3 | B188: Prefeitura | C188: - | D188: LUZ | E188: GERAL | F188: MOTORISTA DE GABINETE | G188: I-VI | H188: - | I188: ANTÔNIO OLIVEIRA | J188: - | K188: 2, 4, 8 | L188: 1992-09-19 | M188: - | N188: - | O188: 2003-05-01 | P188: 1297/03 | Q188: VR INIC EV | R188: 380.29
A189: 25.185-2 | B189: Prefeitura | C189: - | D189: ARGIRITA | E189: - | F189: - | G189: - | H189: - | I189: - | J189: - | K189: - | L189: - | M189: - | N189: - | O189: - | P189: - | Q189: - | R189: -
A190: 25.227-1 | B190: Prefeitura | C190: - | D190: URUCÂNIA | E190: GERAL | F190: GARI | G190: 1 B | H190: - | I190: JOSÉ NICOLAU CLAUDIO | J190: - | K190: 2, 5, 10, 19, 22, 137 | L190: 1991-12-11 | M190: - | N190: - | O190: 2007-04-01 | P190: 48/07 | Q190: VR INIC EV | R190: 286.9
A191: 25.260-3 | B191: Prefeitura | C191: - | D191: CRISTAIS | E191: COMISSIONADO | F191: ENCARREGADO DE SERVIÇO DE LIMPEZA | G191: CC3 | H191: - | I191: VICENTE ADÃO DA SILVA | J191: - | K191: 2, 9, 10, 12, 19 | L191: 1993-03-10 | M191: - | N191: - | O191: 2002-12-01 | P191: 969/02 | Q191: VR INIC EV | R191: 330
A192: 25.299-9 | B192: Prefeitura | C192: - | D192: CRISTÁLIA | E192: GERAL | F192: MOTORISTA | G192: I CE-III | H192: - | I192: DAVID GOMES PEREIRA | J192: - | K192: 2, 4, 9, 10, 20, - | L192: 1993-02-14 | M192: - | N192: - | O192: 2000-12-01 | P192: LC 21/00 | Q192: Vr. Inicial | R192: 350
A193: 25.319-7 | B193: Prefeitura | C193: - | D193: AÇUCENA | E193: GERAL | F193: FERRAMENTEIRO | G193: - | H193: - | I193: WANTUIL DE SOUZA MEDEIROS | J193: - | K193: 2, 15, 22, 23, 52 A 56 | L193: 1993-02-07 | M193: - | N193: - | O193: - | P193: Contracheque | Q193: Vr. Inicial | R193: -
A194: 25.405-3 | B194: Prefeitura | C194: - | D194: URUCÂNIA | E194: GERAL | F194: AJUDANTE DE MÁQUINA | G194: 1 A | H194: - | I194: ANTÔNIO BATISTA DE SOUZA | J194: - | K194: 05, 11, 30, 128, 130, 151, - | L194: 1993-01-03 | M194: - | N194: - | O194: 2006-04-01 | P194: 25/06 | Q194: VR INIC EV | R194: 248.16
A195: 25.405-3 | B195: Prefeitura | C195: - | D195: URUCÂNIA | E195: GERAL | F195: AJUDANTE DE MÁQUINA | G195: 1 A | H195: - | I195: ANTÔNIO BATISTA DE SOUZA | J195: - | K195: 05, 11, 30, 128, 130, 151, - | L195: 1993-01-03 | M195: - | N195: - | O195: 2006-04-01 | P195: 25/06 | Q195: VR INIC EV | R195: 248.16
A196: 25.431-2 | B196: Prefeitura | C196: - | D196: OLIVEIRA | E196: GERAL | F196: AUXILIAR DE SERVIÇO | G196: I-III-F | H196: - | I196: ORLANDO RODRIGUES | J196: - | K196: 2, 9, 166, 182,203 | L196: 1993-03-07 | M196: - | N196: - | O196: 2005-02-01 | P196: Fl. 54 | Q196: VR INIC EV | R196: 375
A197: 25.441-0 | B197: Prefeitura | C197: - | D197: CAMPO BELO | E197: COMISSIONADO | F197: CH. DIV. CONTABILIDADE | G197: VI | H197: - | I197: WANDER CARDOSO | J197: - | K197: 2, 11, 32, 105 A 118 | L197: 1972-04-07 | M197: - | N197: X | O197: 2005-05-01 | P197: 2580/05 | Q197: VR INIC EV | R197: 880
A198: 25.474-6 | B198: Prefeitura | C198: - | D198: ALBERTINA | E198: GERAL | F198: COLETOR APOSTILADO (APOSENTADO) | G198: - | H198: - | I198: OTÁVIO MOREIRA | J198: - | K198: 2, 9, 15, 90 A 104 | L198: 1993-07-20 | M198: - | N198: X | O198: - | P198: Contracheque | Q198: Vr. Inicial | R198: -
A199: 25.576-9 | B199: Prefeitura | C199: - | D199: ALPINÓPOLIS | E199: COMISSIONADO | F199: CHEFE DE ESTRADAS DE RODAGENS | G199: - | H199: - | I199: SEBASTIÃO CARDOSSO SOBRINO | J199: - | K199: 2, 5, 9, 20, 148, 161, 162 | L199: 1993-01-19 | M199: - | N199: - | O199: - | P199: Contracheque | Q199: Vr. Inicial | R199: -
A200: 25.618-8 | B200: Prefeitura | C200: - | D200: OLIVEIRA FORTES | E200: GERAL | F200: AUX. DE SERV. INTERNOS E EXTERNOS | G200: NE | H200: - | I200: EUGÊNIO MOURÃO DA SILVA | J200: - | K200: 2, 4, 6, 9, 19, , 96 A 102 | L200: 1992-12-26 | M200: - | N200: - | O200: - | P200: Contracheque | Q200: Vr. Inicial | R200: -
... 301 more rows

Sheet CABEÇALHO (2)
B1: ÓRGÃO | C1: CAT | D1: PROCESSO | E1: CG | F1: E/P | G1: CARGO | H1: S | I1: N | J1: G
C2: GERAL | D2: =SUBTOTAL(3,D4:D5) -> 2
A3: ABADIA DOS DOURADOS | B3: =SUBTOTAL(3,B4:B5) -> 2
B4: ABADIA DOS DOURADOS | C4: GERAL | D4: 30.160-4 | E4: 1 | F4: P | G4: MOTORISTA | H4: - | I4: - | J4: -
B5: ABADIA DOS DOURADOS | C5: GERAL | D5: 36.335-9 | E5: 1 | F5: P | G5: TRABALHADOR BRAÇAL | H5: - | I5: - | J5: -
C6: GERAL | D6: =SUBTOTAL(3,D8:D8) -> 1
A7: ABRE CAMPO | B7: =SUBTOTAL(3,B8:B8) -> 1
B8: ABRE CAMPO | C8: GERAL | D8: 28.429-7 | E8: 1 | F8: P | G8: - | H8: - | I8: - | J8: -
C9: GERAL | D9: =SUBTOTAL(3,D11:D11) -> 1
A10: AÇUCENA | B10: =SUBTOTAL(3,B11:B11) -> 1
B11: AÇUCENA | C11: GERAL | D11: 25.319-7 | E11: 1 | F11: P | G11: FERRAMENTEIRO | H11: - | I11: - | J11: -
C12: GERAL | D12: =SUBTOTAL(3,D14:D15) -> 2
A13: AIMORÉS | B13: =SUBTOTAL(3,B14:B15) -> 2
B14: AIMORÉS | C14: GERAL | D14: 38.236-1 | E14: 1 | F14: P | G14: ELETRICISTA | H14: - | I14: - | J14: -
B15: AIMORÉS | C15: GERAL | D15: 39.554-4 | E15: 1 | F15: P | G15: FISCAL DE RENDAS | H15: 8-VIII | I15: - | J15: -
C16: GERAL | D16: =SUBTOTAL(3,D18:D18) -> 1
A17: ALBERTINA | B17: =SUBTOTAL(3,B18:B18) -> 1
B18: ALBERTINA | C18: GERAL | D18: 25.474-6 | E18: 1 | F18: P | G18: COLETOR APOSTILADO (APOSENTADO) | H18: - | I18: - | J18: -
C19: GERAL | D19: =SUBTOTAL(3,D21:D21) -> 1
A20: ALÉM PARAIBA | B20: =SUBTOTAL(3,B21:B21) -> 1
B21: ALÉM PARAIBA | C21: GERAL | D21: 15.116-5 | E21: 1 | F21: P | G21: FISCAL GERAL DE OBRAS | H21: 6 A | I21: - | J21: -
C22: GERAL | D22: =SUBTOTAL(3,D24:D24) -> 1
A23: ALÉM PARAÍBA | B23: =SUBTOTAL(3,B24:B24) -> 1
B24: ALÉM PARAÍBA | C24: GERAL | D24: 39.885-3 | E24: 1 | F24: P | G24: FISCAL DE OBRAS | H24: 6 F | I24: - | J24: -
C25: GERAL | D25: =SUBTOTAL(3,D27:D30) -> 4
A26: ALFENAS | B26: =SUBTOTAL(3,B27:B30) -> 4
B27: ALFENAS | C27: GERAL | D27: 03.434-7 | E27: 1 | F27: P | G27: VARREDOR | H27: - | I27: - | J27: -
B28: ALFENAS | C28: GERAL | D28: 10.445-0 | E28: 1 | F28: P | G28: TRATORISTA | H28: III G | I28: - | J28: -
B29: ALFENAS | C29: GERAL | D29: 27.956-0 | E29: 1 | F29: P | G29: AUXILIAR DE SERVIÇOS | H29: - | I29: - | J29: -
B30: ALFENAS | C30: GERAL | D30: 29.539-6 | E30: 1 | F30: P | G30: MOTORISTA | H30: PMA-15 II G | I30: - | J30: -
C31: GERAL | D31: =SUBTOTAL(3,D33:D35) -> 3
A32: ALMENARA | B32: =SUBTOTAL(3,B33:B37) -> 4
B33: ALMENARA | C33: GERAL | D33: 09.388-2 | E33: 1 | F33: P | G33: ELETRICISTA | H33: - | I33: - | J33: -
B34: ALMENARA | C34: GERAL | D34: 37.182-3 | E34: 1 | F34: P | G34: AGENTE DE SERVIÇO / APOSENTADO | H34: - | I34: - | J34: -
B35: ALMENARA | C35: GERAL | D35: 38.692-8 | E35: 1 | F35: P | G35: OPERADOR DE MAQUINAS | H35: - | I35: - | J35: -
C36: MAGISTÉRIO | D36: =SUBTOTAL(3,D37:D37) -> 1
B37: ALMENARA | C37: MAGISTÉRIO | D37: 37.621-3 | E37: 1 | F37: P | G37: PROFESSORA | H37: 1 | I37: - | J37: -
C38: COMISSIONADO | D38: =SUBTOTAL(3,D40:D41) -> 2
A39: ALPINÓPOLIS | B39: =SUBTOTAL(3,B40:B41) -> 2
B40: ALPINÓPOLIS | C40: COMISSIONADO | D40: 07.022-0 | E40: 1 | F40: P | G40: CHEFE SERV. FISCAL RENDAS | H40: - | I40: - | J40: -
B41: ALPINÓPOLIS | C41: COMISSIONADO | D41: 25.576-9 | E41: 1 | F41: P | G41: CHEFE DE ESTRADAS DE RODAGENS | H41: - | I41: - | J41: -
C42: GERAL | D42: =SUBTOTAL(3,D44:D45) -> 2
A43: ALTEROSA | B43: =SUBTOTAL(3,B44:B45) -> 2
B44: ALTEROSA | C44: GERAL | D44: 10.998-3 | E44: 1 | F44: P | G44: OPERÁRIO | H44: I P11 / P26 | I44: - | J44: -
B45: ALTEROSA | C45: GERAL | D45: 33.445-6 | E45: 1 | F45: P | G45: AUX. SERVIÇOS GERAIS | H45: P1-I-P16 | I45: - | J45: -
C46: GERAL | D46: =SUBTOTAL(3,D48:D48) -> 1
A47: ALTEROSAS | B47: =SUBTOTAL(3,B48:B48) -> 1
B48: ALTEROSAS | C48: GERAL | D48: 19.910-9 | E48: 1 | F48: P | G48: OPERÁRIO | H48: - | I48: - | J48: -
C49: COMISSIONADO | D49: =SUBTOTAL(3,D51:D51) -> 1
A50: ALVINÓPOLIS | B50: =SUBTOTAL(3,B51:B58) -> 7
B51: ALVINÓPOLIS | C51: COMISSIONADO | D51: 27.580-8 | E51: 1 | F51: P | G51: CHEFE DE SERVIÇO DE ESTRADA E RODAGEM | H51: - | I51: - | J51: -
C52: GERAL | D52: =SUBTOTAL(3,D53:D58) -> 6
B53: ALVINÓPOLIS | C53: GERAL | D53: 30.424-7 | E53: 1 | F53: P | G53: MOTORISTA DE VEÍCULO PESADO | H53: - | I53: - | J53: -
B54: ALVINÓPOLIS | C54: GERAL | D54: 32.828-6 | E54: 1 | F54: P | G54: TÉCNICO DE NÍVEL SUPERIOR | H54: II | I54: - | J54: -
B55: ALVINÓPOLIS | C55: GERAL | D55: 35.340-0 | E55: 1 | F55: P | G55: TÉCNICO EM EDUCAÇÃO | H55: 00T-TMB | I55: - | J55: -
B56: ALVINÓPOLIS | C56: GERAL | D56: 35.432-5 | E56: 1 | F56: P | G56: MOT. VEIC. PESADO | H56: I | I56: - | J56: -
B57: ALVINÓPOLIS | C57: GERAL | D57: 39.652-4 | E57: 1 | F57: P | G57: AUX. SERVIÇOS GERAIS | H57: II | I57: - | J57: -
B58: ALVINÓPOLIS | C58: GERAL | D58: 41.876-5 | E58: 1 | F58: P | G58: TÉCNICO DE NÍVEL SUPERIOR | H58: I | I58: - | J58: -
C59: GERAL | D59: =SUBTOTAL(3,D61:D61) -> 1
A60: AMPARO DA SERRA | B60: =SUBTOTAL(3,B61:B61) -> 1
B61: AMPARO DA SERRA | C61: GERAL | D61: 29.543-4 | E61: 1 | F61: P | G61: AUXILIAR DE OBRAS E SERVIÇOS | H61: - | I61: - | J61: -
C62: GERAL | D62: =SUBTOTAL(3,D64:D64) -> 1
A63: ANTONIO DIAS | B63: =SUBTOTAL(3,B64:B64) -> 1
B64: ANTONIO DIAS | C64: GERAL | D64: 32.167-2 | E64: 1 | F64: P | G64: AUXILIAR DE SERVIÇOS GERAIS I | H64: I 4 | I64: - | J64: -
C65: COMISSIONADO | D65: =SUBTOTAL(3,D67:D67) -> 1
A66: ANTÔNIO DIAS | B66: =SUBTOTAL(3,B67:B71) -> 4
B67: ANTÔNIO DIAS | C67: COMISSIONADO | D67: 28.825-0 | E67: 1 | F67: P | G67: CHEFE DE SEÇÃO DE SERVIÇOS URBANOS | H67: XIII O | I67: - | J67: -
C68: GERAL | D68: =SUBTOTAL(3,D69:D71) -> 3
B69: ANTÔNIO DIAS | C69: GERAL | D69: 25.825-3 | E69: 1 | F69: P | G69: ASSISTENTE ADMINISTRATIVO | H69: I-X--3 | I69: - | J69: -
B70: ANTÔNIO DIAS | C70: GERAL | D70: 31.639-3 | E70: 1 | F70: P | G70: MOTORISTA | H70: II-VII-1 | I70: - | J70: -
B71: ANTÔNIO DIAS | C71: GERAL | D71: 32.195-8 | E71: 1 | F71: P | G71: MOTORISTA | H71: VI 0 | I71: - | J71: -
C72: GERAL | D72: =SUBTOTAL(3,D74:D74) -> 1
A73: ANTONIO PRADO DE MINAS | B73: =SUBTOTAL(3,B74:B74) -> 1
B74: ANTONIO PRADO DE MINAS | C74: GERAL | D74: 34.921-6 | E74: 1 | F74: P | G74: MOTORISTA | H74: V | I74: - | J74: -
C75: COMISSIONADO | D75: =SUBTOTAL(3,D77:D77) -> 1
A76: ARAÇUAÍ | B76: =SUBTOTAL(3,B77:B77) -> 1
B77: ARAÇUAÍ | C77: COMISSIONADO | D77: 22.754-4 | E77: 1 | F77: P | G77: CONS. PROC. JURÍDICO | H77: - | I77: - | J77: -
C78: GERAL | D78: =SUBTOTAL(3,D80:D80) -> 1
A79: ARAPONGA | B79: =SUBTOTAL(3,B80:B80) -> 1
B80: ARAPONGA | C80: GERAL | D80: 37.834-8 | E80: 1 | F80: P | G80: FISCAL (APOSENTADO) | H80: - | I80: - | J80: -
C81: COMISSIONADO | D81: =SUBTOTAL(3,D83:D83) -> 1
A82: AREADO | B82: =SUBTOTAL(3,B83:B83) -> 1
B83: AREADO | C83: COMISSIONADO | D83: 10.936-3 | E83: 1 | F83: P | G83: ENCARREGADO DE SERVIÇO | H83: - | I83: - | J83: -
C84: - | D84: =SUBTOTAL(3,D86:D86) -> 1
A85: ARGIRITA | B85: =SUBTOTAL(3,B86:B86) -> 1
B86: ARGIRITA | C86: - | D86: 25.185-2 | E86: 1 | F86: P | G86: - | H86: - | I86: - | J86: -
C87: GERAL | D87: =SUBTOTAL(3,D89:D89) -> 1
A88: ASTOLFO DUTRA | B88: =SUBTOTAL(3,B89:B89) -> 1
B89: ASTOLFO DUTRA | C89: GERAL | D89: 22.539-8 | E89: 1 | F89: P | G89: AUXILIAR DE TESOURARIA | H89: - | I89: - | J89: -
C90: - | D90: =SUBTOTAL(3,D92:D92) -> 1
A91: BAMBUÍ | B91: =SUBTOTAL(3,B92:B95) -> 3
B92: BAMBUÍ | C92: - | D92: 05.971-4 | E92: 1 | F92: P | G92: - | H92: - | I92: - | J92: -
C93: COMISSIONADO | D93: =SUBTOTAL(3,D94:D95) -> 2
B94: BAMBUÍ | C94: COMISSIONADO | D94: 26.067-3 | E94: 1 | F94: P | G94: DIRETOR DE DEPARTAMENTO | H94: CC2 | I94: - | J94: -
B95: BAMBUÍ | C95: COMISSIONADO | D95: 34.912-7 | E95: 1 | F95: P | G95: DIRETOR DA DIVISÃO DE CONTABILIDADE | H95: - | I95: - | J95: -
C96: GERAL | D96: =SUBTOTAL(3,D98:D98) -> 1
A97: BANDEIRA DO SUL | B97: =SUBTOTAL(3,B98:B98) -> 1
B98: BANDEIRA DO SUL | C98: GERAL | D98: 28.803-9 | E98: 1 | F98: P | G98: BIOQUIMICO | H98: - | I98: - | J98: -
C99: GERAL | D99: =SUBTOTAL(3,D101:D107) -> 7
A100: BARBACENA | B100: =SUBTOTAL(3,B101:B107) -> 7
B101: BARBACENA | C101: GERAL | D101: 05.928-5 | E101: 1 | F101: P | G101: OPERÁRIO | H101: - | I101: - | J101: -
B102: BARBACENA | C102: GERAL | D102: 15.033-9 | E102: 1 | F102: P | G102: AUXILIAR DE ADMINISTRAÇÃO | H102: C 32 | I102: - | J102: -
B103: BARBACENA | C103: GERAL | D103: 15.886-0 | E103: 1 | F103: P | G103: CHEFE DE FOMENTO TURÍSTICO | H103: CC2 | I103: - | J103: -
B104: BARBACENA | C104: GERAL | D104: 21.299-7 | E104: 1 | F104: P | G104: MAGAREFE | H104: - | I104: - | J104: -
B105: BARBACENA | C105: GERAL | D105: 22.327-1 | E105: 1 | F105: P | G105: SECRETÁRIO | H105: B-23 | I105: - | J105: -
B106: BARBACENA | C106: GERAL | D106: 24.384-1 | E106: 1 | F106: P | G106: CONTADORA | H106: - | I106: - | J106: -
B107: BARBACENA | C107: GERAL | D107: 26.159-9 | E107: 1 | F107: P | G107: MOTORISTA | H107: C-25 | I107: - | J107: -
C108: COMISSIONADO | D108: =SUBTOTAL(3,D110:D110) -> 1
A109: BELO VALE | B109: =SUBTOTAL(3,B110:B110) -> 1
B110: BELO VALE | C110: COMISSIONADO | D110: 18.655-4 | E110: 1 | F110: P | G110: CHEFE DE SERVIÇOS DE OBRAS | H110: - | I110: - | J110: -
C111: GERAL | D111: =SUBTOTAL(3,D113:D117) -> 5
A112: BETIM | B112: =SUBTOTAL(3,B113:B117) -> 5
B113: BETIM | C113: GERAL | D113: 14.413-4 | E113: 1 | F113: P | G113: SERVENTE | H113: 1-A1 | I113: - | J113: -
B114: BETIM | C114: GERAL | D114: 25.970-5 | E114: 1 | F114: P | G114: VIGIA | H114: E-8 | I114: - | J114: -
B115: BETIM | C115: GERAL | D115: 29.029-7 | E115: 1 | F115: P | G115: VIGIA | H115: II-B 7 A | I115: - | J115: -
B116: BETIM | C116: GERAL | D116: 32.343-8 | E116: 1 | F116: P | G116: GUARDA PATRIMONIAL | H116: AC-13-C2 | I116: - | J116: -
B117: BETIM | C117: GERAL | D117: 32.957-6 | E117: 1 | F117: P | G117: GUARDA PATRIMONIAL | H117: IIB-AE201 | I117: - | J117: -
C118: MAGISTÉRIO | D118: =SUBTOTAL(3,D120:D120) -> 1
A119: BIAS FORTES | B119: =SUBTOTAL(3,B120:B120) -> 1
B120: BIAS FORTES | C120: MAGISTÉRIO | D120: 09.809-4 | E120: 1 | F120: P | G120: PROFESSOR MUNICIPAL | H120: I | I120: - | J120: -
C121: GERAL | D121: =SUBTOTAL(3,D123:D123) -> 1
A122: BIQUINHAS | B122: =SUBTOTAL(3,B123:B123) -> 1
B123: BIQUINHAS | C123: GERAL | D123: 27.433-0 | E123: 1 | F123: P | G123: MOTORISTA | H123: INICIAL | I123: - | J123: -
C124: AGENTE POLÍTICO | D124: =SUBTOTAL(3,D126:D126) -> 1
A125: BOM DESPACHO | B125: =SUBTOTAL(3,B126:B133) -> 6
B126: BOM DESPACHO | C126: AGENTE POLÍTICO | D126: 25.824-5 | E126: 1 | F126: P | G126: SECRETÁRIO MUNICIPAL DA AGRICULTURA | H126: - | I126: - | J126: -
C127: COMISSIONADO | D127: =SUBTOTAL(3,D128:D128) -> 1
B128: BOM DESPACHO | C128: COMISSIONADO | D128: 30.614-2 | E128: 1 | F128: P | G128: CHEFE E SEÇÃO | H128: GH02 | I128: - | J128: -
C129: GERAL | D129: =SUBTOTAL(3,D130:D133) -> 4
B130: BOM DESPACHO | C130: GERAL | D130: 11.444-8 | E130: 1 | F130: P | G130: MOTORISTA | H130: X B | I130: - | J130: -
B131: BOM DESPACHO | C131: GERAL | D131: 25.837-7 | E131: 1 | F131: P | G131: AUX. ADMINISTRATIVO | H131: VI-9 | I131: - | J131: -
B132: BOM DESPACHO | C132: GERAL | D132: 37.943-3 | E132: 1 | F132: P | G132: OPERADOR DE MÁQUINAS | H132: 11-4 | I132: - | J132: -
B133: BOM DESPACHO | C133: GERAL | D133: 39.508-0 | E133: 1 | F133: P | G133: AGENTE DE SERVIÇOS GERAIS | H133: 7-GH1 | I133: - | J133: -
C134: GERAL | D134: =SUBTOTAL(3,D136:D139) -> 4
A135: BOM SUCESSO | B135: =SUBTOTAL(3,B136:B139) -> 4
B136: BOM SUCESSO | C136: GERAL | D136: 29.093-9 | E136: 1 | F136: P | G136: PEDREIRO / APOSENTADO | H136: - | I136: - | J136: -
B137: BOM SUCESSO | C137: GERAL | D137: 31.210-0 | E137: 1 | F137: P | G137: SECRETÁRIO MUN. DE ADMINISTRAÇÃO | H137: - | I137: - | J137: -
B138: BOM SUCESSO | C138: GERAL | D138: 38.798-3 | E138: 1 | F138: P | G138: AUXILIAR ADMINISTRATIVO | H138: 15 | I138: - | J138: -
B139: BOM SUCESSO | C139: GERAL | D139: 39.320-7 | E139: 1 | F139: P | G139: AUX. SERV. OPERACIONAIS | H139: - | I139: - | J139: -
C140: COMISSIONADO | D140: =SUBTOTAL(3,D142:D142) -> 1
A141: BONFIM | B141: =SUBTOTAL(3,B142:B144) -> 2
B142: BONFIM | C142: COMISSIONADO | D142: 28.244-8 | E142: 1 | F142: P | G142: CHEFE DO SERVIÇO DE FAZENDA | H142: - | I142: - | J142: -
C143: GERAL | D143: =SUBTOTAL(3,D144:D144) -> 1
B144: BONFIM | C144: GERAL | D144: 25.697-8 | E144: 1 | F144: P | G144: OPERADOR BRAÇA | H144: - | I144: - | J144: -
C145: GERAL | D145: =SUBTOTAL(3,D147:D147) -> 1
A146: BUENÓPOLIS | B146: =SUBTOTAL(3,B147:B147) -> 1
B147: BUENÓPOLIS | C147: GERAL | D147: 29.421-7 | E147: 1 | F147: P | G147: OPERADOR DE MAQUINAS I | H147: 1 | I147: - | J147: -
C148: CÂMARA | D148: =SUBTOTAL(3,D150:D150) -> 1
A149: CABO VERDE | B149: =SUBTOTAL(3,B150:B152) -> 2
B150: CABO VERDE | C150: CÂMARA | D150: 27.185-3 | E150: 1 | F150: P | G150: ASSESSOR LEGISLATIVO | H150: - | I150: - | J150: -
C151: GERAL | D151: =SUBTOTAL(3,D152:D152) -> 1
B152: CABO VERDE | C152: GERAL | D152: 29.406-3 | E152: 1 | F152: P | G152: MOTORISTA | H152: VII | I152: - | J152: -
C153: GERAL | D153: =SUBTOTAL(3,D155:D155) -> 1
A154: CACHOEIRA DO PAJEU | B154: =SUBTOTAL(3,B155:B155) -> 1
B155: CACHOEIRA DO PAJEU | C155: GERAL | D155: 35.413-9 | E155: 1 | F155: P | G155: OFICIAL ADMINISTRATIVO | H155: - | I155: - | J155: -
C156: COMISSIONADO | D156: =SUBTOTAL(3,D158:D158) -> 1
A157: CAETÉ | B157: =SUBTOTAL(3,B158:B161) -> 3
B158: CAETÉ | C158: COMISSIONADO | D158: 07.719-4 | E158: 1 | F158: P | G158: CHEFE DE DIVISÃO | H158: CH 02 | I158: - | J158: -
C159: GERAL | D159: =SUBTOTAL(3,D160:D161) -> 2
B160: CAETÉ | C160: GERAL | D160: 01.773-6 | E160: 1 | F160: P | G160: AUX. DE SECRE. ENCAR. DO SER. MILITAR | H160: - | I160: - | J160: -
B161: CAETÉ | C161: GERAL | D161: 13.733-2 | E161: 1 | F161: P | G161: ASSESSOR DE CONTABILIDADE | H161: - | I161: - | J161: -
C162: GERAL | D162: =SUBTOTAL(3,D164:D164) -> 1
A163: CALDAS | B163: =SUBTOTAL(3,B164:B164) -> 1
B164: CALDAS | C164: GERAL | D164: 30.108-6 | E164: 1 | F164: P | G164: MOTORISTA | H164: V | I164: - | J164: -
C165: GERAL | D165: =SUBTOTAL(3,D167:D167) -> 1
A166: CAMANDUCAIA | B166: =SUBTOTAL(3,B167:B167) -> 1
B167: CAMANDUCAIA | C167: GERAL | D167: 26.632-9 | E167: 1 | F167: P | G167: FISCAL DE TRIBUTOS | H167: - | I167: - | J167: -
C168: GERAL | D168: =SUBTOTAL(3,D170:D170) -> 1
A169: CAMARA MUNICIPAL DE CARATINGA | B169: =SUBTOTAL(3,B170:B170) -> 1
B170: CAMARA MUNICIPAL DE CARATINGA | C170: GERAL | D170: 22.735-8 | E170: 1 | F170: P | G170: ASSISTENTE DE GABINETE DA CAMARA | H170: - | I170: - | J170: -
C171: COMISSIONADO | D171: =SUBTOTAL(3,D173:D173) -> 1
A172: CAMBUI | B172: =SUBTOTAL(3,B173:B173) -> 1
B173: CAMBUI | C173: COMISSIONADO | D173: 22.414-6 | E173: 1 | F173: P | G173: ENCARREGADO DE SERVIÇO I | H173: - | I173: - | J173: -
C174: COMISSIONADO | D174: =SUBTOTAL(3,D176:D176) -> 1
A175: CAMBUQUIRA | B175: =SUBTOTAL(3,B176:B179) -> 3
B176: CAMBUQUIRA | C176: COMISSIONADO | D176: 38.647-2 | E176: 1 | F176: P | G176: TÉCNICO DE CONTABILIDADE | H176: M5 | I176: - | J176: -
C177: GERAL | D177: =SUBTOTAL(3,D178:D179) -> 2
B178: CAMBUQUIRA | C178: GERAL | D178: 20.560-5 | E178: 1 | F178: P | G178: FISCAL DE RENDAS E POSTURAS | H178: - | I178: - | J178: -
B179: CAMBUQUIRA | C179: GERAL | D179: 41.861-7 | E179: 1 | F179: P | G179: AGENTE DE FISCALIZAÇÃO | H179: AGII-H | I179: - | J179: -
C180: GERAL | D180: =SUBTOTAL(3,D182:D183) -> 2
A181: CAMPANHA | B181: =SUBTOTAL(3,B182:B183) -> 2
B182: CAMPANHA | C182: GERAL | D182: 28.209-0 | E182: 1 | F182: P | G182: OPERÁRIO | H182: SM-03 | I182: - | J182: -
B183: CAMPANHA | C183: GERAL | D183: 40.819-0 | E183: 1 | F183: P | G183: BOMBEIRO | H183: 10 | I183: - | J183: -
C184: AGENTE POLÍTICO | D184: =SUBTOTAL(3,D186:D186) -> 1
A185: CAMPO BELO | B185: =SUBTOTAL(3,B186:B199) -> 11
B186: CAMPO BELO | C186: AGENTE POLÍTICO | D186: 22.888-5 | E186: 1 | F186: P | G186: SECRETÁRIO MUNICIPAL DE FAZENDA | H186: XI | I186: - | J186: -
C187: COMISSIONADO | D187: =SUBTOTAL(3,D188:D190) -> 3
B188: CAMPO BELO | C188: COMISSIONADO | D188: 25.441-0 | E188: 1 | F188: P | G188: CH. DIV. CONTABILIDADE | H188: VI | I188: - | J188: -
B189: CAMPO BELO | C189: COMISSIONADO | D189: 26.294-3 | E189: 1 | F189: P | G189: ENCARREGADO DE SERVIÇOS | H189: II-V | I189: - | J189: -
B190: CAMPO BELO | C190: COMISSIONADO | D190: 32.382-9 | E190: 1 | F190: P | G190: ENCARREGADO DE OBRAS | H190: IX | I190: - | J190: -
C191: GERAL | D191: =SUBTOTAL(3,D192:D197) -> 6
B192: CAMPO BELO | C192: GERAL | D192: 09.410-2 | E192: 1 | F192: P | G192: OPERÁRIO | H192: - | I192: - | J192: -
B193: CAMPO BELO | C193: GERAL | D193: 13.099-0 | E193: 1 | F193: P | G193: PEDREIRO | H193: V | I193: - | J193: -
B194: CAMPO BELO | C194: GERAL | D194: 19.269-4 | E194: 1 | F194: P | G194: AUXILIAR DE SERVIÇOS | H194: I | I194: - | J194: -
B195: CAMPO BELO | C195: GERAL | D195: 24.418-0 | E195: 1 | F195: P | G195: AUX. SERVIÇOS | H195: III | I195: - | J195: -
B196: CAMPO BELO | C196: GERAL | D196: 26.432-6 | E196: 1 | F196: P | G196: MÉDICO | H196: IX | I196: - | J196: -
B197: CAMPO BELO | C197: GERAL | D197: 32.603-8 | E197: 1 | F197: P | G197: OPERADOR DE MÁQUINAS | H197: V | I197: - | J197: -
C198: SAÚDE | D198: =SUBTOTAL(3,D199:D199) -> 1
B199: CAMPO BELO | C199: SAÚDE | D199: 28.165-4 | E199: 1 | F199: P | G199: MEDICO | H199: IX | I199: - | J199: -
C200: GERAL | D200: =SUBTOTAL(3,D202:D202) -> 1
... 803 more rows

Sheet CABEÇALHO (3)
A1: ÓRGÃO | B1: CATEGORIA | C1: PROCESSO | D1: CARGO | E1: S-N-G | F1: H
A2: ABADIA DOS DOURADOS | C2: =SUBTOTAL(3,C4:C5) -> 2
A3: GERAL | B3: =SUBTOTAL(3,B4:B26) -> 16
A4: ABADIA DOS DOURADOS | B4: GERAL | C4: 30.160-4 | D4: MOTORISTA | E4: - | F4: -
A5: ABADIA DOS DOURADOS | B5: GERAL | C5: 36.335-9 | D5: TRABALHADOR BRAÇAL | E5: - | F5: -
A6: ABRE CAMPO | C6: =SUBTOTAL(3,C7:C7) -> 1
A7: ABRE CAMPO | B7: GERAL | C7: 28.429-7 | D7: - | E7: - | F7: -
A8: AÇUCENA | C8: =SUBTOTAL(3,C9:C9) -> 1
A9: AÇUCENA | B9: GERAL | C9: 25.319-7 | D9: FERRAMENTEIRO | E9: - | F9: -
A10: AIMORÉS | C10: =SUBTOTAL(3,C11:C12) -> 2
A11: AIMORÉS | B11: GERAL | C11: 38.236-1 | D11: ELETRICISTA | E11: - | F11: -
A12: AIMORÉS | B12: GERAL | C12: 39.554-4 | D12: FISCAL DE RENDAS | E12: 8-VIII | F12: -
A13: ALBERTINA | C13: =SUBTOTAL(3,C14:C14) -> 1
A14: ALBERTINA | B14: GERAL | C14: 25.474-6 | D14: COLETOR APOSTILADO (APOSENTADO) | E14: - | F14: -
A15: ALÉM PARAÍBA | C15: =SUBTOTAL(3,C16:C17) -> 2
A16: ALÉM PARAÍBA | B16: GERAL | C16: 15.116-5 | D16: FISCAL GERAL DE OBRAS | E16: 6 A | F16: -
A17: ALÉM PARAÍBA | B17: GERAL | C17: 39.885-3 | D17: FISCAL DE OBRAS | E17: 6 F | F17: -
A18: ALFENAS | C18: =SUBTOTAL(3,C19:C22) -> 4
A19: ALFENAS | B19: GERAL | C19: 03.434-7 | D19: VARREDOR | E19: - | F19: -
A20: ALFENAS | B20: GERAL | C20: 10.445-0 | D20: TRATORISTA | E20: III G | F20: -
A21: ALFENAS | B21: GERAL | C21: 27.956-0 | D21: AUXILIAR DE SERVIÇOS | E21: - | F21: -
A22: ALFENAS | B22: GERAL | C22: 29.539-6 | D22: MOTORISTA | E22: PMA-15 II G | F22: -
A23: ALMENARA | C23: =SUBTOTAL(3,C24:C26) -> 3
A24: ALMENARA | B24: GERAL | C24: 09.388-2 | D24: ELETRICISTA | E24: - | F24: -
A25: ALMENARA | B25: GERAL | C25: 37.182-3 | D25: AGENTE DE SERVIÇO / APOSENTADO | E25: - | F25: -
A26: ALMENARA | B26: GERAL | C26: 38.692-8 | D26: OPERADOR DE MAQUINAS | E26: - | F26: -
A27: ALMENARA | C27: =SUBTOTAL(3,C29:C29) -> 1
A28: MAGISTÉRIO | B28: =SUBTOTAL(3,B29:B29) -> 1
A29: ALMENARA | B29: MAGISTÉRIO | C29: 37.621-3 | D29: PROFESSORA | E29: 1 | F29: -
A30: ALPINÓPOLIS | C30: =SUBTOTAL(3,C32:C33) -> 2
A31: COMISSIONADO | B31: =SUBTOTAL(3,B32:B33) -> 2
A32: ALPINÓPOLIS | B32: COMISSIONADO | C32: 07.022-0 | D32: CHEFE SERV. FISCAL RENDAS | E32: - | F32: -
A33: ALPINÓPOLIS | B33: COMISSIONADO | C33: 25.576-9 | D33: CHEFE DE ESTRADAS DE RODAGENS | E33: - | F33: -
A34: ALTEROSA | C34: =SUBTOTAL(3,C36:C37) -> 2
A35: GERAL | B35: =SUBTOTAL(3,B36:B39) -> 3
A36: ALTEROSA | B36: GERAL | C36: 10.998-3 | D36: OPERÁRIO | E36: I P11 / P26 | F36: -
A37: ALTEROSA | B37: GERAL | C37: 33.445-6 | D37: AUX. SERVIÇOS GERAIS | E37: P1-I-P16 | F37: -
A38: ALTEROSAS | C38: =SUBTOTAL(3,C39:C39) -> 1
A39: ALTEROSAS | B39: GERAL | C39: 19.910-9 | D39: OPERÁRIO | E39: - | F39: -
A40: ALVINÓPOLIS | C40: =SUBTOTAL(3,C42:C42) -> 1
B41: COMISSIONADO | C41: =SUBTOTAL(3,B42:B42) -> 1
A42: ALVINÓPOLIS | B42: COMISSIONADO | C42: 27.580-8 | D42: CHEFE DE SERVIÇO DE ESTRADA E RODAGEM | E42: - | F42: -
A43: ALVINÓPOLIS | C43: =SUBTOTAL(3,C45:C50) -> 6
A44: GERAL | B44: =SUBTOTAL(3,B45:B54) -> 8
A45: ALVINÓPOLIS | B45: GERAL | C45: 30.424-7 | D45: MOTORISTA DE VEÍCULO PESADO | E45: - | F45: -
A46: ALVINÓPOLIS | B46: GERAL | C46: 32.828-6 | D46: TÉCNICO DE NÍVEL SUPERIOR | E46: II | F46: -
A47: ALVINÓPOLIS | B47: GERAL | C47: 35.340-0 | D47: TÉCNICO EM EDUCAÇÃO | E47: 00T-TMB | F47: -
A48: ALVINÓPOLIS | B48: GERAL | C48: 35.432-5 | D48: MOT. VEIC. PESADO | E48: I | F48: -
A49: ALVINÓPOLIS | B49: GERAL | C49: 39.652-4 | D49: AUX. SERVIÇOS GERAIS | E49: II | F49: -
A50: ALVINÓPOLIS | B50: GERAL | C50: 41.876-5 | D50: TÉCNICO DE NÍVEL SUPERIOR | E50: I | F50: -
A51: AMPARO DA SERRA | C51: =SUBTOTAL(3,C52:C52) -> 1
A52: AMPARO DA SERRA | B52: GERAL | C52: 29.543-4 | D52: AUXILIAR DE OBRAS E SERVIÇOS | E52: - | F52: -
A53: ANTONIO DIAS | C53: =SUBTOTAL(3,C54:C54) -> 1
A54: ANTONIO DIAS | B54: GERAL | C54: 32.167-2 | D54: AUXILIAR DE SERVIÇOS GERAIS I | E54: I 4 | F54: -
A55: ANTÔNIO DIAS | C55: =SUBTOTAL(3,C57:C57) -> 1
A56: COMISSIONADO | B56: =SUBTOTAL(3,B57:B57) -> 1
A57: ANTÔNIO DIAS | B57: COMISSIONADO | C57: 28.825-0 | D57: CHEFE DE SEÇÃO DE SERVIÇOS URBANOS | E57: XIII O | F57: -
A58: ANTÔNIO DIAS | C58: =SUBTOTAL(3,C60:C62) -> 3
A59: GERAL | B59: =SUBTOTAL(3,B60:B64) -> 4
A60: ANTÔNIO DIAS | B60: GERAL | C60: 25.825-3 | D60: ASSISTENTE ADMINISTRATIVO | E60: I-X--3 | F60: -
A61: ANTÔNIO DIAS | B61: GERAL | C61: 31.639-3 | D61: MOTORISTA | E61: II-VII-1 | F61: -
A62: ANTÔNIO DIAS | B62: GERAL | C62: 32.195-8 | D62: MOTORISTA | E62: VI 0 | F62: -
A63: ANTONIO PRADO DE MINAS | C63: =SUBTOTAL(3,C64:C64) -> 1
A64: ANTONIO PRADO DE MINAS | B64: GERAL | C64: 34.921-6 | D64: MOTORISTA | E64: V | F64: -
A65: ARAÇUAÍ | C65: =SUBTOTAL(3,C67:C67) -> 1
A66: COMISSIONADO | B66: =SUBTOTAL(3,B67:B67) -> 1
A67: ARAÇUAÍ | B67: COMISSIONADO | C67: 22.754-4 | D67: CONS. PROC. JURÍDICO | E67: - | F67: -
A68: ARAPONGA | C68: =SUBTOTAL(3,C70:C70) -> 1
A69: GERAL | B69: =SUBTOTAL(3,B70:B70) -> 1
A70: ARAPONGA | B70: GERAL | C70: 37.834-8 | D70: FISCAL (APOSENTADO) | E70: - | F70: -
A71: AREADO | C71: =SUBTOTAL(3,C73:C73) -> 1
A72: COMISSIONADO | B72: =SUBTOTAL(3,B73:B73) -> 1
A73: AREADO | B73: COMISSIONADO | C73: 10.936-3 | D73: ENCARREGADO DE SERVIÇO | E73: - | F73: -
A74: ARGIRITA | C74: =SUBTOTAL(3,C76:C76) -> 1
A75: - | B75: =SUBTOTAL(3,B76:B76) -> 1
A76: ARGIRITA | B76: - | C76: 25.185-2 | D76: - | E76: - | F76: -
A77: ASTOLFO DUTRA | C77: =SUBTOTAL(3,C79:C79) -> 1
A78: GERAL | B78: =SUBTOTAL(3,B79:B79) -> 1
A79: ASTOLFO DUTRA | B79: GERAL | C79: 22.539-8 | D79: AUXILIAR DE TESOURARIA | E79: - | F79: -
A80: BAMBUÍ | C80: =SUBTOTAL(3,C82:C82) -> 1
A81: - | B81: =SUBTOTAL(3,B82:B82) -> 1
A82: BAMBUÍ | B82: - | C82: 05.971-4 | D82: - | E82: - | F82: -
A83: BAMBUÍ | C83: =SUBTOTAL(3,C85:C86) -> 2
A84: COMISSIONADO | B84: =SUBTOTAL(3,B85:B86) -> 2
A85: BAMBUÍ | B85: COMISSIONADO | C85: 26.067-3 | D85: DIRETOR DE DEPARTAMENTO | E85: CC2 | F85: -
A86: BAMBUÍ | B86: COMISSIONADO | C86: 34.912-7 | D86: DIRETOR DA DIVISÃO DE CONTABILIDADE | E86: - | F86: -
A87: BANDEIRA DO SUL | C87: =SUBTOTAL(3,C89:C89) -> 1
A88: GERAL | B88: =SUBTOTAL(3,B89:B97) -> 8
A89: BANDEIRA DO SUL | B89: GERAL | C89: 28.803-9 | D89: BIOQUIMICO | E89: - | F89: -
A90: BARBACENA | C90: =SUBTOTAL(3,C91:C97) -> 7
A91: BARBACENA | B91: GERAL | C91: 05.928-5 | D91: OPERÁRIO | E91: - | F91: -
A92: BARBACENA | B92: GERAL | C92: 15.033-9 | D92: AUXILIAR DE ADMINISTRAÇÃO | E92: C 32 | F92: -
A93: BARBACENA | B93: GERAL | C93: 15.886-0 | D93: CHEFE DE FOMENTO TURÍSTICO | E93: CC2 | F93: -
A94: BARBACENA | B94: GERAL | C94: 21.299-7 | D94: MAGAREFE | E94: - | F94: -
A95: BARBACENA | B95: GERAL | C95: 22.327-1 | D95: SECRETÁRIO | E95: B-23 | F95: -
A96: BARBACENA | B96: GERAL | C96: 24.384-1 | D96: CONTADORA | E96: - | F96: -
A97: BARBACENA | B97: GERAL | C97: 26.159-9 | D97: MOTORISTA | E97: C-25 | F97: -
A98: BELO VALE | C98: =SUBTOTAL(3,C100:C100) -> 1
A99: COMISSIONADO | B99: =SUBTOTAL(3,B100:B100) -> 1
A100: BELO VALE | B100: COMISSIONADO | C100: 18.655-4 | D100: CHEFE DE SERVIÇOS DE OBRAS | E100: - | F100: -
A101: BETIM | C101: =SUBTOTAL(3,C103:C107) -> 5
A102: GERAL | B102: =SUBTOTAL(3,B103:B107) -> 5
A103: BETIM | B103: GERAL | C103: 14.413-4 | D103: SERVENTE | E103: 1-A1 | F103: -
A104: BETIM | B104: GERAL | C104: 25.970-5 | D104: VIGIA | E104: E-8 | F104: -
A105: BETIM | B105: GERAL | C105: 29.029-7 | D105: VIGIA | E105: II-B 7 A | F105: -
A106: BETIM | B106: GERAL | C106: 32.343-8 | D106: GUARDA PATRIMONIAL | E106: AC-13-C2 | F106: -
A107: BETIM | B107: GERAL | C107: 32.957-6 | D107: GUARDA PATRIMONIAL | E107: IIB-AE201 | F107: -
A108: BIAS FORTES | C108: =SUBTOTAL(3,C110:C110) -> 1
A109: MAGISTÉRIO | B109: =SUBTOTAL(3,B110:B110) -> 1
A110: BIAS FORTES | B110: MAGISTÉRIO | C110: 09.809-4 | D110: PROFESSOR MUNICIPAL | E110: I | F110: -
A111: BIQUINHAS | C111: =SUBTOTAL(3,C113:C113) -> 1
A112: GERAL | B112: =SUBTOTAL(3,B113:B113) -> 1
A113: BIQUINHAS | B113: GERAL | C113: 27.433-0 | D113: MOTORISTA | E113: INICIAL | F113: -
A114: BOM DESPACHO | C114: =SUBTOTAL(3,C116:C116) -> 1
A115: AGENTE POLÍTICO | B115: =SUBTOTAL(3,B116:B116) -> 1
A116: BOM DESPACHO | B116: AGENTE POLÍTICO | C116: 25.824-5 | D116: SECRETÁRIO MUNICIPAL DA AGRICULTURA | E116: - | F116: -
A117: BOM DESPACHO | C117: =SUBTOTAL(3,C119:C119) -> 1
A118: COMISSIONADO | B118: =SUBTOTAL(3,B119:B119) -> 1
A119: BOM DESPACHO | B119: COMISSIONADO | C119: 30.614-2 | D119: CHEFE E SEÇÃO | E119: GH02 | F119: -
A120: BOM DESPACHO | C120: =SUBTOTAL(3,C122:C125) -> 4
A121: GERAL | B121: =SUBTOTAL(3,B122:B130) -> 8
A122: BOM DESPACHO | B122: GERAL | C122: 11.444-8 | D122: MOTORISTA | E122: X B | F122: -
A123: BOM DESPACHO | B123: GERAL | C123: 25.837-7 | D123: AUX. ADMINISTRATIVO | E123: VI-9 | F123: -
A124: BOM DESPACHO | B124: GERAL | C124: 37.943-3 | D124: OPERADOR DE MÁQUINAS | E124: 11-4 | F124: -
A125: BOM DESPACHO | B125: GERAL | C125: 39.508-0 | D125: AGENTE DE SERVIÇOS GERAIS | E125: 7-GH1 | F125: -
A126: BOM SUCESSO | C126: =SUBTOTAL(3,C127:C130) -> 4
A127: BOM SUCESSO | B127: GERAL | C127: 29.093-9 | D127: PEDREIRO / APOSENTADO | E127: - | F127: -
A128: BOM SUCESSO | B128: GERAL | C128: 31.210-0 | D128: SECRETÁRIO MUN. DE ADMINISTRAÇÃO | E128: - | F128: -
A129: BOM SUCESSO | B129: GERAL | C129: 38.798-3 | D129: AUXILIAR ADMINISTRATIVO | E129: 15 | F129: -
A130: BOM SUCESSO | B130: GERAL | C130: 39.320-7 | D130: AUX. SERV. OPERACIONAIS | E130: - | F130: -
A131: BONFIM | C131: =SUBTOTAL(3,C133:C133) -> 1
A132: COMISSIONADO | B132: =SUBTOTAL(3,B133:B133) -> 1
A133: BONFIM | B133: COMISSIONADO | C133: 28.244-8 | D133: CHEFE DO SERVIÇO DE FAZENDA | E133: - | F133: -
A134: BONFIM | C134: =SUBTOTAL(3,C136:C136) -> 1
A135: GERAL | B135: =SUBTOTAL(3,B136:B138) -> 2
A136: BONFIM | B136: GERAL | C136: 25.697-8 | D136: OPERADOR BRAÇA | E136: - | F136: -
A137: BUENÓPOLIS | C137: =SUBTOTAL(3,C138:C138) -> 1
A138: BUENÓPOLIS | B138: GERAL | C138: 29.421-7 | D138: OPERADOR DE MAQUINAS I | E138: 1 | F138: -
A139: CABO VERDE | C139: =SUBTOTAL(3,C141:C141) -> 1
A140: CÂMARA | B140: =SUBTOTAL(3,B141:B141) -> 1
A141: CABO VERDE | B141: CÂMARA | C141: 27.185-3 | D141: ASSESSOR LEGISLATIVO | E141: - | F141: -
A142: CABO VERDE | C142: =SUBTOTAL(3,C144:C144) -> 1
A143: GERAL | B143: =SUBTOTAL(3,B144:B146) -> 2
A144: CABO VERDE | B144: GERAL | C144: 29.406-3 | D144: MOTORISTA | E144: VII | F144: -
A145: CACHOEIRA DO PAJEU | C145: =SUBTOTAL(3,C146:C146) -> 1
A146: CACHOEIRA DO PAJEU | B146: GERAL | C146: 35.413-9 | D146: OFICIAL ADMINISTRATIVO | E146: - | F146: -
A147: CAETÉ | C147: =SUBTOTAL(3,C149:C149) -> 1
A148: COMISSIONADO | B148: =SUBTOTAL(3,B149:B149) -> 1
A149: CAETÉ | B149: COMISSIONADO | C149: 07.719-4 | D149: CHEFE DE DIVISÃO | E149: CH 02 | F149: -
A150: CAETÉ | C150: =SUBTOTAL(3,C152:C153) -> 2
A151: GERAL | B151: =SUBTOTAL(3,B152:B159) -> 5
A152: CAETÉ | B152: GERAL | C152: 01.773-6 | D152: AUX. DE SECRE. ENCAR. DO SER. MILITAR | E152: - | F152: -
A153: CAETÉ | B153: GERAL | C153: 13.733-2 | D153: ASSESSOR DE CONTABILIDADE | E153: - | F153: -
A154: CALDAS | C154: =SUBTOTAL(3,C155:C155) -> 1
A155: CALDAS | B155: GERAL | C155: 30.108-6 | D155: MOTORISTA | E155: V | F155: -
A156: CAMANDUCAIA | C156: =SUBTOTAL(3,C157:C157) -> 1
A157: CAMANDUCAIA | B157: GERAL | C157: 26.632-9 | D157: FISCAL DE TRIBUTOS | E157: - | F157: -
A158: CAMARA MUNICIPAL DE CARATINGA | C158: =SUBTOTAL(3,C159:C159) -> 1
A159: CAMARA MUNICIPAL DE CARATINGA | B159: GERAL | C159: 22.735-8 | D159: ASSISTENTE DE GABINETE DA CAMARA | E159: - | F159: -
A160: CAMBUI | C160: =SUBTOTAL(3,C162:C162) -> 1
A161: COMISSIONADO | B161: =SUBTOTAL(3,B162:B164) -> 2
A162: CAMBUI | B162: COMISSIONADO | C162: 22.414-6 | D162: ENCARREGADO DE SERVIÇO I | E162: - | F162: -
A163: CAMBUQUIRA | C163: =SUBTOTAL(3,C164:C164) -> 1
A164: CAMBUQUIRA | B164: COMISSIONADO | C164: 38.647-2 | D164: TÉCNICO DE CONTABILIDADE | E164: M5 | F164: -
A165: CAMBUQUIRA | C165: =SUBTOTAL(3,C167:C168) -> 2
A166: GERAL | B166: =SUBTOTAL(3,B167:B171) -> 4
A167: CAMBUQUIRA | B167: GERAL | C167: 20.560-5 | D167: FISCAL DE RENDAS E POSTURAS | E167: - | F167: -
A168: CAMBUQUIRA | B168: GERAL | C168: 41.861-7 | D168: AGENTE DE FISCALIZAÇÃO | E168: AGII-H | F168: -
A169: CAMPANHA | C169: =SUBTOTAL(3,C170:C171) -> 2
A170: CAMPANHA | B170: GERAL | C170: 28.209-0 | D170: OPERÁRIO | E170: SM-03 | F170: -
A171: CAMPANHA | B171: GERAL | C171: 40.819-0 | D171: BOMBEIRO | E171: 10 | F171: -
A172: CAMPO BELO | C172: =SUBTOTAL(3,C174:C174) -> 1
A173: AGENTE POLÍTICO | B173: =SUBTOTAL(3,B174:B174) -> 1
A174: CAMPO BELO | B174: AGENTE POLÍTICO | C174: 22.888-5 | D174: SECRETÁRIO MUNICIPAL DE FAZENDA | E174: XI | F174: -
A175: CAMPO BELO | C175: =SUBTOTAL(3,C177:C179) -> 3
A176: COMISSIONADO | B176: =SUBTOTAL(3,B177:B179) -> 3
A177: CAMPO BELO | B177: COMISSIONADO | C177: 25.441-0 | D177: CH. DIV. CONTABILIDADE | E177: VI | F177: -
A178: CAMPO BELO | B178: COMISSIONADO | C178: 26.294-3 | D178: ENCARREGADO DE SERVIÇOS | E178: II-V | F178: -
A179: CAMPO BELO | B179: COMISSIONADO | C179: 32.382-9 | D179: ENCARREGADO DE OBRAS | E179: IX | F179: -
A180: CAMPO BELO | C180: =SUBTOTAL(3,C182:C187) -> 6
A181: GERAL | B181: =SUBTOTAL(3,B182:B187) -> 6
A182: CAMPO BELO | B182: GERAL | C182: 09.410-2 | D182: OPERÁRIO | E182: - | F182: -
A183: CAMPO BELO | B183: GERAL | C183: 13.099-0 | D183: PEDREIRO | E183: V | F183: -
A184: CAMPO BELO | B184: GERAL | C184: 19.269-4 | D184: AUXILIAR DE SERVIÇOS | E184: I | F184: -
A185: CAMPO BELO | B185: GERAL | C185: 24.418-0 | D185: AUX. SERVIÇOS | E185: III | F185: -
A186: CAMPO BELO | B186: GERAL | C186: 26.432-6 | D186: MÉDICO | E186: IX | F186: -
A187: CAMPO BELO | B187: GERAL | C187: 32.603-8 | D187: OPERADOR DE MÁQUINAS | E187: V | F187: -
A188: CAMPO BELO | C188: =SUBTOTAL(3,C190:C190) -> 1
A189: SAÚDE | B189: =SUBTOTAL(3,B190:B190) -> 1
A190: CAMPO BELO | B190: SAÚDE | C190: 28.165-4 | D190: MEDICO | E190: IX | F190: -
A191: CAMPOS GERAIS | C191: =SUBTOTAL(3,C193:C193) -> 1
A192: GERAL | B192: =SUBTOTAL(3,B193:B193) -> 1
A193: CAMPOS GERAIS | B193: GERAL | C193: 14.291-3 | D193: TESOUREIRO DO SERVIÇO DE FAZENDA | E193: - | F193: -
A194: CANDEIAS | C194: =SUBTOTAL(3,C196:C196) -> 1
A195: MAGISTÉRIO | B195: =SUBTOTAL(3,B196:B196) -> 1
A196: CANDEIAS | B196: MAGISTÉRIO | C196: 22.613-0 | D196: PROFESSOR "B" | E196: - | F196: -
A197: CAONCEIÇÃO DA APARECIDA | C197: =SUBTOTAL(3,C199:C199) -> 1
A198: GERAL | B198: =SUBTOTAL(3,B199:B207) -> 6
A199: CAONCEIÇÃO DA APARECIDA | B199: GERAL | C199: 13.815-0 | D199: FISCAL GERAL DE OBRAS | E199: - | F199: -
A200: CAPELA NOVA | C200: =SUBTOTAL(3,C201:C201) -> 1
... 772 more rows

Sheet INSTITUIDORES
A1: PROCESSO | B1: INSTITUIDOR | C1: MASP | D1: ÓBITO | E1: FONTE INF. | F1: ULT.ATUAL. | G1: VALOR ATUAL
A2: 02632-8 | B2: PEDRO JANUARIO | C2: 22737 | D2: 1963-11-07 | E2: - | F2: 2016-01-01 | G2: 880
A3: 13895-9
A4: 26148-3
A5: 28707-5
A6: 39412-2

Sheet CARGOS P
A1: PROCESSO | B1: Nº CG | C1: SEC/PREF | D1: CAT | E1: CARGO | F1: S | G1: N | H1: G | I1: CÓD
A2: 02632-8 | B2: 1 | C2: SEE | D2: 1
A3: 13895-9 | B3: 1 | C3: SEE | D3: 1
A4: 26148-3 | B4: 1 | C4: SEE | D4: 1
A5: 28707-5 | B5: 1 | C5: SEE | D5: 1
A6: 39412-2 | B6: 1 | C6: SEE | D6: 1

Sheet VD P
A1: PROCESSO | B1: CG | C1: VD | D1: VANT/DESC | E1: PC/TB
A2: 02632-8 | B2: 1 | C2: 1
A13: 13895-9 | B13: 1 | C13: 1
A24: 26148-3 | B24: 1 | C24: 1
A35: 28707-5 | B35: 1 | C35: 1
A46: 39412-2 | B46: 1 | C46: 1

Sheet CARGOS 2006
A1: AAS | B1: Analista De Atenção À Saúde
A2: AGAS | B2: Analista De Gestão E Assistência À Saúde
A3: ANHH | B3: Analista De Hematologia E Hemoterapia
A4: AST | B4: Analista De Saúde E Tecnologia
A5: ATHH | B5: Assistente Técnico De Hematologia E Hemoterapia
A6: AUAS | B6: Auxiliar De Apoio Da Saúde
A7: AUGAS | B7: Auxiliar De Apoio À Gestão E Atenção À Saúde
A8: AUHH | B8: Auxiliar De Hematologia E Hemoterapia
A9: AUST | B9: Auxiliar De Saúde E Tecnologia
A10: EPGS | B10: Especialistas Em Políticas E Gestão De Saúde
A11: MED | B11: Médico
A12: MEDHH | B12: Médico Da Área De Hematologia E Hemoterapia
A13: PENF | B13: Profissional De Enfermagem
A14: TAS | B14: Técnico De Atenção À Saúde
A15: TGS | B15: Técnico De Gestão De Saúde
A16: TOS | B16: Técnico Operacional Da Saúde
A17: TST | B17: Técnico De Saúde E Tecnologia

Sheet CÓDIGOS
A1: COD | B1: VANTAGEM/DESCONTO
A2: 162 | B2: Abono Familia - Pessoal Aposentado
A3: 161 | B3: Abono Familia - Pessoal Da Ativa
A4: 324 | B4: Abono Fardamento
A5: 214 | B5: Abono Lei 13869/2001 Gab.Militar
A6: 290 | B6: Abono Permanencia & 19 Art 201 Ec.41/03
A7: 164 | B7: Abono Salarial
A8: 402 | B8: Abono Salarial Prestador Servico
A9: 210 | B9: Abono Servico De Emergencia
A10: 415 | B10: Abono Servico De Emergencia - Prest.Serv
A11: 153 | B11: Abono/Rendimento Do Pasep
A12: 3 | B12: Acerto Aulas Facultativas Mes Anterior
A13: 2 | B13: Acerto Aulas Obrig/Dias Meses Anteriores
A14: 169 | B14: Acerto De Auxilio Refeicao
A15: 157 | B15: Acerto De Auxilio Transporte
A16: 180 | B16: Acerto De Exerc.Anterior Valor Historico
A17: 289 | B17: Acerto De Exercicio Anterior
A18: 182 | B18: Acerto De Exercicio Anterior Atualizado
A19: 196 | B19: Acerto De Exercicio Anterior Atualizado
A20: 181 | B20: Acerto De Exercio Anterior - Gepi
A21: 396 | B21: Acerto Exerc Anterior - Defensor Publico
A22: 390 | B22: Acerto Exercicio Anterior - 13. Salario
A23: 175 | B23: Acerto Jun/90-Set/91
A24: 461 | B24: Acerto Retroativo - Fev/05 A Ago/05
A25: 464 | B25: Acerto Retroativo - Lei 15.961/05
A26: 460 | B26: Acerto Retroativo Posicionamento
A27: 46 | B27: Acrescimo Da Lei 3.574/65
A28: 187 | B28: Adiant.-Acerto De 13.Sal.Ano Calendario
A29: 184 | B29: Adic.Insalubridade Proc.024.95.010.022-2
A30: 183 | B30: Adicional 40 Horas
A31: 403 | B31: Adicional 40 Horas Prestador Servico-Ds
A32: 119 | B32: Adicional De Atividade Especifica
A33: 249 | B33: Adicional De Atividade Penosa - Judicial
A34: 207 | B34: Adicional De Dedicacao Integral
A35: 123 | B35: Adicional De Local De Trabalho
A36: 165 | B36: Adicional De Periculosidade
A37: 166 | B37: Adicional Insalubridade
A38: 401 | B38: Adicional Local Trabalho Prest Serv - Ds
A39: 100 | B39: Adicional Noturno
A40: 103 | B40: Adicional Noturno
A41: 419 | B41: Adicional Noturno - Ps Hemominas
A42: 64 | B42: Adicional Quinquenio Minascaixa
A43: 63 | B43: Adicional Trienio Minascaixa
A44: 27 | B44: Adicional Trintenario - E. C. 19/98
A45: 285 | B45: Adicional Trintenario - E.C.E. 57/03
A46: 65 | B46: Adicional Trintenario Minascaixa
A47: 44 | B47: Adicional Trintenario/Remuneracao
A48: 4 | B48: Adicional Vintenario
A49: 5527 | B49: Ajuste Aposentadoria / Pensão Proporcional
A50: 5526 | B50: Ajuste Vencimento Proporcional
A51: 66 | B51: Anuenio Minascaixa
A52: 278 | B52: Apostila Proporc. - Der/Fapemig
A53: 12 | B53: Apostila Proporcional
A54: 313 | B54: Apostila Proporcional - Decisao Judicial
A55: 312 | B55: Apostila Proporcional - Ipsemg
A56: 15 | B56: Apostila Proporcional - Lei 13.434/99
A57: 72 | B57: Aulas Extras - Aposentados
A58: 190 | B58: Aulas Extras - Aposentados
A59: 138 | B59: Aulas Facultativas/Exigencia Curricular
A60: 5 | B60: Aulas Obrigatorias - Efetivo Magisterio
A61: 7 | B61: Aulas Obrigatorias-Designado Magisterio
A62: 93 | B62: Auxilio - Doenca
A63: 192 | B63: Auxilio Alimentacao
A64: 99 | B64: Auxilio Funeral
A65: 275 | B65: Auxilio Materno-Infantil - Ipsemg
A66: 185 | B66: Auxilio Moradia
A67: 168 | B67: Auxilio Refeicao
A68: 410 | B68: Auxilio Refeicao Prestador Servico
A69: 159 | B69: Auxilio Transporte
A70: 409 | B70: Auxilio Transporte Prestador Servico
A71: 91 | B71: Avpf
A72: 83 | B72: Avpf Aposentados
A73: 57 | B73: Avpf-Media Individual
A74: 418 | B74: Bolsa De Residencia
A75: 407 | B75: Clausula Quinta Prestador Servico
A76: 50 | B76: Complemento Salario Minimo
A77: 260 | B77: Complemento Vencimento Basico - Der
A78: 160 | B78: Conversao Do Saldo De Ferias-Premio
A79: 311 | B79: Conversao Saldo Ferias-Premio Parcelado
A80: 77 | B80: Custas/Emolumentos - Aposentados
A81: 151 | B81: Decimo Terceiro Salario - Total-Parcial
A82: 230 | B82: Determinacao Judicial - Indenizacao
A83: 78 | B83: Diferenca Art.74 Lei 11050/93
A84: 176 | B84: Diferenca De Meses Anteriores
A85: 137 | B85: Dobra De Turno - Exigencia Curricular
A86: 136 | B86: Dobra Turno
A87: 139 | B87: Exigencia Curricular
A88: 70 | B88: Extraordinario Minascaixa
A89: 154 | B89: Ferias-Premio
A90: 305 | B90: Funcao Gratif - Superv Ativ Administ -6H
A91: 307 | B91: Funcao Gratif - Superv Ativ Administ -8H
A92: 304 | B92: Funcao Gratif - Superv Ativ Central - 6H
A93: 306 | B93: Funcao Gratif - Superv Ativ Central - 8H
A94: 309 | B94: Funcao Gratif. - Coord. Regional Ipsemg
A95: 197 | B95: Funcao Gratificada - Ruralminas
A96: 213 | B96: Funcao Gratificada Lei 13869/2001-Art.29
A97: 69 | B97: Funcao Gratificada Minascaixa
A98: 156 | B98: Funcao Gratificada S.U.S
A99: 303 | B99: Funcao Gratificada-Coord Ativid Central
A100: 308 | B100: Funcao Gratificada-Coordenador - Ipsemg
A101: 302 | B101: Funcao Gratificada-Coordenador Regional
A102: 310 | B102: Funcao Gratificada-Gerente - Ipsemg
A103: 301 | B103: Funcao Gratificada-Gerente De Area
A104: 150 | B104: G.A.E. Em Atraso
A105: 96 | B105: Gepi - Aposentados Antes Lei 6762/75
A106: 89 | B106: Gepi - Apostila
A107: 88 | B107: Gepi - Cargo Comissao
A108: 87 | B108: Gepi - Cargo Efetivo
A109: 195 | B109: Gepi - Conta Reserva Resolucao 3092/2000
A110: 201 | B110: Gepi Imprensa Oficial -Decret.18057/76
A111: 239 | B111: Gepi-Dec.18057/76-Delib.Cap N.1759/93-Io
A112: 248 | B112: Grat Inc Docenc-Bienio-Ec 19/98 Judicial
A113: 28 | B113: Grat Incent Docencia Bienio - E.C. 19/98
A114: 336 | B114: Grat Incent Docencia Bienio Lei 15788
A115: 247 | B115: Grat Incentivo Docencia-Bienio-Judicial
A116: 206 | B116: Grat Incentivo Eficientizacao Do Servico
A117: 417 | B117: Grat Incentivo Eficientizacao Servico-Ps
A118: 18 | B118: Grat Prog Salarial Dec. 18.090/76 - Ief
A119: 125 | B119: Grat. Apoio Executivo Quadro Permanente
A120: 19 | B120: Grat. Atividade Institucional Autonoma
A121: 47 | B121: Grat. Aux. Inspecao- Determ. Judicial
A122: 179 | B122: Grat. Funcao Auxiliar Ativ. Parlamentar
A123: 177 | B123: Grat. Funcao Fiscalizacao Orcamentaria
A124: 228 | B124: Grat. Incentivo A Docencia - Judicial
A125: 189 | B125: Grat. Retribuicao Pecuniaria Temporaria
A126: 147 | B126: Grat.Apoio Executivo Minascaixa
A127: 29 | B127: Grat.Ensino Especial-Aposent.C/ Extensao
A128: 416 | B128: Grat.Final De Semana - Prestador Servico
A129: 144 | B129: Grat.Incentivo A Docencia - Bienio
A130: 216 | B130: Grat.Por Funcao De Coordenacao De Ensino
A131: 229 | B131: Gratif Dedicacao Exclusiva - Unimontes
A132: 246 | B132: Gratif Especial Quadro Permanente-Valor
A133: 167 | B133: Gratif. De Funcao Art.42-Lei Compl.35/94
A134: 286 | B134: Gratif. De Funcao De Chefia Apostilados
A135: 188 | B135: Gratif. De Funcao Lei 11962/95 - Art. 12
A136: 243 | B136: Gratif. De Incentivo Docencia - Judicial
A137: 282 | B137: Gratif. Por Opcao De Remuneracao-L.14683
A138: 319 | B138: Gratif.Agente De Seguranca Penitenciario
A139: 404 | B139: Gratific Complementar Prestador Serv.-Ds
A140: 17 | B140: Gratific. 20% Art. 36 Decreto 34271/92
A141: 226 | B141: Gratificacao - Saude
A142: 203 | B142: Gratificacao A Docencia - Jp/Feam/Cetec
A143: 97 | B143: Gratificacao Apoio Ao Ministerio Publico
A144: 186 | B144: Gratificacao Complementar
A145: 211 | B145: Gratificacao Complementar
A146: 152 | B146: Gratificacao De 1/3 De Ferias
A147: 131 | B147: Gratificacao De Atividade Judiciaria
A148: 142 | B148: Gratificacao De Coordenacao De Escola
A149: 145 | B149: Gratificacao De Dedicacao Exclusiva
A150: 140 | B150: Gratificacao De Ensino Especial
A151: 128 | B151: Gratificacao De Exercicio Minist.Publico
A152: 209 | B152: Gratificacao De Final De Semana
A153: 133 | B153: Gratificacao De Funcao
A154: 146 | B154: Gratificacao De Funcao
A155: 288 | B155: Gratificacao De Funcao - Apostilados
A156: 263 | B156: Gratificacao De Funcao - Ipsemg
A157: 149 | B157: Gratificacao De Funcao Coord. De Area
A158: 208 | B158: Gratificacao De Funcao De Chefia
A159: 143 | B159: Gratificacao De Incentivo A Docencia
A160: 199 | B160: Gratificacao De Insalubridade
A161: 102 | B161: Gratificacao De Periculosidade
A162: 287 | B162: Gratificacao De Periculosidade
A163: 48 | B163: Gratificacao De Tempo Integral
A164: 155 | B164: Gratificacao Especial - Det. Judical
A165: 279 | B165: Gratificacao Especial - Det. Judicial
A166: 130 | B166: Gratificacao Especial - Gabinete Militar
A167: 265 | B167: Gratificacao Especial - Jet - Ipsemg
A168: 217 | B168: Gratificacao Especial - Jucemg
A169: 178 | B169: Gratificacao Especial - Of. Serv. Gover.
A170: 59 | B170: Gratificacao Especial Da Policia Civil
A171: 60 | B171: Gratificacao Especial Da Policia Civil
A172: 74 | B172: Gratificacao Especial Gab.Militar Inativ
A173: 406 | B173: Gratificacao Especial Prest Serv - Ds
A174: 129 | B174: Gratificacao Especial-Quadro Permanente
A175: 126 | B175: Gratificacao Exercicio Proc.Geral Just.
A176: 219 | B176: Gratificacao Funcao Caixa - Jucemg
A177: 202 | B177: Gratificacao Funcao Ciencia E Tecnologia
A178: 68 | B178: Gratificacao Funcao Confianca Minascaixa
A179: 58 | B179: Gratificacao Funcao Policial
A180: 218 | B180: Gratificacao Hora/Aula Ministrar Curso
A181: 158 | B181: Gratificacao Por Curso
A182: 205 | B182: Gratificacao Por Exibicao Publica
A183: 110 | B183: Gratificacao Por Opcao De Remuneracao
A184: 141 | B184: Gratificacao Regime Especial De Trabalho
A185: 56 | B185: Gratificacao Regime Policial
A186: 52 | B186: Gratificacao Risco - Raio X
A187: 51 | B187: Gratificacao Risco Contagio
A188: 53 | B188: Gratificacao Risco Vida/Saude
A189: 55 | B189: Gratificacao Tempo Integral
A190: 54 | B190: Gratificacao Terco Gabinete
A191: 61 | B191: Gratificacao Trabalho Eventual - Papp
A192: 82 | B192: Honorarios
A193: 73 | B193: Honorarios - Aposentados
A194: 245 | B194: Honorarios - Unimontes
A195: 273 | B195: Honorarios - Utramig
A196: 148 | B196: Honorarios Minascaixa
A197: 75 | B197: Horas Extras Aposent. Imprensa Oficial
A198: 84 | B198: Horas Extras Ativos Imprensa Oficial
A199: 9 | B199: Indenizacao - Pdv
A200: 358 | B200: Indenizacao Dec. N.43649/03 Art.6. Inc.I
... 162 more rows

Sheet MATRIZ DE PAGAMENTO
A1: ÓRGÃOCATPROCESSO | B1: ÓRGÃO | C1: CAT | D1: PROCESSO | E1: C+I | F1: SIMB | G1: N | H1: G | I1: H | J1: CG | K1: CM | L1: JUDICIAL | M1: CODIGO | N1: C+K | O1: VIG | P1: ALIAS | Q1: PERC/QDE | R1: 2005-01-01 | S1: 2005-09-01 | T1: 2006-01-01 | U1: 2006-07-01 | V1: 2007-09-01 | W1: 2008-01-01 | X1: 2010-05-01 | Y1: 2011-01-01 | Z1: 2011-10-01 | AA1: 2012-01-01 | AB1: 2012-04-01 | AC1: 2013-01-01 | AD1: 2013-10-01 | AE1: 2014-01-01 | AF1: 2015-01-01 | AG1: 2015-06-01
A2: SEE-GERAL | B2: SEE | C2: - | D2: GERAL-SEE | G2: - | H2: - | I2: - | J2: - | K2: - | M2: - | N2: - | O2: - | P2: - | Q2: - | R2: - | S2: - | T2: - | U2: - | V2: - | W2: - | X2: - | Y2: - | Z2: - | AA2: - | AB2: - | AC2: - | AD2: - | AE2: - | AF2: - | AG2: -
A3: SEE1EFETIVOS | B3: SEE | C3: 1 | D3: EFETIVOS | F3: - | G3: - | H3: - | I3: - | J3: - | K3: - | L3: - | M3: - | N3: - | O3: - | P3: - | Q3: -
A4: SEE131633-4 | B4: SEE | C4: 1 | D4: 31633-4 | E4: =CONCATENATE(D4,J4) -> 31633-4 - | F4: - | G4: - | H4: - | I4: - | J4: - | M4: - | N4: - | O4: - | P4: - | Q4: - | R4: =SUBTOTAL(9,R5:R18) -> 1012.9872 | S4: =SUBTOTAL(9,S5:S18) -> 1910.1882 | T4: =SUBTOTAL(9,T5:T18) -> 1917.6882 | U4: =SUBTOTAL(9,U5:U18) -> 2013.19761 | V4: =SUBTOTAL(9,V5:V18) -> 2162.8084 | W4: 2096.4084 | X4: =SUBTOTAL(9,X5:X18) -> 3169.93 | Y4: =SUBTOTAL(9,Y5:Y18) -> 3462.36 | AB4: =SUBTOTAL(9,AB5:AB18) -> 3635.478 | AD4: =SUBTOTAL(9,AD5:AD18) -> 3817.2519 | AG4: =SUBTOTAL(9,AG5:AG18) -> 4244.76
A5: SEE231633-4 | B5: SEE | C5: 2 | D5: 31633-4 | E5: 31633-42 | F5: PEB | G5: IV | H5: A | I5: 24 | J5: 2 | M5: 1 | N5: =CONCATENATE(D5,M5,J5) -> 31633-412 | O5: 1 | P5: Vencimento Básico | Q5: 100 | R5: 0 | S5: 553.83 | T5: 553.83 | U5: 581.5215 | V5: 676.18 | W5: 676.18 | X5: 1272.12 | Y5: 0 | AB5: 0 | AD5: 0 | AG5: 0
A6: SEE131633-4 | B6: SEE | C6: 1 | D6: 31633-4 | E6: 31633-41 | F6: AEB | G6: I | H6: O | I6: 30 | J6: 1 | M6: 0010 | N6: 31633-40010 1 | O6: 2 | P6: Provento Basico | Q6: 100 | R6: 510.22 | S6: 613.32 | T6: 613.32 | U6: 643.986 | V6: 676.99 | W6: 676.99 | X6: 743.8 | Y6: 0 | AB6: 0 | AD6: 0 | AG6: 0
A7: SEE231633-4 | B7: SEE | C7: 2 | D7: 31633-4 | E7: 31633-42 | F7: PEB | G7: IV | H7: A | I7: 24 | J7: 2 | M7: 41 | N7: 31633-4412 | O7: 3 | P7: Quinquenio AD | Q7: 50 | R7: 0 | S7: 276.915 | T7: 276.915 | U7: 290.76075 | V7: 338.09 | W7: 338.09 | X7: 636.06 | Y7: 0 | AB7: 0 | AD7: 0 | AG7: 0
A8: SEE131633-4 | B8: SEE | C8: 1 | D8: 31633-4 | E8: 31633-41 | F8: AEB | G8: I | H8: O | I8: 30 | J8: 1 | M8: 42 | N8: 31633-4421 | O8: 4 | P8: Quinquenio MG | Q8: 60 | R8: 306.132 | S8: 367.992 | T8: 367.992 | U8: 386.3916 | V8: 366.354 | W8: 366.354 | X8: 402.99 | Y8: 0 | AB8: 0 | AD8: 0 | AG8: 0
A9: SEE131633-4 | B9: SEE | C9: 1 | D9: 31633-4 | E9: 31633-41 | F9: AEB | G9: I | H9: O | I9: 30 | J9: 1 | M9: 44 | N9: 31633-4441 | O9: 5 | P9: Adicional Trintenario/Remuneracao | Q9: 10 | R9: 81.6352 | S9: 98.1312 | T9: 98.1312 | U9: 103.03776 | V9: 97.6944 | W9: 97.6944 | X9: 107.46 | Y9: 0 | AB9: 0 | AD9: 0 | AG9: 0
A10: SEE131633-4 | B10: SEE | C10: 1 | D10: 31633-4 | E10: 31633-41 | F10: AEB | G10: I | H10: O | I10: 30 | J10: 1 | M10: 0164 | N10: 31633-40164 1 | O10: 6 | P10: Abono Salarial | Q10: - | R10: 45 | S10: 0 | T10: 0 | U10: 0 | V10: 0 | W10: 0 | X10: 0 | Y10: 0 | AB10: 0 | AD10: 0 | AG10: 0
A11: SEE131633-4 | B11: SEE | C11: 1 | D11: 31633-4 | E11: 31633-41 | F11: AEB | G11: I | H11: O | I11: 30 | J11: 1 | M11: 0020 | N11: 31633-40020 1 | O11: 7 | P11: Parcela Remuneratoria Complementar - Prc | Q11: - | R11: 70 | S11: 0 | T11: 0 | U11: 0 | V11: 0 | W11: 0 | X11: 0 | Y11: 0 | AB11: 0 | AD11: 0 | AG11: 0
A12: SEE131633-4 | B12: SEE | C12: 1 | D12: 31633-4 | E12: 31633-41 | F12: AEB | G12: I | H12: O | I12: 30 | J12: 1 | M12: 445 | N12: 31633-44451 | O12: 8 | P12: VTI | Q12: - | R12: 0 | S12: 0 | T12: 7.5 | U12: 7.5 | V12: 7.5 | W12: 7.5 | X12: 7.5 | Y12: 0 | AB12: 0 | AD12: 0 | AG12: 0
A13: SEE131633-4 | B13: SEE | C13: 1 | D13: 31633-4 | E13: 31633-41 | F13: AEB | G13: I | H13: O | I13: 30 | J13: 1 | M13: 711 | N13: 31633-47111 | O13: 9 | P13: Subsidio | Q13: - | R13: 0 | S13: 0 | T13: 0 | U13: 0 | V13: 0 | W13: 0 | X13: 0 | Y13: 1452 | AB13: 1524.6 | AD13: 1600.83 | AG13: 0
A14: SEE231633-4 | B14: SEE | C14: 2 | D14: 31633-4 | E14: 31633-42 | F14: PEB | G14: IV | H14: A | I14: 24 | J14: 2 | M14: 711 | N14: 31633-47112 | O14: 10 | P14: Subsidio | Q14: 0 | R14: 0 | S14: 0 | T14: 0 | U14: 0 | V14: 0 | W14: 0 | X14: 0 | Y14: 2010.36 | AB14: 2110.878 | AD14: 2216.4219 | AG14: 0
A15: SEE131633-4 | B15: SEE | C15: 1 | D15: 31633-4 | E15: 31633-41 | F15: AEB | G15: I | H15: O | I15: 30 | J15: 1 | M15: 910 | N15: 31633-49101 | O15: 11 | P15: Provento | Q15: 0 | R15: 0 | S15: 0 | T15: 0 | U15: 0 | V15: 0 | W15: 0 | X15: 0 | Y15: 0 | AB15: 0 | AD15: 0 | AG15: 2216.43
A16: SEE231633-4 | B16: SEE | C16: 2 | D16: 31633-4 | E16: 31633-42 | F16: PEB | G16: IV | H16: A | I16: 24 | J16: 2 | M16: 901 | N16: 31633-49012 | O16: 12 | P16: Vencimento | Q16: 0 | R16: 0 | S16: 0 | T16: 0 | U16: 0 | V16: 0 | W16: 0 | X16: 0 | Y16: 0 | AB16: 0 | AD16: 0 | AG16: 1600.83
A17: SEE131633-4 | B17: SEE | C17: 1 | D17: 31633-4 | E17: 31633-41 | F17: AEB | G17: I | H17: O | I17: 30 | J17: 1 | M17: 964 | N17: 31633-49641 | O17: 13 | P17: Parcela Incorporável | Q17: 0 | R17: 0 | S17: 0 | T17: 0 | U17: 0 | V17: 0 | W17: 0 | X17: 0 | Y17: 0 | Z17: 0 | AA17: 0 | AB17: 0 | AC17: 0 | AD17: 0 | AE17: 0 | AF17: 0 | AG17: 237.5
A18: SEE231633-4 | B18: SEE | C18: 2 | D18: 31633-4 | E18: 31633-42 | F18: PEB | G18: IV | H18: A | I18: 24 | J18: 2 | M18: 964 | N18: 31633-49642 | O18: 14 | P18: Parcela Incorporável | Q18: 0 | R18: 0 | S18: 0 | T18: 0 | U18: 0 | V18: 0 | W18: 0 | X18: 0 | Y18: 0 | AB18: 0 | AD18: 0 | AG18: 190
A19: SEE133623-8 | B19: SEE | C19: 1 | D19: 33623-8 | E19: 33623-8- | F19: - | G19: - | H19: - | I19: - | J19: - | M19: - | N19: 33623-8-- | O19: - | P19: - | Q19: - | R19: =SUBTOTAL(9,R20:R37) -> 1897.96231 | S19: 2165.536137 | T19: 2173.036137 | U19: 2275.058453 | V19: 2382.176375 | W19: 2647.44777 | X19: 2912.200699 | Y19: 3506.44 | Z19: 0 | AA19: 0 | AB19: 3681.762 | AC19: 0 | AD19: 3865.8501 | AE19: 0 | AF19: 0 | AG19: 4245.84
A20: SEE133623-8 | B20: SEE | C20: 1 | D20: 33623-8 | F20: PEB | G20: IV | H20: A | I20: 24 | J20: 1 | K20: - | M20: 1 | N20: 33623-811 | O20: 1 | P20: Vencimento Básico | Q20: 100 | R20: 420.54 | S20: 553.83 | T20: 553.83 | U20: =T20+T20*5% -> 581.5215 | V20: =U20+U20*5% -> 610.597575 | W20: 610.597575 | X20: 671.66 | Y20: - | Z20: - | AA20: - | AB20: - | AC20: - | AD20: - | AE20: - | AF20: - | AG20: -
A21: SEE133623-8 | B21: SEE | C21: 1 | D21: 33623-8 | F21: PEB | G21: II | H21: C | I21: 24 | J21: 2 | K21: - | M21: 1 | N21: 33623-812 | O21: 1 | P21: Vencimento Básico | Q21: 100 | R21: 288.73 | S21: 372.1 | T21: 372.1 | U21: 390.71 | V21: =U21+U21*5% -> 410.2455 | W21: 435.2229 | X21: 478.75 | Y21: - | Z21: - | AA21: - | AB21: - | AC21: - | AD21: - | AE21: - | AF21: - | AG21: -
A22: SEE133623-8 | B22: SEE | C22: 1 | D22: 33623-8 | F22: PEB | G22: IV | H22: A | I22: 24 | J22: 1 | K22: - | M22: 138 | N22: 33623-81381 | P22: Exigência Curricular | Q22: 47h/a | R22: =R20/108*47 -> 183.0127778 | S22: =S20/108*47 -> 241.0186111 | T22: 241.0186111 | U22: 253.0695417 | V22: 265.7230187 | W22: 265.7230187 | X22: =X20/108*47 -> 292.2964815 | Y22: - | Z22: - | AA22: - | AB22: - | AC22: - | AD22: - | AE22: - | AF22: - | AG22: -
A23: SEE133623-8 | B23: SEE | C23: 1 | D23: 33623-8 | F23: PEB | G23: II | H23: C | I23: 24 | J23: 2 | K23: - | M23: 138 | N23: 33623-81382 | P23: Exigência Curricular | Q23: 11h/a | R23: =R21/108*11 -> 29.40768519 | S23: =S21/108*11 -> 37.89907407 | T23: 37.89907407 | U23: 39.79453704 | V23: 41.78426389 | W23: 44.32825833 | X23: =X21/108*11 -> 48.76157407 | Y23: - | Z23: - | AA23: - | AB23: - | AC23: - | AD23: - | AE23: - | AF23: - | AG23: -
A24: SEE133623-8 | B24: SEE | C24: 1 | D24: 33623-8 | F24: PEB | G24: IV | H24: A | I24: 24 | J24: 1 | K24: - | M24: 144 | N24: 33623-81441 | P24: Biênio | Q24: 0.35 | R24: =(R20+R22)*35% -> 211.2434722 | S24: =(S20+S22)*35% -> 278.1970139 | T24: 278.1970139 | U24: 292.1068646 | V24: 306.7122078 | W24: 306.7122078 | X24: =(X20+X22)*35% -> 337.3847685 | Y24: - | Z24: - | AA24: - | AB24: - | AC24: - | AD24: - | AE24: - | AF24: - | AG24: -
A25: SEE133623-8 | B25: SEE | C25: 1 | D25: 33623-8 | F25: PEB | G25: IV | H25: A | I25: 24 | J25: 1 | K25: - | M25: 146 | N25: 33623-81461 | P25: Gratificação de Função | Q25: 0.25 | R25: =R20*25% -> 105.135 | S25: =S20*25% -> 138.4575 | T25: 138.4575 | U25: =U20*25% -> 145.380375 | V25: =V20*25% -> 152.6493938 | W25: 152.6493938 | X25: =X20*25% -> 167.915 | Y25: - | Z25: - | AA25: - | AB25: - | AC25: - | AD25: - | AE25: - | AF25: - | AG25: -
A26: SEE133623-8 | B26: SEE | C26: 1 | D26: 33623-8 | F26: PEB | G26: IV | H26: A | I26: 24 | J26: 1 | K26: - | M26: 42 | N26: 33623-8421 | P26: Quinquênio Magistério | Q26: 0.3 | R26: =(R20+R22+R25+R24)*30% -> 275.979375 | S26: 363.4509375 | T26: 363.4509375 | U26: 381.6234844 | V26: 400.7046586 | W26: 400.7046586 | X26: =(X20+X22+X25+X24)*30% -> 440.776875 | Y26: - | Z26: - | AA26: - | AB26: - | AC26: - | AD26: - | AE26: - | AF26: - | AG26: -
A27: SEE133623-8 | B27: SEE | C27: 1 | D27: 33623-8 | F27: PEB | G27: IV | H27: A | I27: 24 | J27: 1 | K27: - | M27: 158 | N27: 33623-81581 | P27: Gratificação por Curso | Q27: 0.1 | R27: =R20*10% -> 42.054 | S27: =S20*10% -> 55.383 | T27: 55.383 | U27: =U20*10% -> 58.15215 | V27: =V20*10% -> 61.0597575 | W27: 61.0597575 | X27: =X20*10% -> 67.166 | Y27: - | Z27: - | AA27: - | AB27: - | AC27: - | AD27: - | AE27: - | AF27: - | AG27: -
A28: SEE133623-8 | B28: SEE | C28: 1 | D28: 33623-8 | F28: PEB | G28: II | H28: C | I28: 24 | J28: 2 | K28: - | M28: 164 | N28: 33623-81642 | P28: Abono Salarial | Q28: - | R28: 45 | S28: - | T28: - | U28: - | V28: - | W28: - | X28: - | Y28: - | Z28: - | AA28: - | AB28: - | AC28: - | AD28: - | AE28: - | AF28: - | AG28: -
A29: SEE133623-8 | B29: SEE | C29: 1 | D29: 33623-8 | F29: PEB | G29: II | H29: C | I29: 24 | J29: 2 | K29: - | M29: 20 | N29: 33623-8202 | P29: Parcela Remuneratoria Complementar - Prc | Q29: - | R29: 296.86 | S29: - | T29: - | U29: - | V29: - | W29: - | X29: - | Y29: - | Z29: - | AA29: - | AB29: - | AC29: - | AD29: - | AE29: - | AF29: - | AG29: -
A30: SEE133623-8 | B30: SEE | C30: 1 | D30: 33623-8 | F30: PEB | G30: IV | H30: A | I30: 24 | J30: 1 | K30: - | M30: 445 | N30: 33623-84451 | P30: VTI | Q30: - | R30: - | S30: =(R20+R21+R28+R29)-(S20+S21) -> 125.2 | T30: 132.7 | U30: 132.7 | V30: 132.7 | W30: - | X30: - | AE30: - | AF30: - | AG30: -
A31: SEE133623-8 | B31: SEE | C31: 1 | D31: 33623-8 | F31: PEB | G31: II | H31: C | I31: 24 | J31: 2 | K31: - | M31: 540 | N31: 33623-85402 | P31: Pcrm - Parcela De Compl. Remun. Magisterio | Q31: - | R31: - | S31: - | T31: - | U31: - | V31: - | W31: 370.45 | X31: 407.49 | AE31: - | AF31: - | AG31: -
A32: SEE133623-8 | B32: SEE | C32: 1 | D32: 33623-8 | F32: PEB | G32: V | H32: B | I32: 24 | J32: 1 | K32: - | M32: 711 | N32: 33623-87111 | P32: Subsidio | Q32: 100 | R32: - | S32: - | T32: - | U32: - | V32: - | W32: - | X32: - | Y32: 1980.93 | Z32: - | AA32: - | AB32: =Y32+Y32*5% -> 2079.9765 | AC32: - | AD32: =AB32+AB32*5% -> 2183.975325 | AE32: - | AF32: - | AG32: -
A33: SEE133623-8 | B33: SEE | C33: 1 | D33: 33623-8 | F33: PEB | G33: II | H33: C | I33: 24 | J33: 2 | K33: - | M33: 711 | N33: 33623-87112 | P33: Subsidio | Q33: 100 | R33: - | S33: - | T33: - | U33: - | V33: - | W33: - | X33: - | Y33: 1525.51 | Z33: - | AA33: - | AB33: =Y33+Y33*5% -> 1601.7855 | AC33: - | AD33: =AB33+AB33*5% -> 1681.874775 | AE33: - | AF33: - | AG33: -
A34: SEE133623-8 | B34: SEE | C34: 1 | D34: 33623-8 | F34: PEB | G34: V | H34: B | I34: 24 | J34: 1 | K34: - | M34: 901 | N34: 33623-89011 | P34: Vencimento | Q34: 100 | R34: - | S34: - | T34: - | U34: - | V34: - | W34: - | X34: - | Y34: - | Z34: - | AA34: - | AB34: - | AC34: - | AD34: - | AE34: - | AF34: - | AG34: 2183.97
A35: SEE133623-8 | B35: SEE | C35: 1 | D35: 33623-8 | F35: PEB | G35: II | H35: C | I35: 24 | J35: 2 | K35: - | M35: 901 | N35: 33623-89012 | P35: Vencimento | Q35: 100 | R35: - | S35: - | T35: - | U35: - | V35: - | W35: - | X35: - | Y35: - | Z35: - | AA35: - | AB35: - | AC35: - | AD35: - | AE35: - | AF35: - | AG35: 1681.87
A36: SEE133623-8 | B36: SEE | C36: 1 | D36: 33623-8 | F36: PEB | G36: V | H36: B | I36: 24 | J36: 1 | K36: - | M36: 964 | N36: 33623-89641 | P36: Parcela Incorporável | Q36: - | R36: - | S36: - | T36: - | U36: - | V36: - | W36: - | X36: - | Y36: - | Z36: - | AA36: - | AB36: - | AC36: - | AD36: - | AE36: - | AF36: - | AG36: 190
A37: SEE133623-8 | B37: SEE | C37: 1 | D37: 33623-8 | F37: PEB | G37: II | H37: C | I37: 24 | J37: 2 | K37: - | M37: 964 | N37: 33623-89642 | P37: Parcela Incorporável | Q37: - | R37: - | S37: - | T37: - | U37: - | V37: - | W37: - | X37: - | Y37: - | Z37: - | AA37: - | AB37: - | AC37: - | AD37: - | AE37: - | AF37: - | AG37: 190
A38: SEE132876-6 | B38: SEE | C38: 1 | D38: 32876-6 | E38: 32876-6 - | F38: - | G38: - | H38: - | I38: - | J38: - | M38: - | N38: 32876-6 -- | O38: - | P38: - | Q38: - | R38: =SUBTOTAL(9,R39:R46) -> 400 | S38: =SUBTOTAL(9,S39:S46) -> 410 | T38: =SUBTOTAL(9,T39:T46) -> 417.5 | U38: =SUBTOTAL(9,U39:U46) -> 434 | V38: =SUBTOTAL(9,V39:V46) -> 451.33 | W38: 451.33 | X38: =SUBTOTAL(9,X39:X46) -> 487.705 | Y38: =SUBTOTAL(9,Y39:Y46) -> 697.66 | AB38: =SUBTOTAL(9,AB39:AB46) -> 732.543 | AD38: =SUBTOTAL(9,AD39:AD46) -> 769.17015 | AG38: =SUBTOTAL(9,AG39:AG46) -> 1012.29
A39: SEE132876-6 | B39: SEE | C39: 1 | D39: 32876-6 | E39: 32876-61 | F39: ASB | G39: I | H39: A | I39: 30 | J39: 1 | M39: 0010 | N39: 32876-60010 1 | O39: 1 | P39: Provento Basico | Q39: 100 | R39: 200 | S39: 300 | T39: 300 | U39: 315 | V39: 330.75 | W39: 330.75 | X39: =V39+V39*10% -> 363.825 | Y39: 0 | AB39: 0 | AD39: 0 | AG39: 0
A40: SEE132876-6 | B40: SEE | C40: 1 | D40: 32876-6 | E40: 32876-61 | F40: ASB | G40: I | H40: A | I40: 30 | J40: 1 | M40: 0041 | N40: 32876-60041 1 | O40: 2 | P40: Quinquenio Administrativo | Q40: 10 | R40: 20 | S40: 30 | T40: 30 | U40: 31.5 | V40: 33.08 | W40: 33.08 | X40: 36.38
A41: SEE132876-6 | B41: SEE | C41: 1 | D41: 32876-6 | E41: 32876-61 | F41: ASB | G41: I | H41: A | I41: 30 | J41: 1 | M41: 0020 | N41: 32876-60020 1 | O41: 3 | P41: Parcela Remuneratoria Complementar - Prc | Q41: - | R41: 135 | S41: 0 | T41: 0 | U41: 0 | V41: 0 | W41: 0 | X41: 0 | Y41: 0 | AB41: 0 | AD41: 0 | AG41: 0
A42: SEE132876-6 | B42: SEE | C42: 1 | D42: 32876-6 | E42: 32876-61 | F42: ASB | G42: I | H42: A | I42: 30 | J42: 1 | M42: 164 | N42: 32876-61641 | O42: 4 | P42: Abono Salarial | Q42: - | R42: 45 | S42: 0 | T42: 0 | U42: 0 | V42: 0 | W42: 0 | X42: 0 | Y42: 0 | AB42: 0 | AD42: 0 | AG42: 0
A43: SEE132876-6 | B43: SEE | C43: 1 | D43: 32876-6 | E43: 32876-61 | F43: ASB | G43: I | H43: A | I43: 30 | J43: 1 | M43: 0445 | N43: 32876-60445 1 | O43: 5 | P43: Vantagem Temporaria Incorpor. L/15787/05 | Q43: - | R43: 0 | S43: 80 | T43: 87.5 | U43: 87.5 | V43: 87.5 | W43: 87.5 | X43: 87.5 | Y43: 0 | AB43: 0 | AD43: 0 | AG43: 0
A44: SEE132876-6 | B44: SEE | C44: 1 | D44: 32876-6 | E44: 32876-61 | F44: ASB | G44: I | H44: A | I44: 30 | J44: 1 | M44: 711 | N44: 32876-67111 | O44: 6 | P44: Subsidio | Q44: 0 | R44: 0 | S44: 0 | T44: 0 | U44: 0 | V44: 0 | W44: 0 | X44: 0 | Y44: 697.66 | AB44: =Y44+Y44*5% -> 732.543 | AD44: =AB44+AB44*5% -> 769.17015 | AG44: 0
A45: SEE132876-6 | B45: SEE | C45: 1 | D45: 32876-6 | E45: 32876-61 | F45: ASB | G45: I | H45: A | I45: 30 | J45: 1 | M45: 911 | N45: 32876-69111 | O45: 7 | P45: Vencimento | Q45: 0 | R45: 0 | S45: 0 | T45: 0 | U45: 0 | V45: 0 | W45: 0 | X45: 0 | Y45: 0 | AB45: 0 | AD45: 0 | AG45: 940.94
A46: SEE132876-6 | B46: SEE | C46: 1 | D46: 32876-6 | E46: 32876-61 | F46: ASB | G46: I | H46: A | I46: 30 | J46: 1 | M46: 964 | N46: 32876-69641 | O46: 8 | P46: Parcela Incorporável | Q46: 0 | R46: 0 | S46: 0 | T46: 0 | U46: 0 | V46: 0 | W46: 0 | X46: 0 | Y46: 0 | AB46: 0 | AD46: 0 | AG46: 71.35
A47: SEE133218-6 | B47: SEE | C47: 1 | D47: 33218-6 | E47: 33218-6 - | F47: - | G47: - | H47: - | I47: - | J47: - | M47: - | N47: 33218-6 -- | O47: - | P47: - | Q47: - | R47: =SUBTOTAL(9,R48:R59) -> 684.43 | S47: 744.09 | T47: 751.59 | U47: 788.7945 | V47: 827.859225 | W47: 849.999225 | X47: 934.9951475 | Y47: 1720.01 | AB47: 1806.0105 | AD47: 1896.311025 | AG47: 2086.31
A48: SEE133218-6 | B48: SEE | C48: 1 | D48: 33218-6 | E48: 33218-61 | F48: PEB | G48: III | H48: D | I48: 24 | J48: 1 | M48: 0010 | N48: 33218-60010 1 | O48: 1 | P48: Provento Basico | Q48: 100 | R48: 382.28 | S48: 496.06 | T48: 496.06 | U48: =T48+T48*5% -> 520.863 | V48: =U48+U48*5% -> 546.90615 | W48: 546.90615 | X48: =W48+W48*10% -> 601.596765 | Y48: 0 | AB48: 0 | AD48: 0 | AG48: 0
A49: SEE133218-6 | B49: SEE | C49: 1 | D49: 33218-6 | E49: 33218-61 | F49: PEB | G49: III | H49: D | I49: 24 | J49: 1 | M49: 42 | N49: 33218-6421 | O49: 2 | P49: Quinquenio MG | Q49: 10 | R49: 38.23 | S49: =S48*$Q$49% -> 49.606 | T49: =T48*$Q$49% -> 49.606 | U49: 52.0863 | V49: 54.690615 | W49: 54.690615 | X49: 60.1596765 | Y49: 0 | AB49: 0 | AD49: 0 | AG49: 0
A50: SEE133218-6 | B50: SEE | C50: 1 | D50: 33218-6 | E50: 33218-61 | F50: PEB | G50: III | H50: D | I50: 24 | J50: 1 | M50: 0020 | N50: 33218-60020 1 | O50: 3 | P50: Parcela Remuneratoria Complementar - Prc | Q50: - | R50: 66 | S50: 0 | T50: 0 | U50: 0 | V50: 0 | W50: 0 | X50: 0 | Y50: 0 | AB50: 0 | AD50: 0 | AG50: 0
A51: SEE133218-6 | B51: SEE | C51: 1 | D51: 33218-6 | E51: 33218-61 | F51: PEB | G51: III | H51: D | I51: 24 | J51: 1 | M51: 0164 | N51: 33218-60164 1 | O51: 4 | P51: Abono Salarial | Q51: - | R51: 45 | S51: 0 | T51: 0 | U51: 0 | V51: 0 | W51: 0 | X51: 0 | Y51: 0 | AB51: 0 | AD51: 0 | AG51: 0
A52: SEE133218-6 | B52: SEE | C52: 1 | D52: 33218-6 | E52: 33218-61 | F52: PEB | G52: III | H52: D | I52: 24 | J52: 1 | M52: 28 | N52: 33218-6281 | O52: 5 | P52: Grat Incent Docencia Bienio - E.C. 19/98 | Q52: 20 | R52: 76.46 | S52: =S48*$Q$52% -> 99.212 | T52: =T48*$Q$52% -> 99.212 | U52: 104.1726 | V52: 109.38123 | W52: 109.38123 | X52: =X48*$Q$52% -> 120.319353 | Y52: 0 | AB52: 0 | AD52: 0 | AG52: 0
A53: SEE133218-6 | B53: SEE | C53: 1 | D53: 33218-6 | E53: 33218-61 | F53: PEB | G53: III | H53: D | I53: 24 | J53: 1 | M53: 144 | N53: 33218-61441 | O53: 6 | P53: Grat.Incentivo A Docencia - Bienio | Q53: 20 | R53: 76.46 | S53: =S48*$Q$53% -> 99.212 | T53: =T48*$Q$53% -> 99.212 | U53: 104.1726 | V53: 109.38123 | W53: 109.38123 | X53: =X48*$Q$53% -> 120.319353 | Y53: 0 | AB53: 0 | AD53: 0 | AG53: 0
A54: SEE133218-6 | B54: SEE | C54: 1 | D54: 33218-6 | E54: 33218-61 | F54: PEB | G54: III | H54: D | I54: 24 | J54: 1 | M54: 445 | N54: 33218-64451 | O54: 7 | P54: VTI | Q54: - | R54: 0 | S54: 0 | T54: 7.5 | U54: 7.5 | V54: 7.5 | W54: 7.5 | X54: 7.5 | Y54: 0 | AB54: 0 | AD54: 0 | AG54: 0
A55: SEE133218-6 | B55: SEE | C55: 1 | D55: 33218-6 | E55: 33218-61 | F55: PEB | G55: III | H55: D | I55: 24 | J55: 1 | M55: 540 | N55: 33218-65401 | O55: 8 | P55: Parcela De Compl.Remun.Magisterio Pcrm | Q55: - | R55: 0 | S55: 0 | T55: 0 | U55: 0 | V55: 0 | W55: 22.14 | X55: 25.1 | Y55: 0 | AB55: 0 | AD55: 0 | AG55: 0
A56: SEE133218-6 | B56: SEE | C56: 1 | D56: 33218-6 | E56: 33218-61 | F56: PEB | G56: III | H56: D | I56: 24 | J56: 1 | M56: 711 | N56: 33218-67111 | O56: 9 | P56: Subsidio | Q56: - | R56: 0 | S56: 0 | T56: 0 | U56: 0 | V56: 0 | W56: 0 | X56: 0 | Y56: 1720.01 | AB56: =Y56+Y56*5% -> 1806.0105 | AD56: =AB56+AB56*5% -> 1896.311025 | AG56: 0
A57: SEE133218-6 | B57: SEE | C57: 1 | D57: 33218-6 | E57: 33218-61 | F57: PEB | G57: III | H57: D | I57: 24 | J57: 1 | M57: 910 | N57: 33218-69101 | O57: 10 | P57: Provento | Q57: - | R57: 0 | S57: 0 | T57: 0 | U57: 0 | V57: 0 | W57: 0 | X57: 0 | Y57: 0 | AB57: 0 | AD57: 0 | AG57: 1896.31
A58: SEE133218-6 | B58: SEE | C58: 1 | D58: 33218-6 | E58: 33218-61 | F58: PEB | G58: III | H58: D | I58: 24 | J58: 1 | M58: 964 | N58: 33218-69641 | O58: 11 | P58: Parcela Incorporável | Q58: - | R58: 0 | S58: 0 | T58: 0 | U58: 0 | V58: 0 | W58: 0 | X58: 0 | Y58: 0 | AB58: 0 | AD58: 0 | AG58: 190
A59: SEE133218-6 | B59: SEE | C59: 1 | D59: 33218-6 | E59: 33218-61 | F59: PEB | G59: III | H59: D | I59: 24 | J59: 1 | N59: 33218-61 | O59: 12 | Q59: - | R59: 0 | S59: 0 | T59: 0 | U59: 0 | V59: 0 | W59: 0 | X59: 0 | Y59: 0 | AB59: 0 | AD59: 0 | AG59: 0
A60: SEE133365-4 | B60: SEE | C60: 1 | D60: 33365-4 | E60: 33365-4 | N60: 33365-4 | R60: =SUBTOTAL(9,R61:R72) -> 644.512 | S60: =SUBTOTAL(9,S61:S72) -> 712.762 | T60: =SUBTOTAL(9,T61:T72) -> 719.762 | U60: 748.0826 | V60: 777.81923 | W60: 849.99923 | X60: 934.996153 | Y60: 1457.03 | AB60: 1529.8815 | AD60: 1606.375575 | AG60: 1796.38
A61: SEE133365-4 | B61: SEE | C61: 1 | D61: 33365-4 | E61: 33365-41 | F61: PEB | G61: I | H61: E | I61: 24 | J61: 1 | M61: 0010 | N61: 33365-40010 1 | O61: 1 | P61: Provento Basico | Q61: 100 | R61: 238.28 | S61: 343.28 | T61: =S61 -> 343.28 | U61: =T61+T61*5% -> 360.444 | V61: =U61+U61*5% -> 378.4662 | W61: =V61 -> 378.4662 | X61: =W61+W61*10% -> 416.31282 | Y61: - | AB61: - | AD61: - | AG61: -
A62: SEE133365-4 | B62: SEE | C62: 1 | D62: 33365-4 | E62: 33365-41 | F62: PEB | G62: I | H62: E | I62: 24 | J62: 1 | M62: 0041 | N62: 33365-40041 1 | O62: 2 | P62: Quinquenio Administrativo | Q62: 50 | R62: =R61*$Q$62% -> 119.14 | S62: =S61*$Q$62% -> 171.64 | T62: 171.64 | U62: 180.222 | V62: 189.2331 | W62: =V62 -> 189.2331 | X62: 208.15641 | Y62: - | AB62: - | AD62: - | AG62: -
A63: SEE133365-4 | B63: SEE | C63: 1 | D63: 33365-4 | E63: 33365-41 | F63: PEB | G63: I | H63: E | I63: 24 | J63: 1 | M63: 44 | N63: 33365-4441 | O63: 3 | P63: Adicional Trintenario/Remuneracao | Q63: 10 | R63: =(R61+R62)*$Q$63% -> 35.742 | S63: =(S61+S62)*$Q$63% -> 51.492 | T63: 51.492 | U63: 54.0666 | V63: 56.76993 | W63: 56.76993 | X63: 62.446923 | Y63: - | AB63: - | AD63: - | AG63: -
A64: SEE133365-4 | B64: SEE | C64: 1 | D64: 33365-4 | E64: 33365-41 | F64: PEB | G64: I | H64: E | I64: 24 | J64: 1 | M64: 0164 | N64: 33365-40164 1 | O64: 4 | P64: Abono Salarial | Q64: - | R64: 45 | S64: - | T64: - | U64: - | V64: - | W64: - | X64: - | Y64: - | AB64: - | AD64: - | AG64: -
A65: SEE133365-4 | B65: SEE | C65: 1 | D65: 33365-4 | E65: 33365-41 | F65: PEB | G65: I | H65: E | I65: 24 | J65: 1 | M65: 0020 | N65: 33365-40020 1 | O65: 5 | P65: Parcela Remuneratoria Complementar - Prc | Q65: - | R65: 206.35 | S65: - | T65: - | U65: - | V65: - | W65: - | X65: - | Y65: - | AB65: - | AD65: - | AG65: -
A66: SEE133365-4 | B66: SEE | C66: 1 | D66: 33365-4 | E66: 33365-41 | F66: PEB | G66: I | H66: E | I66: 24 | J66: 1 | M66: 445 | N66: 33365-44451 | O66: 6 | P66: VTI | Q66: - | R66: - | S66: =(R61+R64+R65)-S61 -> 146.35 | T66: =S66+7 -> 153.35 | U66: 153.35 | V66: 153.35 | W66: 153.35 | X66: 153.35 | Y66: - | AB66: - | AD66: - | AG66: -
A67: SEE133365-4 | B67: SEE | C67: 1 | D67: 33365-4 | E67: 33365-41 | F67: PEB | G67: I | H67: E | I67: 24 | J67: 1 | M67: 540 | N67: 33365-45401 | O67: 7 | P67: Pcrm - Parcela De Compl. Remun. Magisterio | Q67: - | R67: - | S67: - | T67: - | U67: - | V67: - | W67: 72.18 | X67: 94.73 | Y67: - | AB67: - | AD67: - | AG67: -
A68: SEE133365-4 | B68: SEE | C68: 1 | D68: 33365-4 | E68: 33365-41 | F68: PEB | G68: I | H68: E | I68: 24 | J68: 1 | M68: 711 | N68: 33365-47111 | O68: 8 | P68: Subsidio | Q68: - | R68: - | S68: - | T68: - | U68: - | V68: - | W68: - | X68: - | Y68: 1457.03 | AB68: =Y68+Y68*5% -> 1529.8815 | AD68: =AB68+AB68*5% -> 1606.375575 | AG68: -
A69: SEE133365-4 | B69: SEE | C69: 1 | D69: 33365-4 | E69: 33365-41 | F69: PEB | G69: I | H69: E | I69: 24 | J69: 1 | M69: 910 | N69: =CONCATENATE(D69,M69,J69) -> 33365-49101 | O69: 9 | P69: Provento | Q69: - | R69: - | S69: - | T69: - | U69: - | V69: - | W69: - | X69: - | Y69: - | AB69: - | AD69: - | AG69: 1606.38
A70: SEE133365-4 | B70: SEE | C70: 1 | D70: 33365-4 | E70: 33365-41 | F70: PEB | G70: I | H70: E | I70: 24 | J70: 1 | M70: 964 | N70: 33365-49641 | O70: 10 | P70: Parcela Incorporável | Q70: - | R70: - | S70: - | T70: - | U70: - | V70: - | W70: - | X70: - | Y70: - | AB70: - | AD70: - | AG70: 190
A71: SEE133365-4 | B71: SEE | C71: 1 | D71: 33365-4 | E71: 33365-41 | F71: PEB | G71: I | H71: E | I71: 24 | J71: 1 | N71: 33365-41 | O71: 11 | Q71: - | R71: - | S71: - | T71: - | U71: - | V71: - | W71: - | X71: - | Y71: - | AB71: - | AD71: - | AG71: -
A72: SEE133365-4 | B72: SEE | C72: 1 | D72: 33365-4 | E72: 33365-41 | F72: PEB | G72: I | H72: E | I72: 24 | J72: 1 | N72: 33365-41 | O72: 12 | Q72: - | R72: - | S72: - | T72: - | U72: - | V72: - | W72: - | X72: - | Y72: - | AB72: - | AD72: - | AG72: -
A73: SEE133654-8 | B73: SEE | C73: 1 | D73: 33654-8 | E73: 33654-8 | N73: 33654-8 | R73: =SUBTOTAL(9,R74:R85) -> 508.162 | S73: 576.412 | T73: 583.912 | U73: 612.2326 | V73: 641.96923 | W73: 849.99923 | X73: 934.996153 | Y73: 1457.03 | AB73: 1529.8815 | AD73: 1606.375575 | AG73: 1796.38
A74: SEE133654-8 | B74: SEE | C74: 1 | D74: 33654-8 | E74: 33654-81 | F74: PEB | G74: I | H74: E | I74: 24 | J74: 1 | M74: 0010 | N74: 33654-80010 1 | O74: 1 | P74: Provento Basico | Q74: 100 | R74: 238.28 | S74: 343.28 | T74: =S74 -> 343.28 | U74: =T74+T74*5% -> 360.444 | V74: =U74+U74*5% -> 378.4662 | W74: =V74 -> 378.4662 | X74: =W74+W74*10% -> 416.31282 | Y74: - | AB74: - | AD74: - | AG74: -
A75: SEE133654-8 | B75: SEE | C75: 1 | D75: 33654-8 | E75: 33654-81 | F75: PEB | G75: I | H75: E | I75: 24 | J75: 1 | M75: 0041 | N75: 33654-80041 1 | O75: 2 | P75: Quinquenio Administrativo | Q75: 50 | R75: =R74*$Q$75% -> 119.14 | S75: =S74*$Q$75% -> 171.64 | T75: 171.64 | U75: 180.222 | V75: 189.2331 | W75: 189.2331 | X75: 208.15641 | Y75: - | AB75: - | AD75: - | AG75: -
A76: SEE133654-8 | B76: SEE | C76: 1 | D76: 33654-8 | E76: 33654-81 | F76: PEB | G76: I | H76: E | I76: 24 | J76: 1 | M76: 44 | N76: 33654-8441 | O76: 3 | P76: Adicional Trintenario/Remuneracao | Q76: 10 | R76: =(R74+R75)*$Q$76% -> 35.742 | S76: =(S74+S75)*$Q$76% -> 51.492 | T76: 51.492 | U76: 54.0666 | V76: 56.76993 | W76: 56.76993 | X76: 62.446923 | Y76: - | AB76: - | AD76: - | AG76: -
A77: SEE133654-8 | B77: SEE | C77: 1 | D77: 33654-8 | E77: 33654-81 | F77: PEB | G77: I | H77: E | I77: 24 | J77: 1 | M77: 0164 | N77: 33654-80164 1 | O77: 4 | P77: Abono Salarial | Q77: - | R77: 45 | S77: - | T77: - | U77: - | V77: - | W77: - | X77: - | Y77: - | AB77: - | AD77: - | AG77: -
A78: SEE133654-8 | B78: SEE | C78: 1 | D78: 33654-8 | E78: 33654-81 | F78: PEB | G78: I | H78: E | I78: 24 | J78: 1 | M78: 0020 | N78: 33654-80020 1 | O78: 5 | P78: Parcela Remuneratoria Complementar - Prc | Q78: - | R78: 70 | S78: - | T78: - | U78: - | V78: - | W78: - | X78: - | Y78: - | AB78: - | AD78: - | AG78: -
A79: SEE133654-8 | B79: SEE | C79: 1 | D79: 33654-8 | E79: 33654-81 | F79: PEB | G79: I | H79: E | I79: 24 | J79: 1 | M79: 445 | N79: 33654-84451 | O79: 6 | P79: VTI | Q79: - | R79: - | S79: =(R74+R77+R78)-S74 -> 10 | T79: 17.5 | U79: 17.5 | V79: 17.5 | W79: 17.5 | X79: 17.5 | Y79: - | AB79: - | AD79: - | AG79: -
A80: SEE133654-8 | B80: SEE | C80: 1 | D80: 33654-8 | E80: 33654-81 | F80: PEB | G80: I | H80: E | I80: 24 | J80: 1 | M80: 540 | N80: 33654-85401 | O80: 7 | P80: Pcrm - Parcela De Compl. Remun. Magisterio | Q80: - | R80: - | S80: - | T80: - | U80: - | V80: - | W80: 208.03 | X80: 230.58 | Y80: - | AB80: - | AD80: - | AG80: -
A81: SEE133654-8 | B81: SEE | C81: 1 | D81: 33654-8 | E81: =CONCATENATE(D81,J81) -> 33654-81 | F81: PEB | G81: I | H81: E | I81: 24 | J81: 1 | M81: 711 | N81: 33654-87111 | O81: 8 | P81: Subsidio | Q81: - | R81: - | S81: - | T81: - | U81: - | V81: - | W81: - | X81: - | Y81: 1457.03 | AB81: =Y81+Y81*5% -> 1529.8815 | AD81: =AB81+AB81*5% -> 1606.375575 | AG81: -
A82: SEE133654-8 | B82: SEE | C82: 1 | D82: 33654-8 | E82: 33654-81 | F82: PEB | G82: I | H82: E | I82: 24 | J82: 1 | M82: 910 | N82: 33654-89101 | O82: 9 | P82: Provento | Q82: - | R82: - | S82: - | T82: - | U82: - | V82: - | W82: - | X82: - | Y82: - | AB82: - | AD82: - | AG82: 1606.38
A83: SEE133654-8 | B83: SEE | C83: 1 | D83: 33654-8 | E83: 33654-81 | F83: PEB | G83: I | H83: E | I83: 24 | J83: 1 | M83: 964 | N83: 33654-89641 | O83: 10 | P83: Parcela Incorporável | Q83: - | R83: - | S83: - | T83: - | U83: - | V83: - | W83: - | X83: - | Y83: - | AB83: - | AD83: - | AG83: 190
A84: SEE133654-8 | B84: SEE | C84: 1 | D84: 33654-8 | E84: 33654-81 | F84: PEB | G84: I | H84: E | I84: 24 | J84: 1 | N84: 33654-81 | O84: 11
A85: SEE133654-8 | B85: SEE | C85: 1 | D85: 33654-8 | E85: 33654-81 | F85: PEB | G85: I | H85: E | I85: 24 | J85: 1 | N85: 33654-81 | O85: 12
A86: SEE134078-2 | B86: SEE | C86: 1 | D86: 34078-2 | E86: 34078-2 | N86: 34078-2 | R86: =SUM(R87:R95) -> 365.67 | S86: 444.6 | T86: 452.1 | U86: 474.33 | V86: 497.678 | W86: 460.7566667 | X86: 505.9824667 | Y86: 711.3426667 | Z86: 0 | AA86: 0 | AB86: 746.9098 | AC86: 0 | AD86: 784.25529 | AE86: 0 | AF86: 0 | AG86: 1198.166667
A87: SEE134078-2 | B87: SEE | C87: 1 | D87: 34078-2 | E87: 34078-2- | F87: ASB | G87: II | H87: A | I87: 30 | J87: - | M87: 0010 | N87: 34078-20010 - | O87: 1 | P87: Provento Basico | Q87: 100 | R87: 200 | S87: 342 | T87: 342 | U87: 359.1 | V87: 377.06 | W87: 377.06 | X87: 414.766 | Y87: 0 | AB87: 0 | AD87: 0 | AG87: 0
A88: SEE134078-2 | B88: SEE | C88: 1 | D88: 34078-2 | E88: 34078-2- | F88: ASB | G88: II | H88: A | I88: 30 | J88: - | M88: 0042 | N88: 34078-20042 - | O88: 2 | P88: Quinquenio Magisterio | Q88: 50 | R88: 100 | S88: 171 | T88: 171 | U88: 179.55 | V88: 188.53 | W88: 188.53 | X88: 207.383 | Y88: 0 | AB88: 0 | AD88: 0 | AG88: 0
A89: SEE134078-2 | B89: SEE | C89: 1 | D89: 34078-2 | E89: 34078-2- | F89: ASB | G89: II | H89: A | I89: 30 | J89: - | M89: 164 | N89: 34078-2164- | O89: 3 | P89: Abono Salarial | Q89: - | R89: 45 | S89: 0 | T89: 0 | U89: 0 | V89: 0 | W89: 0 | X89: 0 | Y89: 0 | AB89: 0 | AD89: 0 | AG89: 0
A90: SEE134078-2 | B90: SEE | C90: 1 | D90: 34078-2 | E90: 34078-2- | F90: ASB | G90: II | H90: A | I90: 30 | J90: - | M90: 0020 | N90: 34078-20020 - | O90: 4 | P90: Parcela Remuneratoria Complementar - Prc | Q90: - | R90: 60.67 | S90: 0 | T90: 0 | U90: 0 | V90: 0 | W90: 0 | X90: 0 | Y90: 0 | AB90: 0 | AD90: 0 | AG90: 0
A91: SEE134078-2 | B91: SEE | C91: 1 | D91: 34078-2 | E91: 34078-2- | F91: ASB | G91: II | H91: A | I91: 30 | J91: - | M91: 0445 | N91: 34078-20445 - | O91: 5 | P91: Vantagem Temporaria Incorpor. L/15787/05 | Q91: - | R91: 0 | S91: 0 | T91: 7.5 | U91: 7.5 | V91: 7.5 | W91: 7.5 | X91: 7.5 | Y91: 0 | AB91: 0 | AD91: 0 | AG91: 0
A92: SEE134078-2 | B92: SEE | C92: 1 | D92: 34078-2 | E92: 34078-2- | F92: ASB | G92: II | H92: A | I92: 30 | J92: - | M92: 5527 | N92: 34078-25527- | O92: 6 | P92: Anulacao De Vencimentos Proporcionais | Q92: 0.1333333333 | R92: -40 | S92: -68.4 | T92: -68.4 | U92: -71.82 | V92: -75.412 | W92: -112.3333333 | X92: -123.6665333 | Y92: =-SUM(Y93:Y95)*$Q$92 -> -109.4373333 | Z92: 0 | AA92: 0 | AB92: -114.9092 | AC92: 0 | AD92: -120.65466 | AE92: 0 | AF92: 0 | AG92: -184.3333333
A93: SEE134078-2 | B93: SEE | C93: 1 | D93: 34078-2 | E93: 34078-2- | F93: ASB | G93: II | H93: A | I93: 30 | J93: - | M93: 711 | N93: 34078-2711- | O93: 8 | P93: Subsidio | Q93: - | R93: 0 | S93: 0 | T93: 0 | U93: 0 | V93: 0 | W93: 0 | X93: 0 | Y93: 820.78 | AB93: =Y93+Y93*5% -> 861.819 | AD93: =AB93+AB93*5% -> 904.90995 | AG93: 0
A94: SEE134078-2 | B94: SEE | C94: 1 | D94: 34078-2 | E94: 34078-2- | F94: ASB | G94: II | H94: A | I94: 30 | J94: - | M94: 910 | N94: 34078-2910- | O94: 9 | P94: Provento | Q94: - | R94: 0 | S94: 0 | T94: 0 | U94: 0 | V94: 0 | W94: 0 | X94: 0 | Y94: 0 | AB94: 0 | AD94: 0 | AG94: 1192.5
A95: SEE134078-2 | B95: SEE | C95: 1 | D95: 34078-2 | E95: 34078-2- | F95: ASB | G95: II | H95: A | I95: 30 | J95: - | M95: 964 | N95: 34078-2964- | O95: 10 | P95: Parcela Incorporável | R95: 0 | S95: 0 | T95: 0 | U95: 0 | V95: 0 | W95: 0 | X95: 0 | Y95: 0 | AB95: 0 | AD95: 0 | AG95: 190
A96: SEE134216-5 | B96: SEE | C96: 1 | D96: 34216-5 | E96: 34216-5 | N96: 34216-5 | R96: 438.162 | S96: 564.3 | T96: 571.8 | U96: 600.015 | V96: 629.649 | W96: 849.999 | X96: 935.0039 | Y96: 1208.27 | AB96: 1268.6835 | AD96: 1332.117675 | AG96: 1757.2
A97: SEE134216-5 | B97: SEE | C97: 1 | D97: 34216-5 | E97: 34216-51 | F97: PEB | G97: I | H97: - | I97: - | J97: 1 | K97: - | M97: 0010 | N97: 34216-50010 1 | O97: 1 | P97: Provento Basico | Q97: 100 | R97: 238.28 | S97: 342 | T97: 342 | U97: 359.1 | V97: 377.06 | W97: 377.06 | X97: 414.766 | Y97: 0 | AB97: 0 | AD97: 0 | AG97: 0
A98: SEE134216-5 | B98: SEE | C98: 1 | D98: 34216-5 | E98: 34216-51 | F98: PEB | G98: I | H98: - | I98: - | J98: 1 | K98: - | M98: 0041 | N98: 34216-50041 1 | O98: 2 | P98: Quinquenio Administrativo | Q98: 20 | R98: 47.656 | S98: 68.4 | T98: 68.4 | U98: 71.82 | V98: 75.412 | W98: 75.412 | X98: 82.9532 | Y98: 0 | AB98: 0 | AD98: 0 | AG98: 0
A99: SEE134216-5 | B99: SEE | C99: 1 | D99: 34216-5 | E99: 34216-51 | F99: PEB | G99: I | H99: - | I99: - | J99: 1 | K99: - | M99: 42 | N99: 34216-5421 | O99: 3 | P99: Quinquenio MG | Q99: 30 | R99: 71.484 | S99: 102.6 | T99: 102.6 | U99: 107.73 | V99: 113.118 | W99: 113.118 | X99: 124.4298 | Y99: 0 | AB99: 0 | AD99: 0 | AG99: 0
A100: SEE134216-5 | B100: SEE | C100: 1 | D100: 34216-5 | E100: 34216-51 | F100: PEB | G100: I | H100: - | I100: - | J100: 1 | K100: - | M100: 44 | N100: 34216-5441 | O100: 4 | P100: Adicional Trintenario/Remuneracao | Q100: 10 | R100: 35.742 | S100: 51.3 | T100: 51.3 | U100: 53.865 | V100: 56.559 | W100: 56.559 | X100: 62.2149 | Y100: 0 | AB100: 0 | AD100: 0 | AG100: 0
A101: SEE134216-5 | B101: SEE | C101: 1 | D101: 34216-5 | E101: 34216-51 | F101: PEB | G101: I | H101: - | I101: - | J101: 1 | K101: - | M101: 164 | N101: 34216-51641 | O101: 5 | P101: Abono Salarial | Q101: - | R101: 45 | S101: 0 | T101: 0 | U101: 0 | V101: 0 | W101: 0 | X101: 0 | Y101: 0 | AB101: 0 | AD101: 0 | AG101: 0
A102: SEE134216-5 | B102: SEE | C102: 1 | D102: 34216-5 | E102: 34216-51 | F102: PEB | G102: I | H102: - | I102: - | J102: 1 | K102: - | M102: 445 | N102: 34216-54451 | O102: 6 | P102: VTI | Q102: - | R102: 0 | S102: 0 | T102: 7.5 | U102: 7.5 | V102: 7.5 | W102: 7.5 | X102: 7.5 | Y102: 0 | AB102: 0 | AD102: 0 | AG102: 0
A103: SEE134216-5 | B103: SEE | C103: 1 | D103: 34216-5 | E103: 34216-51 | F103: PEB | G103: I | H103: - | I103: - | J103: 1 | K103: - | M103: 540 | N103: 34216-55401 | O103: 7 | P103: Pcrm - Parcela De Compl. Remun. Magisterio | Q103: - | R103: 0 | S103: 0 | T103: 0 | U103: 0 | V103: 0 | W103: 220.35 | X103: 243.14 | Y103: 0 | AB103: 0 | AD103: 0 | AG103: 0
A104: SEE134216-5 | B104: SEE | C104: 1 | D104: 34216-5 | E104: 34216-51 | F104: PEB | G104: I | H104: - | I104: - | J104: 1 | K104: - | M104: 711 | N104: 34216-57111 | O104: 8 | P104: Subsidio | Q104: 0 | R104: 0 | S104: 0 | T104: 0 | U104: 0 | V104: 0 | W104: 0 | X104: 0 | Y104: 1208.27 | AB104: 1268.6835 | AD104: 1332.117675 | AG104: 0
A105: SEE134216-5 | B105: SEE | C105: 1 | D105: 34216-5 | E105: 34216-51 | F105: PEB | G105: I | H105: - | I105: - | J105: 1 | K105: - | M105: 910 | N105: 34216-59101 | O105: 9 | P105: Provento | Q105: 0 | R105: 0 | S105: 0 | T105: 0 | U105: 0 | V105: 0 | W105: 0 | X105: 0 | Y105: 0 | AB105: 0 | AD105: 0 | AG105: 1567.2
A106: SEE134216-5 | B106: SEE | C106: 1 | D106: 34216-5 | E106: 34216-51 | F106: PEB | G106: I | H106: - | I106: - | J106: 1 | K106: - | M106: 964 | N106: 34216-59641 | O106: 10 | P106: Parcela Incorporável | Q106: 0 | R106: 0 | S106: 0 | T106: 0 | U106: 0 | V106: 0 | W106: 0 | X106: 0 | Y106: 0 | AB106: 0 | AD106: 0 | AG106: 190
A107: SEE134216-5 | B107: SEE | C107: 1 | D107: 34216-5 | E107: 34216-51 | F107: PEB | G107: I | H107: - | I107: - | J107: 1 | K107: - | N107: 34216-51 | O107: 11 | Q107: 0 | R107: 0 | S107: 0 | T107: 0 | U107: 0 | V107: 0 | W107: 0 | X107: 0 | Y107: 0 | AB107: 0 | AD107: 0 | AG107: 0
A108: SEE134216-5 | B108: SEE | C108: 1 | D108: 34216-5 | E108: 34216-51 | F108: PEB | G108: I | H108: - | I108: - | J108: 1 | K108: - | N108: 34216-51 | O108: 12 | Q108: 0 | R108: 0 | S108: 0 | T108: 0 | U108: 0 | V108: 0 | W108: 0 | X108: 0 | Y108: 0 | AB108: 0 | AD108: 0 | AG108: 0
A109: SEE134432-0 | B109: SEE | C109: 1 | D109: 34432-0 | E109: 34432-0 | N109: 34432-0 | R109: 496.1236 | S109: 530.0532 | T109: 537.5532 | U109: 563.60736 | V109: 590.964228 | W109: 849.9989394 | X109: 935.0008333 | Y109: 1248.14 | AB109: 1310.547 | AD109: 1376.07435 | AG109: 1871.87
A110: SEE134432-0 | B110: SEE | C110: 1 | D110: 34432-0 | E110: 34432-01 | F110: PEB | G110: II | H110: C | I110: 24 | J110: 1 | K110: - | M110: 0010 | N110: 34432-00010 1 | O110: 1 | P110: Provento Basico | Q110: 100 | R110: 288.73 | S110: 394.76 | T110: 394.76 | U110: 414.498 | V110: 435.2229 | W110: 456.984045 | X110: 502.6824495 | Y110: 0 | AB110: 0 | AD110: 0 | AG110: 0
A111: SEE134432-0 | B111: SEE | C111: 1 | D111: 34432-0 | E111: 34432-01 | F111: PEB | G111: II | H111: C | I111: 24 | J111: 1 | K111: - | M111: 42 | N111: 34432-0421 | O111: 2 | P111: Quinquenio MG | Q111: 10 | R111: 34.6476 | S111: 47.3712 | T111: 47.3712 | U111: 49.73976 | V111: 52.226748 | W111: 54.8380854 | X111: 60.32189394 | Y111: 0 | AB111: 0 | AD111: 0 | AG111: 0
A112: SEE134432-0 | B112: SEE | C112: 1 | D112: 34432-0 | E112: 34432-01 | F112: PEB | G112: II | H112: C | I112: 24 | J112: 1 | K112: - | M112: 144 | N112: 34432-01441 | O112: 3 | P112: Grat.Incentivo A Docencia - Bienio | Q112: 20 | R112: 57.746 | S112: 78.952 | T112: 78.952 | U112: 82.8996 | V112: 87.04458 | W112: 91.396809 | X112: 100.5364899 | Y112: 0 | AB112: 0 | AD112: 0 | AG112: 0
A113: SEE134432-0 | B113: SEE | C113: 1 | D113: 34432-0 | E113: 34432-01 | F113: PEB | G113: II | H113: C | I113: 24 | J113: 1 | K113: - | M113: 164 | N113: 34432-01641 | O113: 4 | P113: Abono Salarial | Q113: - | R113: 45 | S113: 0 | T113: 0 | U113: 0 | V113: 0 | W113: 0 | X113: 0 | Y113: 0 | AB113: 0 | AD113: 0 | AG113: 0
A114: SEE134432-0 | B114: SEE | C114: 1 | D114: 34432-0 | E114: 34432-01 | F114: PEB | G114: II | H114: C | I114: 24 | J114: 1 | K114: - | M114: 0020 | N114: 34432-00020 1 | O114: 5 | P114: Parcela Remuneratoria Complementar - Prc | Q114: - | R114: 70 | S114: 0 | T114: 0 | U114: 0 | V114: 0 | W114: 0 | X114: 0 | Y114: 0 | AB114: 0 | AD114: 0 | AG114: 0
A115: SEE134432-0 | B115: SEE | C115: 1 | D115: 34432-0 | E115: 34432-01 | F115: PEB | G115: II | H115: C | I115: 24 | J115: 1 | K115: - | M115: 445 | N115: 34432-04451 | O115: 6 | P115: VTI | Q115: - | R115: 0 | S115: 8.97 | T115: 16.47 | U115: 16.47 | V115: 16.47 | W115: 16.47 | X115: 16.47 | Y115: 0 | AB115: 0 | AD115: 0 | AG115: 0
A116: SEE134432-0 | B116: SEE | C116: 1 | D116: 34432-0 | E116: 34432-01 | F116: PEB | G116: II | H116: C | I116: 24 | J116: 1 | K116: - | M116: 540 | N116: 34432-05401 | O116: 7 | P116: Parcela De Compl.Remun.Magisterio Pcrm | Q116: - | R116: - | S116: - | T116: - | U116: - | V116: - | W116: 230.31 | X116: 254.99 | Y116: 0 | AB116: 0 | AD116: 0 | AG116: 0
A117: SEE134432-0 | B117: SEE | C117: 1 | D117: 34432-0 | E117: 34432-01 | F117: PEB | G117: T2 | H117: A | I117: 24 | J117: 1 | K117: - | M117: 711 | N117: 34432-07111 | O117: 8 | P117: Subsidio | Q117: 0 | R117: 0 | S117: 0 | T117: 0 | U117: 0 | V117: 0 | W117: 0 | X117: 0 | Y117: 1188 | AB117: =Y117+Y117*5% -> 1247.4 | AD117: =AB117+AB117*5% -> 1309.77 | AG117: 0
A118: SEE134432-0 | B118: SEE | C118: 1 | D118: 34432-0 | E118: 34432-01 | F118: PEB | G118: I | H118: A | I118: 24 | J118: 1 | K118: - | M118: 911 | N118: 34432-09111 | O118: 9 | P118: Vencimento | Q118: 0 | R118: 0 | S118: 0 | T118: 0 | U118: 0 | V118: 0 | W118: 0 | X118: 0 | Y118: 0 | AB118: 0 | AD118: 0 | AG118: 1455.3
A119: SEE134432-0 | B119: SEE | C119: 1 | D119: 34432-0 | E119: 34432-01 | F119: PEB | G119: I | H119: A | I119: 24 | J119: 1 | K119: - | M119: 964 | N119: 34432-09641 | O119: 10 | P119: Parcela Incorporável | Q119: 0 | R119: 0 | S119: 0 | T119: 0 | U119: 0 | V119: 0 | W119: 0 | X119: 0 | Y119: 0 | AB119: 0 | AD119: 0 | AG119: 190
A120: SEE134793-0 | B120: SEE | C120: 1 | D120: 34793-0 | E120: 34793-0 | N120: 34793-0 | R120: 390.731776 | S120: 430.679808 | T120: 435.479808 | U120: 457.0137984 | V120: 479.6244883 | W120: 544.003263 | X120: 598.4045893 | Y120: 860.2304 | AB120: 903.24192 | AD120: 948.404016 | AG120: 1280.7616
A121: SEE134793-0 | B121: SEE | C121: 1 | D121: 34793-0 | E121: 34793-01 | F121: PEB | G121: II | H121: - | I121: - | J121: 1 | K121: - | M121: 0010 | N121: 34793-00010 1 | O121: 1 | P121: Provento Basico | Q121: 100 | R121: 317.64 | S121: 431.37 | T121: 431.37 | U121: 452.9385 | V121: 475.585425 | W121: 475.585425 | X121: 523.1439675 | Y121: 0 | AB121: 0 | AD121: 0 | AG121: 0
A122: SEE134793-0 | B122: SEE | C122: 1 | D122: 34793-0 | E122: 34793-01 | F122: PEB | G122: II | H122: - | I122: - | J122: 1 | K122: - | M122: 0042 | N122: 34793-00042 1 | O122: 2 | P122: Quinquenio Magisterio | Q122: 30 | R122: 114.3504 | S122: 155.2932 | T122: 155.2932 | U122: 163.05786 | V122: 171.210753 | W122: 171.210753 | X122: 188.3318283 | Y122: 0 | AB122: 0 | AD122: 0 | AG122: 0
A123: SEE134793-0 | B123: SEE | C123: 1 | D123: 34793-0 | E123: 34793-01 | F123: PEB | G123: II | H123: - | I123: - | J123: 1 | K123: - | M123: 0144 | N123: 34793-00144 1 | O123: 3 | P123: Gratificacao Incent. A Docencia - Bienio | Q123: 20 | R123: 63.528 | S123: 86.274 | T123: 86.274 | U123: 90.5877 | V123: 95.117085 | W123: 95.117085 | X123: 104.6287935 | Y123: 0 | AB123: 0 | AD123: 0 | AG123: 0
A124: SEE134793-0 | B124: SEE | C124: 1 | D124: 34793-0 | E124: 34793-01 | F124: PEB | G124: II | H124: - | I124: - | J124: 1 | K124: - | M124: 164 | N124: 34793-01641 | O124: 4 | P124: Abono Salarial | Q124: - | R124: 45 | S124: 0 | T124: 0 | U124: 0 | V124: 0 | W124: 0 | X124: 0 | Y124: 0 | AB124: 0 | AD124: 0 | AG124: 0
A125: SEE134793-0 | B125: SEE | C125: 1 | D125: 34793-0 | E125: 34793-01 | F125: PEB | G125: II | H125: - | I125: - | J125: 1 | K125: - | M125: 0020 | N125: 34793-00020 1 | O125: 5 | P125: Parcela Remuneratoria Complementar - Prc | Q125: - | R125: 70 | S125: 0 | T125: 0 | U125: 0 | V125: 0 | W125: 0 | X125: 0 | Y125: 0 | AB125: 0 | AD125: - | AG125: 0
A126: SEE134793-0 | B126: SEE | C126: 1 | D126: 34793-0 | E126: 34793-01 | F126: PEB | G126: II | H126: - | I126: - | J126: 1 | K126: - | M126: 0445 | N126: 34793-00445 1 | O126: 6 | P126: Vantagem Temporaria Incorpor. L/15787/05 | Q126: - | R126: - | S126: 0 | T126: 7.5 | U126: 7.5 | V126: 7.5 | W126: 7.5 | X126: 7.5 | Y126: 0 | AB126: 0 | AD126: - | AG126: 0
A127: SEE134793-0 | B127: SEE | C127: 1 | D127: 34793-0 | E127: 34793-01 | F127: PEB | G127: II | H127: - | I127: - | J127: 1 | K127: - | M127: 5527 | N127: 34793-05527 1 | O127: 7 | P127: Ajuste Aposentadoria Proporcional | Q127: 0.36 | R127: -219.786624 | S127: -242.257392 | T127: -244.957392 | U127: -257.0702616 | V127: -269.7887747 | W127: -306 | X127: -336.6 | Y127: -483.8796 | AB127: -508.07358 | AD127: -533.477259 | AG127: -720.4284
A128: SEE134793-0 | B128: SEE | C128: 1 | D128: 34793-0 | E128: 34793-01 | F128: PEB | G128: II | H128: - | I128: - | J128: 1 | K128: - | M128: 540 | N128: 34793-05401 | O128: 8 | P128: Parcela De Compl.Remun.Magisterio Pcrm | Q128: 0 | R128: 0 | S128: 0 | T128: 0 | U128: 0 | V128: 0 | W128: 100.59 | X128: 111.4 | Y128: 0 | AB128: 0 | AD128: 0 | AG128: 0
A129: SEE134793-0 | B129: SEE | C129: 1 | D129: 34793-0 | E129: 34793-01 | F129: PEB | G129: II | H129: - | I129: - | J129: 1 | K129: - | M129: 711 | N129: 34793-07111 | O129: 9 | P129: Subsidio | Q129: 0 | R129: 0 | S129: 0 | T129: 0 | U129: 0 | V129: 0 | W129: 0 | X129: 0 | Y129: 1344.11 | AB129: 1411.3155 | AD129: 1481.881275 | AG129: 0
A130: SEE134793-0 | B130: SEE | C130: 1 | D130: 34793-0 | E130: 34793-01 | F130: PEB | G130: II | H130: - | I130: - | J130: 1 | K130: - | M130: 910 | N130: 34793-09101 | O130: 10 | P130: Provento | Q130: 0 | R130: 0 | S130: 0 | T130: 0 | U130: 0 | V130: 0 | W130: 0 | X130: 0 | Y130: 0 | AB130: 0 | AD130: 0 | AG130: 1811.19
A131: SEE134793-0 | B131: SEE | C131: 1 | D131: 34793-0 | E131: 34793-01 | F131: PEB | G131: II | H131: - | I131: - | J131: 1 | K131: - | M131: 964 | N131: 34793-09641 | O131: 11 | P131: Parcela Incorporável | Q131: 0 | R131: 0 | S131: 0 | T131: 0 | U131: 0 | V131: 0 | W131: 0 | X131: 0 | Y131: 0 | AB131: 0 | AD131: 0 | AG131: 190
A132: SEE134909-7 | B132: SEE | C132: 1 | D132: 34909-7 | E132: 34909-7 | N132: 34909-7 | R132: 370.036 | S132: 392.244 | T132: 399.744 | U132: 419.1582 | V132: 439.54311 | W132: 850.00311 | X132: 935.001421 | Y132: 1178.8 | AB132: 1237.74 | AD132: 1299.627 | AG132: 1645.3
A133: SEE134909-7 | B133: SEE | C133: 1 | D133: 34909-7 | E133: 34909-71 | F133: PEB | G133: I | H133: C | I133: 24 | J133: 1 | K133: - | M133: 0010 | N133: =CONCATENATE(D133,M133,J133) -> 34909-70010 1 | O133: 1 | P133: Provento Basico | Q133: 100 | R133: 212.53 | S133: 323.57 | T133: 323.57 | U133: 339.7485 | V133: 356.735925 | W133: 356.735925 | X133: 392.4095175 | Y133: 0 | AB133: 0 | AD133: 0 | AG133: 0
A134: SEE134909-7 | B134: SEE | C134: 1 | D134: 34909-7 | E134: 34909-71 | F134: PEB | G134: I | H134: C | I134: 24 | J134: 1 | K134: - | M134: 0144 | N134: 34909-70144 1 | O134: 2 | P134: Gratificacao Incent. A Docencia - Bienio | Q134: 20 | R134: 42.506 | S134: 64.714 | T134: 64.714 | U134: 67.9497 | V134: 71.347185 | W134: 71.347185 | X134: 78.4819035 | Y134: 0 | AB134: 0 | AD134: 0 | AG134: 0
A135: SEE134909-7 | B135: SEE | C135: 1 | D135: 34909-7 | E135: 34909-71 | F135: PEB | G135: I | H135: C | I135: 24 | J135: 1 | K135: - | M135: 164 | N135: 34909-71641 | O135: 3 | P135: Abono Salarial | Q135: - | R135: 45 | S135: 0 | T135: 0 | U135: 0 | V135: 0 | W135: 0 | X135: 0 | Y135: 0 | AB135: 0 | AD135: 0 | AG135: 0
A136: SEE134909-7 | B136: SEE | C136: 1 | D136: 34909-7 | E136: 34909-71 | F136: PEB | G136: I | H136: C | I136: 24 | J136: 1 | K136: - | M136: 0020 | N136: 34909-70020 1 | O136: 4 | P136: Parcela Remuneratoria Complementar - Prc | Q136: - | R136: 70 | S136: 0 | T136: 0 | U136: 0 | V136: 0 | W136: 0 | X136: 0 | Y136: 0 | AB136: 0 | AD136: 0 | AG136: 0
A137: SEE134909-7 | B137: SEE | C137: 1 | D137: 34909-7 | E137: 34909-71 | F137: PEB | G137: I | H137: C | I137: 24 | J137: 1 | K137: - | M137: 0445 | N137: 34909-70445 1 | O137: 5 | P137: Vantagem Temporaria Incorpor. L/15787/05 | Q137: - | R137: 0 | S137: 3.96 | T137: 11.46 | U137: 11.46 | V137: 11.46 | W137: 11.46 | X137: 11.46 | Y137: 0 | AB137: 0 | AD137: 0 | AG137: 0
A138: SEE134909-7 | B138: SEE | C138: 1 | D138: 34909-7 | E138: 34909-71 | F138: PEB | G138: I | H138: C | I138: 24 | J138: 1 | K138: - | M138: 540 | N138: 34909-75401 | O138: 6 | P138: Parcela De Compl.Remun.Magisterio Pcrm | Q138: - | R138: 0 | S138: 0 | T138: 0 | U138: 0 | V138: 0 | W138: 410.46 | X138: 452.65 | Y138: 0 | AB138: 0 | AD138: 0 | AG138: 0
A139: SEE134909-7 | B139: SEE | C139: 1 | D139: 34909-7 | E139: 34909-71 | F139: PEB | G139: I | H139: C | I139: 24 | J139: 1 | K139: - | M139: 711 | N139: 34909-77111 | O139: 7 | P139: Subsidio | Q139: - | R139: 0 | S139: 0 | T139: 0 | U139: 0 | V139: 0 | W139: 0 | X139: 0 | Y139: 1178.8 | AB139: 1237.74 | AD139: 1299.627 | AG139: 0
A140: SEE134909-7 | B140: SEE | C140: 1 | D140: 34909-7 | E140: 34909-71 | F140: PEB | G140: I | H140: C | I140: 24 | J140: 1 | K140: - | M140: 910 | N140: 34909-79101 | O140: 8 | P140: Provento | Q140: - | R140: 0 | S140: 0 | T140: 0 | U140: 0 | V140: 0 | W140: 0 | X140: 0 | Y140: 0 | AB140: 0 | AD140: 0 | AG140: 1455.3
A141: SEE134909-7 | B141: SEE | C141: 1 | D141: 34909-7 | E141: 34909-71 | F141: PEB | G141: I | H141: C | I141: 24 | J141: 1 | K141: - | M141: 964 | N141: 34909-79641 | O141: 9 | P141: Parcela Incorporável | Q141: - | R141: 0 | S141: 0 | T141: 0 | U141: 0 | V141: 0 | W141: 0 | X141: 0 | Y141: 0 | AB141: 0 | AD141: 0 | AG141: 190
A142: SEE116396-1 | B142: SEE | C142: 1 | D142: 16396-1 | E142: 16396-1 | N142: 16396-1 | R142: 327.53 | S142: 327.53 | T142: 335.03 | U142: 351.2085 | V142: 368.195925 | W142: 849.995925 | X142: 934.9995175 | Y142: 1178.8 | AB142: 1237.74 | AD142: 1299.627 | AG142: 1645.3
A143: SEE116396-1 | B143: SEE | C143: 1 | D143: 16396-1 | E143: 16396-11 | F143: PEB | G143: I | H143: C | I143: 24 | J143: 1 | K143: - | M143: 0010 | N143: =CONCATENATE(D143,M143) -> 16396-10010 | O143: 1 | P143: Provento Basico | Q143: 100 | R143: 212.53 | S143: 323.57 | T143: 323.57 | U143: 339.7485 | V143: 356.735925 | W143: 356.735925 | X143: 392.4095175 | Y143: 0 | AB143: 0 | AD143: 0 | AG143: 0
A144: SEE116396-1 | B144: SEE | C144: 1 | D144: 16396-1 | E144: 16396-11 | F144: PEB | G144: I | H144: C | I144: 24 | J144: 1 | K144: - | M144: 0164 | N144: =CONCATENATE(D144,M144) -> 16396-10164 | O144: 2 | P144: Abono Salarial | Q144: - | R144: 45 | S144: 0 | T144: 0 | U144: 0 | V144: 0 | W144: 0 | X144: 0 | Y144: 0 | AB144: 0 | AD144: 0 | AG144: 0
A145: SEE116396-1 | B145: SEE | C145: 1 | D145: 16396-1 | E145: =CONCATENATE(D145,J145) -> 16396-11 | F145: PEB | G145: I | H145: C | I145: 24 | J145: 1 | K145: - | M145: 0020 | N145: =CONCATENATE(D145,M145) -> 16396-10020 | O145: 3 | P145: Parcela Remuneratoria Complementar - Prc | Q145: - | R145: 70 | S145: 0 | T145: 0 | U145: 0 | V145: 0 | W145: 0 | X145: 0 | Y145: 0 | AB145: 0 | AD145: 0 | AG145: 0
A146: SEE116396-1 | B146: SEE | C146: 1 | D146: 16396-1 | E146: 16396-11 | F146: PEB | G146: I | H146: C | I146: 24 | J146: 1 | K146: - | M146: 0445 | N146: =CONCATENATE(D146,M146) -> 16396-10445 | O146: 4 | P146: Vantagem Temporaria Incorpor. L 15787/05 | Q146: - | R146: 0 | S146: 3.96 | T146: 11.46 | U146: 11.46 | V146: 11.46 | W146: 11.46 | X146: 11.46 | Y146: 0 | AB146: 0 | AD146: 0 | AG146: 0
A147: SEE116396-1 | B147: SEE | C147: 1 | D147: 16396-1 | E147: 16396-11 | F147: PEB | G147: I | H147: C | I147: 24 | J147: 1 | K147: - | M147: 540 | O147: 5 | P147: Pcrm - Parcela De Compl. Remun. Magisterio | Q147: 0 | R147: 0 | S147: 0 | T147: 0 | U147: 0 | V147: 0 | W147: 481.8 | X147: 531.13 | Y147: 0 | AB147: 0 | AD147: 0 | AG147: 0
A148: SEE116396-1 | B148: SEE | C148: 1 | D148: 16396-1 | E148: 16396-11 | F148: PEB | G148: I | H148: C | I148: 24 | J148: 1 | K148: - | M148: 711 | O148: 6 | P148: Subsidio | Q148: 0 | R148: 0 | S148: 0 | T148: 0 | U148: 0 | V148: 0 | W148: 0 | X148: 0 | Y148: 1178.8 | AB148: 1237.74 | AD148: 1299.627 | AG148: 0
A149: SEE116396-1 | B149: SEE | C149: 1 | D149: 16396-1 | E149: 16396-11 | F149: PEB | G149: I | H149: C | I149: 24 | J149: 1 | K149: - | M149: 910 | O149: 7 | P149: Provento | Q149: 0 | R149: 0 | S149: 0 | T149: 0 | U149: 0 | V149: 0 | W149: 0 | X149: 0 | Y149: 0 | AB149: 0 | AD149: 0 | AG149: 1455.3
A150: SEE116396-1 | B150: SEE | C150: 1 | D150: 16396-1 | E150: 16396-11 | F150: PEB | G150: I | H150: C | I150: 24 | J150: 1 | K150: - | M150: 964 | O150: 8 | P150: Parcela Incorporável | Q150: 0 | R150: 0 | S150: 0 | T150: 0 | U150: 0 | V150: 0 | W150: 0 | X150: 0 | Y150: 0 | AB150: 0 | AD150: 0 | AG150: 190
A151: SEE116396-1 | B151: SEE | C151: 1 | D151: 16396-1 | E151: 16396-11 | F151: PEB | G151: I | H151: C | I151: 24 | J151: 1 | K151: - | O151: 9 | Q151: 0 | R151: 0 | S151: 0 | T151: 0 | U151: 0 | V151: 0 | W151: 0 | X151: 0 | Y151: 0 | AB151: 0 | AD151: 0 | AG151: 0
A152: SEE116396-1 | B152: SEE | C152: 1 | D152: 16396-1 | E152: 16396-11 | F152: PEB | G152: I | H152: C | I152: 24 | J152: 1 | K152: - | O152: 10 | Q152: 0 | R152: 0 | S152: 0 | T152: 0 | U152: 0 | V152: 0 | W152: 0 | X152: 0 | Y152: 0 | AB152: 0 | AD152: 0 | AG152: 0
A153: SEE116396-1 | B153: SEE | C153: 1 | D153: 16396-1 | E153: 16396-11 | F153: PEB | G153: I | H153: C | I153: 24 | J153: 1 | K153: - | O153: 11 | Q153: 0 | R153: 0 | S153: 0 | T153: 0 | U153: 0 | V153: 0 | W153: 0 | X153: 0 | Y153: 0 | AB153: 0 | AD153: 0 | AG153: 0
A154: SEE116396-1 | B154: SEE | C154: 1 | D154: 16396-1 | E154: 16396-11 | F154: PEB | G154: I | H154: C | I154: 24 | J154: 1 | K154: - | O154: 12 | Q154: 0 | R154: 0 | S154: 0 | T154: 0 | U154: 0 | V154: 0 | W154: 0 | X154: 0 | Y154: 0 | AB154: 0 | AD154: 0 | AG154: 0
A155: SEE116469-0 | B155: SEE | C155: 1 | D155: 16469-0 | E155: 16469-0 | R155: 552.63 | S155: 553.83 | T155: 561.33 | U155: 589.0215 | V155: 618.097575 | W155: 849.997575 | X155: 934.9973325 | Y155: 1756.92 | AB155: 1844.766 | AD155: 1937.0043 | AG155: 2127
A156: SEE116469-0 | B156: SEE | C156: 1 | D156: 16469-0 | E156: 16469-01 | F156: PEB | G156: IV | H156: A | I156: 24 | J156: 1 | K156: - | M156: 0010 | O156: 1 | P156: Provento Basico | Q156: 100 | R156: 437.63 | S156: 553.83 | T156: 553.83 | U156: 581.5215 | V156: 610.597575 | W156: 610.597575 | X156: 671.6573325 | Y156: 0 | AB156: 0 | AD156: 0 | AG156: 0
A157: SEE116469-0 | B157: SEE | C157: 1 | D157: 16469-0 | E157: 16469-01 | F157: PEB | G157: IV | H157: A | I157: 24 | J157: 1 | K157: - | M157: 0164 | O157: 2 | P157: Abono Salarial | Q157: - | R157: 45 | S157: 0 | T157: 0 | U157: 0 | V157: 0 | W157: 0 | X157: 0 | Y157: 0 | AB157: 0 | AD157: 0 | AG157: 0
A158: SEE116469-0 | B158: SEE | C158: 1 | D158: 16469-0 | E158: 16469-01 | F158: PEB | G158: IV | H158: A | I158: 24 | J158: 1 | K158: - | M158: 0020 | O158: 3 | P158: Parcela Remuneratoria Complementar - Prc | Q158: - | R158: 70 | S158: 0 | T158: 0 | U158: 0 | V158: 0 | W158: 0 | X158: 0 | Y158: 0 | AB158: 0 | AD158: 0 | AG158: 0
A159: SEE116469-0 | B159: SEE | C159: 1 | D159: 16469-0 | E159: 16469-01 | F159: PEB | G159: IV | H159: A | I159: 24 | J159: 1 | K159: - | M159: 0445 | O159: 4 | P159: Vantagem Temporaria Incorpor. L 15787/05 | Q159: - | R159: 0 | S159: 0 | T159: 7.5 | U159: 7.5 | V159: 7.5 | W159: 7.5 | X159: 7.5 | Y159: 0 | AB159: 0 | AD159: 0 | AG159: 0
A160: SEE116469-0 | B160: SEE | C160: 1 | D160: 16469-0 | E160: 16469-01 | F160: PEB | G160: IV | H160: A | I160: 24 | J160: 1 | K160: - | M160: 540 | O160: 5 | P160: Pcrm - Parcela De Compl. Remun. Magisterio | Q160: - | R160: 0 | S160: 0 | T160: 0 | U160: 0 | V160: 0 | W160: 231.9 | X160: 255.84 | Y160: 0 | AB160: 0 | AD160: 0 | AG160: 0
A161: SEE116469-0 | B161: SEE | C161: 1 | D161: 16469-0 | E161: 16469-01 | F161: PEB | G161: IV | H161: A | I161: 24 | J161: 1 | K161: - | M161: 711 | O161: 6 | P161: Subsidio | Q161: - | R161: 0 | S161: 0 | T161: 0 | U161: 0 | V161: 0 | W161: 0 | X161: 0 | Y161: 1756.92 | AB161: 1844.766 | AD161: 1937.0043 | AG161: 0
A162: SEE116469-0 | B162: SEE | C162: 1 | D162: 16469-0 | E162: 16469-01 | F162: PEB | G162: IV | H162: A | I162: 24 | J162: 1 | K162: - | M162: 910 | O162: 7 | P162: Provento | R162: 0 | S162: 0 | T162: 0 | U162: 0 | V162: 0 | W162: 0 | X162: 0 | Y162: 0 | AB162: 0 | AD162: 0 | AG162: 1937
A163: SEE116469-0 | B163: SEE | C163: 1 | D163: 16469-0 | E163: 16469-01 | F163: PEB | G163: IV | H163: A | I163: 24 | J163: 1 | K163: - | M163: 964 | O163: 8 | P163: Parcela Incorporável | R163: 0 | S163: 0 | T163: 0 | U163: 0 | V163: 0 | W163: 0 | X163: 0 | Y163: 0 | AB163: 0 | AD163: 0 | AG163: 190
A164: SEE116611-1 | B164: SEE | C164: 1 | D164: 16611-1 | E164: 16611-1 | R164: 480.3208 | S164: 560.1468 | T164: 567.6468 | U164: 595.44366 | V164: 624.642843 | W164: 850.002843 | X164: 935.0020473 | Y164: 1236.28 | AB164: 1298.09 | AD164: 1389.725 | AG164: 1645.3
A165: SEE116611-1 | B165: SEE | C165: 1 | D165: 16611-1 | E165: 16611-11 | F165: PEB | G165: I | H165: C | I165: 24 | J165: 1 | K165: - | M165: 1 | O165: 1 | P165: Vencimento Basico | Q165: 100 | R165: 212.53 | S165: 323.57 | T165: 323.57 | U165: 339.7485 | V165: 356.735925 | W165: 356.735925 | X165: 392.4095175 | Y165: - | AB165: - | AD165: - | AG165: -
A166: SEE116611-1 | B166: SEE | C166: 1 | D166: 16611-1 | E166: 16611-11 | F166: PEB | G166: I | H166: C | I166: 24 | J166: 1 | K166: - | M166: 297 | O166: 2 | P166: Vencimento Basico Prop EC | Q166: 2hs/11hm | R166: 21.65 | S166: 32.96 | T166: 32.96 | U166: 34.6 | V166: 36.33 | W166: 36.33 | X166: 39.97 | Y166: - | AB166: - | AD166: - | AG166: -
A167: SEE116611-1 | B167: SEE | C167: 1 | D167: 16611-1 | E167: 16611-11 | F167: PEB | G167: I | H167: C | I167: 24 | J167: 1 | K167: - | M167: 144 | O167: 3 | P167: Gratificacao Incent. A Docencia - Bienio | Q167: 20 | R167: 46.836 | S167: 71.306 | T167: 71.306 | U167: 74.8697 | V167: 78.613185 | W167: 78.613185 | X167: 86.4759035 | Y167: - | AB167: - | AD167: - | AG167: -
A168: SEE116611-1 | B168: SEE | C168: 1 | D168: 16611-1 | E168: 16611-11 | F168: PEB | G168: I | H168: C | I168: 24 | J168: 1 | K168: - | M168: 42 | O168: 4 | P168: Quinquenio Magisterio | Q168: 30 | R168: 84.3048 | S168: 128.3508 | T168: 128.3508 | U168: 134.76546 | V168: 141.503733 | W168: 141.503733 | X168: 155.6566263 | Y168: - | AB168: - | AD168: - | AG168: -
A169: SEE116611-1 | B169: SEE | C169: 1 | D169: 16611-1 | E169: 16611-11 | F169: PEB | G169: I | H169: C | I169: 24 | J169: 1 | K169: - | M169: 164 | O169: 5 | P169: Abono Salarial | Q169: - | R169: 45 | S169: - | T169: - | U169: - | V169: - | W169: - | X169: - | Y169: - | AB169: - | AD169: - | AG169: -
A170: SEE116611-1 | B170: SEE | C170: 1 | D170: 16611-1 | E170: 16611-11 | F170: PEB | G170: I | H170: C | I170: 24 | J170: 1 | K170: - | M170: 0020 | O170: 6 | P170: Parcela Remuneratoria Complementar - Prc | Q170: - | R170: 70 | S170: - | T170: - | U170: - | V170: - | W170: - | X170: - | Y170: - | AB170: - | AD170: - | AG170: -
A171: SEE116611-1 | B171: SEE | C171: 1 | D171: 16611-1 | E171: 16611-11 | F171: PEB | G171: I | H171: C | I171: 24 | J171: 1 | K171: - | M171: 0445 | O171: 7 | P171: Vantagem Temporaria Incorpor. L/15787/05 | Q171: - | R171: - | S171: 3.96 | T171: 11.46 | U171: 11.46 | V171: 11.46 | W171: 11.46 | X171: 11.46 | Y171: - | AB171: - | AD171: - | AG171: -
A172: SEE116611-1 | B172: SEE | C172: 1 | D172: 16611-1 | E172: 16611-11 | F172: PEB | G172: I | H172: C | I172: 24 | J172: 1 | K172: - | M172: 540 | O172: 8 | P172: Parcela De Compl.Remun.Magisterio Pcrm | Q172: - | R172: - | S172: - | T172: - | U172: - | V172: - | W172: 225.36 | X172: 249.03 | Y172: - | AB172: - | AD172: - | AG172: -
A173: SEE116611-1 | B173: SEE | C173: 1 | D173: 16611-1 | E173: 16611-11 | F173: PEB | G173: I | H173: C | I173: 24 | J173: 1 | K173: - | M173: 711 | O173: 9 | P173: Subsidio | Q173: - | R173: - | S173: - | T173: - | U173: - | V173: - | W173: - | X173: - | Y173: 1122 | AB173: 1178.1 | AD173: 1237.005 | AG173: -
A174: SEE116611-1 | B174: SEE | C174: 1 | D174: 16611-1 | E174: 16611-11 | F174: PEB | G174: I | H174: C | I174: 24 | J174: 1 | K174: - | M174: 139 | O174: 10 | P174: Exigencia Curricular | Q174: - | R174: - | S174: - | T174: - | U174: - | V174: - | W174: - | X174: - | Y174: 114.28 | AB174: 119.99 | AD174: 152.72 | AG174: -
A175: SEE116611-1 | B175: SEE | C175: 1 | D175: 16611-1 | E175: 16611-11 | F175: PEB | G175: I | H175: C | I175: 24 | J175: 1 | K175: - | M175: 910 | O175: 11 | P175: Vencimento | Q175: - | R175: - | S175: - | T175: - | U175: - | V175: - | W175: - | X175: - | Y175: - | AB175: - | AD175: - | AG175: 1455.3
A176: SEE116611-1 | B176: SEE | C176: 1 | D176: 16611-1 | E176: 16611-11 | F176: PEB | G176: I | H176: C | I176: 24 | J176: 1 | K176: - | M176: 964 | O176: 12 | P176: Parcela Incorporável | Q176: - | R176: - | S176: - | T176: - | U176: - | V176: - | W176: - | X176: - | Y176: - | AB176: - | AD176: - | AG176: 190
A177: SEE116870-0 | B177: SEE | C177: 1 | D177: 16870-0 | E177: 16870-0 | R177: 450 | S177: 450 | T177: 457.5 | U177: 474.164 | V177: 491.6612 | W177: 850.0012 | X177: 934.99532 | Y177: 1208.27 | AB177: 1268.6835 | AD177: 1332.117675 | AG177: 1757.2
A178: SEE116870-0 | B178: SEE | C178: 1 | D178: 16870-0 | E178: 16870-01 | F178: PEB | G178: I | H178: - | I178: - | J178: 1 | M178: 0010 | O178: 1 | P178: Provento Basico | Q178: 100 | R178: 228.99 | S178: 333.28 | T178: 333.28 | U178: 349.944 | V178: 367.4412 | W178: 367.4412 | X178: 404.18532 | Y178: 0 | AB178: 0 | AD178: 0 | AG178: 0
A179: SEE116870-0 | B179: SEE | C179: 1 | D179: 16870-0 | E179: 16870-01 | F179: PEB | G179: I | H179: - | I179: - | J179: 1 | M179: 0164 | O179: 2 | P179: Abono Salarial | Q179: - | R179: 45 | S179: 0 | T179: 0 | U179: 0 | V179: 0 | W179: 0 | X179: 0 | Y179: 0 | AB179: 0 | AD179: 0 | AG179: 0
A180: SEE116870-0 | B180: SEE | C180: 1 | D180: 16870-0 | E180: 16870-01 | F180: PEB | G180: I | H180: - | I180: - | J180: 1 | M180: 0020 | O180: 3 | P180: Parcela Remuneratoria Complementar - Prc | Q180: - | R180: 176.01 | S180: 0 | T180: 0 | U180: 0 | V180: 0 | W180: 0 | X180: 0 | Y180: 0 | AB180: 0 | AD180: 0 | AG180: 0
A181: SEE116870-0 | B181: SEE | C181: 1 | D181: 16870-0 | E181: 16870-01 | F181: PEB | G181: I | H181: - | I181: - | J181: 1 | M181: 0445 | O181: 4 | P181: Vantagem Temporaria Incorpor. L/15787/05 | Q181: - | R181: 0 | S181: 116.72 | T181: 124.22 | U181: 124.22 | V181: 124.22 | W181: 124.22 | X181: 124.22 | Y181: 0 | AB181: 0 | AD181: 0 | AG181: 0
A182: SEE116870-0 | B182: SEE | C182: 1 | D182: 16870-0 | E182: 16870-01 | F182: PEB | G182: I | H182: - | I182: - | J182: 1 | M182: 540 | O182: 5 | P182: Parcela De Compl.Remun.Magisterio Pcrm | Q182: - | R182: 0 | S182: 0 | T182: 0 | U182: 0 | V182: 0 | W182: 358.34 | X182: 406.59 | Y182: 0 | AB182: 0 | AD182: 0 | AG182: 0
A183: SEE116870-0 | B183: SEE | C183: 1 | D183: 16870-0 | E183: 16870-01 | F183: PEB | G183: I | H183: - | I183: - | J183: 1 | M183: 711 | O183: 6 | P183: Subsidio | Q183: - | R183: 0 | S183: 0 | T183: 0 | U183: 0 | V183: 0 | W183: 0 | X183: 0 | Y183: 1208.27 | AB183: 1268.6835 | AD183: 1332.117675 | AG183: 0
A184: SEE116870-0 | B184: SEE | C184: 1 | D184: 16870-0 | E184: 16870-01 | F184: PEB | G184: I | H184: - | I184: - | J184: 1 | M184: 910 | O184: 7 | P184: Provento | Q184: - | R184: 0 | S184: 0 | T184: 0 | U184: 0 | V184: 0 | W184: 0 | X184: 0 | Y184: 0 | AB184: 0 | AD184: 0 | AG184: 1567.2
A185: SEE116870-0 | B185: SEE | C185: 1 | D185: 16870-0 | E185: 16870-01 | F185: PEB | G185: I | H185: - | I185: - | J185: 1 | M185: 964 | O185: 8 | P185: Parcela Incorporável | Q185: - | R185: 0 | S185: 0 | T185: 0 | U185: 0 | V185: 0 | W185: 0 | X185: 0 | Y185: 0 | AB185: 0 | AD185: 0 | AG185: 190
A186: SEE116870-0 | B186: SEE | C186: 1 | D186: 16870-0 | E186: 16870-01 | F186: PEB | G186: I | H186: - | I186: - | J186: 1 | O186: 9 | R186: 0 | S186: 0 | T186: 0 | U186: 0 | V186: 0 | W186: 0 | X186: 0 | Y186: 0 | AB186: 0 | AD186: 0 | AG186: 0
A187: SEE116870-0 | B187: SEE | C187: 1 | D187: 16870-0 | E187: 16870-01 | F187: PEB | G187: I | H187: - | I187: - | J187: 1 | O187: 10 | R187: 0 | S187: 0 | T187: 0 | U187: 0 | V187: 0 | W187: 0 | X187: 0 | Y187: 0 | AB187: 0 | AD187: 0 | AG187: 0
A188: SEE116870-0 | B188: SEE | C188: 1 | D188: 16870-0 | E188: 16870-01 | F188: PEB | G188: I | H188: - | I188: - | J188: 1 | O188: 11 | R188: 0 | S188: 0 | T188: 0 | U188: 0 | V188: 0 | W188: 0 | X188: 0 | Y188: 0 | AB188: 0 | AD188: 0 | AG188: 0
A189: SEE116870-0 | B189: SEE | C189: 1 | D189: 16870-0 | E189: 16870-01 | F189: PEB | G189: I | H189: - | I189: - | J189: 1 | O189: 12 | R189: 0 | S189: 0 | T189: 0 | U189: 0 | V189: 0 | W189: 0 | X189: 0 | Y189: 0 | AB189: 0 | AD189: 0 | AG189: 0
A190: SEE117130-1 | B190: SEE | C190: 1 | D190: 17130-1 | E190: 17130-1 | R190: 331.79 | S190: 331.79 | T190: 339.29 | U190: 355.4685 | V190: 372.455925 | W190: 849.995925 | X190: 934.9995175 | Y190: 1122 | AB190: 1178.1 | AD190: 1237.005 | AG190: 1645.3
A191: SEE117130-1 | B191: SEE | C191: 1 | D191: 17130-1 | E191: 17130-11 | F191: PEB | G191: I | H191: - | I191: - | J191: 1 | M191: 0010 | O191: 1 | P191: Provento Basico | Q191: 100 | R191: 216.79 | S191: 323.57 | T191: 323.57 | U191: 339.7485 | V191: 356.735925 | W191: 356.735925 | X191: 392.4095175 | Y191: 0 | AB191: 0 | AD191: 0 | AG191: 0
A192: SEE117130-1 | B192: SEE | C192: 1 | D192: 17130-1 | E192: 17130-11 | F192: PEB | G192: I | H192: - | I192: - | J192: 1 | M192: 0164 | O192: 2 | P192: Abono Salarial | Q192: - | R192: 45 | S192: 0 | T192: 0 | U192: 0 | V192: 0 | W192: 0 | X192: 0 | Y192: 0 | AB192: 0 | AD192: 0 | AG192: 0
A193: SEE117130-1 | B193: SEE | C193: 1 | D193: 17130-1 | E193: 17130-11 | F193: PEB | G193: I | H193: - | I193: - | J193: 1 | M193: 0020 | O193: 3 | P193: Parcela Remuneratoria Complementar - Prc | Q193: - | R193: 70 | S193: 0 | T193: 0 | U193: 0 | V193: 0 | W193: 0 | X193: 0 | Y193: 0 | AB193: 0 | AD193: 0 | AG193: 0
A194: SEE117130-1 | B194: SEE | C194: 1 | D194: 17130-1 | E194: 17130-11 | F194: PEB | G194: I | H194: - | I194: - | J194: 1 | M194: 0445 | O194: 4 | P194: Vantagem Temporaria Incorpor. L/15787/05 | Q194: - | R194: 0 | S194: 8.22 | T194: 15.72 | U194: 15.72 | V194: 15.72 | W194: 15.72 | X194: 15.72 | Y194: 0 | AB194: 0 | AD194: 0 | AG194: 0
A195: SEE117130-1 | B195: SEE | C195: 1 | D195: 17130-1 | E195: 17130-11 | F195: PEB | G195: I | H195: - | I195: - | J195: 1 | M195: 540 | O195: 5 | P195: Parcela De Compl.Remun.Magisterio Pcrm | Q195: - | R195: 0 | S195: 0 | T195: 0 | U195: 0 | V195: 0 | W195: 477.54 | X195: 526.87 | Y195: 0 | AB195: 0 | AD195: 0 | AG195: 0
A196: SEE117130-1 | B196: SEE | C196: 1 | D196: 17130-1 | E196: 17130-11 | F196: PEB | G196: I | H196: - | I196: - | J196: 1 | M196: 711 | O196: 6 | P196: Subsidio | Q196: - | R196: 0 | S196: 0 | T196: 0 | U196: 0 | V196: 0 | W196: 0 | X196: 0 | Y196: 1122 | AB196: 1178.1 | AD196: 1237.005 | AG196: -
A197: SEE117130-1 | B197: SEE | C197: 1 | D197: 17130-1 | E197: 17130-11 | F197: PEB | G197: I | H197: - | I197: - | J197: 1 | M197: 910 | O197: 7 | P197: Provento | Q197: - | R197: 0 | S197: 0 | T197: 0 | U197: 0 | V197: 0 | W197: 0 | X197: 0 | Y197: - | AB197: - | AD197: - | AG197: 1455.3
A198: SEE117130-1 | B198: SEE | C198: 1 | D198: 17130-1 | E198: 17130-11 | F198: PEB | G198: I | H198: - | I198: - | J198: 1 | M198: 964 | O198: 8 | P198: Parcela Incorporável | Q198: - | R198: 0 | S198: 0 | T198: 0 | U198: 0 | V198: 0 | W198: 0 | X198: 0 | Y198: - | AB198: - | AD198: - | AG198: 190
A199: SEE117130-1 | B199: SEE | C199: 1 | D199: 17130-1 | E199: 17130-11 | F199: PEB | G199: I | H199: - | I199: - | J199: 1 | O199: 9 | R199: 0 | S199: 0 | T199: 0 | U199: 0 | V199: 0 | W199: 0 | X199: 0 | Y199: 0 | AB199: 0 | AD199: 0 | AG199: 0
A200: SEE117130-1 | B200: SEE | C200: 1 | D200: 17130-1 | E200: 17130-11 | F200: PEB | G200: I | H200: - | I200: - | J200: 1 | O200: 10 | R200: 0 | S200: 0 | T200: 0 | U200: 0 | V200: 0 | W200: 0 | X200: 0 | Y200: 0 | AB200: 0 | AD200: 0 | AG200: 0
... 479 more rows

Sheet Sintese
B1: INFORMAÇÕES ATUAIS (MODIFICADA) | E1: DESC. CARGO ATUAL: | H1: =[2]Cabeçalho!E19 -> DIREÇÃO E ASSESSORAMENTO DIRETA | N1: QUINQUÊNIO | O1: MANTER CÁLCULO DA VTI | P1: X
E2: SÍMBOLO: | H2: =[2]Cabeçalho!E20 -> DAD-6 | N2: =[2]Cabeçalho!E23 -> 0
E3: NÍVEL: | H3: =[2]Cabeçalho!E21 -> 0 | N3: AD. TRINT
E4: GRAU: | H4: =[2]Cabeçalho!E22 -> 0 | N4: =[2]Cabeçalho!E24 -> 0
B6: SÍNTESE DA ANÁLISE DA ATUALIZAÇÃO DA PENSÃO
B7: DECOB - PREPARO DE PAGAMENTO DE PENSIONISTAS
B8: Nº. PROCESSO: | D8: =IF([2]Cabeçalho!E3="","",SUBSTITUTE(SUBSTITUTE([2]Cabeçalho!E3,"-",""),".","")+0) -> 317373 | F8: =IF(D8<>"",IF(D8<210740,"(PROCESSO MICROFILMADO)",""),"") ->  | J8: =[2]Cabeçalho!F7 -> SEGURADO COM CARGO EFETIVO
B9: INSTITUIDOR: | D9: =IF([2]Cabeçalho!E4<>"",UPPER([2]Cabeçalho!E4),"") -> MAURO COTTA PACHECO | K9: MASP/CHEQUE: | M9: =IF([2]Cabeçalho!E5<>"",[2]Cabeçalho!E5,"") -> 180289 | O9: FATO GERADOR: | Q9: =IF([2]Cabeçalho!E6<>"",[2]Cabeçalho!E6,"") -> 1997-04-02
B10: REPARTIÇÃO: | D10: =UPPER(IF(OR([2]Cabeçalho!F8="PREFEITURA",[2]Cabeçalho!F8="CARTÓRIO"),[2]Cabeçalho!E8,[2]Cabeçalho!F8&" - "&[2]Cabeçalho!E8)) -> SECCRI - SECCRI
B12: <<<<<<<<<<<<<<< DADOS DA CONCESSÃO DO BENEFÍCIO >>>>>>>>>>>>>>> | L12: <<<<<<<<<<<<<<<<<< DADOS ATUAIS - EVOLUÇÃO >>>>>>>>>>>>>>>>>>
B13: CARGO INICIAL: | D13: =UPPER(IF([2]Cabeçalho!E10<>"",[2]Cabeçalho!E10&" ","")&IF([2]Cabeçalho!E11<>"","SÍMBOLO: "&[2]Cabeçalho!E11&" ","")&IF([2]Cabeçalho!E12<>"","NÍVEL: "&[2]Cabeçalho!E12&" ","")&IF([2]Cabeçalho!E13<>"","GRAU: "&[2]Cabeçalho!E13,"")) -> TABELIÃO SÍMBOLO: JNR2 | L13: CARGO ATUAL: | N13: =UPPER(IF(AND(H1<>"",H1<>0),H1&" ","")&IF(AND(H2<>"",H2<>0),"SÍMBOLO: "&H2&" ","")&IF(AND(H3<>"",H3<>0),"NÍVEL: "&H3&" ","")&IF(AND(H4<>"",H4<>0),"GRAU: "&H4,"")) -> DIREÇÃO E ASSESSORAMENTO DIRETA SÍMBOLO: DAD-6
B14: QUINQUÊNIOS: | D14: =IF([2]Cabeçalho!E14<>"",[2]Cabeçalho!E14,"0%") -> 0% | E14: ADICIONAL TRINTENÁRIO: | G14: =IF([2]Cabeçalho!E15<>"",[2]Cabeçalho!E15,"0%") -> 0% | H14: FONTE INF.: | I14: =IF(OR([2]Cabeçalho!E16<>"",[2]Cabeçalho!E17<>""),IF(D8<210740,IF([2]Cabeçalho!E16="","","DA MICROFICHA: "&[2]Cabeçalho!E16&" ")&IF([2]Cabeçalho!E17<>"","DO PROCESSO: "&[2]Cabeçalho!E17,""),"DO PROCESSO: "&[2]Cabeçalho!E16),"") -> DO PROCESSO: 2, 3, 153. | L14: QUINQUÊNIOS: | N14: =IF(N2<>"",N2,"0%") -> 0 | O14: ADICIONAL TRINTENÁRIO: | Q14: =IF(N4<>"",N4,"0%") -> 0 | R14: FONTE INF.: | S14: =IF([2]Cabeçalho!E25<>"","DO PROCESSO: "&[2]Cabeçalho!E25,"") -> DO PROCESSO: LEIS DE REAJUSTE
L15: DATA ÚLTIMA ATUALIZAÇÃO: | O15: =IF([2]Cabeçalho!E26<>"",[2]Cabeçalho!E26,"") -> 2010-05-01 | Q15: VALOR ATUAL: | S15: =IF([2]Cabeçalho!E28<>"",[2]Cabeçalho!E28,"") -> 3300
B16: <<<<<<<<<<<<<<<<<< PENSIONISTAS ATIVOS >>>>>>>>>>>>>>>>>> | N16: DATA INÍCIO DO DIREITO EFETIVO
B17: NOME DO PENSIONISTA | I17: IDADE | J17: CATEGORIA | L17: RECADASTRAMENTO | P17: RPV/PREC. | Q17: <<<<<< AÇÃO JUDICIAL >>>>>>
B18: =IF([2]Cabeçalho!D42<>"",1,"") -> 1 | C18: =UPPER(IF(B18<>"",[2]Cabeçalho!D42,"NÃO HÁ BENEFICIÁRIO ATIVO.")) -> GLAUCIA JULIA LOUREIRO PACHECO | I18: =IF($B18<>"",IF([2]Cabeçalho!U42<>"",[2]Cabeçalho!U42,"-"),"") -> 72 | J18: =IF($B18<>"",IF([2]Cabeçalho!S42<>"",[2]Cabeçalho!S42,"-"),"") -> CÔNJUGE | K18: =IF($B18<>"",IF([2]Cabeçalho!W42<>"",[2]Cabeçalho!W42,"-"),"") -> - | L18: =IF($B18<>"",IF([2]Cabeçalho!Q42<>"",[2]Cabeçalho!Q42,"NÃO RECADASTRADO(A)"),"") -> 2014-04-09 | N18: =IF($B18<>"",IF([2]Cabeçalho!V42<>"",[2]Cabeçalho!V42,"-"),"") -> 1997-04-03 | P18: =IF(B18<>"",IF(OR([2]Cabeçalho!W42<>"",[2]Cabeçalho!X42<>"",[2]Cabeçalho!Y42<>""),"Sim","Não"),"") -> Não | Q18: FOLHA: | R18: =UPPER(IF([2]Cabeçalho!F31<>"",[2]Cabeçalho!F31,"")) -> 
B19: =IF([2]Cabeçalho!D43<>"",2,"") -> 2 | C19: =UPPER(IF(B19<>"",[2]Cabeçalho!D43,"NÃO HÁ BENEFICIÁRIO ATIVO.")) -> LUIZ HUMBERTO BARROS PACHECO | I19: =IF($B19<>"",IF([2]Cabeçalho!U43<>"",[2]Cabeçalho!U43,"-"),"") -> 54 | J19: =IF($B19<>"",IF([2]Cabeçalho!S43<>"",[2]Cabeçalho!S43,"-"),"") -> FILHO INVÁLIDO | K19: =IF($B19<>"",IF([2]Cabeçalho!W43<>"",[2]Cabeçalho!W43,"-"),"") -> - | L19: =IF($B19<>"",IF([2]Cabeçalho!Q43<>"",[2]Cabeçalho!Q43,"NÃO RECADASTRADO(A)"),"") -> 2013-08-19 | N19: =IF($B19<>"",IF([2]Cabeçalho!V43<>"",[2]Cabeçalho!V43,"-"),"") -> 1997-04-03 | P19: =IF(B19<>"",IF(OR([2]Cabeçalho!W43<>"",[2]Cabeçalho!X43<>"",[2]Cabeçalho!Y43<>""),"Sim","Não"),"") -> Não | Q19: NOME(S) DA(S) PARTE(S):
B20: =IF([2]Cabeçalho!D44<>"",3,"") ->  | C20: =UPPER(IF(B20<>"",[2]Cabeçalho!D44,"NÃO HÁ BENEFICIÁRIO ATIVO.")) -> NÃO HÁ BENEFICIÁRIO ATIVO. | I20: =IF($B20<>"",IF([2]Cabeçalho!U44<>"",[2]Cabeçalho!U44,"-"),"") ->  | J20: =IF($B20<>"",IF([2]Cabeçalho!S44<>"",[2]Cabeçalho!S44,"-"),"") ->  | K20: =IF($B20<>"",IF([2]Cabeçalho!W44<>"",[2]Cabeçalho!W44,"-"),"") ->  | L20: =IF($B20<>"",IF([2]Cabeçalho!Q44<>"",[2]Cabeçalho!Q44,"NÃO RECADASTRADO(A)"),"") ->  | N20: =IF($B20<>"",IF([2]Cabeçalho!V44<>"",[2]Cabeçalho!V44,"-"),"") ->  | P20: =IF(B20<>"",IF(OR([2]Cabeçalho!W44<>"",[2]Cabeçalho!X44<>"",[2]Cabeçalho!Y44<>""),"Sim","Não"),"") ->  | Q20: =IF([2]Cabeçalho!F32<>"","► "&UPPER([2]Cabeçalho!F32),IF([2]Cabeçalho!F31<>"","","NÃO POSSUI, ATÉ O MOMENTO, DETERMINAÇÃO JUDICIAL PARA ATUALIZAÇÃO.")) -> NÃO POSSUI, ATÉ O MOMENTO, DETERMINAÇÃO JUDICIAL PARA ATUALIZAÇÃO.
B21: =IF([2]Cabeçalho!D45<>"",4,"") ->  | C21: =UPPER(IF(B21<>"",[2]Cabeçalho!D45,"NÃO HÁ BENEFICIÁRIO ATIVO.")) -> NÃO HÁ BENEFICIÁRIO ATIVO. | I21: =IF($B21<>"",IF([2]Cabeçalho!U45<>"",[2]Cabeçalho!U45,"-"),"") ->  | J21: =IF($B21<>"",IF([2]Cabeçalho!S45<>"",[2]Cabeçalho!S45,"-"),"") ->  | K21: =IF($B21<>"",IF([2]Cabeçalho!W45<>"",[2]Cabeçalho!W45,"-"),"") ->  | L21: =IF($B21<>"",IF([2]Cabeçalho!Q45<>"",[2]Cabeçalho!Q45,"NÃO RECADASTRADO(A)"),"") ->  | N21: =IF($B21<>"",IF([2]Cabeçalho!V45<>"",[2]Cabeçalho!V45,"-"),"") ->  | P21: =IF(B21<>"",IF(OR([2]Cabeçalho!W45<>"",[2]Cabeçalho!X45<>"",[2]Cabeçalho!Y45<>""),"Sim","Não"),"") -> 
B22: =IF([2]Cabeçalho!D46<>"",5,"") ->  | C22: =UPPER(IF(B22<>"",[2]Cabeçalho!D46,"NÃO HÁ BENEFICIÁRIO ATIVO.")) -> NÃO HÁ BENEFICIÁRIO ATIVO. | I22: =IF($B22<>"",IF([2]Cabeçalho!U46<>"",[2]Cabeçalho!U46,"-"),"") ->  | J22: =IF($B22<>"",IF([2]Cabeçalho!S46<>"",[2]Cabeçalho!S46,"-"),"") ->  | K22: =IF($B22<>"",IF([2]Cabeçalho!W46<>"",[2]Cabeçalho!W46,"-"),"") ->  | L22: =IF($B22<>"",IF([2]Cabeçalho!Q46<>"",[2]Cabeçalho!Q46,"NÃO RECADASTRADO(A)"),"") ->  | N22: =IF($B22<>"",IF([2]Cabeçalho!V46<>"",[2]Cabeçalho!V46,"-"),"") ->  | P22: =IF(B22<>"",IF(OR([2]Cabeçalho!W46<>"",[2]Cabeçalho!X46<>"",[2]Cabeçalho!Y46<>""),"Sim","Não"),"") -> 
B24: CÁLCULO DA PENSÃO - R$ (em Reais)
B25: CÓD. | C25: ______________________________VIGÊNCIAS _DESCRIÇÃO DAS VERBAS
I27: % / QTD | J27: Vantagem | K27: Desconto | L27: Fund. Legal | M27: % / QTD | N27: Vantagem | O27: Desconto | P27: Fund. Legal | Q27: % / QTD | R27: Vantagem | S27: Desconto | T27: Fund. Legal
B38: TOTAL: | J38: =IF($I25="","",SUM(J28:J37)) ->  | K38: =IF($I25="","",SUM(K28:K37)) ->  | N38: =IF($M25="","",SUM(N28:N37)) ->  | O38: =IF($M25="","",SUM(O28:O37)) ->  | R38: =IF($Q25="","",SUM(R28:R37)) ->  | S38: =IF($Q25="","",SUM(S28:S37)) -> 
B39: VALOR DA PENSÃO: | J39: =IF($I25="","",J38-K38) ->  | N39: =IF($M25="","",N38-O38) ->  | R39: =IF($Q25="","",R38-S38) -> 
B41: INFORMAÇÕES COMPLEMENTARES:
B42: =IF([2]Cabeçalho!O10<>"",[2]Cabeçalho!O10&" ","")&IF([2]Cabeçalho!O8<>"",[2]Cabeçalho!O8&" ","")&IF([2]Cabeçalho!D62<>"","► "&[2]Cabeçalho!D62&" ","")&IF([2]Cabeçalho!D63<>"","► "&[2]Cabeçalho!D63&" ","")&IF([2]Cabeçalho!D64<>"","► "&[2]Cabeçalho!D64&" ","")&IF([2]Cabeçalho!D65<>"","► "&[2]Cabeçalho!D65&" ","")&IF([2]Cabeçalho!D66<>"","► "&[2]Cabeçalho!D66&" ","")&IF('[2]Filha do Estatuto'!A8<>"",'[2]Filha do Estatuto'!A8&" ","")&IF([2]Cabeçalho!I37<>"",IF(P1<>"",[2]Cabeçalho!I37,"")&" ","")&IF([2]Cabeçalho!O5<>"► Ao DECOB para análise da redução do valor, tendo em vista ",[2]Cabeçalho!O5&" ","") -> 
B51: RESPONSÁVEL: | G51: CONFERENTE: | L51: CHEFIA: | Q51: LANÇADO (DECOB-PG):
B54: Jolersion Endrigo (09213-3) IPSEMG-DEPENS/PR
B57: Em: | C57: =NOW() -> 2016-06-10T11:01:13.040 | G57: Em: _____/_____/_____ | L57: Em: _____/_____/_____ | Q57: Em: _____/_____/_____

Sheet PENSIONISTAS
A1: PROCESSO | B1: A + D | C1: ENTIDADE | D1: CÓD. | E1: T | F1: JUD | G1: REC. AUT. | H1: DEPENDÊNCIA | I1: DATA NASC. | J1: IDADE | K1: RPV | L1: PRECATÓRIO
A2: 0 | B2: =CONCATENATE(A2,D2) -> 00 | C2: - | D2: 0 | E2: 0 | F2: 0 | G2: 0 | H2: 0 | I2: 0 | J2: 0 | K2: 0 | L2: 0
A3: 00.120-1 | B3: 00.120-11 | C3: OLIVIA ALVES MATHEUS | D3: 1 | E3: F | F3: 0 | G3: 0 | H3: 0 | I3: 0 | J3: 0 | K3: 0 | L3: 0
A4: 00.323-9 | B4: 00.323-91 | C4: MARIA ALICE DE ALMEIDA | D4: 1 | E4: F | F4: 0 | G4: P. IPSEMG | H4: 0 | I4: 0 | J4: 0 | K4: 0 | L4: 0
A5: 01.635-7 | B5: 01.635-71 | C5: ELZA DE PINHO TAVARES | D5: 1 | E5: F | F5: 81-84 | G5: 0 | H5: 0 | I5: 0 | J5: 0 | K5: 0 | L5: 0
A6: 01.773-6 | B6: 01.773-61 | C6: CACILDA DE LIMA SYRIO | D6: 1 | E6: F | F6: 0 | G6: 0 | H6: 0 | I6: 0 | J6: 0 | K6: 0 | L6: 0
A7: 01.842-2 | B7: 01.842-21 | C7: IRENE RIBEIRO DE ANDRADE | D7: 1 | E7: F | F7: 0 | G7: 0 | H7: 0 | I7: 0 | J7: 0 | K7: 0 | L7: 0
A8: 04.490-3 | B8: 04.490-31 | C8: JOSÉ DE ALELUIA FERREIRA | D8: 1 | E8: F | F8: 0 | G8: 0 | H8: 0 | I8: 0 | J8: 0 | K8: 0 | L8: 0
A9: 04.790-2 | B9: 04.790-21 | C9: ALICE VIEGAS DE ASSIS | D9: 1 | E9: F | F9: 0 | G9: P. BANCO | H9: 0 | I9: 0 | J9: 0 | K9: 0 | L9: 0
A10: 05.085-7 | B10: 05.085-71 | C10: MARIA SALVINA DA COSTA | D10: 1 | E10: F | F10: 0 | G10: 0 | H10: 0 | I10: 0 | J10: 0 | K10: 0 | L10: 0
A11: 34.498-2 | B11: 34.498-21 | C11: FABIANE DE ALMEIDA | D11: 1 | E11: F | F11: 0 | G11: 0 | H11: 0 | I11: 0 | J11: 0 | K11: 0 | L11: 0
A12: 14.863-6 | B12: 14.863-61 | C12: MARIA DO SOCORRO LACERDA NERES | D12: 1 | E12: F | F12: 0 | G12: P. BANCO | H12: 0 | I12: 0 | J12: 0 | K12: 0 | L12: 0
A13: 40.349-0 | B13: 40.349-01 | C13: ERNESTINO RODRIGUES ALVES | D13: 1 | E13: F | F13: 0 | G13: P. BANCO | H13: 0 | I13: 0 | J13: 0 | K13: 0 | L13: 0
A14: 25.824-5 | B14: 25.824-51 | C14: DULCE HELENA COSTA AMARAL | D14: 1 | E14: F | F14: 0 | G14: P. BANCO | H14: 0 | I14: 0 | J14: 0 | K14: 0 | L14: 0
A15: 16.421-6 | B15: 16.421-61 | C15: JOSIMAR DOS SANTOS | D15: 1 | E15: F | F15: 0 | G15: P. BANCO | H15: 0 | I15: 0 | J15: 0 | K15: 0 | L15: 0
A16: 16.421-6 | B16: 16.421-62 | C16: TEREZA PEREIRA DOS SANTOS | D16: 2 | E16: F | F16: 0 | G16: P. BANCO | H16: 0 | I16: 0 | J16: 0 | K16: 0 | L16: 0
A17: 05.293-0 | B17: 05.293-01 | C17: MARIA FLOR DE MAIO SENA | D17: 1 | E17: F | F17: 0 | G17: 0 | H17: 0 | I17: 0 | J17: 0 | K17: 0 | L17: 0
A18: 05.621-9 | B18: 05.621-91 | C18: MARIA ANTÔNIA PEREIRA ALVES | D18: 1 | E18: F | F18: 0 | G18: 0 | H18: 0 | I18: 0 | J18: 0 | K18: 0 | L18: 0
A19: 05.928-5 | B19: 05.928-51 | C19: MARIA FLOR DE MAIO SENA | D19: 1 | E19: F | F19: 0 | G19: 0 | H19: 0 | I19: 0 | J19: 0 | K19: 0 | L19: 0
A20: 05.971-4 | B20: 05.971-41 | C20: ALZIRA RITA FERREIRA | D20: 1 | E20: F | F20: 0 | G20: 0 | H20: 0 | I20: 0 | J20: 0 | K20: 0 | L20: 0
A21: 06.233-2 | B21: 06.233-21 | C21: IONE LIMA DO AMARAL | D21: 1 | E21: F | F21: 81-114 | G21: 0 | H21: 0 | I21: 0 | J21: 0 | K21: 0 | L21: 0
A22: 06.233-2 | B22: 06.233-22 | C22: MARIA DO CARMO AMARAL | D22: 2 | E22: F | F22: 0 | G22: 0 | H22: 0 | I22: 0 | J22: 0 | K22: 0 | L22: 0
A23: 06.336-3 | B23: 06.336-31 | C23: HELIANA MARIA DE LACERDA | D23: 1 | E23: F | F23: 0 | G23: 0 | H23: 0 | I23: 0 | J23: 0 | K23: 0 | L23: 0
A24: 30.037-3 | B24: 30.037-31 | C24: MARIA FERREIRA DE CASTRO | D24: 1 | E24: F | F24: 0 | G24: P. BANCO | H24: 0 | I24: 0 | J24: 0 | K24: 0 | L24: 0
A25: 06.464-5 | B25: 06.464-51 | C25: OLIMPIA DE LIMA RUELA | D25: 1 | E25: F | F25: 0 | G25: 0 | H25: 0 | I25: 0 | J25: 0 | K25: 0 | L25: 0
A26: 26.966-2 | B26: 26.966-21 | C26: DIOMAR RIBEIRO RESENDE | D26: 1 | E26: F | F26: 0 | G26: P. BANCO | H26: 0 | I26: 0 | J26: 0 | K26: 0 | L26: 0
A27: 30.400-0 | B27: 30.400-01 | C27: MARIA APARECIDA COSTA ETELVINO | D27: 1 | E27: F | F27: 0 | G27: P. BANCO | H27: 0 | I27: 0 | J27: 0 | K27: 0 | L27: 0
A28: 35.935-1 | B28: 35.935-11 | C28: JULIA VALERIA ABRAHÃO FRANCISCO BERNARDO | D28: 1 | E28: F | F28: 93-108 | G28: P. BANCO | H28: 0 | I28: 0 | J28: 0 | K28: 0 | L28: 0
A29: 39.080-1 | B29: 39.080-11 | C29: MARIA LUIZA DE ANDRADE MIOTTO | D29: 1 | E29: F | F29: 0 | G29: P. BANCO | H29: 0 | I29: 0 | J29: 0 | K29: 0 | L29: 0
A30: 33.280-1 | B30: 33.280-11 | C30: MARIA SOUZA DOS SANTOS | D30: 1 | E30: F | F30: 0 | G30: P. BANCO | H30: 0 | I30: 0 | J30: 0 | K30: 0 | L30: 0
A31: 16.229-9 | B31: 16.229-91 | C31: MARIA STELA ZAULI | D31: 1 | E31: F | F31: 0 | G31: P. BANCO | H31: 0 | I31: 0 | J31: 0 | K31: 0 | L31: 0
A32: 23.942-9 | B32: 23.942-91 | C32: ERCINA CONCEIÇÃO REIS | D32: 1 | E32: F | F32: 0 | G32: P. BANCO | H32: 0 | I32: 0 | J32: 0 | K32: 0 | L32: 0
A33: 26.632-9 | B33: 26.632-91 | C33: DIVA DA SILVA TOLEDO CARVALHO | D33: 1 | E33: F | F33: 0 | G33: DECL. V R | H33: 0 | I33: 0 | J33: 0 | K33: 0 | L33: 0
A34: 12.651-9 | B34: 12.651-91 | C34: APARECIDA MARIA SILVA PRESTES | D34: 1 | E34: F | F34: 0 | G34: P. BANCO | H34: 0 | I34: 0 | J34: 0 | K34: 0 | L34: 0
A35: 06.531-5 | B35: 06.531-51 | C35: WALDETE NEDER BORGES | D35: 1 | E35: F | F35: 92-105 | G35: 0 | H35: 0 | I35: 0 | J35: 0 | K35: 0 | L35: 0
A36: 35.656-5 | B36: 35.656-51 | C36: ADELINA CAMPOS DE GODOY | D36: 1 | E36: F | F36: 0 | G36: P. BANCO | H36: 0 | I36: 0 | J36: 0 | K36: 0 | L36: 0
A37: 26.156-4 | B37: 26.156-41 | C37: ALAIDE FATIMA BRITO SILVEIRA | D37: 1 | E37: F | F37: 0 | G37: P. BANCO | H37: 0 | I37: 0 | J37: 0 | K37: 0 | L37: 0
A38: 37.204-8 | B38: 37.204-81 | C38: MARIA MONTEIRO DA SILVA | D38: 1 | E38: F | F38: 0 | G38: P. IPSEMG | H38: 0 | I38: 0 | J38: 0 | K38: 0 | L38: 0
A39: 14.816-4 | B39: 14.816-41 | C39: ELZA DE BARROS VIEIRA | D39: 1 | E39: F | F39: 0 | G39: P. IPSEMG | H39: 0 | I39: 0 | J39: 0 | K39: 0 | L39: 0
A40: 35.037-0 | B40: 35.037-01 | C40: MARIA DO CARMO ALBERGARIA MAFFRA | D40: 1 | E40: F | F40: 33-51 | G40: P. BANCO | H40: 0 | I40: 0 | J40: 0 | K40: 0 | L40: 0
A41: 29.543-4 | B41: 29.543-41 | C41: ELIA DARC GOMES DIAS | D41: 1 | E41: F | F41: 0 | G41: P. BANCO | H41: 0 | I41: 0 | J41: 0 | K41: 0 | L41: 0
A42: 06.797-0 | B42: 06.797-01 | C42: ADAIL MARIA DE LOURDES | D42: 1 | E42: F | F42: 0 | G42: 0 | H42: 0 | I42: 0 | J42: 0 | K42: 0 | L42: 0
A43: 06.797-0 | B43: 06.797-02 | C43: MARIA LÚCIA DE MELO | D43: 2 | E43: F | F43: 0 | G43: 0 | H43: 0 | I43: 0 | J43: 0 | K43: 0 | L43: 0
A44: 06.797-0 | B44: 06.797-02 | C44: FLORINDA AUGUSTA CONCEIÇÃO MELO | D44: 2 | E44: F | F44: 0 | G44: 0 | H44: 0 | I44: 0 | J44: 0 | K44: 0 | L44: 0
A45: 07.120-0 | B45: 07.120-01 | C45: CELEDA MARIA DE JESUS BARBOSA | D45: 1 | E45: F | F45: 0 | G45: 0 | H45: 0 | I45: 0 | J45: 0 | K45: 0 | L45: 0
A46: 07.736-4 | B46: 07.736-41 | C46: NATALIA SIQUEIRA FRIACA | D46: 1 | E46: F | F46: 0 | G46: P. BANCO | H46: 0 | I46: 0 | J46: 0 | K46: 0 | L46: 0
A47: 07.746-1 | B47: 07.746-11 | C47: LOYDE DE OLIVEIRA FERREIRA | D47: 1 | E47: F | F47: 0 | G47: 0 | H47: 0 | I47: 0 | J47: 0 | K47: 0 | L47: 0
A48: 07.952-9 | B48: 07.952-91 | C48: DALVA ROSA DE OLIVEIRA LOPES | D48: 1 | E48: F | F48: 0 | G48: 0 | H48: 0 | I48: 0 | J48: 0 | K48: 0 | L48: 0
A49: 08.556-1 | B49: 08.556-11 | C49: REGINA MARTINS GUERRA | D49: 1 | E49: F | F49: 0 | G49: 0 | H49: 0 | I49: 0 | J49: 0 | K49: 0 | L49: 0
A50: 09.183-9 | B50: 09.183-91 | C50: CONCEIÇÃO AMARAL MENDES | D50: 1 | E50: F | F50: 0 | G50: 0 | H50: 0 | I50: 0 | J50: 0 | K50: 0 | L50: 0
A51: 10.445-0 | B51: 10.445-02 | C51: MARIA ILEDA DE MELO | D51: 2 | E51: F | F51: 0 | G51: 0 | H51: 0 | I51: 0 | J51: 0 | K51: 0 | L51: 0
A52: 10.445-0 | B52: 10.445-01 | C52: KATIA REGINA DE MELO | D52: 1 | E52: F | F52: 0 | G52: 0 | H52: 0 | I52: 0 | J52: 0 | K52: 0 | L52: 0
A53: 10.452-3 | B53: 10.452-31 | C53: DENISE VIEIRA SINGI | D53: 1 | E53: F | F53: 0 | G53: 0 | H53: 0 | I53: 0 | J53: 0 | K53: 0 | L53: 0
A54: 10.690-0 | B54: 10.690-01 | C54: MARIA JOSÉ HERMENEGILDA | D54: 1 | E54: F | F54: 0 | G54: 0 | H54: 0 | I54: 0 | J54: 0 | K54: 0 | L54: 0
A55: 10.936-3 | B55: 10.936-31 | C55: OLMPIA DE LIMA RUELA | D55: 1 | E55: F | F55: 0 | G55: P. BANCO | H55: 0 | I55: 0 | J55: 0 | K55: 0 | L55: 0
A56: 10.998-3 | B56: 10.998-31 | C56: SOFIA PEREIRA DOS SANTOS | D56: 1 | E56: F | F56: 0 | G56: 0 | H56: 0 | I56: 0 | J56: 0 | K56: 0 | L56: 0
A57: 11.247-0 | B57: 11.247-01 | C57: ANA BATISTA CARDOSO | D57: 1 | E57: F | F57: 0 | G57: 0 | H57: 0 | I57: 0 | J57: 0 | K57: 0 | L57: 0
A58: 11.345-0 | B58: 11.345-01 | C58: MARIA AUGUSTA ATAIDE ARAUJO | D58: 1 | E58: F | F58: 0 | G58: 0 | H58: 0 | I58: 0 | J58: 0 | K58: 0 | L58: 0
A59: 11.444-8 | B59: 11.444-81 | C59: FRANCISCA INEZ BELEM | D59: 1 | E59: F | F59: 163 | G59: 0 | H59: 0 | I59: 0 | J59: 0 | K59: 0 | L59: 0
A60: 11.598-3 | B60: 11.598-31 | C60: FLAUZINA ROSA CORREA | D60: 1 | E60: F | F60: 0 | G60: 0 | H60: 0 | I60: 0 | J60: 0 | K60: 0 | L60: 0
A61: 11.998-9 | B61: 11.998-91 | C61: MARIA DA CONCEIÇÃO FRAMCO | D61: 1 | E61: F | F61: 0 | G61: 0 | H61: 0 | I61: 0 | J61: 0 | K61: 0 | L61: 0
A62: 12.104-5 | B62: 12.104-51 | C62: ENI MARIA ELETO MONTEIRO | D62: 1 | E62: F | F62: 0 | G62: 0 | H62: 0 | I62: 0 | J62: 0 | K62: 0 | L62: 0
A63: 12.484-2 | B63: 12.484-21 | C63: MARIA IONE MIGUEL | D63: 1 | E63: F | F63: 38 | G63: P. BANCO | H63: 0 | I63: 0 | J63: 0 | K63: 0 | L63: 0
A64: 12.484-2 | B64: 12.484-22 | C64: CLEIDINEIAMIGUEL | D64: 2 | E64: F | F64: 0 | G64: 0 | H64: 0 | I64: 0 | J64: 0 | K64: 0 | L64: 0
A65: 12.720-5 | B65: 12.720-51 | C65: MARIA DA CONCEIÇÃO ALMEIDA | D65: 1 | E65: F | F65: 0 | G65: PRESENCIAL IPSEMG | H65: 0 | I65: 0 | J65: 0 | K65: 0 | L65: 0
A66: 12.806-6 | B66: 12.806-61 | C66: VITÓRIA PORFÍRIA DE MORAES | D66: 1 | E66: F | F66: 0 | G66: 0 | H66: 0 | I66: 0 | J66: 0 | K66: 0 | L66: 0
A67: 12.835-0 | B67: 12.835-01 | C67: TEREZINHA DE AVELAR SENNA | D67: 1 | E67: F | F67: 0 | G67: 0 | H67: 0 | I67: 0 | J67: 0 | K67: 0 | L67: 0
A68: 13.326-4 | B68: 13.326-42 | C68: DOLORES CRISTINA ANDRADE | D68: 2 | E68: F | F68: 0 | G68: 0 | H68: 0 | I68: 0 | J68: 0 | K68: 0 | L68: 0
A69: 13.326-4 | B69: 13.326-41 | C69: MARIA VALDA BOERI ANDRADE | D69: 1 | E69: F | F69: 0 | G69: 0 | H69: 0 | I69: 0 | J69: 0 | K69: 0 | L69: 0
A70: 13.383-3 | B70: 13.383-31 | C70: MARIA JOSE DA SILVA GRANATO | D70: 1 | E70: F | F70: 0 | G70: 0 | H70: 0 | I70: 0 | J70: 0 | K70: 0 | L70: 0
A71: 13.563-1 | B71: 13.563-11 | C71: IVANI MARIA DO ROSÁRIO BARBOSA | D71: 1 | E71: F | F71: 0 | G71: P. BANCO | H71: 0 | I71: 0 | J71: 0 | K71: 0 | L71: 0
A72: 13.563-1 | B72: 13.563-12 | C72: MARIA APARECIDA SILVA BARBOSA | D72: 2 | E72: F | F72: 0 | G72: DECL. V R | H72: 0 | I72: 0 | J72: 0 | K72: 0 | L72: 0
A73: 13.563-1 | B73: 13.563-13 | C73: MARIA SEBASTIANA DA COSTA BARBOSA | D73: 3 | E73: F | F73: 0 | G73: P. BANCO | H73: 0 | I73: 0 | J73: 0 | K73: 0 | L73: 0
A74: 13.563-1 | B74: 13.563-14 | C74: VIVIANI DA COSTA BARBOSA | D74: 4 | E74: F | F74: 0 | G74: P. BANCO | H74: 0 | I74: 0 | J74: 0 | K74: 0 | L74: 0
A75: 13.673-5 | B75: 13.673-51 | C75: ELZITA DE SENA NASCIMENTO DOS SANTOS | D75: 1 | E75: F | F75: 0 | G75: 0 | H75: 0 | I75: 0 | J75: 0 | K75: 0 | L75: 0
A76: 13.693-0 | B76: 13.693-01 | C76: JOAQUIM MARQUES DE OLIVEIRA FILHO | D76: 1 | E76: F | F76: 0 | G76: 0 | H76: 0 | I76: 0 | J76: 0 | K76: 0 | L76: 0
A77: 13.815-0 | B77: 13.815-01 | C77: KATIA MARIA MENDONÇA | D77: 1 | E77: F | F77: 0 | G77: 0 | H77: 0 | I77: 0 | J77: 0 | K77: 0 | L77: 0
A78: 13.815-0 | B78: 13.815-02 | C78: SONIA MARIA MENDONÇA | D78: 2 | E78: F | F78: 0 | G78: 0 | H78: 0 | I78: 0 | J78: 0 | K78: 0 | L78: 0
A79: 13.839-2 | B79: 13.839-21 | C79: YEDA CARDOSO MAYRINK XAVIER | D79: 1 | E79: F | F79: 0 | G79: 0 | H79: 0 | I79: 0 | J79: 0 | K79: 0 | L79: 0
A80: 11.505-3 | B80: 11.505-31 | C80: MARIANGELA DE CHANTAL FONSECA | D80: 1 | E80: F | F80: 0 | G80: P. IPSEMG | H80: 0 | I80: 0 | J80: 0 | K80: 0 | L80: 0
A81: 20.106-5 | B81: 20.106-51 | C81: MARIA MADDALENA DA SILVA | D81: 1 | E81: F | F81: 0 | G81: P. BANCO | H81: 0 | I81: 0 | J81: 0 | K81: 0 | L81: 0
A82: 14.281-6 | B82: 14.281-61 | C82: ODETE CATARINA SILVA OLIVEIRA | D82: 1 | E82: F | F82: 0 | G82: 0 | H82: 0 | I82: 0 | J82: 0 | K82: 0 | L82: 0
A83: 41.861-7 | B83: 41.861-71 | C83: HELENA MARIA DE SOUZA OLIVEIRA | D83: 1 | E83: F | F83: 24-32 | G83: P. BANCO | H83: 0 | I83: 0 | J83: 0 | K83: 0 | L83: 0
A84: 14.391-0 | B84: 14.391-01 | C84: MARIA HELENA GUEDES PEREIRA | D84: 1 | E84: F | F84: 0 | G84: 0 | H84: 0 | I84: 0 | J84: 0 | K84: 0 | L84: 0
A85: 09.388-2 | B85: 09.388-21 | C85: NOEME MARES FIGUEIREDO | D85: 1 | E85: F | F85: 50-53 | G85: P. BANCO | H85: 0 | I85: 0 | J85: 0 | K85: 0 | L85: 0
A86: 14.761-3 | B86: 14.761-31 | C86: EDITE SENA OLIVEIRA | D86: 1 | E86: F | F86: 0 | G86: 0 | H86: 0 | I86: 0 | J86: 0 | K86: 0 | L86: 0
A87: 14.824-5 | B87: 14.824-51 | C87: JACY MATHIAS MEIRA TOMÉ | D87: 1 | E87: F | F87: 7013 | G87: 0 | H87: 0 | I87: 0 | J87: 0 | K87: 0 | L87: 0
A88: 15.033-9 | B88: 15.033-91 | C88: MARGARIDA DE OLIVEIRA VILAÇA | D88: 1 | E88: F | F88: 0 | G88: 0 | H88: 0 | I88: 0 | J88: 0 | K88: 0 | L88: 0
A89: 15.457-1 | B89: 15.457-11 | C89: CARMEN LÚCIA BELCHIOR RODRIGUES | D89: 1 | E89: F | F89: 0 | G89: P. BANCO | H89: 0 | I89: 0 | J89: 0 | K89: 0 | L89: 0
A90: 15.577-2 | B90: 15.577-21 | C90: IRIS RECENVINDA ROSA PINHEIRO | D90: 1 | E90: F | F90: 0 | G90: 0 | H90: 0 | I90: 0 | J90: 0 | K90: 0 | L90: 0
A91: 15.577-2 | B91: 15.577-22 | C91: MARIA DAS GRAÇAS PINHEIRO DOS SANTOS | D91: 2 | E91: F | F91: 0 | G91: 0 | H91: 0 | I91: 0 | J91: 0 | K91: 0 | L91: 0
A92: 15.652-3 | B92: =CONCATENATE(A92,D92) -> 15.652-31 | C92: BENEDITO CAPUTO | D92: 1 | E92: F | F92: 0 | G92: 0 | H92: 0 | I92: 0 | J92: 0 | K92: 0 | L92: 0
A93: 16.020-2 | B93: 16.020-21 | C93: MAGALI JOSE PIRES MISAEL | D93: 1 | E93: F | F93: 0 | G93: 0 | H93: 0 | I93: 0 | J93: 0 | K93: 0 | L93: 0
A94: 16.331-7 | B94: 16.331-71 | C94: MARIA APARECIDA DA COSTA | D94: 1 | E94: F | F94: 0 | G94: 0 | H94: 0 | I94: 0 | J94: 0 | K94: 0 | L94: 0
A95: 16.802-5 | B95: 16.802-51 | C95: MARIA CLELIA DOS SANTOS DE PAULO | D95: 1 | E95: F | F95: 0 | G95: P. IPSEMG | H95: 0 | I95: 0 | J95: 0 | K95: 0 | L95: 0
A96: 16.960-9 | B96: 16.960-91 | C96: VANILDA GOMES RUAS | D96: 1 | E96: F | F96: 0 | G96: 0 | H96: 0 | I96: 0 | J96: 0 | K96: 0 | L96: 0
A97: 17.584-5 | B97: 17.584-51 | C97: GERALDA MARIA DE SOUZA | D97: 1 | E97: F | F97: 0 | G97: 0 | H97: 0 | I97: 0 | J97: 0 | K97: 0 | L97: 0
A98: 17.806-3 | B98: 17.806-31 | C98: DENISE DE LIMA MIRANDA | D98: 1 | E98: F | F98: 0 | G98: 0 | H98: 0 | I98: 0 | J98: 0 | K98: 0 | L98: 0
A99: 17.860-8 | B99: 17.860-81 | C99: CIRIA RODRIGUES VILELA | D99: 1 | E99: F | F99: 0 | G99: 0 | H99: 0 | I99: 0 | J99: 0 | K99: 0 | L99: 0
A100: 32.154-0 | B100: 32.154-01 | C100: ALBERTINA DA TRINDADE LOURDES | D100: 1 | E100: F | F100: 0 | G100: P. IPSEMG | H100: 0 | I100: 0 | J100: 0 | K100: 0 | L100: 0
A101: 18.112-9 | B101: 18.112-91 | C101: HAYDEE MENEZES PEREIRA | D101: 1 | E101: F | F101: 0 | G101: 0 | H101: 0 | I101: 0 | J101: 0 | K101: 0 | L101: 0
A102: 18.247-8 | B102: 18.247-81 | C102: TEREZINHA GONÇALVES VILARINO DA CUNHA | D102: 1 | E102: F | F102: 0 | G102: 0 | H102: 0 | I102: 0 | J102: 0 | K102: 0 | L102: 0
A103: 18.434-9 | B103: 18.434-91 | C103: THEREZA DA SILVA FERREIRA | D103: 1 | E103: F | F103: 59-67 | G103: 0 | H103: 0 | I103: 0 | J103: 0 | K103: 0 | L103: 0
A104: 18.440-3 | B104: 18.440-31 | C104: ANA MARIA ANDRÉ | D104: 1 | E104: F | F104: 0 | G104: P. BANCO | H104: 0 | I104: 0 | J104: 0 | K104: 0 | L104: 0
A105: 37.943-3 | B105: 37.943-31 | C105: GERALDA MOTA ARAÚJO | D105: 1 | E105: F | F105: 0 | G105: P. BANCO | H105: 0 | I105: 0 | J105: 0 | K105: 0 | L105: 0
A106: 37.943-3 | B106: 37.943-32 | C106: JOSÉ ROBERTO DE ARAÚJO | D106: 2 | E106: F | F106: 144-147
A107: 13.717-0 | B107: 13.717-01 | C107: MARIA ANTONIETA CASTRO FARIA | D107: 1 | E107: F | F107: - | G107: P. BANCO
A108: 18.614-7 | B108: 18.614-71 | C108: RITA ALZIRA TERRA | D108: 1 | E108: F | F108: 0 | G108: 0 | H108: 0 | I108: 0 | J108: 0 | K108: 0 | L108: 0
A109: 18.655-4 | B109: 18.655-41 | C109: GERALDA MARIA DE SOUZA | D109: 1 | E109: F | F109: 79-85, 99-100, 114-118 | G109: DECL. V R | H109: 0 | I109: 0 | J109: 0 | K109: 0 | L109: 0
A110: 19.225-2 | B110: 19.225-21 | C110: MARIA DAS DORES CORDEIRO MADUREIRA | D110: 1 | E110: F | F110: 0 | G110: 0 | H110: 0 | I110: 0 | J110: 0 | K110: 0 | L110: 0
A111: 19.529-4 | B111: 19.529-41 | C111: TEREZINHA LOPES DA SILVA | D111: 1 | E111: F | F111: 0 | G111: 0 | H111: 0 | I111: 0 | J111: 0 | K111: 0 | L111: 0
A112: 19.910-9 | B112: 19.910-91 | C112: MARIA AUXILIADORA BAPTISTA LEITE | D112: 1 | E112: F | F112: 0 | G112: 0 | H112: 0 | I112: 0 | J112: 0 | K112: 0 | L112: 0
A113: 20.119-7 | B113: 20.119-71 | C113: SEBASTIANA DOS SANTOS CRUZ | D113: 1 | E113: F | F113: 0 | G113: 0 | H113: 0 | I113: 0 | J113: 0 | K113: 0 | L113: 0
A114: 30.811-0 | B114: 30.811-01 | C114: GENI LOPES DA FONSECA | D114: 1 | E114: F | F114: 138-144 | G114: P. BANCO | H114: 0 | I114: 0 | J114: 0 | K114: 0 | L114: 0
A115: 20.284-3 | B115: 20.284-31 | C115: ANITA DE PAULA | D115: 1 | E115: F | F115: 29-33 | G115: 0 | H115: 0 | I115: 0 | J115: 0 | K115: 0 | L115: 0
A116: 20.284-3 | B116: 20.284-31 | C116: BENEDITA DA SILVA GUIMARÃES | D116: 1 | E116: F | F116: 0 | G116: 0 | H116: 0 | I116: 0 | J116: 0 | K116: 0 | L116: 0
A117: 20.284-3 | B117: 20.284-32 | C117: MARILIA REIS ALVES SILVA | D117: 2 | E117: F | F117: 0 | G117: 0 | H117: 0 | I117: 0 | J117: 0 | K117: 0 | L117: 0
A118: 14.413-4 | B118: 14.413-41 | C118: AURORA MARIA SARAIVA | D118: 1 | E118: F | F118: 0 | G118: P. BANCO | H118: 0 | I118: 0 | J118: 0 | K118: 0 | L118: 0
A119: 14.413-4 | B119: 14.413-42 | C119: ROSEMEIRE SARAIVA MOREIRA | D119: 2 | E119: F | F119: 0 | G119: P. BANCO | H119: 0 | I119: 0 | J119: 0 | K119: 0 | L119: 0
A120: 13.099-0 | B120: 13.099-01 | C120: ANA BARBOSA FREIRE | D120: 1 | E120: F | F120: 0 | G120: P. BANCO | H120: 0 | I120: 0 | J120: 0 | K120: 0 | L120: 0
A121: 20.393-9 | B121: 20.393-91 | C121: BENEDITA RIBEIRO DE OLIVEIRA | D121: 1 | E121: F | F121: 0 | G121: 0 | H121: 0 | I121: 0 | J121: 0 | K121: 0 | L121: 0
A122: 20.393-9 | B122: 20.393-91 | C122: WALDETE DRUMOND ZAGNOLI RABELO | D122: 1 | E122: F | F122: 0 | G122: 0 | H122: 0 | I122: 0 | J122: 0 | K122: 0 | L122: 0
A123: 20.430-7 | B123: 20.430-71 | C123: WILMA GUIMARÃES FERNANDES | D123: 1 | E123: F | F123: 0 | G123: P. BANCO | H123: 0 | I123: 0 | J123: 0 | K123: 0 | L123: 0
A124: 18.234-6 | B124: 18.234-61 | C124: MARIA LUIZA PEREIRA | D124: 1 | E124: F | F124: 0 | G124: P. BANCO | H124: 0 | I124: 0 | J124: 0 | K124: 0 | L124: 0
A125: 20.514-1 | B125: 20.514-11 | C125: SEBASTIANA DOS SANTOS CRUZ | D125: 1 | E125: F | F125: 0 | G125: P. IPSEMG | H125: 0 | I125: 0 | J125: 0 | K125: 0 | L125: 0
A126: 20.836-1 | B126: 20.836-11 | C126: ANGELA MARIA PEREIRA GARCIA | D126: 1 | E126: F | F126: 0 | G126: 0 | H126: 0 | I126: 0 | J126: 0 | K126: 0 | L126: 0
A127: 20.879-5 | B127: 20.879-51 | C127: HELENA LOPES DA FONSECA | D127: 1 | E127: F | F127: 0 | G127: 0 | H127: 0 | I127: 0 | J127: 0 | K127: 0 | L127: 0
A128: 20.962-7 | B128: 20.962-71 | C128: MARIA JOSE DURÃO SILVA | D128: 1 | E128: F | F128: 0 | G128: 0 | H128: 0 | I128: 0 | J128: 0 | K128: 0 | L128: 0
A129: 21.061-7 | B129: 21.061-71 | C129: WALDETE DRUMOND ZAGNOLI RABELO | D129: 1 | E129: F | F129: 0 | G129: P. BANCO | H129: 0 | I129: 0 | J129: 0 | K129: 0 | L129: 0
A130: 21.763-8 | B130: 21.763-81 | C130: ESTELITA DE MORAIS SANTANA E SILVA | D130: 1 | E130: F | F130: 0 | G130: 0 | H130: 0 | I130: 0 | J130: 0 | K130: 0 | L130: 0
A131: 22.321-2 | B131: 22.321-21 | C131: MARTA NOGUEIRA MARQUES | D131: 1 | E131: F | F131: 0 | G131: 0 | H131: 0 | I131: 0 | J131: 0 | K131: 0 | L131: 0
A132: 22.327-1 | B132: 22.327-11 | C132: TEREZINHA SERVIDEY DE AZEVEDO | D132: 1 | E132: F | F132: 0 | G132: 0 | H132: 0 | I132: 0 | J132: 0 | K132: 0 | L132: 0
A133: 04.517-9 | B133: 04.517-91 | C133: AUGUSTA VILELA DE ANDRADE | D133: 1 | E133: F | F133: 0 | G133: P. BANCO | H133: 0 | I133: 0 | J133: 0 | K133: 0 | L133: 0
A134: 22.333-6 | B134: 22.333-61 | C134: HELENA LOPES DA FONSECA | D134: 1 | E134: F | F134: 0 | G134: P. BANCO | H134: 0 | I134: 0 | J134: 0 | K134: 0 | L134: 0
A135: 22.409-0 | B135: 22.409-01 | C135: MARCIA SIQUEIRA FRANÇA CAMPOS | D135: 1 | E135: F | F135: 0 | G135: 0 | H135: 0 | I135: 0 | J135: 0 | K135: 0 | L135: 0
A136: 22.409-0 | B136: 22.409-02 | C136: ALMIRA FERREIRA COIMBRA | D136: 2 | E136: F | F136: 0 | G136: 0 | H136: 0 | I136: 0 | J136: 0 | K136: 0 | L136: 0
A137: 22.414-6 | B137: 22.414-61 | C137: ALDA MARIA DE JESUS | D137: 1 | E137: F | F137: 0 | G137: 0 | H137: 0 | I137: 0 | J137: 0 | K137: 0 | L137: 0
A138: 22.414-6 | B138: 22.414-61 | C138: MARIA DE LOURDES | D138: 1 | E138: F | F138: 0 | G138: 0 | H138: 0 | I138: 0 | J138: 0 | K138: 0 | L138: 0
A139: 22.486-3 | B139: 22.486-31 | C139: MARIA DA CONCEIÇÃO DE SOUZA LIMA SCHETTINI | D139: 1 | E139: F | F139: 0 | G139: 0 | H139: 0 | I139: 0 | J139: 0 | K139: 0 | L139: 0
A140: 22.497-9 | B140: 22.497-91 | C140: IVETE VARGAS DE OLIVEIRA | D140: 1 | E140: F | F140: 0 | G140: 0 | H140: 0 | I140: 0 | J140: 0 | K140: 0 | L140: 0
A141: 22.539-8 | B141: 22.539-81 | C141: MARIA DOS REIS GOMES PRADO MENEZES | D141: 1 | E141: F | F141: 0 | G141: 0 | H141: 0 | I141: 0 | J141: 0 | K141: 0 | L141: 0
A142: 22.539-8 | B142: 22.539-82 | C142: RAMON RODIGO GOMES MENEZES | D142: 2 | E142: F | F142: 0 | G142: 0 | H142: 0 | I142: 0 | J142: 0 | K142: 0 | L142: 0
A143: 22.613-0 | B143: 22.613-01 | C143: MARIA APARECIDA DE CAMPOS | D143: 1 | E143: F | F143: 60-78 | G143: 0 | H143: 0 | I143: 0 | J143: 0 | K143: 0 | L143: 0
A144: 22.613-0 | B144: 22.613-02 | C144: MARIA DO ROSÁRIO DOMINGUITO | D144: 2 | E144: F | F144: 0 | G144: 0 | H144: 0 | I144: 0 | J144: 0 | K144: 0 | L144: 0
A145: 23.776-0 | B145: 23.776-01 | C145: MARIA LUCIA RODRIGUES BASTOS | D145: 1 | E145: F | F145: 0 | G145: 0 | H145: 0 | I145: 0 | J145: 0 | K145: 0 | L145: 0
A146: 23.776-0 | B146: 23.776-02 | C146: LEVINA GLAYCE RODRIGUES BASTOS | D146: 2 | E146: F | F146: 0 | G146: 0 | H146: 0 | I146: 0 | J146: 0 | K146: 0 | L146: 0
A147: 52.888-9 | B147: 52.888-91 | C147: WALTER GRUBER | D147: 1 | E147: F | F147: 45-49 | G147: P. IPSEMG | H147: 0 | I147: 0 | J147: 0 | K147: 0 | L147: 0
A148: 23.929-1 | B148: 23.929-11 | C148: SEBASTIANA EUZÉBIA LEMOS | D148: 1 | E148: F | F148: 0 | G148: 0 | H148: 0 | I148: 0 | J148: 0 | K148: 0 | L148: 0
A149: 22.888-5 | B149: 22.888-51 | C149: MERCIA NEVES GARCIA | D149: 1 | E149: F | F149: 190 | G149: P. BANCO | H149: 0 | I149: 0 | J149: 0 | K149: 0 | L149: 0
A150: 24.065-6 | B150: 24.065-61 | C150: MARIA GORETE DE AZEVEDO | D150: 1 | E150: F | F150: 0 | G150: 0 | H150: 0 | I150: 0 | J150: 0 | K150: 0 | L150: 0
A151: 24.207-1 | B151: 24.207-11 | C151: MARIA FERRAZ FERREIRA | D151: 1 | E151: F | F151: 0 | G151: 0 | H151: 0 | I151: 0 | J151: 0 | K151: 0 | L151: 0
A152: 24.308-6 | B152: 24.308-61 | C152: ANA SÍLVIA TEODORO DIAS | D152: 1 | E152: F | F152: 0 | G152: P. BANCO | H152: 0 | I152: 0 | J152: 0 | K152: 0 | L152: 0
A153: 24.458-9 | B153: 24.458-91 | C153: NEUSA MARIA CARDOSO | D153: 1 | E153: F | F153: 0 | G153: 0 | H153: 0 | I153: 0 | J153: 0 | K153: 0 | L153: 0
A154: 24.529-1 | B154: 24.529-11 | C154: CARMEM SANCHES MOREIRA | D154: 1 | E154: F | F154: 0 | G154: 0 | H154: 0 | I154: 0 | J154: 0 | K154: 0 | L154: 0
A155: 24.971-8 | B155: 24.971-81 | C155: CUSTÓDIA ALVES DE FREITAS | D155: 1 | E155: F | F155: 0 | G155: 0 | H155: 0 | I155: 0 | J155: 0 | K155: 0 | L155: 0
A156: 25.011-2 | B156: 25.011-21 | C156: LAZARO RAMOS PIMENTA | D156: 1 | E156: F | F156: 0 | G156: 0 | H156: 0 | I156: 0 | J156: 0 | K156: 0 | L156: 0
A157: 25.044-9 | B157: 25.044-91 | C157: LUCIANO AUGUSTO TADEU DE SOUZA | D157: 1 | E157: F | F157: 0 | G157: 0 | H157: 0 | I157: 0 | J157: 0 | K157: 0 | L157: 0
A158: 25.227-1 | B158: 25.227-11 | C158: MARIA CECÍLIA CORREA | D158: 1 | E158: F | F158: 0 | G158: 0 | H158: 0 | I158: 0 | J158: 0 | K158: 0 | L158: 0
A159: 08.374-7 | B159: 08.374-71 | C159: MARIA CORREA PEREIRA | D159: 1 | E159: F | F159: 0 | G159: P. BANCO | H159: 0 | I159: 0 | J159: 0 | K159: 0 | L159: 0
A160: 25.260-3 | B160: 25.260-31 | C160: LUZIA BENTA DA SILVA | D160: 1 | E160: F | F160: 0 | G160: DECL. V R | H160: 0 | I160: 0 | J160: 0 | K160: 0 | L160: 0
A161: 25.299-9 | B161: 25.299-91 | C161: MARIA ROSA DE REZENDE CUNHA | D161: 1 | E161: F | F161: 0 | G161: 0 | H161: 0 | I161: 0 | J161: 0 | K161: 0 | L161: 0
A162: 25.405-3 | B162: 25.405-31 | C162: MARIA DA CONCEIÇÃO LATINI DE SOUZA | D162: 1 | E162: F | F162: 0 | G162: P. BANCO | H162: 0 | I162: 0 | J162: 0 | K162: 0 | L162: 0
A163: 25.431-2 | B163: 25.431-21 | C163: VICENTINA ANA RODRIGUES | D163: 1 | E163: F | F163: 0 | G163: P. BANCO | H163: 0 | I163: 0 | J163: 0 | K163: 0 | L163: 0
A164: 25.441-0 | B164: 25.441-01 | C164: NEUSA MARIA CARDOSO | D164: 1 | E164: F | F164: 0 | G164: P. BANCO | H164: 0 | I164: 0 | J164: 0 | K164: 0 | L164: 0
A165: 25.474-6 | B165: 25.474-61 | C165: ALAIDE FATIMA BRITO SILVEIRA | D165: 1 | E165: F | F165: 0 | G165: 0 | H165: 0 | I165: 0 | J165: 0 | K165: 0 | L165: 0
A166: 25.576-9 | B166: 25.576-91 | C166: ERNESTINA DOURADO SOBRINHA CORREA MACHADO | D166: 1 | E166: F | F166: 0 | G166: 0 | H166: 0 | I166: 0 | J166: 0 | K166: 0 | L166: 0
A167: 25.576-9 | B167: 25.576-92 | C167: MARINA DOURADO CORREA MACHADO | D167: 2 | E167: F | F167: 0 | G167: 0 | H167: 0 | I167: 0 | J167: 0 | K167: 0 | L167: 0
A168: 25.618-8 | B168: 25.618-81 | C168: JIZLENE ALVES SARAIVA | D168: 1 | E168: F | F168: 0 | G168: 0 | H168: 0 | I168: 0 | J168: 0 | K168: 0 | L168: 0
A169: 25.763-0 | B169: =CONCATENATE(A169,D169) -> 25.763-01 | C169: MARIA MARILDA MAIA DUMONT | D169: 1 | E169: F | F169: 0 | G169: 0 | H169: 0 | I169: 0 | J169: 0 | K169: 0 | L169: 0
A170: 25.825-3 | B170: 25.825-31 | C170: MARIA ESTER DE CASTRO | D170: 1 | E170: F | F170: 0 | G170: P. BANCO | H170: 0 | I170: 0 | J170: 0 | K170: 0 | L170: 0
A171: 26.260-9 | B171: 26.260-91 | C171: CELSO TARCISIO DA ROCHA | D171: 1 | E171: F | F171: 0 | G171: 0 | H171: 0 | I171: 0 | J171: 0 | K171: 0 | L171: 0
A172: 26.406-7 | B172: 26.406-71 | C172: LUZIA TORRES BENTO | D172: 1 | E172: F | F172: 0 | G172: P. BANCO | H172: 0 | I172: 0 | J172: 0 | K172: 0 | L172: 0
A173: 26.432-6 | B173: 26.432-61 | C173: CLEUSA DE FÁTIMA GUEDES | D173: 1 | E173: F | F173: 0 | G173: P. BANCO | H173: 0 | I173: 0 | J173: 0 | K173: 0 | L173: 0
A174: 26.543-8 | B174: 26.543-81 | C174: BENEDITA MARIA RIBEIRO | D174: 1 | E174: F | F174: 0 | G174: P. BANCO | H174: 0 | I174: 0 | J174: 0 | K174: 0 | L174: 0
A175: 26.633-7 | B175: 26.633-71 | C175: TEREZINHA MARIA DE JESUS | D175: 1 | E175: F | F175: 0 | G175: 0 | H175: 0 | I175: 0 | J175: 0 | K175: 0 | L175: 0
A176: 26.810-0 | B176: 26.810-01 | C176: TEREZINHA DE CASTRO RIBEIRO | D176: 1 | E176: F | F176: 0 | G176: CANCELADA | H176: 0 | I176: 0 | J176: 0 | K176: 0 | L176: 0
A177: 26.872-0 | B177: 26.872-01 | C177: ADÉLIA APARECIDA MARCELINO | D177: 1 | E177: F | F177: 0 | G177: 0 | H177: 0 | I177: 0 | J177: 0 | K177: 0 | L177: 0
A178: 26.872-0 | B178: 26.872-02 | C178: TEREZA APARECIDA MARCELINO | D178: 2 | E178: F | F178: 0 | G178: 0 | H178: 0 | I178: 0 | J178: 0 | K178: 0 | L178: 0
A179: 27.185-3 | B179: 27.185-31 | C179: ERICH AUGUSTO MICHELATTO PALMA | D179: 1 | E179: F | F179: 0 | G179: P. BANCO | H179: 0 | I179: 0 | J179: 0 | K179: 0 | L179: 0
A180: 27.185-3 | B180: 27.185-32 | C180: SANDRA APARECIDAMICHELATTO PALMA | D180: 2 | E180: F | F180: 0 | G180: P. BANCO | H180: 0 | I180: 0 | J180: 0 | K180: 0 | L180: 0
A181: 27.225-6 | B181: 27.225-61 | C181: TEREZINHA DE MIRANDA SALVADOR | D181: 1 | E181: F | F181: 0 | G181: 0 | H181: 0 | I181: 0 | J181: 0 | K181: 0 | L181: 0
A182: 27.225-6 | B182: 27.225-62 | C182: ROSIMERE RODRIGUES DE LIMA | D182: 2 | E182: F | F182: 0 | G182: 0 | H182: 0 | I182: 0 | J182: 0 | K182: 0 | L182: 0
A183: 27.302-3 | B183: 27.302-31 | C183: MARIA FERREIRA BRAGA | D183: 1 | E183: F | F183: 0 | G183: 0 | H183: 0 | I183: 0 | J183: 0 | K183: 0 | L183: 0
A184: 27.405-4 | B184: 27.405-41 | C184: MARIA DE LOURDES MENDES DE PAULA | D184: 1 | E184: F | F184: 0 | G184: PRESENCIAL IPSEMG | H184: 0 | I184: 0 | J184: 0 | K184: 0 | L184: 0
A185: 27.433-0 | B185: 27.433-01 | C185: PEDRO HENRIQUE OLIVEIRA DINIZ | D185: 1 | E185: F | F185: 0 | G185: 0 | H185: 0 | I185: 0 | J185: 0 | K185: 0 | L185: 0
A186: 27.491-7 | B186: 27.491-71 | C186: LEONARDO DE MATOS CASAES | D186: 1 | E186: F | F186: 0 | G186: 0 | H186: 0 | I186: 0 | J186: 0 | K186: 0 | L186: 0
A187: 27.491-7 | B187: 27.491-72 | C187: LUCILIA DE MATOS CASAES | D187: 2 | E187: F | F187: 0 | G187: 0 | H187: 0 | I187: 0 | J187: 0 | K187: 0 | L187: 0
A188: 27.491-7 | B188: 27.491-73 | C188: MARLLON DE MATOS CASAES | D188: 3 | E188: F | F188: 0 | G188: 0 | H188: 0 | I188: 0 | J188: 0 | K188: 0 | L188: 0
A189: 27.580-8 | B189: 27.580-81 | C189: CONCEIÇÃO BUGGIONE GOMES | D189: 1 | E189: F | F189: 0 | G189: P. BANCO | H189: 0 | I189: 0 | J189: 0 | K189: 0 | L189: 0
A190: 27.587-5 | B190: 27.587-51 | C190: BIGAIR CEZARIA DE SIQUEIRA | D190: 1 | E190: F | F190: 0 | G190: 0 | H190: 0 | I190: 0 | J190: 0 | K190: 0 | L190: 0
A191: 27.593-0 | B191: 27.593-01 | C191: DALVANORA NORONHA SILVA | D191: 1 | E191: F | F191: 0 | G191: 0 | H191: 0 | I191: 0 | J191: 0 | K191: 0 | L191: 0
A192: 27.623-5 | B192: 27.623-51 | C192: ONESIA MACHADO DA SILVA | D192: 1 | E192: F | F192: 0 | G192: 0 | H192: 0 | I192: 0 | J192: 0 | K192: 0 | L192: 0
A193: 27.943-9 | B193: 27.943-91 | C193: AGRIPINA ASSUNÇÃO PEDRA | D193: 1 | E193: F | F193: 0 | G193: 0 | H193: 0 | I193: 0 | J193: 0 | K193: 0 | L193: 0
A194: 27.956-0 | B194: 27.956-01 | C194: LEA SERRA AZOLA | D194: 1 | E194: F | F194: 0 | G194: P. BANCO | H194: 0 | I194: 0 | J194: 0 | K194: 0 | L194: 0
A195: 28.145-0 | B195: 28.145-01 | C195: MARIA JANUÁRIA DE AZEVEDO | D195: 1 | E195: F | F195: 0 | G195: 0 | H195: 0 | I195: 0 | J195: 0 | K195: 0 | L195: 0
A196: 28.165-4 | B196: 28.165-41 | C196: MARIA DE FATIMA PEREIRA DOMICIANO | D196: 1 | E196: F | F196: 0 | G196: 0 | H196: 0 | I196: 0 | J196: 0 | K196: 0 | L196: 0
A197: 28.179-4 | B197: 28.179-41 | C197: MARIA DAS GRAÇAS PEIXOTO SILVA | D197: 1 | E197: F | F197: 0 | G197: 0 | H197: 0 | I197: 0 | J197: 0 | K197: 0 | L197: 0
A198: 28.179-4 | B198: 28.179-42 | C198: ADRIANA PEREIRA DOMICIANO | D198: 2 | E198: F | F198: 0 | G198: 0 | H198: 0 | I198: 0 | J198: 0 | K198: 0 | L198: 0
A199: 28.179-4 | B199: 28.179-43 | C199: MARCIO PEREIRA DOMICIANO | D199: 3 | E199: F | F199: 0 | G199: 0 | H199: 0 | I199: 0 | J199: 0 | K199: 0 | L199: 0
A200: 28.236-7 | B200: 28.236-71 | C200: MARIA DA CONSOLAÇÃO MOURA | D200: 1 | E200: F | F200: 0 | G200: 0 | H200: 0 | I200: 0 | J200: 0 | K200: 0 | L200: 0
... 326 more rows

Sheet ENDEREÇOS
A1: PROCESSO | B1: T | C1: CÓD. | D1: ENTIDADE | E1: DATA | F1: DOCUMENTO | G1: ENDEREÇO | H1: BAIRRO | I1: CIDADE | J1: UF | K1: CEP | L1: EMAIL | M1: TELEFONE | N1: CELULAR
A2: 0 | B2: 0 | C2: 0 | D2: - | G2: 0 | H2: 0 | I2: 0 | J2: 0 | K2: 0 | L2: 0 | M2: 0 | N2: 0
A3: 00.120-1 | B3: F | C3: 1 | D3: OLIVIA ALVES MATHEUS | G3: 0 | H3: 0 | I3: 0 | J3: 0 | K3: 0 | L3: 0 | M3: 0 | N3: 0
A4: 00.323-9 | B4: F | C4: 1 | D4: MARIA ALICE DE ALMEIDA | G4: 0 | H4: 0 | I4: 0 | J4: 0 | K4: 0 | L4: 0 | M4: 0 | N4: 0
A5: 01.635-7 | B5: F | C5: 1 | D5: ELZA DE PINHO TAVARES | G5: 0 | H5: 0 | I5: 0 | J5: 0 | K5: 0 | L5: 0 | M5: 0 | N5: 0
A6: 01.773-6 | B6: F | C6: 1 | D6: CACILDA DE LIMA SYRIO | G6: 0 | H6: 0 | I6: 0 | J6: 0 | K6: 0 | L6: 0 | M6: 0 | N6: 0
A7: 01.842-2 | B7: F | C7: 1 | D7: IRENE RIBEIRO DE ANDRADE | G7: 0 | H7: 0 | I7: 0 | J7: 0 | K7: 0 | L7: 0 | M7: 0 | N7: 0
A8: 04.490-3 | B8: F | C8: 1 | D8: JOSÉ DE ALELUIA FERREIRA | G8: 0 | H8: 0 | I8: 0 | J8: 0 | K8: 0 | L8: 0 | M8: 0 | N8: 0
A9: 04.790-2 | B9: F | C9: 1 | D9: ALICE VIEGAS DE ASSIS | G9: 0 | H9: 0 | I9: 0 | J9: 0 | K9: 0 | L9: 0 | M9: 0 | N9: 0
A10: 05.085-7 | B10: F | C10: 1 | D10: MARIA SALVINA DA COSTA | G10: 0 | H10: 0 | I10: 0 | J10: 0 | K10: 0 | L10: 0 | M10: 0 | N10: 0
A11: 34.498-2 | B11: F | C11: 1 | D11: FABIANE DE ALMEIDA | G11: 0 | H11: 0 | I11: 0 | J11: 0 | K11: 0 | L11: 0 | M11: 0 | N11: 0
A12: 14.863-6 | B12: F | C12: 1 | D12: MARIA DO SOCORRO LACERDA NERES | G12: 0 | H12: 0 | I12: 0 | J12: 0 | K12: 0 | L12: 0 | M12: 0 | N12: 0
A13: 40.349-0 | B13: F | C13: 1 | D13: ERNESTINO RODRIGUES ALVES | G13: 0 | H13: 0 | I13: 0 | J13: 0 | K13: 0 | L13: 0 | M13: 0 | N13: 0
A14: 25.824-5 | B14: F | C14: 1 | D14: DULCE HELENA COSTA AMARAL | G14: 0 | H14: 0 | I14: 0 | J14: 0 | K14: 0 | L14: 0 | M14: 0 | N14: 0
A15: 16.421-6 | B15: F | C15: 1 | D15: JOSIMAR DOS SANTOS | G15: 0 | H15: 0 | I15: 0 | J15: 0 | K15: 0 | L15: 0 | M15: 0 | N15: 0
A16: 16.421-6 | B16: F | C16: 2 | D16: TEREZA PEREIRA DOS SANTOS | G16: 0 | H16: 0 | I16: 0 | J16: 0 | K16: 0 | L16: 0 | M16: 0 | N16: 0
A17: 05.293-0 | B17: F | C17: 1 | D17: MARIA FLOR DE MAIO SENA | G17: 0 | H17: 0 | I17: 0 | J17: 0 | K17: 0 | L17: 0 | M17: 0 | N17: 0
A18: 05.621-9 | B18: F | C18: 1 | D18: MARIA ANTÔNIA PEREIRA ALVES | G18: 0 | H18: 0 | I18: 0 | J18: 0 | K18: 0 | L18: 0 | M18: 0 | N18: 0
A19: 05.928-5 | B19: F | C19: 1 | D19: MARIA FLOR DE MAIO SENA | G19: 0 | H19: 0 | I19: 0 | J19: 0 | K19: 0 | L19: 0 | M19: 0 | N19: 0
A20: 05.971-4 | B20: F | C20: 1 | D20: ALZIRA RITA FERREIRA | G20: 0 | H20: 0 | I20: 0 | J20: 0 | K20: 0 | L20: 0 | M20: 0 | N20: 0
A21: 06.233-2 | B21: F | C21: 1 | D21: IONE LIMA DO AMARAL | G21: 0 | H21: 0 | I21: 0 | J21: 0 | K21: 0 | L21: 0 | M21: 0 | N21: 0
A22: 06.233-2 | B22: F | C22: 2 | D22: MARIA DO CARMO AMARAL | G22: 0 | H22: 0 | I22: 0 | J22: 0 | K22: 0 | L22: 0 | M22: 0 | N22: 0
A23: 06.336-3 | B23: F | C23: 1 | D23: HELIANA MARIA DE LACERDA | G23: 0 | H23: 0 | I23: 0 | J23: 0 | K23: 0 | L23: 0 | M23: 0 | N23: 0
A24: 30.037-3 | B24: F | C24: 1 | D24: MARIA FERREIRA DE CASTRO | G24: 0 | H24: 0 | I24: 0 | J24: 0 | K24: 0 | L24: 0 | M24: 0 | N24: 0
A25: 06.464-5 | B25: F | C25: 1 | D25: OLIMPIA DE LIMA RUELA | G25: 0 | H25: 0 | I25: 0 | J25: 0 | K25: 0 | L25: 0 | M25: 0 | N25: 0
A26: 26.966-2 | B26: F | C26: 1 | D26: DIOMAR RIBEIRO RESENDE | G26: 0 | H26: 0 | I26: 0 | J26: 0 | K26: 0 | L26: 0 | M26: 0 | N26: 0
A27: 30.400-0 | B27: F | C27: 1 | D27: MARIA APARECIDA COSTA ETELVINO | G27: 0 | H27: 0 | I27: 0 | J27: 0 | K27: 0 | L27: 0 | M27: 0 | N27: 0
A28: 35.935-1 | B28: F | C28: 1 | D28: JULIA VALERIA ABRAHÃO FRANCISCO BERNARDO | G28: 0 | H28: 0 | I28: 0 | J28: 0 | K28: 0 | L28: 0 | M28: 0 | N28: 0
A29: 39.080-1 | B29: F | C29: 1 | D29: MARIA LUIZA DE ANDRADE MIOTTO | G29: 0 | H29: 0 | I29: 0 | J29: 0 | K29: 0 | L29: 0 | M29: 0 | N29: 0
A30: 33.280-1 | B30: F | C30: 1 | D30: MARIA SOUZA DOS SANTOS | G30: 0 | H30: 0 | I30: 0 | J30: 0 | K30: 0 | L30: 0 | M30: 0 | N30: 0
A31: 16.229-9 | B31: F | C31: 1 | D31: MARIA STELA ZAULI | G31: 0 | H31: 0 | I31: 0 | J31: 0 | K31: 0 | L31: 0 | M31: 0 | N31: 0
A32: 23.942-9 | B32: F | C32: 1 | D32: ERCINA CONCEIÇÃO REIS | G32: 0 | H32: 0 | I32: 0 | J32: 0 | K32: 0 | L32: 0 | M32: 0 | N32: 0
A33: 26.632-9 | B33: F | C33: 1 | D33: DIVA DA SILVA TOLEDO CARVALHO | G33: 0 | H33: 0 | I33: 0 | J33: 0 | K33: 0 | L33: 0 | M33: 0 | N33: 0
A34: 12.651-9 | B34: F | C34: 1 | D34: APARECIDA MARIA SILVA PRESTES | G34: 0 | H34: 0 | I34: 0 | J34: 0 | K34: 0 | L34: 0 | M34: 0 | N34: 0
A35: 06.531-5 | B35: F | C35: 1 | D35: WALDETE NEDER BORGES | G35: 0 | H35: 0 | I35: 0 | J35: 0 | K35: 0 | L35: 0 | M35: 0 | N35: 0
A36: 35.656-5 | B36: F | C36: 1 | D36: ADELINA CAMPOS DE GODOY | G36: 0 | H36: 0 | I36: 0 | J36: 0 | K36: 0 | L36: 0 | M36: 0 | N36: 0
A37: 26.156-4 | B37: F | C37: 1 | D37: ALAIDE FATIMA BRITO SILVEIRA | G37: 0 | H37: 0 | I37: 0 | J37: 0 | K37: 0 | L37: 0 | M37: 0 | N37: 0
A38: 37.204-8 | B38: F | C38: 1 | D38: MARIA MONTEIRO DA SILVA | G38: 0 | H38: 0 | I38: 0 | J38: 0 | K38: 0 | L38: 0 | M38: 0 | N38: 0
A39: 14.816-4 | B39: F | C39: 1 | D39: ELZA DE BARROS VIEIRA | G39: 0 | H39: 0 | I39: 0 | J39: 0 | K39: 0 | L39: 0 | M39: 0 | N39: 0
A40: 35.037-0 | B40: F | C40: 1 | D40: MARIA DO CARMO ALBERGARIA MAFFRA | G40: 0 | H40: 0 | I40: 0 | J40: 0 | K40: 0 | L40: 0 | M40: 0 | N40: 0
A41: 29.543-4 | B41: F | C41: 1 | D41: ELIA DARC GOMES DIAS | G41: 0 | H41: 0 | I41: 0 | J41: 0 | K41: 0 | L41: 0 | M41: 0 | N41: 0
A42: 06.797-0 | B42: F | C42: 1 | D42: ADAIL MARIA DE LOURDES | G42: 0 | H42: 0 | I42: 0 | J42: 0 | K42: 0 | L42: 0 | M42: 0 | N42: 0
A43: 06.797-0 | B43: F | C43: 2 | D43: MARIA LÚCIA DE MELO | G43: 0 | H43: 0 | I43: 0 | J43: 0 | K43: 0 | L43: 0 | M43: 0 | N43: 0
A44: 06.797-0 | B44: F | C44: 2 | D44: FLORINDA AUGUSTA CONCEIÇÃO MELO | G44: 0 | H44: 0 | I44: 0 | J44: 0 | K44: 0 | L44: 0 | M44: 0 | N44: 0
A45: 07.120-0 | B45: F | C45: 1 | D45: CELEDA MARIA DE JESUS BARBOSA | G45: 0 | H45: 0 | I45: 0 | J45: 0 | K45: 0 | L45: 0 | M45: 0 | N45: 0
A46: 07.736-4 | B46: F | C46: 1 | D46: NATALIA SIQUEIRA FRIACA | G46: 0 | H46: 0 | I46: 0 | J46: 0 | K46: 0 | L46: 0 | M46: 0 | N46: 0
A47: 07.746-1 | B47: F | C47: 1 | D47: LOYDE DE OLIVEIRA FERREIRA | G47: 0 | H47: 0 | I47: 0 | J47: 0 | K47: 0 | L47: 0 | M47: 0 | N47: 0
A48: 07.952-9 | B48: F | C48: 1 | D48: DALVA ROSA DE OLIVEIRA LOPES | G48: 0 | H48: 0 | I48: 0 | J48: 0 | K48: 0 | L48: 0 | M48: 0 | N48: 0
A49: 08.556-1 | B49: F | C49: 1 | D49: REGINA MARTINS GUERRA | G49: 0 | H49: 0 | I49: 0 | J49: 0 | K49: 0 | L49: 0 | M49: 0 | N49: 0
A50: 09.183-9 | B50: F | C50: 1 | D50: CONCEIÇÃO AMARAL MENDES | G50: 0 | H50: 0 | I50: 0 | J50: 0 | K50: 0 | L50: 0 | M50: 0 | N50: 0
A51: 10.445-0 | B51: F | C51: 2 | D51: MARIA ILEDA DE MELO | G51: 0 | H51: 0 | I51: 0 | J51: 0 | K51: 0 | L51: 0 | M51: 0 | N51: 0
A52: 10.445-0 | B52: F | C52: 1 | D52: KATIA REGINA DE MELO | G52: 0 | H52: 0 | I52: 0 | J52: 0 | K52: 0 | L52: 0 | M52: 0 | N52: 0
A53: 10.452-3 | B53: F | C53: 1 | D53: DENISE VIEIRA SINGI | G53: 0 | H53: 0 | I53: 0 | J53: 0 | K53: 0 | L53: 0 | M53: 0 | N53: 0
A54: 10.690-0 | B54: F | C54: 1 | D54: MARIA JOSÉ HERMENEGILDA | G54: 0 | H54: 0 | I54: 0 | J54: 0 | K54: 0 | L54: 0 | M54: 0 | N54: 0
A55: 10.936-3 | B55: F | C55: 1 | D55: OLMPIA DE LIMA RUELA | G55: 0 | H55: 0 | I55: 0 | J55: 0 | K55: 0 | L55: 0 | M55: 0 | N55: 0
A56: 10.998-3 | B56: F | C56: 1 | D56: SOFIA PEREIRA DOS SANTOS | G56: 0 | H56: 0 | I56: 0 | J56: 0 | K56: 0 | L56: 0 | M56: 0 | N56: 0
A57: 11.247-0 | B57: F | C57: 1 | D57: ANA BATISTA CARDOSO | G57: 0 | H57: 0 | I57: 0 | J57: 0 | K57: 0 | L57: 0 | M57: 0 | N57: 0
A58: 11.345-0 | B58: F | C58: 1 | D58: MARIA AUGUSTA ATAIDE ARAUJO | G58: 0 | H58: 0 | I58: 0 | J58: 0 | K58: 0 | L58: 0 | M58: 0 | N58: 0
A59: 11.444-8 | B59: F | C59: 1 | D59: FRANCISCA INEZ BELEM | G59: 0 | H59: 0 | I59: 0 | J59: 0 | K59: 0 | L59: 0 | M59: 0 | N59: 0
A60: 11.598-3 | B60: F | C60: 1 | D60: FLAUZINA ROSA CORREA | G60: 0 | H60: 0 | I60: 0 | J60: 0 | K60: 0 | L60: 0 | M60: 0 | N60: 0
A61: 11.998-9 | B61: F | C61: 1 | D61: MARIA DA CONCEIÇÃO FRAMCO | G61: 0 | H61: 0 | I61: 0 | J61: 0 | K61: 0 | L61: 0 | M61: 0 | N61: 0
A62: 12.104-5 | B62: F | C62: 1 | D62: ENI MARIA ELETO MONTEIRO | G62: 0 | H62: 0 | I62: 0 | J62: 0 | K62: 0 | L62: 0 | M62: 0 | N62: 0
A63: 12.484-2 | B63: F | C63: 1 | D63: MARIA IONE MIGUEL | G63: 0 | H63: 0 | I63: 0 | J63: 0 | K63: 0 | L63: 0 | M63: 0 | N63: 0
A64: 12.484-2 | B64: F | C64: 2 | D64: CLEIDINEIAMIGUEL | G64: 0 | H64: 0 | I64: 0 | J64: 0 | K64: 0 | L64: 0 | M64: 0 | N64: 0
A65: 12.720-5 | B65: F | C65: 1 | D65: MARIA DA CONCEIÇÃO ALMEIDA | G65: 0 | H65: 0 | I65: 0 | J65: 0 | K65: 0 | L65: 0 | M65: 0 | N65: 0
A66: 12.806-6 | B66: F | C66: 1 | D66: VITÓRIA PORFÍRIA DE MORAES | G66: 0 | H66: 0 | I66: 0 | J66: 0 | K66: 0 | L66: 0 | M66: 0 | N66: 0
A67: 12.835-0 | B67: F | C67: 1 | D67: TEREZINHA DE AVELAR SENNA | G67: 0 | H67: 0 | I67: 0 | J67: 0 | K67: 0 | L67: 0 | M67: 0 | N67: 0
A68: 13.326-4 | B68: F | C68: 2 | D68: DOLORES CRISTINA ANDRADE | G68: 0 | H68: 0 | I68: 0 | J68: 0 | K68: 0 | L68: 0 | M68: 0 | N68: 0
A69: 13.326-4 | B69: F | C69: 1 | D69: MARIA VALDA BOERI ANDRADE | G69: 0 | H69: 0 | I69: 0 | J69: 0 | K69: 0 | L69: 0 | M69: 0 | N69: 0
A70: 13.383-3 | B70: F | C70: 1 | D70: MARIA JOSE DA SILVA GRANATO | G70: 0 | H70: 0 | I70: 0 | J70: 0 | K70: 0 | L70: 0 | M70: 0 | N70: 0
A71: 13.563-1 | B71: F | C71: 1 | D71: IVANI MARIA DO ROSÁRIO BARBOSA | G71: 0 | H71: 0 | I71: 0 | J71: 0 | K71: 0 | L71: 0 | M71: 0 | N71: 0
A72: 13.563-1 | B72: F | C72: 2 | D72: MARIA APARECIDA SILVA BARBOSA | G72: 0 | H72: 0 | I72: 0 | J72: 0 | K72: 0 | L72: 0 | M72: 0 | N72: 0
A73: 13.563-1 | B73: F | C73: 3 | D73: MARIA SEBASTIANA DA COSTA BARBOSA | G73: 0 | H73: 0 | I73: 0 | J73: 0 | K73: 0 | L73: 0 | M73: 0 | N73: 0
A74: 13.563-1 | B74: F | C74: 4 | D74: VIVIANI DA COSTA BARBOSA | G74: 0 | H74: 0 | I74: 0 | J74: 0 | K74: 0 | L74: 0 | M74: 0 | N74: 0
A75: 13.673-5 | B75: F | C75: 1 | D75: ELZITA DE SENA NASCIMENTO DOS SANTOS | G75: 0 | H75: 0 | I75: 0 | J75: 0 | K75: 0 | L75: 0 | M75: 0 | N75: 0
A76: 13.693-0 | B76: F | C76: 1 | D76: JOAQUIM MARQUES DE OLIVEIRA FILHO | G76: 0 | H76: 0 | I76: 0 | J76: 0 | K76: 0 | L76: 0 | M76: 0 | N76: 0
A77: 13.815-0 | B77: F | C77: 1 | D77: KATIA MARIA MENDONÇA | G77: 0 | H77: 0 | I77: 0 | J77: 0 | K77: 0 | L77: 0 | M77: 0 | N77: 0
A78: 13.815-0 | B78: F | C78: 2 | D78: SONIA MARIA MENDONÇA | G78: 0 | H78: 0 | I78: 0 | J78: 0 | K78: 0 | L78: 0 | M78: 0 | N78: 0
A79: 13.839-2 | B79: F | C79: 1 | D79: YEDA CARDOSO MAYRINK XAVIER | G79: 0 | H79: 0 | I79: 0 | J79: 0 | K79: 0 | L79: 0 | M79: 0 | N79: 0
A80: 11.505-3 | B80: F | C80: 1 | D80: MARIANGELA DE CHANTAL FONSECA | G80: 0 | H80: 0 | I80: 0 | J80: 0 | K80: 0 | L80: 0 | M80: 0 | N80: 0
A81: 20.106-5 | B81: F | C81: 1 | D81: MARIA MADDALENA DA SILVA | G81: 0 | H81: 0 | I81: 0 | J81: 0 | K81: 0 | L81: 0 | M81: 0 | N81: 0
A82: 14.281-6 | B82: F | C82: 1 | D82: ODETE CATARINA SILVA OLIVEIRA | G82: 0 | H82: 0 | I82: 0 | J82: 0 | K82: 0 | L82: 0 | M82: 0 | N82: 0
A83: 41.861-7 | B83: F | C83: 1 | D83: HELENA MARIA DE SOUZA OLIVEIRA | G83: 0 | H83: 0 | I83: 0 | J83: 0 | K83: 0 | L83: 0 | M83: 0 | N83: 0
A84: 14.391-0 | B84: F | C84: 1 | D84: MARIA HELENA GUEDES PEREIRA | G84: 0 | H84: 0 | I84: 0 | J84: 0 | K84: 0 | L84: 0 | M84: 0 | N84: 0
A85: 09.388-2 | B85: F | C85: 1 | D85: NOEME MARES FIGUEIREDO | G85: 0 | H85: 0 | I85: 0 | J85: 0 | K85: 0 | L85: 0 | M85: 0 | N85: 0
A86: 14.761-3 | B86: F | C86: 1 | D86: EDITE SENA OLIVEIRA | G86: 0 | H86: 0 | I86: 0 | J86: 0 | K86: 0 | L86: 0 | M86: 0 | N86: 0
A87: 14.824-5 | B87: F | C87: 1 | D87: JACY MATHIAS MEIRA TOMÉ | G87: 0 | H87: 0 | I87: 0 | J87: 0 | K87: 0 | L87: 0 | M87: 0 | N87: 0
A88: 15.033-9 | B88: F | C88: 1 | D88: MARGARIDA DE OLIVEIRA VILAÇA | G88: 0 | H88: 0 | I88: 0 | J88: 0 | K88: 0 | L88: 0 | M88: 0 | N88: 0
A89: 15.457-1 | B89: F | C89: 1 | D89: CARMEN LÚCIA BELCHIOR RODRIGUES | G89: 0 | H89: 0 | I89: 0 | J89: 0 | K89: 0 | L89: 0 | M89: 0 | N89: 0
A90: 15.577-2 | B90: F | C90: 1 | D90: IRIS RECENVINDA ROSA PINHEIRO | G90: 0 | H90: 0 | I90: 0 | J90: 0 | K90: 0 | L90: 0 | M90: 0 | N90: 0
A91: 15.577-2 | B91: F | C91: 2 | D91: MARIA DAS GRAÇAS PINHEIRO DOS SANTOS | G91: 0 | H91: 0 | I91: 0 | J91: 0 | K91: 0 | L91: 0 | M91: 0 | N91: 0
A92: 15.652-3 | B92: F | C92: 1 | D92: BENEDITO CAPUTO | G92: 0 | H92: 0 | I92: 0 | J92: 0 | K92: 0 | L92: 0 | M92: 0 | N92: 0
A93: 16.020-2 | B93: F | C93: 1 | D93: MAGALI JOSE PIRES MISAEL | G93: 0 | H93: 0 | I93: 0 | J93: 0 | K93: 0 | L93: 0 | M93: 0 | N93: 0
A94: 16.331-7 | B94: F | C94: 1 | D94: MARIA APARECIDA DA COSTA | G94: 0 | H94: 0 | I94: 0 | J94: 0 | K94: 0 | L94: 0 | M94: 0 | N94: 0
A95: 16.802-5 | B95: F | C95: 1 | D95: MARIA CLELIA DOS SANTOS DE PAULO | G95: 0 | H95: 0 | I95: 0 | J95: 0 | K95: 0 | L95: 0 | M95: 0 | N95: 0
A96: 16.960-9 | B96: F | C96: 1 | D96: VANILDA GOMES RUAS | G96: 0 | H96: 0 | I96: 0 | J96: 0 | K96: 0 | L96: 0 | M96: 0 | N96: 0
A97: 17.584-5 | B97: F | C97: 1 | D97: GERALDA MARIA DE SOUZA | G97: 0 | H97: 0 | I97: 0 | J97: 0 | K97: 0 | L97: 0 | M97: 0 | N97: 0
A98: 17.806-3 | B98: F | C98: 1 | D98: DENISE DE LIMA MIRANDA | G98: 0 | H98: 0 | I98: 0 | J98: 0 | K98: 0 | L98: 0 | M98: 0 | N98: 0
A99: 17.860-8 | B99: F | C99: 1 | D99: CIRIA RODRIGUES VILELA | G99: 0 | H99: 0 | I99: 0 | J99: 0 | K99: 0 | L99: 0 | M99: 0 | N99: 0
A100: 32.154-0 | B100: F | C100: 1 | D100: ALBERTINA DA TRINDADE LOURDES | G100: 0 | H100: 0 | I100: 0 | J100: 0 | K100: 0 | L100: 0 | M100: 0 | N100: 0
A101: 18.112-9 | B101: F | C101: 1 | D101: HAYDEE MENEZES PEREIRA | G101: 0 | H101: 0 | I101: 0 | J101: 0 | K101: 0 | L101: 0 | M101: 0 | N101: 0
A102: 18.247-8 | B102: F | C102: 1 | D102: TEREZINHA GONÇALVES VILARINO DA CUNHA | G102: 0 | H102: 0 | I102: 0 | J102: 0 | K102: 0 | L102: 0 | M102: 0 | N102: 0
A103: 18.434-9 | B103: F | C103: 1 | D103: THEREZA DA SILVA FERREIRA | G103: 0 | H103: 0 | I103: 0 | J103: 0 | K103: 0 | L103: 0 | M103: 0 | N103: 0
A104: 18.440-3 | B104: F | C104: 1 | D104: ANA MARIA ANDRÉ | G104: 0 | H104: 0 | I104: 0 | J104: 0 | K104: 0 | L104: 0 | M104: 0 | N104: 0
A105: 37.943-3 | B105: F | C105: 1 | D105: GERALDA MOTA ARAÚJO | G105: 0 | H105: 0 | I105: 0 | J105: 0 | K105: 0 | L105: 0 | M105: 0 | N105: 0
A106: 37.943-3 | B106: F | C106: 2 | D106: JOSÉ ROBERTO DE ARAÚJO
A107: 13.717-0 | B107: F | C107: 1 | D107: MARIA ANTONIETA CASTRO FARIA
A108: 18.614-7 | B108: F | C108: 1 | D108: RITA ALZIRA TERRA | G108: 0 | H108: 0 | I108: 0 | J108: 0 | K108: 0 | L108: 0 | M108: 0 | N108: 0
A109: 18.655-4 | B109: F | C109: 1 | D109: GERALDA MARIA DE SOUZA | G109: 0 | H109: 0 | I109: 0 | J109: 0 | K109: 0 | L109: 0 | M109: 0 | N109: 0
A110: 19.225-2 | B110: F | C110: 1 | D110: MARIA DAS DORES CORDEIRO MADUREIRA | G110: 0 | H110: 0 | I110: 0 | J110: 0 | K110: 0 | L110: 0 | M110: 0 | N110: 0
A111: 19.529-4 | B111: F | C111: 1 | D111: TEREZINHA LOPES DA SILVA | G111: 0 | H111: 0 | I111: 0 | J111: 0 | K111: 0 | L111: 0 | M111: 0 | N111: 0
A112: 19.910-9 | B112: F | C112: 1 | D112: MARIA AUXILIADORA BAPTISTA LEITE | G112: 0 | H112: 0 | I112: 0 | J112: 0 | K112: 0 | L112: 0 | M112: 0 | N112: 0
A113: 20.119-7 | B113: F | C113: 1 | D113: SEBASTIANA DOS SANTOS CRUZ | G113: 0 | H113: 0 | I113: 0 | J113: 0 | K113: 0 | L113: 0 | M113: 0 | N113: 0
A114: 30.811-0 | B114: F | C114: 1 | D114: GENI LOPES DA FONSECA | G114: 0 | H114: 0 | I114: 0 | J114: 0 | K114: 0 | L114: 0 | M114: 0 | N114: 0
A115: 20.284-3 | B115: F | C115: 1 | D115: ANITA DE PAULA | G115: 0 | H115: 0 | I115: 0 | J115: 0 | K115: 0 | L115: 0 | M115: 0 | N115: 0
A116: 20.284-3 | B116: F | C116: 1 | D116: BENEDITA DA SILVA GUIMARÃES | G116: 0 | H116: 0 | I116: 0 | J116: 0 | K116: 0 | L116: 0 | M116: 0 | N116: 0
A117: 20.284-3 | B117: F | C117: 2 | D117: MARILIA REIS ALVES SILVA | G117: 0 | H117: 0 | I117: 0 | J117: 0 | K117: 0 | L117: 0 | M117: 0 | N117: 0
A118: 14.413-4 | B118: F | C118: 1 | D118: AURORA MARIA SARAIVA | G118: 0 | H118: 0 | I118: 0 | J118: 0 | K118: 0 | L118: 0 | M118: 0 | N118: 0
A119: 14.413-4 | B119: F | C119: 2 | D119: ROSEMEIRE SARAIVA MOREIRA | G119: 0 | H119: 0 | I119: 0 | J119: 0 | K119: 0 | L119: 0 | M119: 0 | N119: 0
A120: 13.099-0 | B120: F | C120: 1 | D120: ANA BARBOSA FREIRE | G120: 0 | H120: 0 | I120: 0 | J120: 0 | K120: 0 | L120: 0 | M120: 0 | N120: 0
A121: 20.393-9 | B121: F | C121: 1 | D121: BENEDITA RIBEIRO DE OLIVEIRA | G121: 0 | H121: 0 | I121: 0 | J121: 0 | K121: 0 | L121: 0 | M121: 0 | N121: 0
A122: 20.393-9 | B122: F | C122: 1 | D122: WALDETE DRUMOND ZAGNOLI RABELO | G122: 0 | H122: 0 | I122: 0 | J122: 0 | K122: 0 | L122: 0 | M122: 0 | N122: 0
A123: 20.430-7 | B123: F | C123: 1 | D123: WILMA GUIMARÃES FERNANDES | G123: 0 | H123: 0 | I123: 0 | J123: 0 | K123: 0 | L123: 0 | M123: 0 | N123: 0
A124: 18.234-6 | B124: F | C124: 1 | D124: MARIA LUIZA PEREIRA | G124: 0 | H124: 0 | I124: 0 | J124: 0 | K124: 0 | L124: 0 | M124: 0 | N124: 0
A125: 20.514-1 | B125: F | C125: 1 | D125: SEBASTIANA DOS SANTOS CRUZ | G125: 0 | H125: 0 | I125: 0 | J125: 0 | K125: 0 | L125: 0 | M125: 0 | N125: 0
A126: 20.836-1 | B126: F | C126: 1 | D126: ANGELA MARIA PEREIRA GARCIA | G126: 0 | H126: 0 | I126: 0 | J126: 0 | K126: 0 | L126: 0 | M126: 0 | N126: 0
A127: 20.879-5 | B127: F | C127: 1 | D127: HELENA LOPES DA FONSECA | G127: 0 | H127: 0 | I127: 0 | J127: 0 | K127: 0 | L127: 0 | M127: 0 | N127: 0
A128: 20.962-7 | B128: F | C128: 1 | D128: MARIA JOSE DURÃO SILVA | G128: 0 | H128: 0 | I128: 0 | J128: 0 | K128: 0 | L128: 0 | M128: 0 | N128: 0
A129: 21.061-7 | B129: F | C129: 1 | D129: WALDETE DRUMOND ZAGNOLI RABELO | G129: 0 | H129: 0 | I129: 0 | J129: 0 | K129: 0 | L129: 0 | M129: 0 | N129: 0
A130: 21.763-8 | B130: F | C130: 1 | D130: ESTELITA DE MORAIS SANTANA E SILVA | G130: 0 | H130: 0 | I130: 0 | J130: 0 | K130: 0 | L130: 0 | M130: 0 | N130: 0
A131: 22.321-2 | B131: F | C131: 1 | D131: MARTA NOGUEIRA MARQUES | G131: 0 | H131: 0 | I131: 0 | J131: 0 | K131: 0 | L131: 0 | M131: 0 | N131: 0
A132: 22.327-1 | B132: F | C132: 1 | D132: TEREZINHA SERVIDEY DE AZEVEDO | G132: 0 | H132: 0 | I132: 0 | J132: 0 | K132: 0 | L132: 0 | M132: 0 | N132: 0
A133: 04.517-9 | B133: F | C133: 1 | D133: AUGUSTA VILELA DE ANDRADE | G133: 0 | H133: 0 | I133: 0 | J133: 0 | K133: 0 | L133: 0 | M133: 0 | N133: 0
A134: 22.333-6 | B134: F | C134: 1 | D134: HELENA LOPES DA FONSECA | G134: 0 | H134: 0 | I134: 0 | J134: 0 | K134: 0 | L134: 0 | M134: 0 | N134: 0
A135: 22.409-0 | B135: F | C135: 1 | D135: MARCIA SIQUEIRA FRANÇA CAMPOS | G135: 0 | H135: 0 | I135: 0 | J135: 0 | K135: 0 | L135: 0 | M135: 0 | N135: 0
A136: 22.409-0 | B136: F | C136: 2 | D136: ALMIRA FERREIRA COIMBRA | G136: 0 | H136: 0 | I136: 0 | J136: 0 | K136: 0 | L136: 0 | M136: 0 | N136: 0
A137: 22.414-6 | B137: F | C137: 1 | D137: ALDA MARIA DE JESUS | G137: 0 | H137: 0 | I137: 0 | J137: 0 | K137: 0 | L137: 0 | M137: 0 | N137: 0
A138: 22.414-6 | B138: F | C138: 1 | D138: MARIA DE LOURDES | G138: 0 | H138: 0 | I138: 0 | J138: 0 | K138: 0 | L138: 0 | M138: 0 | N138: 0
A139: 22.486-3 | B139: F | C139: 1 | D139: MARIA DA CONCEIÇÃO DE SOUZA LIMA SCHETTINI | G139: 0 | H139: 0 | I139: 0 | J139: 0 | K139: 0 | L139: 0 | M139: 0 | N139: 0
A140: 22.497-9 | B140: F | C140: 1 | D140: IVETE VARGAS DE OLIVEIRA | G140: 0 | H140: 0 | I140: 0 | J140: 0 | K140: 0 | L140: 0 | M140: 0 | N140: 0
A141: 22.539-8 | B141: F | C141: 1 | D141: MARIA DOS REIS GOMES PRADO MENEZES | G141: 0 | H141: 0 | I141: 0 | J141: 0 | K141: 0 | L141: 0 | M141: 0 | N141: 0
A142: 22.539-8 | B142: F | C142: 2 | D142: RAMON RODIGO GOMES MENEZES | G142: 0 | H142: 0 | I142: 0 | J142: 0 | K142: 0 | L142: 0 | M142: 0 | N142: 0
A143: 22.613-0 | B143: F | C143: 1 | D143: MARIA APARECIDA DE CAMPOS | G143: 0 | H143: 0 | I143: 0 | J143: 0 | K143: 0 | L143: 0 | M143: 0 | N143: 0
A144: 22.613-0 | B144: F | C144: 2 | D144: MARIA DO ROSÁRIO DOMINGUITO | G144: 0 | H144: 0 | I144: 0 | J144: 0 | K144: 0 | L144: 0 | M144: 0 | N144: 0
A145: 23.776-0 | B145: F | C145: 1 | D145: MARIA LUCIA RODRIGUES BASTOS | G145: 0 | H145: 0 | I145: 0 | J145: 0 | K145: 0 | L145: 0 | M145: 0 | N145: 0
A146: 23.776-0 | B146: F | C146: 2 | D146: LEVINA GLAYCE RODRIGUES BASTOS | G146: 0 | H146: 0 | I146: 0 | J146: 0 | K146: 0 | L146: 0 | M146: 0 | N146: 0
A147: 52.888-9 | B147: F | C147: 1 | D147: WALTER GRUBER | G147: 0 | H147: 0 | I147: 0 | J147: 0 | K147: 0 | L147: 0 | M147: 0 | N147: 0
A148: 23.929-1 | B148: F | C148: 1 | D148: SEBASTIANA EUZÉBIA LEMOS | G148: 0 | H148: 0 | I148: 0 | J148: 0 | K148: 0 | L148: 0 | M148: 0 | N148: 0
A149: 22.888-5 | B149: F | C149: 1 | D149: MERCIA NEVES GARCIA | G149: 0 | H149: 0 | I149: 0 | J149: 0 | K149: 0 | L149: 0 | M149: 0 | N149: 0
A150: 24.065-6 | B150: F | C150: 1 | D150: MARIA GORETE DE AZEVEDO | G150: 0 | H150: 0 | I150: 0 | J150: 0 | K150: 0 | L150: 0 | M150: 0 | N150: 0
A151: 24.207-1 | B151: F | C151: 1 | D151: MARIA FERRAZ FERREIRA | G151: 0 | H151: 0 | I151: 0 | J151: 0 | K151: 0 | L151: 0 | M151: 0 | N151: 0
A152: 24.308-6 | B152: F | C152: 1 | D152: ANA SÍLVIA TEODORO DIAS | G152: 0 | H152: 0 | I152: 0 | J152: 0 | K152: 0 | L152: 0 | M152: 0 | N152: 0
A153: 24.458-9 | B153: F | C153: 1 | D153: NEUSA MARIA CARDOSO | G153: 0 | H153: 0 | I153: 0 | J153: 0 | K153: 0 | L153: 0 | M153: 0 | N153: 0
A154: 24.529-1 | B154: F | C154: 1 | D154: CARMEM SANCHES MOREIRA | G154: 0 | H154: 0 | I154: 0 | J154: 0 | K154: 0 | L154: 0 | M154: 0 | N154: 0
A155: 24.971-8 | B155: F | C155: 1 | D155: CUSTÓDIA ALVES DE FREITAS | G155: 0 | H155: 0 | I155: 0 | J155: 0 | K155: 0 | L155: 0 | M155: 0 | N155: 0
A156: 25.011-2 | B156: F | C156: 1 | D156: LAZARO RAMOS PIMENTA | G156: 0 | H156: 0 | I156: 0 | J156: 0 | K156: 0 | L156: 0 | M156: 0 | N156: 0
A157: 25.044-9 | B157: F | C157: 1 | D157: LUCIANO AUGUSTO TADEU DE SOUZA | G157: 0 | H157: 0 | I157: 0 | J157: 0 | K157: 0 | L157: 0 | M157: 0 | N157: 0
A158: 25.227-1 | B158: F | C158: 1 | D158: MARIA CECÍLIA CORREA | G158: 0 | H158: 0 | I158: 0 | J158: 0 | K158: 0 | L158: 0 | M158: 0 | N158: 0
A159: 08.374-7 | B159: F | C159: 1 | D159: MARIA CORREA PEREIRA | G159: 0 | H159: 0 | I159: 0 | J159: 0 | K159: 0 | L159: 0 | M159: 0 | N159: 0
A160: 25.260-3 | B160: F | C160: 1 | D160: LUZIA BENTA DA SILVA | G160: 0 | H160: 0 | I160: 0 | J160: 0 | K160: 0 | L160: 0 | M160: 0 | N160: 0
A161: 25.299-9 | B161: F | C161: 1 | D161: MARIA ROSA DE REZENDE CUNHA | G161: 0 | H161: 0 | I161: 0 | J161: 0 | K161: 0 | L161: 0 | M161: 0 | N161: 0
A162: 25.405-3 | B162: F | C162: 1 | D162: MARIA DA CONCEIÇÃO LATINI DE SOUZA | G162: 0 | H162: 0 | I162: 0 | J162: 0 | K162: 0 | L162: 0 | M162: 0 | N162: 0
A163: 25.431-2 | B163: F | C163: 1 | D163: VICENTINA ANA RODRIGUES | G163: 0 | H163: 0 | I163: 0 | J163: 0 | K163: 0 | L163: 0 | M163: 0 | N163: 0
A164: 25.441-0 | B164: F | C164: 1 | D164: NEUSA MARIA CARDOSO | G164: 0 | H164: 0 | I164: 0 | J164: 0 | K164: 0 | L164: 0 | M164: 0 | N164: 0
A165: 25.474-6 | B165: F | C165: 1 | D165: ALAIDE FATIMA BRITO SILVEIRA | G165: 0 | H165: 0 | I165: 0 | J165: 0 | K165: 0 | L165: 0 | M165: 0 | N165: 0
A166: 25.576-9 | B166: F | C166: 1 | D166: ERNESTINA DOURADO SOBRINHA CORREA MACHADO | G166: 0 | H166: 0 | I166: 0 | J166: 0 | K166: 0 | L166: 0 | M166: 0 | N166: 0
A167: 25.576-9 | B167: F | C167: 2 | D167: MARINA DOURADO CORREA MACHADO | G167: 0 | H167: 0 | I167: 0 | J167: 0 | K167: 0 | L167: 0 | M167: 0 | N167: 0
A168: 25.618-8 | B168: F | C168: 1 | D168: JIZLENE ALVES SARAIVA | G168: 0 | H168: 0 | I168: 0 | J168: 0 | K168: 0 | L168: 0 | M168: 0 | N168: 0
A169: 25.763-0 | B169: F | C169: 1 | D169: MARIA MARILDA MAIA DUMONT | G169: 0 | H169: 0 | I169: 0 | J169: 0 | K169: 0 | L169: 0 | M169: 0 | N169: 0
A170: 25.825-3 | B170: F | C170: 1 | D170: MARIA ESTER DE CASTRO | G170: 0 | H170: 0 | I170: 0 | J170: 0 | K170: 0 | L170: 0 | M170: 0 | N170: 0
A171: 26.260-9 | B171: F | C171: 1 | D171: CELSO TARCISIO DA ROCHA | G171: 0 | H171: 0 | I171: 0 | J171: 0 | K171: 0 | L171: 0 | M171: 0 | N171: 0
A172: 26.406-7 | B172: F | C172: 1 | D172: LUZIA TORRES BENTO | G172: 0 | H172: 0 | I172: 0 | J172: 0 | K172: 0 | L172: 0 | M172: 0 | N172: 0
A173: 26.432-6 | B173: F | C173: 1 | D173: CLEUSA DE FÁTIMA GUEDES | G173: 0 | H173: 0 | I173: 0 | J173: 0 | K173: 0 | L173: 0 | M173: 0 | N173: 0
A174: 26.543-8 | B174: F | C174: 1 | D174: BENEDITA MARIA RIBEIRO | G174: 0 | H174: 0 | I174: 0 | J174: 0 | K174: 0 | L174: 0 | M174: 0 | N174: 0
A175: 26.633-7 | B175: F | C175: 1 | D175: TEREZINHA MARIA DE JESUS | G175: 0 | H175: 0 | I175: 0 | J175: 0 | K175: 0 | L175: 0 | M175: 0 | N175: 0
A176: 26.810-0 | B176: F | C176: 1 | D176: TEREZINHA DE CASTRO RIBEIRO | G176: 0 | H176: 0 | I176: 0 | J176: 0 | K176: 0 | L176: 0 | M176: 0 | N176: 0
A177: 26.872-0 | B177: F | C177: 1 | D177: ADÉLIA APARECIDA MARCELINO | G177: 0 | H177: 0 | I177: 0 | J177: 0 | K177: 0 | L177: 0 | M177: 0 | N177: 0
A178: 26.872-0 | B178: F | C178: 2 | D178: TEREZA APARECIDA MARCELINO | G178: 0 | H178: 0 | I178: 0 | J178: 0 | K178: 0 | L178: 0 | M178: 0 | N178: 0
A179: 27.185-3 | B179: F | C179: 1 | D179: ERICH AUGUSTO MICHELATTO PALMA | G179: 0 | H179: 0 | I179: 0 | J179: 0 | K179: 0 | L179: 0 | M179: 0 | N179: 0
A180: 27.185-3 | B180: F | C180: 2 | D180: SANDRA APARECIDAMICHELATTO PALMA | G180: 0 | H180: 0 | I180: 0 | J180: 0 | K180: 0 | L180: 0 | M180: 0 | N180: 0
A181: 27.225-6 | B181: F | C181: 1 | D181: TEREZINHA DE MIRANDA SALVADOR | G181: 0 | H181: 0 | I181: 0 | J181: 0 | K181: 0 | L181: 0 | M181: 0 | N181: 0
A182: 27.225-6 | B182: F | C182: 2 | D182: ROSIMERE RODRIGUES DE LIMA | G182: 0 | H182: 0 | I182: 0 | J182: 0 | K182: 0 | L182: 0 | M182: 0 | N182: 0
A183: 27.302-3 | B183: F | C183: 1 | D183: MARIA FERREIRA BRAGA | G183: 0 | H183: 0 | I183: 0 | J183: 0 | K183: 0 | L183: 0 | M183: 0 | N183: 0
A184: 27.405-4 | B184: F | C184: 1 | D184: MARIA DE LOURDES MENDES DE PAULA | G184: 0 | H184: 0 | I184: 0 | J184: 0 | K184: 0 | L184: 0 | M184: 0 | N184: 0
A185: 27.433-0 | B185: F | C185: 1 | D185: PEDRO HENRIQUE OLIVEIRA DINIZ | G185: 0 | H185: 0 | I185: 0 | J185: 0 | K185: 0 | L185: 0 | M185: 0 | N185: 0
A186: 27.491-7 | B186: F | C186: 1 | D186: LEONARDO DE MATOS CASAES | G186: 0 | H186: 0 | I186: 0 | J186: 0 | K186: 0 | L186: 0 | M186: 0 | N186: 0
A187: 27.491-7 | B187: F | C187: 2 | D187: LUCILIA DE MATOS CASAES | G187: 0 | H187: 0 | I187: 0 | J187: 0 | K187: 0 | L187: 0 | M187: 0 | N187: 0
A188: 27.491-7 | B188: F | C188: 3 | D188: MARLLON DE MATOS CASAES | G188: 0 | H188: 0 | I188: 0 | J188: 0 | K188: 0 | L188: 0 | M188: 0 | N188: 0
A189: 27.580-8 | B189: F | C189: 1 | D189: CONCEIÇÃO BUGGIONE GOMES | G189: 0 | H189: 0 | I189: 0 | J189: 0 | K189: 0 | L189: 0 | M189: 0 | N189: 0
A190: 27.587-5 | B190: F | C190: 1 | D190: BIGAIR CEZARIA DE SIQUEIRA | G190: 0 | H190: 0 | I190: 0 | J190: 0 | K190: 0 | L190: 0 | M190: 0 | N190: 0
A191: 27.593-0 | B191: F | C191: 1 | D191: DALVANORA NORONHA SILVA | G191: 0 | H191: 0 | I191: 0 | J191: 0 | K191: 0 | L191: 0 | M191: 0 | N191: 0
A192: 27.623-5 | B192: F | C192: 1 | D192: ONESIA MACHADO DA SILVA | G192: 0 | H192: 0 | I192: 0 | J192: 0 | K192: 0 | L192: 0 | M192: 0 | N192: 0
A193: 27.943-9 | B193: F | C193: 1 | D193: AGRIPINA ASSUNÇÃO PEDRA | G193: 0 | H193: 0 | I193: 0 | J193: 0 | K193: 0 | L193: 0 | M193: 0 | N193: 0
A194: 27.956-0 | B194: F | C194: 1 | D194: LEA SERRA AZOLA | G194: 0 | H194: 0 | I194: 0 | J194: 0 | K194: 0 | L194: 0 | M194: 0 | N194: 0
A195: 28.145-0 | B195: F | C195: 1 | D195: MARIA JANUÁRIA DE AZEVEDO | G195: 0 | H195: 0 | I195: 0 | J195: 0 | K195: 0 | L195: 0 | M195: 0 | N195: 0
A196: 28.165-4 | B196: F | C196: 1 | D196: MARIA DE FATIMA PEREIRA DOMICIANO | G196: 0 | H196: 0 | I196: 0 | J196: 0 | K196: 0 | L196: 0 | M196: 0 | N196: 0
A197: 28.179-4 | B197: F | C197: 1 | D197: MARIA DAS GRAÇAS PEIXOTO SILVA | G197: 0 | H197: 0 | I197: 0 | J197: 0 | K197: 0 | L197: 0 | M197: 0 | N197: 0
A198: 28.179-4 | B198: F | C198: 2 | D198: ADRIANA PEREIRA DOMICIANO | G198: 0 | H198: 0 | I198: 0 | J198: 0 | K198: 0 | L198: 0 | M198: 0 | N198: 0
A199: 28.179-4 | B199: F | C199: 3 | D199: MARCIO PEREIRA DOMICIANO | G199: 0 | H199: 0 | I199: 0 | J199: 0 | K199: 0 | L199: 0 | M199: 0 | N199: 0
A200: 28.236-7 | B200: F | C200: 1 | D200: MARIA DA CONSOLAÇÃO MOURA | G200: 0 | H200: 0 | I200: 0 | J200: 0 | K200: 0 | L200: 0 | M200: 0 | N200: 0
... 326 more rows

Sheet RESPONSÁVEIS
A1: PROCESSO | B1: T | C1: CÓD. | D1: NOME | E1: RESPONSÁVEL | F1: DOCUMENTO | G1: VALIDADE | H1: ENDEREÇO | I1: BAIRRO | J1: CIDADE | K1: UF | L1: CEP | M1: EMAIL | N1: TELEFONE | O1: CELULAR
A2: 0 | B2: 0 | C2: 0 | D2: - | E2: - | H2: 0 | I2: 0 | J2: 0 | K2: 0 | L2: 0 | M2: 0 | N2: 0 | O2: 0
A3: 00.120-1 | B3: F | C3: 1 | D3: OLIVIA ALVES MATHEUS | H3: 0 | I3: 0 | J3: 0 | K3: 0 | L3: 0 | M3: 0 | N3: 0 | O3: 0
A4: 00.323-9 | B4: F | C4: 1 | D4: MARIA ALICE DE ALMEIDA | H4: 0 | I4: 0 | J4: 0 | K4: 0 | L4: 0 | M4: 0 | N4: 0 | O4: 0
A5: 01.635-7 | B5: F | C5: 1 | D5: ELZA DE PINHO TAVARES | H5: 0 | I5: 0 | J5: 0 | K5: 0 | L5: 0 | M5: 0 | N5: 0 | O5: 0
A6: 01.773-6 | B6: F | C6: 1 | D6: CACILDA DE LIMA SYRIO | H6: 0 | I6: 0 | J6: 0 | K6: 0 | L6: 0 | M6: 0 | N6: 0 | O6: 0
A7: 01.842-2 | B7: F | C7: 1 | D7: IRENE RIBEIRO DE ANDRADE | H7: 0 | I7: 0 | J7: 0 | K7: 0 | L7: 0 | M7: 0 | N7: 0 | O7: 0
A8: 04.490-3 | B8: F | C8: 1 | D8: JOSÉ DE ALELUIA FERREIRA | H8: 0 | I8: 0 | J8: 0 | K8: 0 | L8: 0 | M8: 0 | N8: 0 | O8: 0
A9: 04.790-2 | B9: F | C9: 1 | D9: ALICE VIEGAS DE ASSIS | H9: 0 | I9: 0 | J9: 0 | K9: 0 | L9: 0 | M9: 0 | N9: 0 | O9: 0
A10: 05.085-7 | B10: F | C10: 1 | D10: MARIA SALVINA DA COSTA | H10: 0 | I10: 0 | J10: 0 | K10: 0 | L10: 0 | M10: 0 | N10: 0 | O10: 0
A11: 34.498-2 | B11: F | C11: 1 | D11: FABIANE DE ALMEIDA | H11: 0 | I11: 0 | J11: 0 | K11: 0 | L11: 0 | M11: 0 | N11: 0 | O11: 0
A12: 14.863-6 | B12: F | C12: 1 | D12: MARIA DO SOCORRO LACERDA NERES | H12: 0 | I12: 0 | J12: 0 | K12: 0 | L12: 0 | M12: 0 | N12: 0 | O12: 0
A13: 40.349-0 | B13: F | C13: 1 | D13: ERNESTINO RODRIGUES ALVES | H13: 0 | I13: 0 | J13: 0 | K13: 0 | L13: 0 | M13: 0 | N13: 0 | O13: 0
A14: 25.824-5 | B14: F | C14: 1 | D14: DULCE HELENA COSTA AMARAL | H14: 0 | I14: 0 | J14: 0 | K14: 0 | L14: 0 | M14: 0 | N14: 0 | O14: 0
A15: 16.421-6 | B15: F | C15: 1 | D15: JOSIMAR DOS SANTOS | H15: 0 | I15: 0 | J15: 0 | K15: 0 | L15: 0 | M15: 0 | N15: 0 | O15: 0
A16: 16.421-6 | B16: F | C16: 2 | D16: TEREZA PEREIRA DOS SANTOS | H16: 0 | I16: 0 | J16: 0 | K16: 0 | L16: 0 | M16: 0 | N16: 0 | O16: 0
A17: 05.293-0 | B17: F | C17: 1 | D17: MARIA FLOR DE MAIO SENA | H17: 0 | I17: 0 | J17: 0 | K17: 0 | L17: 0 | M17: 0 | N17: 0 | O17: 0
A18: 05.621-9 | B18: F | C18: 1 | D18: MARIA ANTÔNIA PEREIRA ALVES | H18: 0 | I18: 0 | J18: 0 | K18: 0 | L18: 0 | M18: 0 | N18: 0 | O18: 0
A19: 05.928-5 | B19: F | C19: 1 | D19: MARIA FLOR DE MAIO SENA | H19: 0 | I19: 0 | J19: 0 | K19: 0 | L19: 0 | M19: 0 | N19: 0 | O19: 0
A20: 05.971-4 | B20: F | C20: 1 | D20: ALZIRA RITA FERREIRA | H20: 0 | I20: 0 | J20: 0 | K20: 0 | L20: 0 | M20: 0 | N20: 0 | O20: 0
A21: 06.233-2 | B21: F | C21: 1 | D21: IONE LIMA DO AMARAL | H21: 0 | I21: 0 | J21: 0 | K21: 0 | L21: 0 | M21: 0 | N21: 0 | O21: 0
A22: 06.233-2 | B22: F | C22: 2 | D22: MARIA DO CARMO AMARAL | H22: 0 | I22: 0 | J22: 0 | K22: 0 | L22: 0 | M22: 0 | N22: 0 | O22: 0
A23: 06.336-3 | B23: F | C23: 1 | D23: HELIANA MARIA DE LACERDA | H23: 0 | I23: 0 | J23: 0 | K23: 0 | L23: 0 | M23: 0 | N23: 0 | O23: 0
A24: 30.037-3 | B24: F | C24: 1 | D24: MARIA FERREIRA DE CASTRO | H24: 0 | I24: 0 | J24: 0 | K24: 0 | L24: 0 | M24: 0 | N24: 0 | O24: 0
A25: 06.464-5 | B25: F | C25: 1 | D25: OLIMPIA DE LIMA RUELA | H25: 0 | I25: 0 | J25: 0 | K25: 0 | L25: 0 | M25: 0 | N25: 0 | O25: 0
A26: 26.966-2 | B26: F | C26: 1 | D26: DIOMAR RIBEIRO RESENDE | H26: 0 | I26: 0 | J26: 0 | K26: 0 | L26: 0 | M26: 0 | N26: 0 | O26: 0
A27: 30.400-0 | B27: F | C27: 1 | D27: MARIA APARECIDA COSTA ETELVINO | H27: 0 | I27: 0 | J27: 0 | K27: 0 | L27: 0 | M27: 0 | N27: 0 | O27: 0
A28: 35.935-1 | B28: F | C28: 1 | D28: JULIA VALERIA ABRAHÃO FRANCISCO BERNARDO | H28: 0 | I28: 0 | J28: 0 | K28: 0 | L28: 0 | M28: 0 | N28: 0 | O28: 0
A29: 39.080-1 | B29: F | C29: 1 | D29: MARIA LUIZA DE ANDRADE MIOTTO | H29: 0 | I29: 0 | J29: 0 | K29: 0 | L29: 0 | M29: 0 | N29: 0 | O29: 0
A30: 33.280-1 | B30: F | C30: 1 | D30: MARIA SOUZA DOS SANTOS | H30: 0 | I30: 0 | J30: 0 | K30: 0 | L30: 0 | M30: 0 | N30: 0 | O30: 0
A31: 16.229-9 | B31: F | C31: 1 | D31: MARIA STELA ZAULI | H31: 0 | I31: 0 | J31: 0 | K31: 0 | L31: 0 | M31: 0 | N31: 0 | O31: 0
A32: 23.942-9 | B32: F | C32: 1 | D32: ERCINA CONCEIÇÃO REIS | H32: 0 | I32: 0 | J32: 0 | K32: 0 | L32: 0 | M32: 0 | N32: 0 | O32: 0
A33: 26.632-9 | B33: F | C33: 1 | D33: DIVA DA SILVA TOLEDO CARVALHO | H33: 0 | I33: 0 | J33: 0 | K33: 0 | L33: 0 | M33: 0 | N33: 0 | O33: 0
A34: 12.651-9 | B34: F | C34: 1 | D34: APARECIDA MARIA SILVA PRESTES | H34: 0 | I34: 0 | J34: 0 | K34: 0 | L34: 0 | M34: 0 | N34: 0 | O34: 0
A35: 06.531-5 | B35: F | C35: 1 | D35: WALDETE NEDER BORGES | H35: 0 | I35: 0 | J35: 0 | K35: 0 | L35: 0 | M35: 0 | N35: 0 | O35: 0
A36: 35.656-5 | B36: F | C36: 1 | D36: ADELINA CAMPOS DE GODOY | H36: 0 | I36: 0 | J36: 0 | K36: 0 | L36: 0 | M36: 0 | N36: 0 | O36: 0
A37: 26.156-4 | B37: F | C37: 1 | D37: ALAIDE FATIMA BRITO SILVEIRA | H37: 0 | I37: 0 | J37: 0 | K37: 0 | L37: 0 | M37: 0 | N37: 0 | O37: 0
A38: 37.204-8 | B38: F | C38: 1 | D38: MARIA MONTEIRO DA SILVA | H38: 0 | I38: 0 | J38: 0 | K38: 0 | L38: 0 | M38: 0 | N38: 0 | O38: 0
A39: 14.816-4 | B39: F | C39: 1 | D39: ELZA DE BARROS VIEIRA | H39: 0 | I39: 0 | J39: 0 | K39: 0 | L39: 0 | M39: 0 | N39: 0 | O39: 0
A40: 35.037-0 | B40: F | C40: 1 | D40: MARIA DO CARMO ALBERGARIA MAFFRA | H40: 0 | I40: 0 | J40: 0 | K40: 0 | L40: 0 | M40: 0 | N40: 0 | O40: 0
A41: 29.543-4 | B41: F | C41: 1 | D41: ELIA DARC GOMES DIAS | H41: 0 | I41: 0 | J41: 0 | K41: 0 | L41: 0 | M41: 0 | N41: 0 | O41: 0
A42: 06.797-0 | B42: F | C42: 1 | D42: ADAIL MARIA DE LOURDES | H42: 0 | I42: 0 | J42: 0 | K42: 0 | L42: 0 | M42: 0 | N42: 0 | O42: 0
A43: 06.797-0 | B43: F | C43: 2 | D43: MARIA LÚCIA DE MELO | H43: 0 | I43: 0 | J43: 0 | K43: 0 | L43: 0 | M43: 0 | N43: 0 | O43: 0
A44: 06.797-0 | B44: F | C44: 2 | D44: FLORINDA AUGUSTA CONCEIÇÃO MELO | H44: 0 | I44: 0 | J44: 0 | K44: 0 | L44: 0 | M44: 0 | N44: 0 | O44: 0
A45: 07.120-0 | B45: F | C45: 1 | D45: CELEDA MARIA DE JESUS BARBOSA | H45: 0 | I45: 0 | J45: 0 | K45: 0 | L45: 0 | M45: 0 | N45: 0 | O45: 0
A46: 07.736-4 | B46: F | C46: 1 | D46: NATALIA SIQUEIRA FRIACA | H46: 0 | I46: 0 | J46: 0 | K46: 0 | L46: 0 | M46: 0 | N46: 0 | O46: 0
A47: 07.746-1 | B47: F | C47: 1 | D47: LOYDE DE OLIVEIRA FERREIRA | H47: 0 | I47: 0 | J47: 0 | K47: 0 | L47: 0 | M47: 0 | N47: 0 | O47: 0
A48: 07.952-9 | B48: F | C48: 1 | D48: DALVA ROSA DE OLIVEIRA LOPES | H48: 0 | I48: 0 | J48: 0 | K48: 0 | L48: 0 | M48: 0 | N48: 0 | O48: 0
A49: 08.556-1 | B49: F | C49: 1 | D49: REGINA MARTINS GUERRA | H49: 0 | I49: 0 | J49: 0 | K49: 0 | L49: 0 | M49: 0 | N49: 0 | O49: 0
A50: 09.183-9 | B50: F | C50: 1 | D50: CONCEIÇÃO AMARAL MENDES | H50: 0 | I50: 0 | J50: 0 | K50: 0 | L50: 0 | M50: 0 | N50: 0 | O50: 0
A51: 10.445-0 | B51: F | C51: 2 | D51: MARIA ILEDA DE MELO | H51: 0 | I51: 0 | J51: 0 | K51: 0 | L51: 0 | M51: 0 | N51: 0 | O51: 0
A52: 10.445-0 | B52: F | C52: 1 | D52: KATIA REGINA DE MELO | H52: 0 | I52: 0 | J52: 0 | K52: 0 | L52: 0 | M52: 0 | N52: 0 | O52: 0
A53: 10.452-3 | B53: F | C53: 1 | D53: DENISE VIEIRA SINGI | H53: 0 | I53: 0 | J53: 0 | K53: 0 | L53: 0 | M53: 0 | N53: 0 | O53: 0
A54: 10.690-0 | B54: F | C54: 1 | D54: MARIA JOSÉ HERMENEGILDA | H54: 0 | I54: 0 | J54: 0 | K54: 0 | L54: 0 | M54: 0 | N54: 0 | O54: 0
A55: 10.936-3 | B55: F | C55: 1 | D55: OLMPIA DE LIMA RUELA | H55: 0 | I55: 0 | J55: 0 | K55: 0 | L55: 0 | M55: 0 | N55: 0 | O55: 0
A56: 10.998-3 | B56: F | C56: 1 | D56: SOFIA PEREIRA DOS SANTOS | H56: 0 | I56: 0 | J56: 0 | K56: 0 | L56: 0 | M56: 0 | N56: 0 | O56: 0
A57: 11.247-0 | B57: F | C57: 1 | D57: ANA BATISTA CARDOSO | H57: 0 | I57: 0 | J57: 0 | K57: 0 | L57: 0 | M57: 0 | N57: 0 | O57: 0
A58: 11.345-0 | B58: F | C58: 1 | D58: MARIA AUGUSTA ATAIDE ARAUJO | H58: 0 | I58: 0 | J58: 0 | K58: 0 | L58: 0 | M58: 0 | N58: 0 | O58: 0
A59: 11.444-8 | B59: F | C59: 1 | D59: FRANCISCA INEZ BELEM | H59: 0 | I59: 0 | J59: 0 | K59: 0 | L59: 0 | M59: 0 | N59: 0 | O59: 0
A60: 11.598-3 | B60: F | C60: 1 | D60: FLAUZINA ROSA CORREA | H60: 0 | I60: 0 | J60: 0 | K60: 0 | L60: 0 | M60: 0 | N60: 0 | O60: 0
A61: 11.998-9 | B61: F | C61: 1 | D61: MARIA DA CONCEIÇÃO FRAMCO | H61: 0 | I61: 0 | J61: 0 | K61: 0 | L61: 0 | M61: 0 | N61: 0 | O61: 0
A62: 12.104-5 | B62: F | C62: 1 | D62: ENI MARIA ELETO MONTEIRO | H62: 0 | I62: 0 | J62: 0 | K62: 0 | L62: 0 | M62: 0 | N62: 0 | O62: 0
A63: 12.484-2 | B63: F | C63: 1 | D63: MARIA IONE MIGUEL | H63: 0 | I63: 0 | J63: 0 | K63: 0 | L63: 0 | M63: 0 | N63: 0 | O63: 0
A64: 12.484-2 | B64: F | C64: 2 | D64: CLEIDINEIAMIGUEL | H64: 0 | I64: 0 | J64: 0 | K64: 0 | L64: 0 | M64: 0 | N64: 0 | O64: 0
A65: 12.720-5 | B65: F | C65: 1 | D65: MARIA DA CONCEIÇÃO ALMEIDA | H65: 0 | I65: 0 | J65: 0 | K65: 0 | L65: 0 | M65: 0 | N65: 0 | O65: 0
A66: 12.806-6 | B66: F | C66: 1 | D66: VITÓRIA PORFÍRIA DE MORAES | H66: 0 | I66: 0 | J66: 0 | K66: 0 | L66: 0 | M66: 0 | N66: 0 | O66: 0
A67: 12.835-0 | B67: F | C67: 1 | D67: TEREZINHA DE AVELAR SENNA | H67: 0 | I67: 0 | J67: 0 | K67: 0 | L67: 0 | M67: 0 | N67: 0 | O67: 0
A68: 13.326-4 | B68: F | C68: 2 | D68: DOLORES CRISTINA ANDRADE | H68: 0 | I68: 0 | J68: 0 | K68: 0 | L68: 0 | M68: 0 | N68: 0 | O68: 0
A69: 13.326-4 | B69: F | C69: 1 | D69: MARIA VALDA BOERI ANDRADE | H69: 0 | I69: 0 | J69: 0 | K69: 0 | L69: 0 | M69: 0 | N69: 0 | O69: 0
A70: 13.383-3 | B70: F | C70: 1 | D70: MARIA JOSE DA SILVA GRANATO | H70: 0 | I70: 0 | J70: 0 | K70: 0 | L70: 0 | M70: 0 | N70: 0 | O70: 0
A71: 13.563-1 | B71: F | C71: 1 | D71: IVANI MARIA DO ROSÁRIO BARBOSA | H71: 0 | I71: 0 | J71: 0 | K71: 0 | L71: 0 | M71: 0 | N71: 0 | O71: 0
A72: 13.563-1 | B72: F | C72: 2 | D72: MARIA APARECIDA SILVA BARBOSA | H72: 0 | I72: 0 | J72: 0 | K72: 0 | L72: 0 | M72: 0 | N72: 0 | O72: 0
A73: 13.563-1 | B73: F | C73: 3 | D73: MARIA SEBASTIANA DA COSTA BARBOSA | H73: 0 | I73: 0 | J73: 0 | K73: 0 | L73: 0 | M73: 0 | N73: 0 | O73: 0
A74: 13.563-1 | B74: F | C74: 4 | D74: VIVIANI DA COSTA BARBOSA | H74: 0 | I74: 0 | J74: 0 | K74: 0 | L74: 0 | M74: 0 | N74: 0 | O74: 0
A75: 13.673-5 | B75: F | C75: 1 | D75: ELZITA DE SENA NASCIMENTO DOS SANTOS | H75: 0 | I75: 0 | J75: 0 | K75: 0 | L75: 0 | M75: 0 | N75: 0 | O75: 0
A76: 13.693-0 | B76: F | C76: 1 | D76: JOAQUIM MARQUES DE OLIVEIRA FILHO | H76: 0 | I76: 0 | J76: 0 | K76: 0 | L76: 0 | M76: 0 | N76: 0 | O76: 0
A77: 13.815-0 | B77: F | C77: 1 | D77: KATIA MARIA MENDONÇA | H77: 0 | I77: 0 | J77: 0 | K77: 0 | L77: 0 | M77: 0 | N77: 0 | O77: 0
A78: 13.815-0 | B78: F | C78: 2 | D78: SONIA MARIA MENDONÇA | H78: 0 | I78: 0 | J78: 0 | K78: 0 | L78: 0 | M78: 0 | N78: 0 | O78: 0
A79: 13.839-2 | B79: F | C79: 1 | D79: YEDA CARDOSO MAYRINK XAVIER | H79: 0 | I79: 0 | J79: 0 | K79: 0 | L79: 0 | M79: 0 | N79: 0 | O79: 0
A80: 11.505-3 | B80: F | C80: 1 | D80: MARIANGELA DE CHANTAL FONSECA | H80: 0 | I80: 0 | J80: 0 | K80: 0 | L80: 0 | M80: 0 | N80: 0 | O80: 0
A81: 20.106-5 | B81: F | C81: 1 | D81: MARIA MADDALENA DA SILVA | H81: 0 | I81: 0 | J81: 0 | K81: 0 | L81: 0 | M81: 0 | N81: 0 | O81: 0
A82: 14.281-6 | B82: F | C82: 1 | D82: ODETE CATARINA SILVA OLIVEIRA | H82: 0 | I82: 0 | J82: 0 | K82: 0 | L82: 0 | M82: 0 | N82: 0 | O82: 0
A83: 41.861-7 | B83: F | C83: 1 | D83: HELENA MARIA DE SOUZA OLIVEIRA | H83: 0 | I83: 0 | J83: 0 | K83: 0 | L83: 0 | M83: 0 | N83: 0 | O83: 0
A84: 14.391-0 | B84: F | C84: 1 | D84: MARIA HELENA GUEDES PEREIRA | H84: 0 | I84: 0 | J84: 0 | K84: 0 | L84: 0 | M84: 0 | N84: 0 | O84: 0
A85: 09.388-2 | B85: F | C85: 1 | D85: NOEME MARES FIGUEIREDO | H85: 0 | I85: 0 | J85: 0 | K85: 0 | L85: 0 | M85: 0 | N85: 0 | O85: 0
A86: 14.761-3 | B86: F | C86: 1 | D86: EDITE SENA OLIVEIRA | H86: 0 | I86: 0 | J86: 0 | K86: 0 | L86: 0 | M86: 0 | N86: 0 | O86: 0
A87: 14.824-5 | B87: F | C87: 1 | D87: JACY MATHIAS MEIRA TOMÉ | H87: 0 | I87: 0 | J87: 0 | K87: 0 | L87: 0 | M87: 0 | N87: 0 | O87: 0
A88: 15.033-9 | B88: F | C88: 1 | D88: MARGARIDA DE OLIVEIRA VILAÇA | H88: 0 | I88: 0 | J88: 0 | K88: 0 | L88: 0 | M88: 0 | N88: 0 | O88: 0
A89: 15.457-1 | B89: F | C89: 1 | D89: CARMEN LÚCIA BELCHIOR RODRIGUES | H89: 0 | I89: 0 | J89: 0 | K89: 0 | L89: 0 | M89: 0 | N89: 0 | O89: 0
A90: 15.577-2 | B90: F | C90: 1 | D90: IRIS RECENVINDA ROSA PINHEIRO | H90: 0 | I90: 0 | J90: 0 | K90: 0 | L90: 0 | M90: 0 | N90: 0 | O90: 0
A91: 15.577-2 | B91: F | C91: 2 | D91: MARIA DAS GRAÇAS PINHEIRO DOS SANTOS | H91: 0 | I91: 0 | J91: 0 | K91: 0 | L91: 0 | M91: 0 | N91: 0 | O91: 0
A92: 15.652-3 | B92: F | C92: 1 | D92: BENEDITO CAPUTO | H92: 0 | I92: 0 | J92: 0 | K92: 0 | L92: 0 | M92: 0 | N92: 0 | O92: 0
A93: 16.020-2 | B93: F | C93: 1 | D93: MAGALI JOSE PIRES MISAEL | H93: 0 | I93: 0 | J93: 0 | K93: 0 | L93: 0 | M93: 0 | N93: 0 | O93: 0
A94: 16.331-7 | B94: F | C94: 1 | D94: MARIA APARECIDA DA COSTA | H94: 0 | I94: 0 | J94: 0 | K94: 0 | L94: 0 | M94: 0 | N94: 0 | O94: 0
A95: 16.802-5 | B95: F | C95: 1 | D95: MARIA CLELIA DOS SANTOS DE PAULO | H95: 0 | I95: 0 | J95: 0 | K95: 0 | L95: 0 | M95: 0 | N95: 0 | O95: 0
A96: 16.960-9 | B96: F | C96: 1 | D96: VANILDA GOMES RUAS | H96: 0 | I96: 0 | J96: 0 | K96: 0 | L96: 0 | M96: 0 | N96: 0 | O96: 0
A97: 17.584-5 | B97: F | C97: 1 | D97: GERALDA MARIA DE SOUZA | H97: 0 | I97: 0 | J97: 0 | K97: 0 | L97: 0 | M97: 0 | N97: 0 | O97: 0
A98: 17.806-3 | B98: F | C98: 1 | D98: DENISE DE LIMA MIRANDA | H98: 0 | I98: 0 | J98: 0 | K98: 0 | L98: 0 | M98: 0 | N98: 0 | O98: 0
A99: 17.860-8 | B99: F | C99: 1 | D99: CIRIA RODRIGUES VILELA | H99: 0 | I99: 0 | J99: 0 | K99: 0 | L99: 0 | M99: 0 | N99: 0 | O99: 0
A100: 32.154-0 | B100: F | C100: 1 | D100: ALBERTINA DA TRINDADE LOURDES | H100: 0 | I100: 0 | J100: 0 | K100: 0 | L100: 0 | M100: 0 | N100: 0 | O100: 0
A101: 18.112-9 | B101: F | C101: 1 | D101: HAYDEE MENEZES PEREIRA | H101: 0 | I101: 0 | J101: 0 | K101: 0 | L101: 0 | M101: 0 | N101: 0 | O101: 0
A102: 18.247-8 | B102: F | C102: 1 | D102: TEREZINHA GONÇALVES VILARINO DA CUNHA | H102: 0 | I102: 0 | J102: 0 | K102: 0 | L102: 0 | M102: 0 | N102: 0 | O102: 0
A103: 18.434-9 | B103: F | C103: 1 | D103: THEREZA DA SILVA FERREIRA | H103: 0 | I103: 0 | J103: 0 | K103: 0 | L103: 0 | M103: 0 | N103: 0 | O103: 0
A104: 18.440-3 | B104: F | C104: 1 | D104: ANA MARIA ANDRÉ | H104: 0 | I104: 0 | J104: 0 | K104: 0 | L104: 0 | M104: 0 | N104: 0 | O104: 0
A105: 37.943-3 | B105: F | C105: 1 | D105: GERALDA MOTA ARAÚJO | H105: 0 | I105: 0 | J105: 0 | K105: 0 | L105: 0 | M105: 0 | N105: 0 | O105: 0
A106: 37.943-3 | B106: F | C106: 2 | D106: JOSÉ ROBERTO DE ARAÚJO
A107: 13.717-0 | B107: F | C107: 1 | D107: MARIA ANTONIETA CASTRO FARIA
A108: 18.614-7 | B108: F | C108: 1 | D108: RITA ALZIRA TERRA | H108: 0 | I108: 0 | J108: 0 | K108: 0 | L108: 0 | M108: 0 | N108: 0 | O108: 0
A109: 18.655-4 | B109: F | C109: 1 | D109: GERALDA MARIA DE SOUZA | H109: 0 | I109: 0 | J109: 0 | K109: 0 | L109: 0 | M109: 0 | N109: 0 | O109: 0
A110: 19.225-2 | B110: F | C110: 1 | D110: MARIA DAS DORES CORDEIRO MADUREIRA | H110: 0 | I110: 0 | J110: 0 | K110: 0 | L110: 0 | M110: 0 | N110: 0 | O110: 0
A111: 19.529-4 | B111: F | C111: 1 | D111: TEREZINHA LOPES DA SILVA | H111: 0 | I111: 0 | J111: 0 | K111: 0 | L111: 0 | M111: 0 | N111: 0 | O111: 0
A112: 19.910-9 | B112: F | C112: 1 | D112: MARIA AUXILIADORA BAPTISTA LEITE | H112: 0 | I112: 0 | J112: 0 | K112: 0 | L112: 0 | M112: 0 | N112: 0 | O112: 0
A113: 20.119-7 | B113: F | C113: 1 | D113: SEBASTIANA DOS SANTOS CRUZ | H113: 0 | I113: 0 | J113: 0 | K113: 0 | L113: 0 | M113: 0 | N113: 0 | O113: 0
A114: 30.811-0 | B114: F | C114: 1 | D114: GENI LOPES DA FONSECA | H114: 0 | I114: 0 | J114: 0 | K114: 0 | L114: 0 | M114: 0 | N114: 0 | O114: 0
A115: 20.284-3 | B115: F | C115: 1 | D115: ANITA DE PAULA | H115: 0 | I115: 0 | J115: 0 | K115: 0 | L115: 0 | M115: 0 | N115: 0 | O115: 0
A116: 20.284-3 | B116: F | C116: 1 | D116: BENEDITA DA SILVA GUIMARÃES | H116: 0 | I116: 0 | J116: 0 | K116: 0 | L116: 0 | M116: 0 | N116: 0 | O116: 0
A117: 20.284-3 | B117: F | C117: 2 | D117: MARILIA REIS ALVES SILVA | H117: 0 | I117: 0 | J117: 0 | K117: 0 | L117: 0 | M117: 0 | N117: 0 | O117: 0
A118: 14.413-4 | B118: F | C118: 1 | D118: AURORA MARIA SARAIVA | H118: 0 | I118: 0 | J118: 0 | K118: 0 | L118: 0 | M118: 0 | N118: 0 | O118: 0
A119: 14.413-4 | B119: F | C119: 2 | D119: ROSEMEIRE SARAIVA MOREIRA | H119: 0 | I119: 0 | J119: 0 | K119: 0 | L119: 0 | M119: 0 | N119: 0 | O119: 0
A120: 13.099-0 | B120: F | C120: 1 | D120: ANA BARBOSA FREIRE | H120: 0 | I120: 0 | J120: 0 | K120: 0 | L120: 0 | M120: 0 | N120: 0 | O120: 0
A121: 20.393-9 | B121: F | C121: 1 | D121: BENEDITA RIBEIRO DE OLIVEIRA | H121: 0 | I121: 0 | J121: 0 | K121: 0 | L121: 0 | M121: 0 | N121: 0 | O121: 0
A122: 20.393-9 | B122: F | C122: 1 | D122: WALDETE DRUMOND ZAGNOLI RABELO | H122: 0 | I122: 0 | J122: 0 | K122: 0 | L122: 0 | M122: 0 | N122: 0 | O122: 0
A123: 20.430-7 | B123: F | C123: 1 | D123: WILMA GUIMARÃES FERNANDES | H123: 0 | I123: 0 | J123: 0 | K123: 0 | L123: 0 | M123: 0 | N123: 0 | O123: 0
A124: 18.234-6 | B124: F | C124: 1 | D124: MARIA LUIZA PEREIRA | H124: 0 | I124: 0 | J124: 0 | K124: 0 | L124: 0 | M124: 0 | N124: 0 | O124: 0
A125: 20.514-1 | B125: F | C125: 1 | D125: SEBASTIANA DOS SANTOS CRUZ | H125: 0 | I125: 0 | J125: 0 | K125: 0 | L125: 0 | M125: 0 | N125: 0 | O125: 0
A126: 20.836-1 | B126: F | C126: 1 | D126: ANGELA MARIA PEREIRA GARCIA | H126: 0 | I126: 0 | J126: 0 | K126: 0 | L126: 0 | M126: 0 | N126: 0 | O126: 0
A127: 20.879-5 | B127: F | C127: 1 | D127: HELENA LOPES DA FONSECA | H127: 0 | I127: 0 | J127: 0 | K127: 0 | L127: 0 | M127: 0 | N127: 0 | O127: 0
A128: 20.962-7 | B128: F | C128: 1 | D128: MARIA JOSE DURÃO SILVA | H128: 0 | I128: 0 | J128: 0 | K128: 0 | L128: 0 | M128: 0 | N128: 0 | O128: 0
A129: 21.061-7 | B129: F | C129: 1 | D129: WALDETE DRUMOND ZAGNOLI RABELO | H129: 0 | I129: 0 | J129: 0 | K129: 0 | L129: 0 | M129: 0 | N129: 0 | O129: 0
A130: 21.763-8 | B130: F | C130: 1 | D130: ESTELITA DE MORAIS SANTANA E SILVA | H130: 0 | I130: 0 | J130: 0 | K130: 0 | L130: 0 | M130: 0 | N130: 0 | O130: 0
A131: 22.321-2 | B131: F | C131: 1 | D131: MARTA NOGUEIRA MARQUES | H131: 0 | I131: 0 | J131: 0 | K131: 0 | L131: 0 | M131: 0 | N131: 0 | O131: 0
A132: 22.327-1 | B132: F | C132: 1 | D132: TEREZINHA SERVIDEY DE AZEVEDO | H132: 0 | I132: 0 | J132: 0 | K132: 0 | L132: 0 | M132: 0 | N132: 0 | O132: 0
A133: 04.517-9 | B133: F | C133: 1 | D133: AUGUSTA VILELA DE ANDRADE | H133: 0 | I133: 0 | J133: 0 | K133: 0 | L133: 0 | M133: 0 | N133: 0 | O133: 0
A134: 22.333-6 | B134: F | C134: 1 | D134: HELENA LOPES DA FONSECA | H134: 0 | I134: 0 | J134: 0 | K134: 0 | L134: 0 | M134: 0 | N134: 0 | O134: 0
A135: 22.409-0 | B135: F | C135: 1 | D135: MARCIA SIQUEIRA FRANÇA CAMPOS | H135: 0 | I135: 0 | J135: 0 | K135: 0 | L135: 0 | M135: 0 | N135: 0 | O135: 0
A136: 22.409-0 | B136: F | C136: 2 | D136: ALMIRA FERREIRA COIMBRA | H136: 0 | I136: 0 | J136: 0 | K136: 0 | L136: 0 | M136: 0 | N136: 0 | O136: 0
A137: 22.414-6 | B137: F | C137: 1 | D137: ALDA MARIA DE JESUS | H137: 0 | I137: 0 | J137: 0 | K137: 0 | L137: 0 | M137: 0 | N137: 0 | O137: 0
A138: 22.414-6 | B138: F | C138: 1 | D138: MARIA DE LOURDES | H138: 0 | I138: 0 | J138: 0 | K138: 0 | L138: 0 | M138: 0 | N138: 0 | O138: 0
A139: 22.486-3 | B139: F | C139: 1 | D139: MARIA DA CONCEIÇÃO DE SOUZA LIMA SCHETTINI | H139: 0 | I139: 0 | J139: 0 | K139: 0 | L139: 0 | M139: 0 | N139: 0 | O139: 0
A140: 22.497-9 | B140: F | C140: 1 | D140: IVETE VARGAS DE OLIVEIRA | H140: 0 | I140: 0 | J140: 0 | K140: 0 | L140: 0 | M140: 0 | N140: 0 | O140: 0
A141: 22.539-8 | B141: F | C141: 1 | D141: MARIA DOS REIS GOMES PRADO MENEZES | H141: 0 | I141: 0 | J141: 0 | K141: 0 | L141: 0 | M141: 0 | N141: 0 | O141: 0
A142: 22.539-8 | B142: F | C142: 2 | D142: RAMON RODIGO GOMES MENEZES | H142: 0 | I142: 0 | J142: 0 | K142: 0 | L142: 0 | M142: 0 | N142: 0 | O142: 0
A143: 22.613-0 | B143: F | C143: 1 | D143: MARIA APARECIDA DE CAMPOS | H143: 0 | I143: 0 | J143: 0 | K143: 0 | L143: 0 | M143: 0 | N143: 0 | O143: 0
A144: 22.613-0 | B144: F | C144: 2 | D144: MARIA DO ROSÁRIO DOMINGUITO | H144: 0 | I144: 0 | J144: 0 | K144: 0 | L144: 0 | M144: 0 | N144: 0 | O144: 0
A145: 23.776-0 | B145: F | C145: 1 | D145: MARIA LUCIA RODRIGUES BASTOS | H145: 0 | I145: 0 | J145: 0 | K145: 0 | L145: 0 | M145: 0 | N145: 0 | O145: 0
A146: 23.776-0 | B146: F | C146: 2 | D146: LEVINA GLAYCE RODRIGUES BASTOS | H146: 0 | I146: 0 | J146: 0 | K146: 0 | L146: 0 | M146: 0 | N146: 0 | O146: 0
A147: 52.888-9 | B147: F | C147: 1 | D147: WALTER GRUBER | H147: 0 | I147: 0 | J147: 0 | K147: 0 | L147: 0 | M147: 0 | N147: 0 | O147: 0
A148: 23.929-1 | B148: F | C148: 1 | D148: SEBASTIANA EUZÉBIA LEMOS | H148: 0 | I148: 0 | J148: 0 | K148: 0 | L148: 0 | M148: 0 | N148: 0 | O148: 0
A149: 22.888-5 | B149: F | C149: 1 | D149: MERCIA NEVES GARCIA | H149: 0 | I149: 0 | J149: 0 | K149: 0 | L149: 0 | M149: 0 | N149: 0 | O149: 0
A150: 24.065-6 | B150: F | C150: 1 | D150: MARIA GORETE DE AZEVEDO | H150: 0 | I150: 0 | J150: 0 | K150: 0 | L150: 0 | M150: 0 | N150: 0 | O150: 0
A151: 24.207-1 | B151: F | C151: 1 | D151: MARIA FERRAZ FERREIRA | H151: 0 | I151: 0 | J151: 0 | K151: 0 | L151: 0 | M151: 0 | N151: 0 | O151: 0
A152: 24.308-6 | B152: F | C152: 1 | D152: ANA SÍLVIA TEODORO DIAS | H152: 0 | I152: 0 | J152: 0 | K152: 0 | L152: 0 | M152: 0 | N152: 0 | O152: 0
A153: 24.458-9 | B153: F | C153: 1 | D153: NEUSA MARIA CARDOSO | H153: 0 | I153: 0 | J153: 0 | K153: 0 | L153: 0 | M153: 0 | N153: 0 | O153: 0
A154: 24.529-1 | B154: F | C154: 1 | D154: CARMEM SANCHES MOREIRA | H154: 0 | I154: 0 | J154: 0 | K154: 0 | L154: 0 | M154: 0 | N154: 0 | O154: 0
A155: 24.971-8 | B155: F | C155: 1 | D155: CUSTÓDIA ALVES DE FREITAS | H155: 0 | I155: 0 | J155: 0 | K155: 0 | L155: 0 | M155: 0 | N155: 0 | O155: 0
A156: 25.011-2 | B156: F | C156: 1 | D156: LAZARO RAMOS PIMENTA | H156: 0 | I156: 0 | J156: 0 | K156: 0 | L156: 0 | M156: 0 | N156: 0 | O156: 0
A157: 25.044-9 | B157: F | C157: 1 | D157: LUCIANO AUGUSTO TADEU DE SOUZA | H157: 0 | I157: 0 | J157: 0 | K157: 0 | L157: 0 | M157: 0 | N157: 0 | O157: 0
A158: 25.227-1 | B158: F | C158: 1 | D158: MARIA CECÍLIA CORREA | H158: 0 | I158: 0 | J158: 0 | K158: 0 | L158: 0 | M158: 0 | N158: 0 | O158: 0
A159: 08.374-7 | B159: F | C159: 1 | D159: MARIA CORREA PEREIRA | H159: 0 | I159: 0 | J159: 0 | K159: 0 | L159: 0 | M159: 0 | N159: 0 | O159: 0
A160: 25.260-3 | B160: F | C160: 1 | D160: LUZIA BENTA DA SILVA | H160: 0 | I160: 0 | J160: 0 | K160: 0 | L160: 0 | M160: 0 | N160: 0 | O160: 0
A161: 25.299-9 | B161: F | C161: 1 | D161: MARIA ROSA DE REZENDE CUNHA | H161: 0 | I161: 0 | J161: 0 | K161: 0 | L161: 0 | M161: 0 | N161: 0 | O161: 0
A162: 25.405-3 | B162: F | C162: 1 | D162: MARIA DA CONCEIÇÃO LATINI DE SOUZA | H162: 0 | I162: 0 | J162: 0 | K162: 0 | L162: 0 | M162: 0 | N162: 0 | O162: 0
A163: 25.431-2 | B163: F | C163: 1 | D163: VICENTINA ANA RODRIGUES | H163: 0 | I163: 0 | J163: 0 | K163: 0 | L163: 0 | M163: 0 | N163: 0 | O163: 0
A164: 25.441-0 | B164: F | C164: 1 | D164: NEUSA MARIA CARDOSO | H164: 0 | I164: 0 | J164: 0 | K164: 0 | L164: 0 | M164: 0 | N164: 0 | O164: 0
A165: 25.474-6 | B165: F | C165: 1 | D165: ALAIDE FATIMA BRITO SILVEIRA | H165: 0 | I165: 0 | J165: 0 | K165: 0 | L165: 0 | M165: 0 | N165: 0 | O165: 0
A166: 25.576-9 | B166: F | C166: 1 | D166: ERNESTINA DOURADO SOBRINHA CORREA MACHADO | H166: 0 | I166: 0 | J166: 0 | K166: 0 | L166: 0 | M166: 0 | N166: 0 | O166: 0
A167: 25.576-9 | B167: F | C167: 2 | D167: MARINA DOURADO CORREA MACHADO | H167: 0 | I167: 0 | J167: 0 | K167: 0 | L167: 0 | M167: 0 | N167: 0 | O167: 0
A168: 25.618-8 | B168: F | C168: 1 | D168: JIZLENE ALVES SARAIVA | H168: 0 | I168: 0 | J168: 0 | K168: 0 | L168: 0 | M168: 0 | N168: 0 | O168: 0
A169: 25.763-0 | B169: F | C169: 1 | D169: MARIA MARILDA MAIA DUMONT | H169: 0 | I169: 0 | J169: 0 | K169: 0 | L169: 0 | M169: 0 | N169: 0 | O169: 0
A170: 25.825-3 | B170: F | C170: 1 | D170: MARIA ESTER DE CASTRO | H170: 0 | I170: 0 | J170: 0 | K170: 0 | L170: 0 | M170: 0 | N170: 0 | O170: 0
A171: 26.260-9 | B171: F | C171: 1 | D171: CELSO TARCISIO DA ROCHA | H171: 0 | I171: 0 | J171: 0 | K171: 0 | L171: 0 | M171: 0 | N171: 0 | O171: 0
A172: 26.406-7 | B172: F | C172: 1 | D172: LUZIA TORRES BENTO | H172: 0 | I172: 0 | J172: 0 | K172: 0 | L172: 0 | M172: 0 | N172: 0 | O172: 0
A173: 26.432-6 | B173: F | C173: 1 | D173: CLEUSA DE FÁTIMA GUEDES | H173: 0 | I173: 0 | J173: 0 | K173: 0 | L173: 0 | M173: 0 | N173: 0 | O173: 0
A174: 26.543-8 | B174: F | C174: 1 | D174: BENEDITA MARIA RIBEIRO | H174: 0 | I174: 0 | J174: 0 | K174: 0 | L174: 0 | M174: 0 | N174: 0 | O174: 0
A175: 26.633-7 | B175: F | C175: 1 | D175: TEREZINHA MARIA DE JESUS | H175: 0 | I175: 0 | J175: 0 | K175: 0 | L175: 0 | M175: 0 | N175: 0 | O175: 0
A176: 26.810-0 | B176: F | C176: 1 | D176: TEREZINHA DE CASTRO RIBEIRO | H176: 0 | I176: 0 | J176: 0 | K176: 0 | L176: 0 | M176: 0 | N176: 0 | O176: 0
A177: 26.872-0 | B177: F | C177: 1 | D177: ADÉLIA APARECIDA MARCELINO | H177: 0 | I177: 0 | J177: 0 | K177: 0 | L177: 0 | M177: 0 | N177: 0 | O177: 0
A178: 26.872-0 | B178: F | C178: 2 | D178: TEREZA APARECIDA MARCELINO | H178: 0 | I178: 0 | J178: 0 | K178: 0 | L178: 0 | M178: 0 | N178: 0 | O178: 0
A179: 27.185-3 | B179: F | C179: 1 | D179: ERICH AUGUSTO MICHELATTO PALMA | H179: 0 | I179: 0 | J179: 0 | K179: 0 | L179: 0 | M179: 0 | N179: 0 | O179: 0
A180: 27.185-3 | B180: F | C180: 2 | D180: SANDRA APARECIDAMICHELATTO PALMA | H180: 0 | I180: 0 | J180: 0 | K180: 0 | L180: 0 | M180: 0 | N180: 0 | O180: 0
A181: 27.225-6 | B181: F | C181: 1 | D181: TEREZINHA DE MIRANDA SALVADOR | H181: 0 | I181: 0 | J181: 0 | K181: 0 | L181: 0 | M181: 0 | N181: 0 | O181: 0
A182: 27.225-6 | B182: F | C182: 2 | D182: ROSIMERE RODRIGUES DE LIMA | H182: 0 | I182: 0 | J182: 0 | K182: 0 | L182: 0 | M182: 0 | N182: 0 | O182: 0
A183: 27.302-3 | B183: F | C183: 1 | D183: MARIA FERREIRA BRAGA | H183: 0 | I183: 0 | J183: 0 | K183: 0 | L183: 0 | M183: 0 | N183: 0 | O183: 0
A184: 27.405-4 | B184: F | C184: 1 | D184: MARIA DE LOURDES MENDES DE PAULA | H184: 0 | I184: 0 | J184: 0 | K184: 0 | L184: 0 | M184: 0 | N184: 0 | O184: 0
A185: 27.433-0 | B185: F | C185: 1 | D185: PEDRO HENRIQUE OLIVEIRA DINIZ | H185: 0 | I185: 0 | J185: 0 | K185: 0 | L185: 0 | M185: 0 | N185: 0 | O185: 0
A186: 27.491-7 | B186: F | C186: 1 | D186: LEONARDO DE MATOS CASAES | H186: 0 | I186: 0 | J186: 0 | K186: 0 | L186: 0 | M186: 0 | N186: 0 | O186: 0
A187: 27.491-7 | B187: F | C187: 2 | D187: LUCILIA DE MATOS CASAES | H187: 0 | I187: 0 | J187: 0 | K187: 0 | L187: 0 | M187: 0 | N187: 0 | O187: 0
A188: 27.491-7 | B188: F | C188: 3 | D188: MARLLON DE MATOS CASAES | H188: 0 | I188: 0 | J188: 0 | K188: 0 | L188: 0 | M188: 0 | N188: 0 | O188: 0
A189: 27.580-8 | B189: F | C189: 1 | D189: CONCEIÇÃO BUGGIONE GOMES | H189: 0 | I189: 0 | J189: 0 | K189: 0 | L189: 0 | M189: 0 | N189: 0 | O189: 0
A190: 27.587-5 | B190: F | C190: 1 | D190: BIGAIR CEZARIA DE SIQUEIRA | H190: 0 | I190: 0 | J190: 0 | K190: 0 | L190: 0 | M190: 0 | N190: 0 | O190: 0
A191: 27.593-0 | B191: F | C191: 1 | D191: DALVANORA NORONHA SILVA | H191: 0 | I191: 0 | J191: 0 | K191: 0 | L191: 0 | M191: 0 | N191: 0 | O191: 0
A192: 27.623-5 | B192: F | C192: 1 | D192: ONESIA MACHADO DA SILVA | H192: 0 | I192: 0 | J192: 0 | K192: 0 | L192: 0 | M192: 0 | N192: 0 | O192: 0
A193: 27.943-9 | B193: F | C193: 1 | D193: AGRIPINA ASSUNÇÃO PEDRA | H193: 0 | I193: 0 | J193: 0 | K193: 0 | L193: 0 | M193: 0 | N193: 0 | O193: 0
A194: 27.956-0 | B194: F | C194: 1 | D194: LEA SERRA AZOLA | H194: 0 | I194: 0 | J194: 0 | K194: 0 | L194: 0 | M194: 0 | N194: 0 | O194: 0
A195: 28.145-0 | B195: F | C195: 1 | D195: MARIA JANUÁRIA DE AZEVEDO | H195: 0 | I195: 0 | J195: 0 | K195: 0 | L195: 0 | M195: 0 | N195: 0 | O195: 0
A196: 28.165-4 | B196: F | C196: 1 | D196: MARIA DE FATIMA PEREIRA DOMICIANO | H196: 0 | I196: 0 | J196: 0 | K196: 0 | L196: 0 | M196: 0 | N196: 0 | O196: 0
A197: 28.179-4 | B197: F | C197: 1 | D197: MARIA DAS GRAÇAS PEIXOTO SILVA | H197: 0 | I197: 0 | J197: 0 | K197: 0 | L197: 0 | M197: 0 | N197: 0 | O197: 0
A198: 28.179-4 | B198: F | C198: 2 | D198: ADRIANA PEREIRA DOMICIANO | H198: 0 | I198: 0 | J198: 0 | K198: 0 | L198: 0 | M198: 0 | N198: 0 | O198: 0
A199: 28.179-4 | B199: F | C199: 3 | D199: MARCIO PEREIRA DOMICIANO | H199: 0 | I199: 0 | J199: 0 | K199: 0 | L199: 0 | M199: 0 | N199: 0 | O199: 0
A200: 28.236-7 | B200: F | C200: 1 | D200: MARIA DA CONSOLAÇÃO MOURA | H200: 0 | I200: 0 | J200: 0 | K200: 0 | L200: 0 | M200: 0 | N200: 0 | O200: 0
... 326 more rows

Sheet CORREIO
B2: Descrição: LOGO IPSEMG
D5: Belo Horizonte, 30 de maio de 2016.
B8: Assunto: Atualização de Cadastro
B9: Instituidor: IDELMA SANTANNA REZENDE
B10: MASP/matrícula: 107237-0
B11: Óbito: 29/01/1992
B12: Processo: 29591-4
B15: Prezado (a) Responsável,
B17: Para atualização de dados cadastrais, solicitamos cópia autenticada da Certidão de Nascimento de FABIO SANT ANA REZENDE, expedida em cartório com a data posterior à desta correspondência, contendo a Interdição averbada e o nome do atual curador.
B18: Informamos que os documentos devem ser protocolados no Departamento de atendimento ao segurado localizado no Edifício UAI_Av. Amazonas, 478 - 2° andar – Centro / Belo Horizonte – 30.180-001 ou enviados, via correio, para Edifício Gerais, na Rodovia Prefeito Américo Gianetti, 4001 - Serra Verde, 31.630-901 – Belo Horizonte – MG aos cuidados do IPSEMG – Departamento de Pensão – Arquivo ( DEPENS-AR ).
B20: Para esclarecimentos adicionais acesse o site www.ipsemg.mg.gov.br ou entre em contato pelos telefones 155 (chamadas gratuitas originadas de qualquer região de Minas Gerais), ou (031) 3303-7995 (chamadas tarifadas originadas de localidades fora do Estado), ou encaminhe um e-mail para diprevresponde@ipsemg.mg.gov.br
B23: "FAVOR DEVOLVER CÓPIA DESTA CORRESPONDÊNCIA ANEXADA AOS DOCUMENTOS SOLICITADOS"
B24: Atenciosamente,
B28: Ilma, Sra.
B29: Norma Santana Rezende
B30: Tv Tenente Jose Joaquim, 319
B31: Centro
B32: 37950-000 Sao Sebastiao do Paraiso / MG
D45: Instituto de Previdência dos Servidores do Estado de Minas Gerais – IPSEMG
D46: Rodovia Prefeito Américo Gianetti, 4001 - Edifício Gerais – 3º andar – Serra Verde
D47: 31630-901 – Belo Horizonte – MG
D48: www.ipsemg.mg.gov.br
B51: ESTUDO DE REDUÇÃO DE VALOR DA PENSÃO
B53: Processo: | C53: 40943-0
B54: Instituidor:
C55: JOSE PEREIRA DE RESENDE
B56: Masp/matrícula: | C56: 93603-9
B57: Óbito: | C57: 2002-06-18
B58: Informações da Concessão
B60: Órgão de lotação: | C60: Secretaria de Estado da Saúde - SES
B61: Cargo: | C61: Médico da Área de Gestão e Atenção à Saúde
B62: Símbolo/Nível/Grau: | C62: MAGAS I C
B63: Razões da Redução de Valor
B65: Ø Tendo em vista que os valores em síntese de folha 38 foram lançados indevidamente na vigência de Jan/13, pois o percentual de 30.23% da Lei 20591/12 não se aplica ao cargo Médico da Área de Gestão de Saúde e atenção à Saúde, MAGAS IC, lotado na SES/MG;
D104: Belo Horizonte, 01 de julho de 2016.
B106: Assunto: Atualização de Pensão
B107: Instituidor: WILSON CORREIA DA COSTA
B108: MASP/matrícula: 14733-0
B109: Óbito: 08/06/2002
B110: Processo: 40990-1
B113: Senhor (a) Coordenador (a),
B115: Confirmamos o recebimento do ofício nº 968/GAB/DAPP/RG Nº533/2016. Entretanto, fineza enviar memória de cálculo da VTI que retifique ou ratifique planilhas enviadas (cópias em anexo).
B116: Solicitamos que a resposta a este ofício seja enviada ao setor de “Protocolo do Edifício Gerais, na Rodovia Papa João Paulo II, nº 4001 - Serra Verde, 31.630-901 – Belo Horizonte – MG, aos cuidados do Ipsemg – Departamento de Pensão – Arquivo (DEPENS-AR) - 3º andar”.
B119: Atenciosamente.
C125: Sílvia Carmona Rocha
C126: Coordenadora do Preparo de Pagamento de Pensionistas
C127: MASP 1074007-4
B136: Ilma. Sra.
B137: Cláudia Regina Campos de Araújo
B138: Diretoria de Administração e Pagamento de Pessoal | D138: Roberto Lima
B139: Polícia Civil do Estado de Minas Gerais | D139: 10739233
B140: Rua: Sergipe, 607 | D140: Depens-Pr - Ipsemg
B141: Funcionários
D147: Instituto de Previdência dos Servidores do Estado de Minas Gerais – IPSEMG
D148: Rodovia Prefeito Américo Gianetti, 4001 - Edifício Gerais – 3º andar – Serra Verde
D149: 31630-901 – Belo Horizonte – MG
D150: www.ipsemg.mg.gov.br

Sheet CONTATOS
A1: PROCESSO | B1: T | C1: CÓD. | D1: NOME | E1: DATA | F1: ENVIO/RECBTO | G1: TIPO | H1: SIGED | I1: OBSERVAÇÕES
A2: 0 | B2: 0 | C2: 0 | D2: - | F2: -
A3: 00.120-1 | B3: F | C3: 1 | D3: OLIVIA ALVES MATHEUS
A4: 00.323-9 | B4: F | C4: 1 | D4: MARIA ALICE DE ALMEIDA
A5: 01.635-7 | B5: F | C5: 1 | D5: ELZA DE PINHO TAVARES
A6: 01.773-6 | B6: F | C6: 1 | D6: CACILDA DE LIMA SYRIO
A7: 01.842-2 | B7: F | C7: 1 | D7: IRENE RIBEIRO DE ANDRADE
A8: 04.490-3 | B8: F | C8: 1 | D8: JOSÉ DE ALELUIA FERREIRA
A9: 04.790-2 | B9: F | C9: 1 | D9: ALICE VIEGAS DE ASSIS
A10: 05.085-7 | B10: F | C10: 1 | D10: MARIA SALVINA DA COSTA
A11: 34.498-2 | B11: F | C11: 1 | D11: FABIANE DE ALMEIDA
A12: 14.863-6 | B12: F | C12: 1 | D12: MARIA DO SOCORRO LACERDA NERES
A13: 40.349-0 | B13: F | C13: 1 | D13: ERNESTINO RODRIGUES ALVES
A14: 25.824-5 | B14: F | C14: 1 | D14: DULCE HELENA COSTA AMARAL
A15: 16.421-6 | B15: F | C15: 1 | D15: JOSIMAR DOS SANTOS
A16: 16.421-6 | B16: F | C16: 2 | D16: TEREZA PEREIRA DOS SANTOS
A17: 05.293-0 | B17: F | C17: 1 | D17: MARIA FLOR DE MAIO SENA
A18: 05.621-9 | B18: F | C18: 1 | D18: MARIA ANTÔNIA PEREIRA ALVES
A19: 05.928-5 | B19: F | C19: 1 | D19: MARIA FLOR DE MAIO SENA
A20: 05.971-4 | B20: F | C20: 1 | D20: ALZIRA RITA FERREIRA
A21: 06.233-2 | B21: F | C21: 1 | D21: IONE LIMA DO AMARAL
A22: 06.233-2 | B22: F | C22: 2 | D22: MARIA DO CARMO AMARAL
A23: 06.336-3 | B23: F | C23: 1 | D23: HELIANA MARIA DE LACERDA
A24: 30.037-3 | B24: F | C24: 1 | D24: MARIA FERREIRA DE CASTRO
A25: 06.464-5 | B25: F | C25: 1 | D25: OLIMPIA DE LIMA RUELA
A26: 26.966-2 | B26: F | C26: 1 | D26: DIOMAR RIBEIRO RESENDE
A27: 30.400-0 | B27: F | C27: 1 | D27: MARIA APARECIDA COSTA ETELVINO
A28: 35.935-1 | B28: F | C28: 1 | D28: JULIA VALERIA ABRAHÃO FRANCISCO BERNARDO
A29: 39.080-1 | B29: F | C29: 1 | D29: MARIA LUIZA DE ANDRADE MIOTTO
A30: 33.280-1 | B30: F | C30: 1 | D30: MARIA SOUZA DOS SANTOS
A31: 16.229-9 | B31: F | C31: 1 | D31: MARIA STELA ZAULI
A32: 23.942-9 | B32: F | C32: 1 | D32: ERCINA CONCEIÇÃO REIS
A33: 26.632-9 | B33: F | C33: 1 | D33: DIVA DA SILVA TOLEDO CARVALHO
A34: 12.651-9 | B34: F | C34: 1 | D34: APARECIDA MARIA SILVA PRESTES
A35: 06.531-5 | B35: F | C35: 1 | D35: WALDETE NEDER BORGES
A36: 35.656-5 | B36: F | C36: 1 | D36: ADELINA CAMPOS DE GODOY
A37: 26.156-4 | B37: F | C37: 1 | D37: ALAIDE FATIMA BRITO SILVEIRA
A38: 37.204-8 | B38: F | C38: 1 | D38: MARIA MONTEIRO DA SILVA
A39: 14.816-4 | B39: F | C39: 1 | D39: ELZA DE BARROS VIEIRA
A40: 35.037-0 | B40: F | C40: 1 | D40: MARIA DO CARMO ALBERGARIA MAFFRA
A41: 29.543-4 | B41: F | C41: 1 | D41: ELIA DARC GOMES DIAS
A42: 06.797-0 | B42: F | C42: 1 | D42: ADAIL MARIA DE LOURDES
A43: 06.797-0 | B43: F | C43: 2 | D43: MARIA LÚCIA DE MELO
A44: 06.797-0 | B44: F | C44: 2 | D44: FLORINDA AUGUSTA CONCEIÇÃO MELO
A45: 07.120-0 | B45: F | C45: 1 | D45: CELEDA MARIA DE JESUS BARBOSA
A46: 07.736-4 | B46: F | C46: 1 | D46: NATALIA SIQUEIRA FRIACA
A47: 07.746-1 | B47: F | C47: 1 | D47: LOYDE DE OLIVEIRA FERREIRA
A48: 07.952-9 | B48: F | C48: 1 | D48: DALVA ROSA DE OLIVEIRA LOPES
A49: 08.556-1 | B49: F | C49: 1 | D49: REGINA MARTINS GUERRA
A50: 09.183-9 | B50: F | C50: 1 | D50: CONCEIÇÃO AMARAL MENDES
A51: 10.445-0 | B51: F | C51: 2 | D51: MARIA ILEDA DE MELO
A52: 10.445-0 | B52: F | C52: 1 | D52: KATIA REGINA DE MELO
A53: 10.452-3 | B53: F | C53: 1 | D53: DENISE VIEIRA SINGI
A54: 10.690-0 | B54: F | C54: 1 | D54: MARIA JOSÉ HERMENEGILDA
A55: 10.936-3 | B55: F | C55: 1 | D55: OLMPIA DE LIMA RUELA
A56: 10.998-3 | B56: F | C56: 1 | D56: SOFIA PEREIRA DOS SANTOS
A57: 11.247-0 | B57: F | C57: 1 | D57: ANA BATISTA CARDOSO
A58: 11.345-0 | B58: F | C58: 1 | D58: MARIA AUGUSTA ATAIDE ARAUJO
A59: 11.444-8 | B59: F | C59: 1 | D59: FRANCISCA INEZ BELEM
A60: 11.598-3 | B60: F | C60: 1 | D60: FLAUZINA ROSA CORREA
A61: 11.998-9 | B61: F | C61: 1 | D61: MARIA DA CONCEIÇÃO FRAMCO
A62: 12.104-5 | B62: F | C62: 1 | D62: ENI MARIA ELETO MONTEIRO
A63: 12.484-2 | B63: F | C63: 1 | D63: MARIA IONE MIGUEL
A64: 12.484-2 | B64: F | C64: 2 | D64: CLEIDINEIAMIGUEL
A65: 12.720-5 | B65: F | C65: 1 | D65: MARIA DA CONCEIÇÃO ALMEIDA
A66: 12.806-6 | B66: F | C66: 1 | D66: VITÓRIA PORFÍRIA DE MORAES
A67: 12.835-0 | B67: F | C67: 1 | D67: TEREZINHA DE AVELAR SENNA
A68: 13.326-4 | B68: F | C68: 2 | D68: DOLORES CRISTINA ANDRADE
A69: 13.326-4 | B69: F | C69: 1 | D69: MARIA VALDA BOERI ANDRADE
A70: 13.383-3 | B70: F | C70: 1 | D70: MARIA JOSE DA SILVA GRANATO
A71: 13.563-1 | B71: F | C71: 1 | D71: IVANI MARIA DO ROSÁRIO BARBOSA
A72: 13.563-1 | B72: F | C72: 2 | D72: MARIA APARECIDA SILVA BARBOSA
A73: 13.563-1 | B73: F | C73: 3 | D73: MARIA SEBASTIANA DA COSTA BARBOSA
A74: 13.563-1 | B74: F | C74: 4 | D74: VIVIANI DA COSTA BARBOSA
A75: 13.673-5 | B75: F | C75: 1 | D75: ELZITA DE SENA NASCIMENTO DOS SANTOS
A76: 13.693-0 | B76: F | C76: 1 | D76: JOAQUIM MARQUES DE OLIVEIRA FILHO
A77: 13.815-0 | B77: F | C77: 1 | D77: KATIA MARIA MENDONÇA
A78: 13.815-0 | B78: F | C78: 2 | D78: SONIA MARIA MENDONÇA
A79: 13.839-2 | B79: F | C79: 1 | D79: YEDA CARDOSO MAYRINK XAVIER
A80: 11.505-3 | B80: F | C80: 1 | D80: MARIANGELA DE CHANTAL FONSECA
A81: 20.106-5 | B81: F | C81: 1 | D81: MARIA MADDALENA DA SILVA
A82: 14.281-6 | B82: F | C82: 1 | D82: ODETE CATARINA SILVA OLIVEIRA
A83: 41.861-7 | B83: F | C83: 1 | D83: HELENA MARIA DE SOUZA OLIVEIRA
A84: 14.391-0 | B84: F | C84: 1 | D84: MARIA HELENA GUEDES PEREIRA
A85: 09.388-2 | B85: F | C85: 1 | D85: NOEME MARES FIGUEIREDO
A86: 14.761-3 | B86: F | C86: 1 | D86: EDITE SENA OLIVEIRA
A87: 14.824-5 | B87: F | C87: 1 | D87: JACY MATHIAS MEIRA TOMÉ
A88: 15.033-9 | B88: F | C88: 1 | D88: MARGARIDA DE OLIVEIRA VILAÇA
A89: 15.457-1 | B89: F | C89: 1 | D89: CARMEN LÚCIA BELCHIOR RODRIGUES
A90: 15.577-2 | B90: F | C90: 1 | D90: IRIS RECENVINDA ROSA PINHEIRO
A91: 15.577-2 | B91: F | C91: 2 | D91: MARIA DAS GRAÇAS PINHEIRO DOS SANTOS
A92: 15.652-3 | B92: F | C92: 1 | D92: BENEDITO CAPUTO
A93: 16.020-2 | B93: F | C93: 1 | D93: MAGALI JOSE PIRES MISAEL
A94: 16.331-7 | B94: F | C94: 1 | D94: MARIA APARECIDA DA COSTA
A95: 16.802-5 | B95: F | C95: 1 | D95: MARIA CLELIA DOS SANTOS DE PAULO
A96: 16.960-9 | B96: F | C96: 1 | D96: VANILDA GOMES RUAS
A97: 17.584-5 | B97: F | C97: 1 | D97: GERALDA MARIA DE SOUZA
A98: 17.806-3 | B98: F | C98: 1 | D98: DENISE DE LIMA MIRANDA
A99: 17.860-8 | B99: F | C99: 1 | D99: CIRIA RODRIGUES VILELA
A100: 32.154-0 | B100: F | C100: 1 | D100: ALBERTINA DA TRINDADE LOURDES
A101: 18.112-9 | B101: F | C101: 1 | D101: HAYDEE MENEZES PEREIRA
A102: 18.247-8 | B102: F | C102: 1 | D102: TEREZINHA GONÇALVES VILARINO DA CUNHA
A103: 18.434-9 | B103: F | C103: 1 | D103: THEREZA DA SILVA FERREIRA
A104: 18.440-3 | B104: F | C104: 1 | D104: ANA MARIA ANDRÉ
A105: 37.943-3 | B105: F | C105: 1 | D105: GERALDA MOTA ARAÚJO
A106: 37.943-3 | B106: F | C106: 2 | D106: JOSÉ ROBERTO DE ARAÚJO
A107: 13.717-0 | B107: F | C107: 1 | D107: MARIA ANTONIETA CASTRO FARIA
A108: 18.614-7 | B108: F | C108: 1 | D108: RITA ALZIRA TERRA
A109: 18.655-4 | B109: F | C109: 1 | D109: GERALDA MARIA DE SOUZA
A110: 19.225-2 | B110: F | C110: 1 | D110: MARIA DAS DORES CORDEIRO MADUREIRA
A111: 19.529-4 | B111: F | C111: 1 | D111: TEREZINHA LOPES DA SILVA
A112: 19.910-9 | B112: F | C112: 1 | D112: MARIA AUXILIADORA BAPTISTA LEITE
A113: 20.119-7 | B113: F | C113: 1 | D113: SEBASTIANA DOS SANTOS CRUZ
A114: 30.811-0 | B114: F | C114: 1 | D114: GENI LOPES DA FONSECA
A115: 20.284-3 | B115: F | C115: 1 | D115: ANITA DE PAULA
A116: 20.284-3 | B116: F | C116: 1 | D116: BENEDITA DA SILVA GUIMARÃES
A117: 20.284-3 | B117: F | C117: 2 | D117: MARILIA REIS ALVES SILVA
A118: 14.413-4 | B118: F | C118: 1 | D118: AURORA MARIA SARAIVA
A119: 14.413-4 | B119: F | C119: 2 | D119: ROSEMEIRE SARAIVA MOREIRA
A120: 13.099-0 | B120: F | C120: 1 | D120: ANA BARBOSA FREIRE
A121: 20.393-9 | B121: F | C121: 1 | D121: BENEDITA RIBEIRO DE OLIVEIRA
A122: 20.393-9 | B122: F | C122: 1 | D122: WALDETE DRUMOND ZAGNOLI RABELO
A123: 20.430-7 | B123: F | C123: 1 | D123: WILMA GUIMARÃES FERNANDES
A124: 18.234-6 | B124: F | C124: 1 | D124: MARIA LUIZA PEREIRA
A125: 20.514-1 | B125: F | C125: 1 | D125: SEBASTIANA DOS SANTOS CRUZ
A126: 20.836-1 | B126: F | C126: 1 | D126: ANGELA MARIA PEREIRA GARCIA
A127: 20.879-5 | B127: F | C127: 1 | D127: HELENA LOPES DA FONSECA
A128: 20.962-7 | B128: F | C128: 1 | D128: MARIA JOSE DURÃO SILVA
A129: 21.061-7 | B129: F | C129: 1 | D129: WALDETE DRUMOND ZAGNOLI RABELO
A130: 21.763-8 | B130: F | C130: 1 | D130: ESTELITA DE MORAIS SANTANA E SILVA
A131: 22.321-2 | B131: F | C131: 1 | D131: MARTA NOGUEIRA MARQUES
A132: 22.327-1 | B132: F | C132: 1 | D132: TEREZINHA SERVIDEY DE AZEVEDO
A133: 04.517-9 | B133: F | C133: 1 | D133: AUGUSTA VILELA DE ANDRADE
A134: 22.333-6 | B134: F | C134: 1 | D134: HELENA LOPES DA FONSECA
A135: 22.409-0 | B135: F | C135: 1 | D135: MARCIA SIQUEIRA FRANÇA CAMPOS
A136: 22.409-0 | B136: F | C136: 2 | D136: ALMIRA FERREIRA COIMBRA
A137: 22.414-6 | B137: F | C137: 1 | D137: ALDA MARIA DE JESUS
A138: 22.414-6 | B138: F | C138: 1 | D138: MARIA DE LOURDES
A139: 22.486-3 | B139: F | C139: 1 | D139: MARIA DA CONCEIÇÃO DE SOUZA LIMA SCHETTINI
A140: 22.497-9 | B140: F | C140: 1 | D140: IVETE VARGAS DE OLIVEIRA
A141: 22.539-8 | B141: F | C141: 1 | D141: MARIA DOS REIS GOMES PRADO MENEZES
A142: 22.539-8 | B142: F | C142: 2 | D142: RAMON RODIGO GOMES MENEZES
A143: 22.613-0 | B143: F | C143: 1 | D143: MARIA APARECIDA DE CAMPOS
A144: 22.613-0 | B144: F | C144: 2 | D144: MARIA DO ROSÁRIO DOMINGUITO
A145: 23.776-0 | B145: F | C145: 1 | D145: MARIA LUCIA RODRIGUES BASTOS
A146: 23.776-0 | B146: F | C146: 2 | D146: LEVINA GLAYCE RODRIGUES BASTOS
A147: 52.888-9 | B147: F | C147: 1 | D147: WALTER GRUBER
A148: 23.929-1 | B148: F | C148: 1 | D148: SEBASTIANA EUZÉBIA LEMOS
A149: 22.888-5 | B149: F | C149: 1 | D149: MERCIA NEVES GARCIA
A150: 24.065-6 | B150: F | C150: 1 | D150: MARIA GORETE DE AZEVEDO
A151: 24.207-1 | B151: F | C151: 1 | D151: MARIA FERRAZ FERREIRA
A152: 24.308-6 | B152: F | C152: 1 | D152: ANA SÍLVIA TEODORO DIAS
A153: 24.458-9 | B153: F | C153: 1 | D153: NEUSA MARIA CARDOSO
A154: 24.529-1 | B154: F | C154: 1 | D154: CARMEM SANCHES MOREIRA
A155: 24.971-8 | B155: F | C155: 1 | D155: CUSTÓDIA ALVES DE FREITAS
A156: 25.011-2 | B156: F | C156: 1 | D156: LAZARO RAMOS PIMENTA
A157: 25.044-9 | B157: F | C157: 1 | D157: LUCIANO AUGUSTO TADEU DE SOUZA
A158: 25.227-1 | B158: F | C158: 1 | D158: MARIA CECÍLIA CORREA
A159: 08.374-7 | B159: F | C159: 1 | D159: MARIA CORREA PEREIRA
A160: 25.260-3 | B160: F | C160: 1 | D160: LUZIA BENTA DA SILVA
A161: 25.299-9 | B161: F | C161: 1 | D161: MARIA ROSA DE REZENDE CUNHA
A162: 25.405-3 | B162: F | C162: 1 | D162: MARIA DA CONCEIÇÃO LATINI DE SOUZA
A163: 25.431-2 | B163: F | C163: 1 | D163: VICENTINA ANA RODRIGUES
A164: 25.441-0 | B164: F | C164: 1 | D164: NEUSA MARIA CARDOSO
A165: 25.474-6 | B165: F | C165: 1 | D165: ALAIDE FATIMA BRITO SILVEIRA
A166: 25.576-9 | B166: F | C166: 1 | D166: ERNESTINA DOURADO SOBRINHA CORREA MACHADO
A167: 25.576-9 | B167: F | C167: 2 | D167: MARINA DOURADO CORREA MACHADO
A168: 25.618-8 | B168: F | C168: 1 | D168: JIZLENE ALVES SARAIVA
A169: 25.763-0 | B169: F | C169: 1 | D169: MARIA MARILDA MAIA DUMONT
A170: 25.825-3 | B170: F | C170: 1 | D170: MARIA ESTER DE CASTRO
A171: 26.260-9 | B171: F | C171: 1 | D171: CELSO TARCISIO DA ROCHA
A172: 26.406-7 | B172: F | C172: 1 | D172: LUZIA TORRES BENTO
A173: 26.432-6 | B173: F | C173: 1 | D173: CLEUSA DE FÁTIMA GUEDES
A174: 26.543-8 | B174: F | C174: 1 | D174: BENEDITA MARIA RIBEIRO
A175: 26.633-7 | B175: F | C175: 1 | D175: TEREZINHA MARIA DE JESUS
A176: 26.810-0 | B176: F | C176: 1 | D176: TEREZINHA DE CASTRO RIBEIRO
A177: 26.872-0 | B177: F | C177: 1 | D177: ADÉLIA APARECIDA MARCELINO
A178: 26.872-0 | B178: F | C178: 2 | D178: TEREZA APARECIDA MARCELINO
A179: 27.185-3 | B179: F | C179: 1 | D179: ERICH AUGUSTO MICHELATTO PALMA
A180: 27.185-3 | B180: F | C180: 2 | D180: SANDRA APARECIDAMICHELATTO PALMA
A181: 27.225-6 | B181: F | C181: 1 | D181: TEREZINHA DE MIRANDA SALVADOR
A182: 27.225-6 | B182: F | C182: 2 | D182: ROSIMERE RODRIGUES DE LIMA
A183: 27.302-3 | B183: F | C183: 1 | D183: MARIA FERREIRA BRAGA
A184: 27.405-4 | B184: F | C184: 1 | D184: MARIA DE LOURDES MENDES DE PAULA
A185: 27.433-0 | B185: F | C185: 1 | D185: PEDRO HENRIQUE OLIVEIRA DINIZ
A186: 27.491-7 | B186: F | C186: 1 | D186: LEONARDO DE MATOS CASAES
A187: 27.491-7 | B187: F | C187: 2 | D187: LUCILIA DE MATOS CASAES
A188: 27.491-7 | B188: F | C188: 3 | D188: MARLLON DE MATOS CASAES
A189: 27.580-8 | B189: F | C189: 1 | D189: CONCEIÇÃO BUGGIONE GOMES
A190: 27.587-5 | B190: F | C190: 1 | D190: BIGAIR CEZARIA DE SIQUEIRA
A191: 27.593-0 | B191: F | C191: 1 | D191: DALVANORA NORONHA SILVA
A192: 27.623-5 | B192: F | C192: 1 | D192: ONESIA MACHADO DA SILVA
A193: 27.943-9 | B193: F | C193: 1 | D193: AGRIPINA ASSUNÇÃO PEDRA
A194: 27.956-0 | B194: F | C194: 1 | D194: LEA SERRA AZOLA
A195: 28.145-0 | B195: F | C195: 1 | D195: MARIA JANUÁRIA DE AZEVEDO
A196: 28.165-4 | B196: F | C196: 1 | D196: MARIA DE FATIMA PEREIRA DOMICIANO
A197: 28.179-4 | B197: F | C197: 1 | D197: MARIA DAS GRAÇAS PEIXOTO SILVA
A198: 28.179-4 | B198: F | C198: 2 | D198: ADRIANA PEREIRA DOMICIANO
A199: 28.179-4 | B199: F | C199: 3 | D199: MARCIO PEREIRA DOMICIANO
A200: 28.236-7 | B200: F | C200: 1 | D200: MARIA DA CONSOLAÇÃO MOURA
... 326 more rows

Sheet FUNCIONÁRIOS
A1: NOME | B1: SIT. FUNCIONAL | C1: EST. TRABALHO | D1: RAMAL | E1: IDENTIDADE
A2: Aguida Maris de Oliveira Dias | B2: Estagiária | C2: 03 - 1052 | D2: 52194 | E2: MG-14.440.352
A3: Amanda Gabriela Silva | B3: Estagiária | C3: 03 - 1042 | D3: 52203 | E3: MG-15.625.893
A4: Bárbara Alice Turci de Oliveira | B4: Estagiária | C4: 03 - 1006 | D4: 52228 | E4: MG-11.832.530
A5: Bruno de Paula Assis | B5: Estagiário | C5: 03 - 1012 | D5: 52220 | E5: MG-13.373.330
A6: Camila Cristina da Silva | B6: MGS | C6: 03 - 1038 | D6: 52218 | E6: MG- 14.863.632
A7: Carla Rúbia Lobo da Silva | B7: FENEIS | C7: 03 - 1040 | D7: 52192
A8: Cecília de Moraes Rosa | B8: Servidor | C8: 03 - 1008 | D8: 52228 | E8: MG-5.880.053
A9: Daiana Aparecida da Silva | B9: Estagiária | C9: 03 - 1044 | D9: 52203 | E9: MG-17.283.855
A10: Diogo Tadeu Amaral Ferraz | B10: Estagiário | C10: 03 - 1042 | D10: 52192 | E10: MG- 14.965.030
A11: Eliane Veloso Assis | B11: Servidor | C11: 03 -1028 | D11: 52219 | E11: MG-827.873
A12: Gláucia Maria Gomes | B12: MGS | C12: 03 - 1056 | D12: 52193 | E12: MG-6.059.285
A13: Ivanildo Nicomedes dos Reis | B13: Estagiário | C13: 03 - 1016 | D13: 52221 | E13: 25.007.593-3
A14: Jefferson Leandro Magalhães da Costa | B14: MGS | C14: 03 - 1050 | D14: 52194 | E14: MG-14.151.264
A15: Juliana Maria Caroline Santos Silva | B15: Estagiária | C15: 03 - 1004 | D15: 52229 | E15: MG-12.497.245
A16: Juliane Mendes Lopes | B16: Estagiária | C16: 03 - 1010 | D16: 52220 | E16: MG-16.347.960
A17: Karoline de Carvalho Silva | B17: Servidor | C17: 03- 1018 | D17: 52205 | E17: MG-12.585.243
A18: Késia Oliveira Costa | B18: MGS | C18: 03 - 1020 | D18: 52208 | E18: MG-16.720.033
A19: Laura Nunes Vieira | B19: Estagiária | C19: 03 - 1052 | D19: 52194 | E19: MG-15.486.549
A20: Lindomar Gomes da Silva | B20: FENEIS | C20: 03 - 1054 | E20: MG-5.677.009
A21: Marco Alexandre Cruz | B21: Estagiário | C21: 03 - 1024 | D21: 52207 | E21: MG-11.618.688
A22: Marystela Regina Silva | B22: Assprom | C22: 03 - 1032 | D22: 52217 | E22: MG-17.945.554
A23: Otávia Natividade de Resende | B23: Servidor | C23: 03 - 1058 | D23: 52222 | E23: M- 659.349
A24: Ramon Sampaio Rosa | B24: Assprom | C24: 03 - 1030 | D24: 52217 | E24: MG-16.828.361
A25: Roberto Viana de Lima | B25: Servidor | C25: 03 - 1048 | D25: 52204 | E25: M-4.674.507
A26: Rosângela Ladeira Wanner | B26: Servidor | C26: 03 - 1022 | D26: 52207 | E26: M- 19.427
A27: Samuel Ferreira Fial | B27: MGS | C27: 03 - 1014 | D27: 52221 | E27: MG-12.768.886
A28: Sandra Maria Queiroz | B28: Servidor | C28: 03 - 1034 | D28: 52206 | E28: M-753.525
A29: Sara Regina Silva | B29: Estagiária | C29: 03 - 1044 | D29: 52203 | E29: MG- 12.096.295
A30: Sílvia Carmona Rocha | B30: Servidor | C30: 03 - 1000 | D30: 52230 | E30: MG-4.086.388
A31: Waner Ferreira Rosa Pires | B31: Estagiário | C31: 03 - 1046 | D31: 52204 | E31: MG-12.253.411
A32: Webert Melo Moreira | B32: MGS | C32: 03 - 1002 | D32: 52229 | E32: MG-14.058.704
A33: Wellington A. dos Reis | B33: MGS | C33: 03 - 1036 | D33: 52206

Sheet PRODUCÃO
A1: DATA | B1: TIPO | C1: PROCESSO | D1: P/E | E1: ÓRGÃO | F1: STATUS | G1: RESPONSÁVEL
A2: 2001-10-31 | B2: - | C2: 13.673-5 | D2: P | E2: MONTALVÂNIA | F2: COMUNICADO | G2: Diogo Tadeu Amaral Ferraz
A3: 2011-10-21 | B3: - | C3: 10.998-3 | D3: P | E3: ALTEROSA | F3: ATUALIZADO | G3: Diogo Tadeu Amaral Ferraz
A4: 2011-10-24 | B4: - | C4: 20.404-8 | D4: P | E4: - | F4: COMUNICADO | G4: Wellington Reis
A5: 2011-10-24 | B5: - | C5: 20.404-8 | D5: P | E5: CAMANDUCAIA | F5: COMUNICADO | G5: Wellington Reis
A6: 2011-10-27 | B6: - | C6: 25.441-0 | D6: P | E6: CAMPO BELO | F6: DEVOLVIDO | G6: Diogo Tadeu Amaral Ferraz
A7: 2011-10-27 | B7: - | C7: 28.559-5 | D7: P | E7: PIRANGUINHO | F7: ATUALIZADO | G7: Diogo Tadeu Amaral Ferraz
A8: 2011-10-27 | B8: - | C8: 30.811-0 | D8: P | E8: TRÊS MARIAS | F8: ATUALIZADO | G8: Diogo Tadeu Amaral Ferraz
A9: 2011-10-31 | B9: - | C9: 07.120-0 | D9: P | E9: RESENDE COSTA | F9: DEVOLVIDO | G9: Wellington Reis
A10: 2011-10-31 | B10: - | C10: 12.835-0 | D10: P | E10: GUARACIABA | F10: DEVOLVIDO | G10: Diogo Tadeu Amaral Ferraz
A11: 2011-10-31 | B11: - | C11: 14.824-5 | D11: P | E11: RIBEIRÃO VERMELHO | F11: DEVOLVIDO | G11: Wellington Reis
A12: 2011-10-31 | B12: - | C12: 27.623-5 | D12: P | E12: QUELUZITO | F12: ATUALIZADO | G12: Wellington Reis
A13: 2011-10-31 | B13: - | C13: 28.145-0 | D13: P | E13: CONTAGEM | F13: DEVOLVIDO | G13: Wellington Reis
A14: 2011-10-31 | B14: - | C14: 28.814-4 | D14: P | E14: JUATUBA | F14: COMUNICADO | G14: Wellington Reis
A15: 2011-10-31 | B15: - | C15: 32.353-5 | D15: P | E15: QUELUZITO | F15: DEVOLVIDO | G15: Diogo Tadeu Amaral Ferraz
A16: 2011-10-31 | B16: - | C16: 32.508-2 | D16: P | E16: SÃO GOTARDO | F16: CANCELADO | G16: Wellington Reis
A17: 2011-10-31 | B17: - | C17: 34.807-4 | D17: P | E17: CONTAGEM | F17: DEVOLVIDO | G17: Wellington Reis
A18: 2011-11-01 | B18: - | C18: 06.464-5 | D18: P | E18: LAGOA DA PRATA | F18: DEVOLVIDO | G18: Diogo Tadeu Amaral Ferraz
A19: 2011-11-01 | B19: - | C19: 26.298-6 | D19: P | E19: TRÊS MARIAS | F19: DEVOLVIDO | G19: Wellington Reis
A20: 2011-11-01 | B20: - | C20: 32.251-2 | D20: P | E20: JANAÚBA | F20: DEVOLVIDO | G20: Diogo Tadeu Amaral Ferraz
A21: 2011-11-01 | B21: - | C21: 34.444-3 | D21: P | E21: OURO BRANCO | F21: ATUALIZADO | G21: Wellington Reis
A22: 2011-11-03 | B22: - | C22: 15.033-9 | D22: P | E22: BARBACENA | F22: DEVOLVIDO | G22: Wellington Reis
A23: 2011-11-03 | B23: - | C23: 23.079-0 | D23: P | E23: DORES DE CAMPOS | F23: DEVOLVIDO | G23: Wellington Reis
A24: 2011-11-03 | B24: - | C24: 27.491-7 | D24: P | E24: SANTANA DO GARAMBÉU | F24: DEVOLVIDO | G24: Wellington Reis
A25: 2011-11-03 | B25: - | C25: 27.943-9 | D25: P | E25: CONTAGEM | F25: DEVOLVIDO | G25: Diogo Tadeu Amaral Ferraz
A26: 2011-11-03 | B26: - | C26: 29.522-1 | D26: P | E26: DORES DO INDAIÁ | F26: DEVOLVIDO | G26: Wellington Reis
A27: 2011-11-03 | B27: - | C27: 32.268-7 | D27: P | E27: DIVINÓPOLIS | F27: ATUALIZADO | G27: Wellington Reis
A28: 2011-11-03 | B28: - | C28: 33.143-0 | D28: P | E28: CATAGUASES | F28: COMUNICADO | G28: Diogo Tadeu Amaral Ferraz
A29: 2011-11-07 | B29: - | C29: 06.336-3 | D29: P | E29: PEÇANHA | F29: DEVOLVIDO | G29: Diogo Tadeu Amaral Ferraz
A30: 2011-11-07 | B30: - | C30: 21.299-7 | D30: P | E30: BARBACENA | F30: DEVOLVIDO | G30: Diogo Tadeu Amaral Ferraz
A31: 2011-11-07 | B31: - | C31: 24.189-0 | D31: P | E31: VARGINHA | F31: DEVOLVIDO | G31: Diogo Tadeu Amaral Ferraz
A32: 2011-11-07 | B32: - | C32: 34.488-5 | D32: P | E32: 0 | F32: DEVOLVIDO | G32: Diogo Tadeu Amaral Ferraz
A33: 2011-11-08 | B33: - | C33: 25.011-2 | D33: P | E33: CARATINGA | F33: ATUALIZADO | G33: Wellington Reis
A34: 2011-11-09 | B34: - | C34: 34.688-8 | D34: P | E34: URUCÂNIA | F34: ATUALIZADO | G34: Roberto Viana de Lima
A35: 2011-11-09 | B35: - | C35: 34.961-5 | D35: P | E35: URUCÂNIA | F35: ATUALIZADO | G35: Roberto Viana de Lima
A36: 2011-11-16 | B36: - | C36: 25.299-9 | D36: P | E36: CRISTÁLIA | F36: ATUALIZADO | G36: Diogo Tadeu Amaral Ferraz
A37: 2011-11-19 | B37: - | C37: 31.167-7 | D37: P | E37: NATALÂNDIA | F37: ATUALIZADO | G37: Wellington Reis
A38: 2011-11-19 | B38: - | C38: 40.419-5 | D38: P | E38: NATALÂNDIA | F38: ATUALIZADO | G38: Wellington Reis
A39: 2012-02-12 | B39: - | C39: 35.054-0 | D39: P | E39: PIRACEMA | F39: ATUALIZADO | G39: Wellington Reis
A40: 2012-02-28 | B40: - | C40: 04.666-3 | D40: P | E40: NOVA LIMA | F40: ATUALIZADO | G40: Diogo Tadeu Amaral Ferraz
A41: 2012-03-01 | B41: - | C41: 10.936-3 | D41: P | E41: AREADO | F41: ATUALIZADO | G41: Wellington Reis
A42: 2012-04-23 | B42: PR | C42: 30.614-2 | D42: P | E42: BOM DESPACHO | F42: ATUALIZADO | G42: Diogo Tadeu Amaral Ferraz
A43: 2012-04-24 | B43: PR | C43: 29.406-3 | D43: P | E43: CABO VERDE | F43: ATUALIZADO | G43: Wellington Reis
A44: 2012-04-24 | B44: - | C44: 33.066-3 | D44: P | E44: PITANGUI | F44: DEVOLVIDO | G44: Wellington Reis
A45: 2012-04-27 | B45: - | C45: 06.652-4 | D45: P | E45: PAIVA | F45: COMUNICADO | G45: Olívia
A46: 2012-04-27 | B46: JUD | C46: 09.023-9 | D46: P | E46: TARUMIRIM | F46: COMUNICADO | G46: Diogo Tadeu Amaral Ferraz
A47: 2012-04-27 | B47: - | C47: 25.833-4 | D47: P | E47: CARATINGA | F47: COMUNICADO | G47: Diogo Tadeu Amaral Ferraz
A48: 2012-04-27 | B48: - | C48: 27.405-4 | D48: P | E48: CURVELO | F48: DEVOLVIDO | G48: Wellington Reis
A49: 2012-04-27 | B49: - | C49: 27.580-8 | D49: P | E49: ALVINÓPOLIS | F49: ATUALIZADO | G49: Diogo Tadeu Amaral Ferraz
A50: 2012-04-27 | B50: - | C50: 28.263-4 | D50: P | E50: PERDÕES | F50: ATUALIZADO | G50: Wellington Reis
A51: 2012-04-27 | B51: JUD | C51: 28.806-3 | D51: P | E51: JANAÚBA | F51: ATUALIZADO | G51: Wellington Reis
A52: 2012-04-27 | B52: JUD | C52: 30.931-1 | D52: P | E52: VESPASIANO | F52: ATUALIZADO | G52: Diogo Tadeu Amaral Ferraz
A53: 2012-05-02 | B53: - | C53: 00.935-0 | D53: P | E53: CURVELO | F53: ATUALIZADO | G53: Diogo Tadeu Amaral Ferraz
A54: 2012-05-02 | B54: - | C54: 10.373-0 | D54: P | E54: CASA GRANDE | F54: COMUNICADO | G54: Olívia
A55: 2012-05-02 | B55: - | C55: 16.953-6 | D55: P | E55: IGUATAMA | F55: COMUNICADO | G55: Olívia
A56: 2012-05-02 | B56: - | C56: 29.253-2 | D56: P | E56: PORTEIRINHA | F56: ATUALIZADO | G56: Wellington Reis
A57: 2012-05-02 | B57: - | C57: 32.603-8 | D57: P | E57: CAMPO BELO | F57: ATUALIZADO | G57: Olívia
A58: 2012-05-03 | B58: - | C58: 22.409-0 | D58: P | E58: SETE LAGOAS | F58: ATUALIZADO | G58: Wellington Reis
A59: 2012-05-03 | B59: - | C59: 34.277-7 | D59: P | E59: SABARÁ | F59: ATUALIZADO | G59: Wellington Reis
A60: 2012-05-04 | B60: - | C60: 15.457-1 | D60: P | E60: PERDIZES | F60: ATUALIZADO | G60: Wellington Reis
A61: 2012-05-04 | B61: - | C61: 16.124-1 | D61: P | E61: - | F61: COMUNICADO | G61: Diogo Tadeu Amaral Ferraz
A62: 2012-05-04 | B62: - | C62: 27.956-0 | D62: P | E62: ALFENAS | F62: ATUALIZADO | G62: Diogo Tadeu Amaral Ferraz
A63: 2012-05-04 | B63: - | C63: 28.198-0 | D63: P | E63: - | F63: COMUNICADO | G63: Wellington Reis
A64: 2012-05-04 | B64: - | C64: 28.272-3 | D64: P | E64: JEQUITAÍ | F64: DEVOLVIDO | G64: Wellington Reis
A65: 2012-05-04 | B65: - | C65: 30.424-7 | D65: P | E65: ALVINÓPOLIS | F65: DEVOLVIDO | G65: Wellington Reis
A66: 2012-05-04 | B66: - | C66: 35.856-8 | D66: P | E66: - | F66: COMUNICADO | G66: Wellington Reis
A67: 2012-05-07 | B67: - | C67: 25.825-3 | D67: P | E67: ANTÔNIO DIAS | F67: ATUALIZADO | G67: Wellington Reis
A68: 2012-05-07 | B68: - | C68: 26.810-0 | D68: P | E68: ITAJUBÁ | F68: SALDO | G68: Wellington Reis
A69: 2012-05-07 | B69: - | C69: 39.010-0 | D69: P | E69: FELIZBURGO | F69: ATUALIZADO | G69: Olívia
A70: 2012-05-08 | B70: - | C70: 09.853-1 | D70: P | E70: - | F70: COMUNICADO | G70: Olívia
A71: 2012-05-08 | B71: PR | C71: 12.720-5 | D71: P | E71: MATEUS LEME | F71: ATUALIZADO | G71: Diogo Tadeu Amaral Ferraz
A72: 2012-05-08 | B72: JUD | C72: 20.430-7 | D72: P | E72: PITANGUI | F72: ATUALIZADO | G72: Wellington Reis
A73: 2012-05-08 | B73: - | C73: 25.405-3 | D73: P | E73: URUCÂNIA | F73: DEVOLVIDO | G73: Diogo Tadeu Amaral Ferraz
A74: 2012-05-08 | B74: - | C74: 25.431-2 | D74: P | E74: OLIVEIRA | F74: DEVOLVIDO | G74: Diogo Tadeu Amaral Ferraz
A75: 2012-05-08 | B75: - | C75: 26.432-6 | D75: P | E75: CAMPO BELO | F75: ATUALIZADO | G75: Olívia
A76: 2012-05-08 | B76: - | C76: 30.100-0 | D76: P | E76: GRÃO MOGOL | F76: ATUALIZADO | G76: Diogo Tadeu Amaral Ferraz
A77: 2012-05-08 | B77: - | C77: 30.100-0 | D77: P | E77: GRÃO MOGOL | F77: DEVOLVIDO | G77: Diogo Tadeu Amaral Ferraz
A78: 2012-05-08 | B78: - | C78: 32.348-8 | D78: P | E78: - | F78: DEVOLVIDO | G78: Diogo Tadeu Amaral Ferraz
A79: 2012-05-08 | B79: - | C79: 33.877-0 | D79: P | E79: UBÁ | F79: ATUALIZADO | G79: Wellington Reis
A80: 2012-05-08 | B80: - | C80: 39.196-4 | D80: P | E80: CURVELO | F80: DEVOLVIDO | G80: Wellington Reis
A81: 2012-05-08 | B81: - | C81: 39.729-6 | D81: E/P | E81: CONTAGEM | F81: DEVOLVIDO | G81: Wellington Reis
A82: 2012-05-09 | B82: - | C82: 10.496-5 | D82: P | E82: CURVELO | F82: DEVOLVIDO | G82: Olívia
A83: 2012-05-09 | B83: - | C83: 21.473-6 | D83: P | E83: - | F83: COMUNICADO | G83: Diogo Tadeu Amaral Ferraz
A84: 2012-05-09 | B84: - | C84: 25.260-3 | D84: P | E84: CRISTAIS | F84: ATUALIZADO | G84: Diogo Tadeu Amaral Ferraz
A85: 2012-05-09 | B85: - | C85: 28.634-6 | D85: P | E85: SANTO ANTÔNIO DO GRAMA | F85: ATUALIZADO | G85: Olívia
A86: 2012-05-09 | B86: - | C86: 29.341-5 | D86: P | E86: - | F86: COMUNICADO | G86: Diogo Tadeu Amaral Ferraz
A87: 2012-05-09 | B87: - | C87: 32.495-7 | D87: P | E87: PERDÕES | F87: ATUALIZADO | G87: Wellington Reis
A88: 2012-05-11 | B88: - | C88: 26.543-8 | D88: P | E88: ITAJUBÁ | F88: ATUALIZADO | G88: Diogo Tadeu Amaral Ferraz
A89: 2012-05-11 | B89: - | C89: 29.566-3 | D89: P | E89: - | F89: DEVOLVIDO | G89: Olívia
A90: 2012-05-11 | B90: - | C90: 31.392-0 | D90: P | E90: URUCÂNIA | F90: ATUALIZADO | G90: Diogo Tadeu Amaral Ferraz
A91: 2012-05-11 | B91: - | C91: 32.646-1 | D91: P | E91: SRª DOS REMÉDIOS | F91: ATUALIZADO | G91: Diogo Tadeu Amaral Ferraz
A92: 2012-05-11 | B92: - | C92: 38.581-6 | D92: P | E92: CONTAGEM | F92: ATUALIZADO | G92: Diogo Tadeu Amaral Ferraz
A93: 2012-05-14 | B93: - | C93: 13.603-4 | D93: P | E93: LAGOA DA PRATA | F93: DEVOLVIDO | G93: Wellington Reis
A94: 2012-05-14 | B94: - | C94: 22.754-4 | D94: P | E94: ARAÇUAÍ | F94: DEVOLVIDO | G94: Diogo Tadeu Amaral Ferraz
A95: 2012-05-14 | B95: - | C95: 23.292-0 | D95: P | E95: LAGOA DA PRATA | F95: COMUNICADO | G95: Olívia
A96: 2012-05-14 | B96: - | C96: 35.340-0 | D96: P | E96: ALVINÓPOLIS | F96: ATUALIZADO | G96: Diogo Tadeu Amaral Ferraz
A97: 2012-05-15 | B97: - | C97: 09.146-4 | D97: P | E97: SÃO GONÇALO DO PARÁ | F97: DEVOLVIDO | G97: Olívia
A98: 2012-05-15 | B98: - | C98: 09.381-5 | D98: P | E98: SETE LAGOAS | F98: ATUALIZADO | G98: Wellington Reis
A99: 2012-05-15 | B99: - | C99: 11.998-9 | D99: P | E99: PARAOPEBA | F99: ATUALIZADO | G99: Wellington Reis
A100: 2012-05-15 | B100: - | C100: 29.566-3 | D100: P | E100: - | F100: COMUNICADO | G100: Olívia
A101: 2012-05-15 | B101: - | C101: 35.382-5 | D101: P | E101: ROMARIA | F101: ATUALIZADO | G101: Diogo Tadeu Amaral Ferraz
A102: 2012-05-15 | B102: - | C102: 36.802-4 | D102: P | E102: PERDÕES | F102: ATUALIZADO | G102: Diogo Tadeu Amaral Ferraz
A103: 2012-05-15 | B103: - | C103: 37.272-2 | D103: P | E103: PASSA TEMPO | F103: DEVOLVIDO | G103: Olívia
A104: 2012-05-15 | B104: - | C104: 38.625-1 | D104: E/P | E104: CONTAGEM | F104: ATUALIZADO | G104: Wellington Reis
A105: 2012-05-15 | B105: - | C105: 39.820-9 | D105: P | E105: CONTAGEM | F105: ATUALIZADO | G105: Wellington Reis
A106: 2012-05-16 | B106: - | C106: 08.560-0 | D106: P | E106: SABARÁ | F106: DEVOLVIDO | G106: Wellington Reis
A107: 2012-05-16 | B107: JUD | C107: 10.997-5 | D107: P | E107: CRISTIANO OTONI | F107: ATUALIZADO | G107: Diogo Tadeu Amaral Ferraz
A108: 2012-05-16 | B108: JUD | C108: 12.484-2 | D108: P | E108: NEPOMUCENO | F108: ATUALIZADO | G108: Olívia
A109: 2012-05-16 | B109: - | C109: 24.374-4 | D109: P | E109: PERDÕES | F109: DEVOLVIDO | G109: Wellington Reis
A110: 2012-05-16 | B110: - | C110: 26.147-5 | D110: P | E110: - | F110: COMUNICADO | G110: Diogo Tadeu Amaral Ferraz
A111: 2012-05-16 | B111: - | C111: 28.303-7 | D111: P | E111: VESPASIANO | F111: DEVOLVIDO | G111: Wellington Reis
A112: 2012-05-16 | B112: - | C112: 28.451-3 | D112: P | E112: PIRANGUINHO | F112: DEVOLVIDO | G112: Diogo Tadeu Amaral Ferraz
A113: 2012-05-16 | B113: JUD | C113: 29.621-0 | D113: P | E113: MATEUS LEME | F113: ATUALIZADO | G113: Wellington Reis
A114: 2012-05-16 | B114: - | C114: 32.478-7 | D114: P | E114: - | F114: COMUNICADO | G114: Wellington Reis
A115: 2012-05-17 | B115: - | C115: 15.046-0 | D115: P | E115: PITANGUI | F115: ATUALIZADO | G115: Diogo Tadeu Amaral Ferraz
A116: 2012-05-17 | B116: - | C116: 25.405-3 | D116: P | E116: URUCÂNIA | F116: ATUALIZADO | G116: Diogo Tadeu Amaral Ferraz
A117: 2012-05-17 | B117: - | C117: 26.406-7 | D117: P | E117: UBÁ | F117: ATUALIZADO | G117: Diogo Tadeu Amaral Ferraz
A118: 2012-05-17 | B118: - | C118: 26.966-2 | D118: P | E118: - | F118: COMUNICADO | G118: Olívia
A119: 2012-05-17 | B119: - | C119: 28.209-0 | D119: P | E119: - | F119: COMUNICADO | G119: Diogo Tadeu Amaral Ferraz
A120: 2012-05-17 | B120: - | C120: 34.528-8 | D120: P | E120: FELIZBURGO | F120: ATUALIZADO | G120: Olívia
A121: 2012-05-17 | B121: - | C121: 40.774-7 | D121: P | E121: SALTO DA DIVISA | F121: COMUNICADO | G121: Olívia
A122: 2012-05-21 | B122: - | C122: 04.281-1 | D122: P | E122: - | F122: COMUNICADO | G122: Wellington Reis
A123: 2012-05-21 | B123: - | C123: 09.809-4 | D123: P | E123: - | F123: OFÍCIO | G123: Diogo Tadeu Amaral Ferraz
A124: 2012-05-21 | B124: - | C124: 10.278-4 | D124: P | E124: - | F124: COMUNICADO | G124: Wellington Reis
A125: 2012-05-21 | B125: - | C125: 16.291-4 | D125: P | E125: - | F125: COMUNICADO | G125: Diogo Tadeu Amaral Ferraz
A126: 2012-05-21 | B126: - | C126: 19.269-4 | D126: P | E126: CAMPO BELO | F126: ATUALIZADO | G126: Diogo Tadeu Amaral Ferraz
A127: 2012-05-21 | B127: - | C127: 29.116-1 | D127: P | E127: PIRANGUINHO | F127: ATUALIZADO | G127: Diogo Tadeu Amaral Ferraz
A128: 2012-05-21 | B128: - | C128: 29.502-7 | D128: P | E128: - | F128: COMUNICADO | G128: Wellington Reis
A129: 2012-05-21 | B129: - | C129: 29.800-0 | D129: P | E129: - | F129: COMUNICADO | G129: Diogo Tadeu Amaral Ferraz
A130: 2012-05-21 | B130: - | C130: 29.983-9 | D130: P | E130: - | F130: COMUNICADO | G130: Wellington Reis
A131: 2012-05-21 | B131: - | C131: 32.343-8 | D131: P | E131: BETIM | F131: DEVOLVIDO | G131: Diogo Tadeu Amaral Ferraz
A132: 2012-05-21 | B132: - | C132: 33.145-7 | D132: E/P | E132: FRANCISCO BADARÓ | F132: ATUALIZADO | G132: Diogo Tadeu Amaral Ferraz
A133: 2012-05-21 | B133: - | C133: 35.037-0 | D133: P | E133: PONTE NOVA | F133: DEVOLVIDO | G133: Diogo Tadeu Amaral Ferraz
A134: 2012-05-21 | B134: PR | C134: 38.702-9 | D134: P | E134: ITAJUBÁ | F134: ATUALIZADO | G134: Wellington Reis
A135: 2012-05-21 | B135: - | C135: 39.244-8 | D135: P | E135: - | F135: COMUNICADO | G135: Wellington Reis
A136: 2012-05-21 | B136: - | C136: 40.509-4 | D136: P | E136: PONTE NOVA | F136: ATUALIZADO | G136: Diogo Tadeu Amaral Ferraz
A137: 2012-05-21 | B137: - | C137: 43.914-2 | D137: P | E137: CONTAGEM | F137: ATUALIZADO | G137: Diogo Tadeu Amaral Ferraz
A138: 2012-05-22 | B138: - | C138: 01.777-9 | D138: P | E138: - | F138: COMUNICADO | G138: Wellington Reis
A139: 2012-05-22 | B139: - | C139: 13.563-1 | D139: P | E139: RESENDE COSTA | F139: ATUALIZADO | G139: Wellington Reis
A140: 2012-05-22 | B140: - | C140: 14.704-4 | D140: P | E140: DIVINÓPOLIS | F140: DEVOLVIDO | G140: Olívia
A141: 2012-05-22 | B141: - | C141: 18.440-3 | D141: P | E141: SANTA BÁRBARA | F141: ATUALIZADO | G141: Wellington Reis
A142: 2012-05-22 | B142: - | C142: 20.040-9 | D142: P | E142: PERDÕES | F142: ATUALIZADO | G142: Olívia
A143: 2012-05-22 | B143: - | C143: 24.308-6 | D143: P | E143: URUCÂNIA | F143: ATUALIZADO | G143: Wellington Reis
A144: 2012-05-22 | B144: - | C144: 24.971-8 | D144: P | E144: MONTES CLAROS | F144: ATUALIZADO | G144: Wellington Reis
A145: 2012-05-22 | B145: - | C145: 25.227-1 | D145: P | E145: URUCÂNIA | F145: ATUALIZADO | G145: Wellington Reis
A146: 2012-05-22 | B146: - | C146: 28.825-0 | D146: P | E146: ANTÔNIO DIAS | F146: ATUALIZADO | G146: Diogo Tadeu Amaral Ferraz
A147: 2012-05-22 | B147: - | C147: 32.410-8 | D147: P | E147: SÃO SEBASTIÃO DO RIO PRETO | F147: ATUALIZADO | G147: Wellington Reis
A148: 2012-05-22 | B148: - | C148: 34.138-0 | D148: P | E148: JUATUBA | F148: DEVOLVIDO | G148: Wellington Reis
A149: 2012-05-22 | B149: - | C149: 38.647-2 | D149: P | E149: CAMBUQUIRA | F149: DEVOLVIDO | G149: Olívia
A150: 2012-05-22 | B150: - | C150: 39.144-1 | D150: P | E150: PERDÕES | F150: DEVOLVIDO | G150: Olívia
A151: 2012-05-25 | B151: - | C151: 20.962-7 | D151: P | E151: OURO FINO | F151: ATUALIZADO | G151: Wellington Reis
A152: 2012-05-25 | B152: - | C152: 22.948-2 | D152: P | E152: MUZAMBINHO | F152: ATUALIZADO | G152: Diogo Tadeu Amaral Ferraz
A153: 2012-05-25 | B153: - | C153: 24.065-6 | D153: P | E153: FRANCISCO DUMONT | F153: COMUNICADO | G153: Wellington Reis
A154: 2012-05-25 | B154: - | C154: 31.585-0 | D154: P | E154: CONTAGEM | F154: ATUALIZADO | G154: Wellington Reis
